Workbook

Sheet Versie (hidden)
A1: 2022-02-28

Sheet www.rensonlouvres.eu
A2: - Enkelvoudig muurrooster | E2: http://www.rensonlouvres.eu/
A3: - Enkelvoudig raamrooster
A4: - Lamellenwand

Sheet Muur (vast + regelb 4032)
A1: =IF(MAX(Tabel1[rechthoekige muurroosters (1)])=0,"Geen enkel buitenrooster voldoet!",IF(MAX(Tabel1[rechthoekige muurroosters (1)])=1,CONCATENATE(MAX(Tabel1[rechthoekige muurroosters (1)])," buitenrooster voldoet!"),CONCATENATE(MAX(Tabel1[rechthoekige muurroosters (1)])," buitenroosters voldoen!"))) -> 32 buitenroosters voldoen! | Y1: Nederlands | AI1: 2012-09-08
AC3: =CONCATENATE('TAAL (muur_vast+4032)'!B6," ",IF(DAY(Versie!A1)<10,CONCATENATE(0,DAY(Versie!A1)),DAY(Versie!A1)),"/",IF(MONTH(Versie!A1)<10,CONCATENATE(0,MONTH(Versie!A1)),MONTH(Versie!A1)),"/",YEAR(Versie!A1)) -> Versie 28/02/2022
A4: ='TAAL (muur_vast+4032)'!B4 -> Muurrooster (vast rooster + regelbaar rooster 4032)
AH5: NBN EN13141
A6: ='TAAL (muur_vast+4032)'!B5 -> Gekende afmetingen muuropening:
A8: ='TAAL (muur_vast+4032)'!B7 -> Breedte muuropening (B) = | K8: 300 | M8: mm
A10: ='TAAL (muur_vast+4032)'!B8 -> Hoogte muuropening (H) = | K10: 300 | M10: mm | AJ10: =IF(AJ17="horizontaal",'Muur (vast + regelb 4032)'!K10,IF(AJ17="verticaal",'Muur (vast + regelb 4032)'!K8,"")) -> 300 | AK10: mm
A15: ='TAAL (muur_vast+4032)'!B11 -> Regelbaar binnenrooster 4032:
A17: ='TAAL (muur_vast+4032)'!B35 -> Positie van de bediening: | J17: binnen de muuropening | Z17: ='TAAL (muur_vast+4032)'!B33 -> Oriëntatie: | AD17: horizontaal | AI17: =IF(COUNTIF('TAAL (muur_vast+4032)'!C39:I39,'Muur (vast + regelb 4032)'!J17)<>0,'TAAL (muur_vast+4032)'!C39,'TAAL (muur_vast+4032)'!C38) -> binnen de muuropening | AJ17: =IF(COUNTIF('TAAL (muur_vast+4032)'!C36:I36,'Muur (vast + regelb 4032)'!AD17)<>0,'TAAL (muur_vast+4032)'!C36,'TAAL (muur_vast+4032)'!C37) -> horizontaal | AK17: ='TAAL (muur_vast+4032)'!B39 -> binnen de muuropening | AL17: ='TAAL (muur_vast+4032)'!B36 -> horizontaal | BS17: =IF(OR(Z19=0,Z19=""),"",IF(AJ17="verticaal","marge links =",IF(AJ17="horizontaal","marge boven =",0))) -> marge boven = | BT17: =IF(OR(Z19=0,Z19=""),"",CONCATENATE(ROUND(IF(Z19="","",T23/2),0),"mm")) -> 1mm
A19: ='TAAL (muur_vast+4032)'!B12 -> Samenstelling volgens standaardhoogte 100, 130 of 150 mm: | Z19: 2 x 150mm | AI19: =Lijsten!B1 -> 1 | BS19: =IF(OR(Z19=0,Z19=""),"",IF(AJ17="verticaal","marge rechts =",IF(AJ17="horizontaal","marge onder =",0))) -> marge onder = | BT19: =IF(OR(Z19=0,Z19=""),"",CONCATENATE(ROUND(IF(Z19="","",T23/2),0),"mm")) -> 1mm
A23: Marge hoogte rooster ten opzichte van hoogte muuropening: | T23: =IF(Z19="","",VLOOKUP(Z19,'REKENBLAD 4032'!F4:Z963,16,FALSE)) -> 1.4
A25: ='TAAL (muur_vast+4032)'!B9 -> Vereist minimaal debiet doorheen het combinatierooster:
A27: ='TAAL (muur_vast+4032)'!B10 -> Gevraagd debiet gekend: | K27: neen | N27: Q = | O27: 690 | Q27: m³/h | AC27: 7 | AE27: Pa | AI27: =VLOOKUP(K27,'TAAL (muur_vast+4032)'!B17:C18,2,FALSE) -> neen | AK27: ='TAAL (muur_vast+4032)'!B18 -> neen
A29: ='TAAL (muur_vast+4032)'!B13 -> Vast buitenrooster: | AQ29: Rooster | AR29: =Tabel1[[#Headers],[Ce]] -> Ce | AS29: =Tabel1[[#Headers],[Cd]] -> Cd | AT29: =Tabel1[[#Headers],[B min]] -> B min | AU29: =AT29 -> B min | AV29: =Tabel1[[#Headers],[H min]] -> H min | AW29: =AV29 -> H min | AX29: =Tabel1[[#Headers],[H1 max]] -> H1 max | AY29: =Tabel1[[#Headers],[H2 max]] -> H2 max | AZ29: =Tabel1[[#Headers],[B2 max]] -> B2 max | BA29: =Tabel1[[#Headers],[B1 max]] -> B1 max | BB29: Fysische vrije doorlaat | BC29: Plaatsing
A31: ='TAAL (muur_vast+4032)'!B14 -> Type: | E31: 445/86 | K31: =AJ313 ->  | AI31: =Lijsten!K1 -> 1 | AQ31: =IF(COUNTIF(Tabel1[Roosternaam],$E31)=0,"",VLOOKUP($E31,Tabel1[[Roosternaam]:[Kolom10]],'Overzicht buitenroosters'!E1,FALSE)) -> 445/86 | AR31: =IF(COUNTIF(Tabel1[Roosternaam],'Muur (vast + regelb 4032)'!E31)=0,"",VLOOKUP($E31,Tabel1[[Roosternaam]:[Kolom10]],'Overzicht buitenroosters'!N1,FALSE)) -> 0.329 | AS31: =IF(COUNTIF(Tabel1[Roosternaam],'Muur (vast + regelb 4032)'!E31)=0,"",VLOOKUP($E31,Tabel1[[Roosternaam]:[Kolom10]],'Overzicht buitenroosters'!O1,FALSE)) -> 0.274 | AT31: =IF(COUNTIF(Tabel1[Roosternaam],'Muur (vast + regelb 4032)'!E31)=0,"",VLOOKUP($E31,Tabel1[[Roosternaam]:[Kolom10]],'Overzicht buitenroosters'!X1,FALSE)) -> 200 | AU31: =AT31 -> 200 | AV31: =IF(COUNTIF(Tabel1[Roosternaam],'Muur (vast + regelb 4032)'!E31)=0,"",VLOOKUP($E31,Tabel1[[Roosternaam]:[Kolom10]],'Overzicht buitenroosters'!Z1,FALSE)) -> 200 | AW31: =AV31 -> 200 | AX31: =IF(COUNTIF(Tabel1[Roosternaam],'Muur (vast + regelb 4032)'!E31)=0,"",VLOOKUP($E31,Tabel1[[Roosternaam]:[Kolom10]],'Overzicht buitenroosters'!AB1,FALSE)) -> 1000000 | AY31: =IF(COUNTIF(Tabel1[Roosternaam],'Muur (vast + regelb 4032)'!E31)=0,"",VLOOKUP($E31,Tabel1[[Roosternaam]:[Kolom10]],'Overzicht buitenroosters'!AC1,FALSE)) -> 1000000 | AZ31: =IF(COUNTIF(Tabel1[Roosternaam],'Muur (vast + regelb 4032)'!E31)=0,"",VLOOKUP($E31,Tabel1[[Roosternaam]:[Kolom10]],'Overzicht buitenroosters'!AD1,FALSE)) -> 1000000 | BA31: =IF(COUNTIF(Tabel1[Roosternaam],'Muur (vast + regelb 4032)'!E31)=0,"",VLOOKUP($E31,Tabel1[[Roosternaam]:[Kolom10]],'Overzicht buitenroosters'!AE1,FALSE)) -> 1000000 | BB31: =IF(COUNTIF(Tabel1[Roosternaam],'Muur (vast + regelb 4032)'!E31)=0,"",VLOOKUP($E31,Tabel1[[Roosternaam]:[Kolom10]],'Overzicht buitenroosters'!Q1,FALSE)) -> 0.34 | BC31: =IF(COUNTIF(Tabel1[Roosternaam],'Muur (vast + regelb 4032)'!E31)=0,"",VLOOKUP($E31,Tabel1[[Roosternaam]:[Kolom10]],'Overzicht buitenroosters'!I1,FALSE)) -> Inbouw
A33: ='TAAL (muur_vast+4032)'!B19 -> Geluidsdemping in open positie: | Y33: ='TAAL (muur_vast+4032)'!B21 -> Brandwerend: | AF33: =IF(AJ33="ja",'TAAL (muur_vast+4032)'!$B$17,'TAAL (muur_vast+4032)'!$B$18) -> neen | AI33: 411 | AJ33: =IF(VLOOKUP(AI33,'Overzicht buitenroosters'!E$4:AQ$197,31,FALSE)<>"ja","neen","ja") -> neen
A34: =IF(VLOOKUP(AI33,'Overzicht buitenroosters'!E$4:AQ$197,16,FALSE)=0,'TAAL (muur_vast+4032)'!B$25,CONCATENATE("Rw (C;Ctr) = ",VLOOKUP(AI33,'Overzicht buitenroosters'!E$4:AQ$197,16,FALSE))) -> Zonder akoestische isolatie | Y34: ='TAAL (muur_vast+4032)'!B22 -> Fysische vrije doorlaat: | AF34: =CONCATENATE(VLOOKUP(AI33,'Overzicht buitenroosters'!E$4:AQ$197,13,FALSE)*100,"%") -> 45%
A35: ='TAAL (muur_vast+4032)'!B20 -> Waterdichtheidsklasse: | Y35: ='TAAL (muur_vast+4032)'!B23 -> Inbraakwerend: | AF35: =IF(AI35="ja",'TAAL (muur_vast+4032)'!$B$17,'TAAL (muur_vast+4032)'!$B$18) -> neen | AI35: =IF(VLOOKUP(AI33,'Overzicht buitenroosters'!E$4:AQ$197,7,FALSE)<>"ja","neen","ja") -> neen
A36: =IF(VLOOKUP(AI33,'Overzicht buitenroosters'!E$4:AQ$197,17,FALSE)=0,"",CONCATENATE('TAAL (muur_vast+4032)'!B$24," ",VLOOKUP(AI33,'Overzicht buitenroosters'!E$4:AQ$197,17,FALSE)," (0 m/s)")) -> HEVAC-klasse B (0 m/s)
A37: =A$33 -> Geluidsdemping in open positie: | Y37: =Y$33 -> Brandwerend: | AF37: =IF(AJ37="ja",'TAAL (muur_vast+4032)'!$B$17,'TAAL (muur_vast+4032)'!$B$18) -> neen | AI37: 412 | AJ37: =IF(VLOOKUP(AI37,'Overzicht buitenroosters'!E$4:AQ$197,31,FALSE)<>"ja","neen","ja") -> neen
A38: =IF(VLOOKUP(AI37,'Overzicht buitenroosters'!E$4:AQ$197,16,FALSE)=0,'TAAL (muur_vast+4032)'!B$25,CONCATENATE("Rw (C;Ctr) = ",VLOOKUP(AI37,'Overzicht buitenroosters'!E$4:AQ$197,16,FALSE))) -> Zonder akoestische isolatie | Y38: =Y$34 -> Fysische vrije doorlaat: | AF38: =CONCATENATE(VLOOKUP(AI37,'Overzicht buitenroosters'!E$4:AQ$197,13,FALSE)*100,"%") -> 39%
A39: =A$35 -> Waterdichtheidsklasse: | Y39: =Y$35 -> Inbraakwerend: | AF39: =IF(AI39="ja",'TAAL (muur_vast+4032)'!$B$17,'TAAL (muur_vast+4032)'!$B$18) -> neen | AI39: =IF(VLOOKUP(AI37,'Overzicht buitenroosters'!E$4:AQ$197,7,FALSE)<>"ja","neen","ja") -> neen
A40: =IF(VLOOKUP(AI37,'Overzicht buitenroosters'!E$4:AQ$197,17,FALSE)=0,"",CONCATENATE('TAAL (muur_vast+4032)'!B$24," ",VLOOKUP(AI37,'Overzicht buitenroosters'!E$4:AQ$197,17,FALSE)," (0 m/s)")) -> HEVAC-klasse A (0 m/s)
A41: =A$33 -> Geluidsdemping in open positie: | Y41: =Y$33 -> Brandwerend: | AF41: =IF(AJ41="ja",'TAAL (muur_vast+4032)'!$B$17,'TAAL (muur_vast+4032)'!$B$18) -> neen | AI41: 421 | AJ41: =IF(VLOOKUP(AI41,'Overzicht buitenroosters'!E$4:AQ$197,31,FALSE)<>"ja","neen","ja") -> neen
A42: =IF(VLOOKUP(AI41,'Overzicht buitenroosters'!E$4:AQ$197,16,FALSE)=0,'TAAL (muur_vast+4032)'!B$25,CONCATENATE("Rw (C;Ctr) = ",VLOOKUP(AI41,'Overzicht buitenroosters'!E$4:AQ$197,16,FALSE))) -> Zonder akoestische isolatie | Y42: =Y$34 -> Fysische vrije doorlaat: | AF42: =CONCATENATE(VLOOKUP(AI41,'Overzicht buitenroosters'!E$4:AQ$197,13,FALSE)*100,"%") -> 49%
A43: =A$35 -> Waterdichtheidsklasse: | Y43: =Y$35 -> Inbraakwerend: | AF43: =IF(AI43="ja",'TAAL (muur_vast+4032)'!$B$17,'TAAL (muur_vast+4032)'!$B$18) -> neen | AI43: =IF(VLOOKUP(AI41,'Overzicht buitenroosters'!E$4:AQ$197,7,FALSE)<>"ja","neen","ja") -> neen
A44: =IF(VLOOKUP(AI41,'Overzicht buitenroosters'!E$4:AQ$197,17,FALSE)=0,"",CONCATENATE('TAAL (muur_vast+4032)'!B$24," ",VLOOKUP(AI41,'Overzicht buitenroosters'!E$4:AQ$197,17,FALSE)," (0 m/s)")) -> HEVAC-klasse B (0 m/s)
A45: =A$33 -> Geluidsdemping in open positie: | Y45: =Y$33 -> Brandwerend: | AF45: =IF(AJ45="ja",'TAAL (muur_vast+4032)'!$B$17,'TAAL (muur_vast+4032)'!$B$18) -> neen | AI45: 422 | AJ45: =IF(VLOOKUP(AI45,'Overzicht buitenroosters'!E$4:AQ$197,31,FALSE)<>"ja","neen","ja") -> neen
A46: =IF(VLOOKUP(AI45,'Overzicht buitenroosters'!E$4:AQ$197,16,FALSE)=0,'TAAL (muur_vast+4032)'!B$25,CONCATENATE("Rw (C;Ctr) = ",VLOOKUP(AI45,'Overzicht buitenroosters'!E$4:AQ$197,16,FALSE))) -> Zonder akoestische isolatie | Y46: =Y$34 -> Fysische vrije doorlaat: | AF46: =CONCATENATE(VLOOKUP(AI45,'Overzicht buitenroosters'!E$4:AQ$197,13,FALSE)*100,"%") -> 43%
A47: =A$35 -> Waterdichtheidsklasse: | Y47: =Y$35 -> Inbraakwerend: | AF47: =IF(AI47="ja",'TAAL (muur_vast+4032)'!$B$17,'TAAL (muur_vast+4032)'!$B$18) -> neen | AI47: =IF(VLOOKUP(AI45,'Overzicht buitenroosters'!E$4:AQ$197,7,FALSE)<>"ja","neen","ja") -> neen
A48: =IF(VLOOKUP(AI45,'Overzicht buitenroosters'!E$4:AQ$197,17,FALSE)=0,"",CONCATENATE('TAAL (muur_vast+4032)'!B$24," ",VLOOKUP(AI45,'Overzicht buitenroosters'!E$4:AQ$197,17,FALSE)," (0 m/s)")) -> HEVAC-klasse A (0 m/s)
A49: =A$33 -> Geluidsdemping in open positie: | Y49: =Y$33 -> Brandwerend: | AF49: =IF(AJ49="ja",'TAAL (muur_vast+4032)'!$B$17,'TAAL (muur_vast+4032)'!$B$18) -> neen | AI49: 451 | AJ49: =IF(VLOOKUP(AI49,'Overzicht buitenroosters'!E$4:AQ$197,31,FALSE)<>"ja","neen","ja") -> neen
A50: =IF(VLOOKUP(AI49,'Overzicht buitenroosters'!E$4:AQ$197,16,FALSE)=0,'TAAL (muur_vast+4032)'!B$25,CONCATENATE("Rw (C;Ctr) = ",VLOOKUP(AI49,'Overzicht buitenroosters'!E$4:AQ$197,16,FALSE))) -> Zonder akoestische isolatie | Y50: =Y$34 -> Fysische vrije doorlaat: | AF50: =CONCATENATE(VLOOKUP(AI49,'Overzicht buitenroosters'!E$4:AQ$197,13,FALSE)*100,"%") -> 49%
A51: =A$35 -> Waterdichtheidsklasse: | Y51: =Y$35 -> Inbraakwerend: | AF51: =IF(AI51="ja",'TAAL (muur_vast+4032)'!$B$17,'TAAL (muur_vast+4032)'!$B$18) -> neen | AI51: =IF(VLOOKUP(AI49,'Overzicht buitenroosters'!E$4:AQ$197,7,FALSE)<>"ja","neen","ja") -> neen
A52: =IF(VLOOKUP(AI49,'Overzicht buitenroosters'!E$4:AQ$197,17,FALSE)=0,"",CONCATENATE('TAAL (muur_vast+4032)'!B$24," ",VLOOKUP(AI49,'Overzicht buitenroosters'!E$4:AQ$197,17,FALSE)," (0 m/s)")) -> HEVAC-klasse B (0 m/s)
A53: =A$33 -> Geluidsdemping in open positie: | Y53: =Y$33 -> Brandwerend: | AF53: =IF(AJ53="ja",'TAAL (muur_vast+4032)'!$B$17,'TAAL (muur_vast+4032)'!$B$18) -> neen | AI53: 452 | AJ53: =IF(VLOOKUP(AI53,'Overzicht buitenroosters'!E$4:AQ$197,31,FALSE)<>"ja","neen","ja") -> neen
A54: =IF(VLOOKUP(AI53,'Overzicht buitenroosters'!E$4:AQ$197,16,FALSE)=0,'TAAL (muur_vast+4032)'!B$25,CONCATENATE("Rw (C;Ctr) = ",VLOOKUP(AI53,'Overzicht buitenroosters'!E$4:AQ$197,16,FALSE))) -> Zonder akoestische isolatie | Y54: =Y$34 -> Fysische vrije doorlaat: | AF54: =CONCATENATE(VLOOKUP(AI53,'Overzicht buitenroosters'!E$4:AQ$197,13,FALSE)*100,"%") -> 41%
A55: =A$35 -> Waterdichtheidsklasse: | Y55: =Y$35 -> Inbraakwerend: | AF55: =IF(AI55="ja",'TAAL (muur_vast+4032)'!$B$17,'TAAL (muur_vast+4032)'!$B$18) -> neen | AI55: =IF(VLOOKUP(AI53,'Overzicht buitenroosters'!E$4:AQ$197,7,FALSE)<>"ja","neen","ja") -> neen
A56: =IF(VLOOKUP(AI53,'Overzicht buitenroosters'!E$4:AQ$197,17,FALSE)=0,"",CONCATENATE('TAAL (muur_vast+4032)'!B$24," ",VLOOKUP(AI53,'Overzicht buitenroosters'!E$4:AQ$197,17,FALSE)," (0 m/s)")) -> HEVAC-klasse A (0 m/s)
A57: =A$33 -> Geluidsdemping in open positie: | Y57: =Y$33 -> Brandwerend: | AF57: =IF(AJ57="ja",'TAAL (muur_vast+4032)'!$B$17,'TAAL (muur_vast+4032)'!$B$18) -> neen | AI57: 452V | AJ57: =IF(VLOOKUP(AI57,'Overzicht buitenroosters'!E$4:AQ$197,31,FALSE)<>"ja","neen","ja") -> neen
A58: =IF(VLOOKUP(AI57,'Overzicht buitenroosters'!E$4:AQ$197,16,FALSE)=0,'TAAL (muur_vast+4032)'!B$25,CONCATENATE("Rw (C;Ctr) = ",VLOOKUP(AI57,'Overzicht buitenroosters'!E$4:AQ$197,16,FALSE))) -> Zonder akoestische isolatie | Y58: =Y$34 -> Fysische vrije doorlaat: | AF58: =CONCATENATE(VLOOKUP(AI57,'Overzicht buitenroosters'!E$4:AQ$197,13,FALSE)*100,"%") -> 41%
A59: =A$35 -> Waterdichtheidsklasse: | Y59: =Y$35 -> Inbraakwerend: | AF59: =IF(AI59="ja",'TAAL (muur_vast+4032)'!$B$17,'TAAL (muur_vast+4032)'!$B$18) -> neen | AI59: =IF(VLOOKUP(AI57,'Overzicht buitenroosters'!E$4:AQ$197,7,FALSE)<>"ja","neen","ja") -> neen
A60: =IF(VLOOKUP(AI57,'Overzicht buitenroosters'!E$4:AQ$197,17,FALSE)=0,"",CONCATENATE('TAAL (muur_vast+4032)'!B$24," ",VLOOKUP(AI57,'Overzicht buitenroosters'!E$4:AQ$197,17,FALSE)," (0 m/s)")) -> HEVAC-klasse A (0 m/s)
A61: =A$33 -> Geluidsdemping in open positie: | Y61: =Y$33 -> Brandwerend: | AF61: =IF(AJ61="ja",'TAAL (muur_vast+4032)'!$B$17,'TAAL (muur_vast+4032)'!$B$18) -> neen | AI61: 480 | AJ61: =IF(VLOOKUP(AI61,'Overzicht buitenroosters'!E$4:AQ$197,31,FALSE)<>"ja","neen","ja") -> neen
A62: =IF(VLOOKUP(AI61,'Overzicht buitenroosters'!E$4:AQ$197,16,FALSE)=0,'TAAL (muur_vast+4032)'!B$25,CONCATENATE("Rw (C;Ctr) = ",VLOOKUP(AI61,'Overzicht buitenroosters'!E$4:AQ$197,16,FALSE))) -> Zonder akoestische isolatie | Y62: =Y$34 -> Fysische vrije doorlaat: | AF62: =CONCATENATE(VLOOKUP(AI61,'Overzicht buitenroosters'!E$4:AQ$197,13,FALSE)*100,"%") -> 76%
A63: =A$35 -> Waterdichtheidsklasse: | Y63: =Y$35 -> Inbraakwerend: | AF63: =IF(AI63="ja",'TAAL (muur_vast+4032)'!$B$17,'TAAL (muur_vast+4032)'!$B$18) -> neen | AI63: =IF(VLOOKUP(AI61,'Overzicht buitenroosters'!E$4:AQ$197,7,FALSE)<>"ja","neen","ja") -> neen
A64: =IF(VLOOKUP(AI61,'Overzicht buitenroosters'!E$4:AQ$197,17,FALSE)=0,"",CONCATENATE('TAAL (muur_vast+4032)'!B$24," ",VLOOKUP(AI61,'Overzicht buitenroosters'!E$4:AQ$197,17,FALSE)," (0 m/s)")) -> HEVAC-klasse D (0 m/s)
A65: =A$33 -> Geluidsdemping in open positie: | Y65: =Y$33 -> Brandwerend: | AF65: =IF(AJ65="ja",'TAAL (muur_vast+4032)'!$B$17,'TAAL (muur_vast+4032)'!$B$18) -> neen | AI65: 481 | AJ65: =IF(VLOOKUP(AI65,'Overzicht buitenroosters'!E$4:AQ$197,31,FALSE)<>"ja","neen","ja") -> neen
A66: =IF(VLOOKUP(AI65,'Overzicht buitenroosters'!E$4:AQ$197,16,FALSE)=0,'TAAL (muur_vast+4032)'!B$25,CONCATENATE("Rw (C;Ctr) = ",VLOOKUP(AI65,'Overzicht buitenroosters'!E$4:AQ$197,16,FALSE))) -> Zonder akoestische isolatie | Y66: =Y$34 -> Fysische vrije doorlaat: | AF66: =CONCATENATE(VLOOKUP(AI65,'Overzicht buitenroosters'!E$4:AQ$197,13,FALSE)*100,"%") -> 60%
A67: =A$35 -> Waterdichtheidsklasse: | Y67: =Y$35 -> Inbraakwerend: | AF67: =IF(AI67="ja",'TAAL (muur_vast+4032)'!$B$17,'TAAL (muur_vast+4032)'!$B$18) -> neen | AI67: =IF(VLOOKUP(AI65,'Overzicht buitenroosters'!E$4:AQ$197,7,FALSE)<>"ja","neen","ja") -> neen
A68: =IF(VLOOKUP(AI65,'Overzicht buitenroosters'!E$4:AQ$197,17,FALSE)=0,"",CONCATENATE('TAAL (muur_vast+4032)'!B$24," ",VLOOKUP(AI65,'Overzicht buitenroosters'!E$4:AQ$197,17,FALSE)," (0 m/s)")) -> HEVAC-klasse D (0 m/s)
A69: =A$33 -> Geluidsdemping in open positie: | Y69: =Y$33 -> Brandwerend: | AF69: =IF(AJ69="ja",'TAAL (muur_vast+4032)'!$B$17,'TAAL (muur_vast+4032)'!$B$18) -> neen | AI69: 425 | AJ69: =IF(VLOOKUP(AI69,'Overzicht buitenroosters'!E$4:AQ$197,31,FALSE)<>"ja","neen","ja") -> neen
A70: =IF(VLOOKUP(AI69,'Overzicht buitenroosters'!E$4:AQ$197,16,FALSE)=0,'TAAL (muur_vast+4032)'!B$25,CONCATENATE("Rw (C;Ctr) = ",VLOOKUP(AI69,'Overzicht buitenroosters'!E$4:AQ$197,16,FALSE))) -> Zonder akoestische isolatie | Y70: =Y$34 -> Fysische vrije doorlaat: | AF70: =CONCATENATE(VLOOKUP(AI69,'Overzicht buitenroosters'!E$4:AQ$197,13,FALSE)*100,"%") -> 55%
A71: =A$35 -> Waterdichtheidsklasse: | Y71: =Y$35 -> Inbraakwerend: | AF71: =IF(AI71="ja",'TAAL (muur_vast+4032)'!$B$17,'TAAL (muur_vast+4032)'!$B$18) -> neen | AI71: =IF(VLOOKUP(AI69,'Overzicht buitenroosters'!E$4:AQ$197,7,FALSE)<>"ja","neen","ja") -> neen
A72: =IF(VLOOKUP(AI69,'Overzicht buitenroosters'!E$4:AQ$197,17,FALSE)=0,"",CONCATENATE('TAAL (muur_vast+4032)'!B$24," ",VLOOKUP(AI69,'Overzicht buitenroosters'!E$4:AQ$197,17,FALSE)," (0 m/s)")) -> HEVAC-klasse B (0 m/s)
A73: =A$33 -> Geluidsdemping in open positie: | Y73: =Y$33 -> Brandwerend: | AF73: =IF(AJ73="ja",'TAAL (muur_vast+4032)'!$B$17,'TAAL (muur_vast+4032)'!$B$18) -> neen | AI73: 427 | AJ73: =IF(VLOOKUP(AI73,'Overzicht buitenroosters'!E$4:AQ$197,31,FALSE)<>"ja","neen","ja") -> neen
A74: =IF(VLOOKUP(AI73,'Overzicht buitenroosters'!E$4:AQ$197,16,FALSE)=0,'TAAL (muur_vast+4032)'!B$25,CONCATENATE("Rw (C;Ctr) = ",VLOOKUP(AI73,'Overzicht buitenroosters'!E$4:AQ$197,16,FALSE))) -> Zonder akoestische isolatie | Y74: =Y$34 -> Fysische vrije doorlaat: | AF74: =CONCATENATE(VLOOKUP(AI73,'Overzicht buitenroosters'!E$4:AQ$197,13,FALSE)*100,"%") -> 53%
A75: =A$35 -> Waterdichtheidsklasse: | Y75: =Y$35 -> Inbraakwerend: | AF75: =IF(AI75="ja",'TAAL (muur_vast+4032)'!$B$17,'TAAL (muur_vast+4032)'!$B$18) -> neen | AI75: =IF(VLOOKUP(AI73,'Overzicht buitenroosters'!E$4:AQ$197,7,FALSE)<>"ja","neen","ja") -> neen
A76: =IF(VLOOKUP(AI73,'Overzicht buitenroosters'!E$4:AQ$197,17,FALSE)=0,"",CONCATENATE('TAAL (muur_vast+4032)'!B$24," ",VLOOKUP(AI73,'Overzicht buitenroosters'!E$4:AQ$197,17,FALSE)," (0 m/s)")) -> HEVAC-klasse D (0 m/s)
A77: =A$33 -> Geluidsdemping in open positie: | Y77: =Y$33 -> Brandwerend: | AF77: =IF(AJ77="ja",'TAAL (muur_vast+4032)'!$B$17,'TAAL (muur_vast+4032)'!$B$18) -> neen | AI77: 491 | AJ77: =IF(VLOOKUP(AI77,'Overzicht buitenroosters'!E$4:AQ$197,31,FALSE)<>"ja","neen","ja") -> neen
A78: =IF(VLOOKUP(AI77,'Overzicht buitenroosters'!E$4:AQ$197,16,FALSE)=0,'TAAL (muur_vast+4032)'!B$25,CONCATENATE("Rw (C;Ctr) = ",VLOOKUP(AI77,'Overzicht buitenroosters'!E$4:AQ$197,16,FALSE))) -> Zonder akoestische isolatie | Y78: =Y$34 -> Fysische vrije doorlaat: | AF78: =CONCATENATE(VLOOKUP(AI77,'Overzicht buitenroosters'!E$4:AQ$197,13,FALSE)*100,"%") -> 26%
A79: =A$35 -> Waterdichtheidsklasse: | Y79: =Y$35 -> Inbraakwerend: | AF79: =IF(AI79="ja",'TAAL (muur_vast+4032)'!$B$17,'TAAL (muur_vast+4032)'!$B$18) -> neen | AI79: =IF(VLOOKUP(AI77,'Overzicht buitenroosters'!E$4:AQ$197,7,FALSE)<>"ja","neen","ja") -> neen
A80: =IF(VLOOKUP(AI77,'Overzicht buitenroosters'!E$4:AQ$197,17,FALSE)=0,"",CONCATENATE('TAAL (muur_vast+4032)'!B$24," ",VLOOKUP(AI77,'Overzicht buitenroosters'!E$4:AQ$197,17,FALSE)," (0 m/s)")) -> HEVAC-klasse A (0 m/s)
A81: =A$33 -> Geluidsdemping in open positie: | Y81: =Y$33 -> Brandwerend: | AF81: =IF(AJ81="ja",'TAAL (muur_vast+4032)'!$B$17,'TAAL (muur_vast+4032)'!$B$18) -> neen | AI81: 453 | AJ81: =IF(VLOOKUP(AI81,'Overzicht buitenroosters'!E$4:AQ$197,31,FALSE)<>"ja","neen","ja") -> neen
A82: =IF(VLOOKUP(AI81,'Overzicht buitenroosters'!E$4:AQ$197,16,FALSE)=0,'TAAL (muur_vast+4032)'!B$25,CONCATENATE("Rw (C;Ctr) = ",VLOOKUP(AI81,'Overzicht buitenroosters'!E$4:AQ$197,16,FALSE))) -> Zonder akoestische isolatie | Y82: =Y$34 -> Fysische vrije doorlaat: | AF82: =CONCATENATE(VLOOKUP(AI81,'Overzicht buitenroosters'!E$4:AQ$197,13,FALSE)*100,"%") -> 55%
A83: =A$35 -> Waterdichtheidsklasse: | Y83: =Y$35 -> Inbraakwerend: | AF83: =IF(AI83="ja",'TAAL (muur_vast+4032)'!$B$17,'TAAL (muur_vast+4032)'!$B$18) -> neen | AI83: =IF(VLOOKUP(AI81,'Overzicht buitenroosters'!E$4:AQ$197,7,FALSE)<>"ja","neen","ja") -> neen
A84: =IF(VLOOKUP(AI81,'Overzicht buitenroosters'!E$4:AQ$197,17,FALSE)=0,"",CONCATENATE('TAAL (muur_vast+4032)'!B$24," ",VLOOKUP(AI81,'Overzicht buitenroosters'!E$4:AQ$197,17,FALSE)," (0 m/s)")) -> HEVAC-klasse D (0 m/s)
A85: =A$33 -> Geluidsdemping in open positie: | Y85: =Y$33 -> Brandwerend: | AF85: =IF(AJ85="ja",'TAAL (muur_vast+4032)'!$B$17,'TAAL (muur_vast+4032)'!$B$18) -> neen | AI85: 431 | AJ85: =IF(VLOOKUP(AI85,'Overzicht buitenroosters'!E$4:AQ$197,31,FALSE)<>"ja","neen","ja") -> neen
A86: =IF(VLOOKUP(AI85,'Overzicht buitenroosters'!E$4:AQ$197,16,FALSE)=0,'TAAL (muur_vast+4032)'!B$25,CONCATENATE("Rw (C;Ctr) = ",VLOOKUP(AI85,'Overzicht buitenroosters'!E$4:AQ$197,16,FALSE))) -> Zonder akoestische isolatie | Y86: =Y$34 -> Fysische vrije doorlaat: | AF86: =CONCATENATE(VLOOKUP(AI85,'Overzicht buitenroosters'!E$4:AQ$197,13,FALSE)*100,"%") -> 45%
A87: =A$35 -> Waterdichtheidsklasse: | Y87: =Y$35 -> Inbraakwerend: | AF87: =IF(AI87="ja",'TAAL (muur_vast+4032)'!$B$17,'TAAL (muur_vast+4032)'!$B$18) -> neen | AI87: =IF(VLOOKUP(AI85,'Overzicht buitenroosters'!E$4:AQ$197,7,FALSE)<>"ja","neen","ja") -> neen
A88: =IF(VLOOKUP(AI85,'Overzicht buitenroosters'!E$4:AQ$197,17,FALSE)=0,"",CONCATENATE('TAAL (muur_vast+4032)'!B$24," ",VLOOKUP(AI85,'Overzicht buitenroosters'!E$4:AQ$197,17,FALSE)," (0 m/s)")) -> HEVAC-klasse B (0 m/s)
A89: =A$33 -> Geluidsdemping in open positie: | Y89: =Y$33 -> Brandwerend: | AF89: =IF(AJ89="ja",'TAAL (muur_vast+4032)'!$B$17,'TAAL (muur_vast+4032)'!$B$18) -> neen | AI89: 446/150 | AJ89: =IF(VLOOKUP(AI89,'Overzicht buitenroosters'!E$4:AQ$197,31,FALSE)<>"ja","neen","ja") -> neen
A90: =IF(VLOOKUP(AI89,'Overzicht buitenroosters'!E$4:AQ$197,16,FALSE)=0,'TAAL (muur_vast+4032)'!B$25,CONCATENATE("Rw (C;Ctr) = ",VLOOKUP(AI89,'Overzicht buitenroosters'!E$4:AQ$197,16,FALSE))) -> Rw (C;Ctr) = 11 (-1;-2) dB | Y90: =Y$34 -> Fysische vrije doorlaat: | AF90: =CONCATENATE(VLOOKUP(AI89,'Overzicht buitenroosters'!E$4:AQ$197,13,FALSE)*100,"%") -> 34,3%
A91: =A$35 -> Waterdichtheidsklasse: | Y91: =Y$35 -> Inbraakwerend: | AF91: =IF(AI91="ja",'TAAL (muur_vast+4032)'!$B$17,'TAAL (muur_vast+4032)'!$B$18) -> neen | AI91: =IF(VLOOKUP(AI89,'Overzicht buitenroosters'!E$4:AQ$197,7,FALSE)<>"ja","neen","ja") -> neen
A92: =IF(VLOOKUP(AI89,'Overzicht buitenroosters'!E$4:AQ$197,17,FALSE)=0,"",CONCATENATE('TAAL (muur_vast+4032)'!B$24," ",VLOOKUP(AI89,'Overzicht buitenroosters'!E$4:AQ$197,17,FALSE)," (0 m/s)")) -> HEVAC-klasse A (0 m/s)
A93: =A$33 -> Geluidsdemping in open positie: | Y93: =Y$33 -> Brandwerend: | AF93: =IF(AJ93="ja",'TAAL (muur_vast+4032)'!$B$17,'TAAL (muur_vast+4032)'!$B$18) -> neen | AI93: 446/300 | AJ93: =IF(VLOOKUP(AI93,'Overzicht buitenroosters'!E$4:AQ$197,31,FALSE)<>"ja","neen","ja") -> neen
A94: =IF(VLOOKUP(AI93,'Overzicht buitenroosters'!E$4:AQ$197,16,FALSE)=0,'TAAL (muur_vast+4032)'!B$25,CONCATENATE("Rw (C;Ctr) = ",VLOOKUP(AI93,'Overzicht buitenroosters'!E$4:AQ$197,16,FALSE))) -> Rw (C;Ctr) = 17 (-1;-4) dB | Y94: =Y$34 -> Fysische vrije doorlaat: | AF94: =CONCATENATE(VLOOKUP(AI93,'Overzicht buitenroosters'!E$4:AQ$197,13,FALSE)*100,"%") -> 34,3%
A95: =A$35 -> Waterdichtheidsklasse: | Y95: =Y$35 -> Inbraakwerend: | AF95: =IF(AI95="ja",'TAAL (muur_vast+4032)'!$B$17,'TAAL (muur_vast+4032)'!$B$18) -> neen | AI95: =IF(VLOOKUP(AI93,'Overzicht buitenroosters'!E$4:AQ$197,7,FALSE)<>"ja","neen","ja") -> neen
A96: =IF(VLOOKUP(AI93,'Overzicht buitenroosters'!E$4:AQ$197,17,FALSE)=0,"",CONCATENATE('TAAL (muur_vast+4032)'!B$24," ",VLOOKUP(AI93,'Overzicht buitenroosters'!E$4:AQ$197,17,FALSE)," (0 m/s)")) -> HEVAC-klasse A (0 m/s)
A97: =A$33 -> Geluidsdemping in open positie: | Y97: =Y$33 -> Brandwerend: | AF97: =IF(AJ97="ja",'TAAL (muur_vast+4032)'!$B$17,'TAAL (muur_vast+4032)'!$B$18) -> neen | AI97: 445/86 | AJ97: =IF(VLOOKUP(AI97,'Overzicht buitenroosters'!E$4:AQ$197,31,FALSE)<>"ja","neen","ja") -> neen
A98: =IF(VLOOKUP(AI97,'Overzicht buitenroosters'!E$4:AQ$197,16,FALSE)=0,'TAAL (muur_vast+4032)'!B$25,CONCATENATE("Rw (C;Ctr) = ",VLOOKUP(AI97,'Overzicht buitenroosters'!E$4:AQ$197,16,FALSE))) -> Rw (C;Ctr) = 6 (-1;-2) dB | Y98: =Y$34 -> Fysische vrije doorlaat: | AF98: =CONCATENATE(VLOOKUP(AI97,'Overzicht buitenroosters'!E$4:AQ$197,13,FALSE)*100,"%") -> 34%
A99: =A$35 -> Waterdichtheidsklasse: | Y99: =Y$35 -> Inbraakwerend: | AF99: =IF(AI99="ja",'TAAL (muur_vast+4032)'!$B$17,'TAAL (muur_vast+4032)'!$B$18) -> neen | AI99: =IF(VLOOKUP(AI97,'Overzicht buitenroosters'!E$4:AQ$197,7,FALSE)<>"ja","neen","ja") -> neen
A100: =IF(VLOOKUP(AI97,'Overzicht buitenroosters'!E$4:AQ$197,17,FALSE)=0,"",CONCATENATE('TAAL (muur_vast+4032)'!B$24," ",VLOOKUP(AI97,'Overzicht buitenroosters'!E$4:AQ$197,17,FALSE)," (0 m/s)")) -> HEVAC-klasse D (0 m/s)
A101: =A$33 -> Geluidsdemping in open positie: | Y101: =Y$33 -> Brandwerend: | AF101: =IF(AJ101="ja",'TAAL (muur_vast+4032)'!$B$17,'TAAL (muur_vast+4032)'!$B$18) -> neen | AI101: 423WK4 | AJ101: =IF(VLOOKUP(AI101,'Overzicht buitenroosters'!E$4:AQ$197,31,FALSE)<>"ja","neen","ja") -> neen
A102: =IF(VLOOKUP(AI101,'Overzicht buitenroosters'!E$4:AQ$197,16,FALSE)=0,'TAAL (muur_vast+4032)'!B$25,CONCATENATE("Rw (C;Ctr) = ",VLOOKUP(AI101,'Overzicht buitenroosters'!E$4:AQ$197,16,FALSE))) -> Zonder akoestische isolatie | Y102: =Y$34 -> Fysische vrije doorlaat: | AF102: =CONCATENATE(VLOOKUP(AI101,'Overzicht buitenroosters'!E$4:AQ$197,13,FALSE)*100,"%") -> 22%
A103: =A$35 -> Waterdichtheidsklasse: | Y103: =Y$35 -> Inbraakwerend: | AF103: =IF(AI103="ja",'TAAL (muur_vast+4032)'!$B$17,'TAAL (muur_vast+4032)'!$B$18) -> ja | AI103: =IF(VLOOKUP(AI101,'Overzicht buitenroosters'!E$4:AQ$197,7,FALSE)<>"ja","neen","ja") -> ja
A104: =IF(VLOOKUP(AI101,'Overzicht buitenroosters'!E$4:AQ$197,17,FALSE)=0,"",CONCATENATE('TAAL (muur_vast+4032)'!B$24," ",VLOOKUP(AI101,'Overzicht buitenroosters'!E$4:AQ$197,17,FALSE)," (0 m/s)")) -> HEVAC-klasse D (0 m/s)
A105: =A$33 -> Geluidsdemping in open positie: | Y105: =Y$33 -> Brandwerend: | AF105: =IF(AJ105="ja",'TAAL (muur_vast+4032)'!$B$17,'TAAL (muur_vast+4032)'!$B$18) -> neen | AI105: 421WK2 | AJ105: =IF(VLOOKUP(AI105,'Overzicht buitenroosters'!E$4:AQ$197,31,FALSE)<>"ja","neen","ja") -> neen
A106: =IF(VLOOKUP(AI105,'Overzicht buitenroosters'!E$4:AQ$197,16,FALSE)=0,'TAAL (muur_vast+4032)'!B$25,CONCATENATE("Rw (C;Ctr) = ",VLOOKUP(AI105,'Overzicht buitenroosters'!E$4:AQ$197,16,FALSE))) -> Zonder akoestische isolatie | Y106: =Y$34 -> Fysische vrije doorlaat: | AF106: =CONCATENATE(VLOOKUP(AI105,'Overzicht buitenroosters'!E$4:AQ$197,13,FALSE)*100,"%") -> 43%
A107: =A$35 -> Waterdichtheidsklasse: | Y107: =Y$35 -> Inbraakwerend: | AF107: =IF(AI107="ja",'TAAL (muur_vast+4032)'!$B$17,'TAAL (muur_vast+4032)'!$B$18) -> ja | AI107: =IF(VLOOKUP(AI105,'Overzicht buitenroosters'!E$4:AQ$197,7,FALSE)<>"ja","neen","ja") -> ja
A108: =IF(VLOOKUP(AI105,'Overzicht buitenroosters'!E$4:AQ$197,17,FALSE)=0,"",CONCATENATE('TAAL (muur_vast+4032)'!B$24," ",VLOOKUP(AI105,'Overzicht buitenroosters'!E$4:AQ$197,17,FALSE)," (0 m/s)")) -> HEVAC-klasse B (0 m/s)
A109: =A$33 -> Geluidsdemping in open positie: | Y109: =Y$33 -> Brandwerend: | AF109: =IF(AJ109="ja",'TAAL (muur_vast+4032)'!$B$17,'TAAL (muur_vast+4032)'!$B$18) -> neen | AI109: 431WK2 | AJ109: =IF(VLOOKUP(AI109,'Overzicht buitenroosters'!E$4:AQ$197,31,FALSE)<>"ja","neen","ja") -> neen
A110: =IF(VLOOKUP(AI109,'Overzicht buitenroosters'!E$4:AQ$197,16,FALSE)=0,'TAAL (muur_vast+4032)'!B$25,CONCATENATE("Rw (C;Ctr) = ",VLOOKUP(AI109,'Overzicht buitenroosters'!E$4:AQ$197,16,FALSE))) -> Zonder akoestische isolatie | Y110: =Y$34 -> Fysische vrije doorlaat: | AF110: =CONCATENATE(VLOOKUP(AI109,'Overzicht buitenroosters'!E$4:AQ$197,13,FALSE)*100,"%") -> 40,5%
A111: =A$35 -> Waterdichtheidsklasse: | Y111: =Y$35 -> Inbraakwerend: | AF111: =IF(AI111="ja",'TAAL (muur_vast+4032)'!$B$17,'TAAL (muur_vast+4032)'!$B$18) -> ja | AI111: =IF(VLOOKUP(AI109,'Overzicht buitenroosters'!E$4:AQ$197,7,FALSE)<>"ja","neen","ja") -> ja
A112: =IF(VLOOKUP(AI109,'Overzicht buitenroosters'!E$4:AQ$197,17,FALSE)=0,"",CONCATENATE('TAAL (muur_vast+4032)'!B$24," ",VLOOKUP(AI109,'Overzicht buitenroosters'!E$4:AQ$197,17,FALSE)," (0 m/s)")) -> HEVAC-klasse B (0 m/s)
A113: =A$33 -> Geluidsdemping in open positie: | Y113: =Y$33 -> Brandwerend: | AF113: =IF(AJ113="ja",'TAAL (muur_vast+4032)'!$B$17,'TAAL (muur_vast+4032)'!$B$18) -> neen | AI113: 447/150 | AJ113: =IF(VLOOKUP(AI113,'Overzicht buitenroosters'!E$4:AQ$197,31,FALSE)<>"ja","neen","ja") -> neen
A114: =IF(VLOOKUP(AI113,'Overzicht buitenroosters'!E$4:AQ$197,16,FALSE)=0,'TAAL (muur_vast+4032)'!B$25,CONCATENATE("Rw (C;Ctr) = ",VLOOKUP(AI113,'Overzicht buitenroosters'!E$4:AQ$197,16,FALSE))) -> Rw (C;Ctr) = 9 (0;-1) dB | Y114: =Y$34 -> Fysische vrije doorlaat: | AF114: =CONCATENATE(VLOOKUP(AI113,'Overzicht buitenroosters'!E$4:AQ$197,13,FALSE)*100,"%") -> 37%
A115: =A$35 -> Waterdichtheidsklasse: | Y115: =Y$35 -> Inbraakwerend: | AF115: =IF(AI115="ja",'TAAL (muur_vast+4032)'!$B$17,'TAAL (muur_vast+4032)'!$B$18) -> neen | AI115: =IF(VLOOKUP(AI113,'Overzicht buitenroosters'!E$4:AQ$197,7,FALSE)<>"ja","neen","ja") -> neen
A116: =IF(VLOOKUP(AI113,'Overzicht buitenroosters'!E$4:AQ$197,17,FALSE)=0,"",CONCATENATE('TAAL (muur_vast+4032)'!B$24," ",VLOOKUP(AI113,'Overzicht buitenroosters'!E$4:AQ$197,17,FALSE)," (0 m/s)")) -> HEVAC-klasse A (0 m/s)
A117: =A$33 -> Geluidsdemping in open positie: | Y117: =Y$33 -> Brandwerend: | AF117: =IF(AJ117="ja",'TAAL (muur_vast+4032)'!$B$17,'TAAL (muur_vast+4032)'!$B$18) -> neen | AI117: 446/225 | AJ117: =IF(VLOOKUP(AI117,'Overzicht buitenroosters'!E$4:AQ$197,31,FALSE)<>"ja","neen","ja") -> neen
A118: =IF(VLOOKUP(AI117,'Overzicht buitenroosters'!E$4:AQ$197,16,FALSE)=0,'TAAL (muur_vast+4032)'!B$25,CONCATENATE("Rw (C;Ctr) = ",VLOOKUP(AI117,'Overzicht buitenroosters'!E$4:AQ$197,16,FALSE))) -> Rw (C;Ctr) = 15 (-1;-4) dB | Y118: =Y$34 -> Fysische vrije doorlaat: | AF118: =CONCATENATE(VLOOKUP(AI117,'Overzicht buitenroosters'!E$4:AQ$197,13,FALSE)*100,"%") -> 34,3%
A119: =A$35 -> Waterdichtheidsklasse: | Y119: =Y$35 -> Inbraakwerend: | AF119: =IF(AI119="ja",'TAAL (muur_vast+4032)'!$B$17,'TAAL (muur_vast+4032)'!$B$18) -> neen | AI119: =IF(VLOOKUP(AI117,'Overzicht buitenroosters'!E$4:AQ$197,7,FALSE)<>"ja","neen","ja") -> neen
A120: =IF(VLOOKUP(AI117,'Overzicht buitenroosters'!E$4:AQ$197,17,FALSE)=0,"",CONCATENATE('TAAL (muur_vast+4032)'!B$24," ",VLOOKUP(AI117,'Overzicht buitenroosters'!E$4:AQ$197,17,FALSE)," (0 m/s)")) -> HEVAC-klasse A (0 m/s)
A121: =A$33 -> Geluidsdemping in open positie: | Y121: =Y$33 -> Brandwerend: | AF121: =IF(AJ121="ja",'TAAL (muur_vast+4032)'!$B$17,'TAAL (muur_vast+4032)'!$B$18) -> neen | AI121: 447/225 | AJ121: =IF(VLOOKUP(AI121,'Overzicht buitenroosters'!E$4:AQ$197,31,FALSE)<>"ja","neen","ja") -> neen
A122: =IF(VLOOKUP(AI121,'Overzicht buitenroosters'!E$4:AQ$197,16,FALSE)=0,'TAAL (muur_vast+4032)'!B$25,CONCATENATE("Rw (C;Ctr) = ",VLOOKUP(AI121,'Overzicht buitenroosters'!E$4:AQ$197,16,FALSE))) -> Rw (C;Ctr) = 13 (-1;-3) dB | Y122: =Y$34 -> Fysische vrije doorlaat: | AF122: =CONCATENATE(VLOOKUP(AI121,'Overzicht buitenroosters'!E$4:AQ$197,13,FALSE)*100,"%") -> 37%
A123: =A$35 -> Waterdichtheidsklasse: | Y123: =Y$35 -> Inbraakwerend: | AF123: =IF(AI123="ja",'TAAL (muur_vast+4032)'!$B$17,'TAAL (muur_vast+4032)'!$B$18) -> neen | AI123: =IF(VLOOKUP(AI121,'Overzicht buitenroosters'!E$4:AQ$197,7,FALSE)<>"ja","neen","ja") -> neen
A124: =IF(VLOOKUP(AI121,'Overzicht buitenroosters'!E$4:AQ$197,17,FALSE)=0,"",CONCATENATE('TAAL (muur_vast+4032)'!B$24," ",VLOOKUP(AI121,'Overzicht buitenroosters'!E$4:AQ$197,17,FALSE)," (0 m/s)")) -> HEVAC-klasse A (0 m/s)
A125: =A$33 -> Geluidsdemping in open positie: | Y125: =Y$33 -> Brandwerend: | AF125: =IF(AJ125="ja",'TAAL (muur_vast+4032)'!$B$17,'TAAL (muur_vast+4032)'!$B$18) -> ja | AI125: 464 | AJ125: =IF(VLOOKUP(AI125,'Overzicht buitenroosters'!E$4:AQ$197,31,FALSE)<>"ja","neen","ja") -> ja
A126: =IF(VLOOKUP(AI125,'Overzicht buitenroosters'!E$4:AQ$197,16,FALSE)=0,'TAAL (muur_vast+4032)'!B$25,CONCATENATE("Rw (C;Ctr) = ",VLOOKUP(AI125,'Overzicht buitenroosters'!E$4:AQ$197,16,FALSE))) -> Zonder akoestische isolatie | Y126: =Y$34 -> Fysische vrije doorlaat: | AF126: =CONCATENATE(VLOOKUP(AI125,'Overzicht buitenroosters'!E$4:AQ$197,13,FALSE)*100,"%") -> 51%
A127: =A$35 -> Waterdichtheidsklasse: | Y127: =Y$35 -> Inbraakwerend: | AF127: =IF(AI127="ja",'TAAL (muur_vast+4032)'!$B$17,'TAAL (muur_vast+4032)'!$B$18) -> neen | AI127: =IF(VLOOKUP(AI125,'Overzicht buitenroosters'!E$4:AQ$197,7,FALSE)<>"ja","neen","ja") -> neen
A128: =IF(VLOOKUP(AI125,'Overzicht buitenroosters'!E$4:AQ$197,17,FALSE)=0,"",CONCATENATE('TAAL (muur_vast+4032)'!B$24," ",VLOOKUP(AI125,'Overzicht buitenroosters'!E$4:AQ$197,17,FALSE)," (0 m/s)")) -> HEVAC-klasse D (0 m/s)
A129: =A$33 -> Geluidsdemping in open positie: | Y129: =Y$33 -> Brandwerend: | AF129: =IF(AJ129="ja",'TAAL (muur_vast+4032)'!$B$17,'TAAL (muur_vast+4032)'!$B$18) -> ja | AI129: 465 | AJ129: =IF(VLOOKUP(AI129,'Overzicht buitenroosters'!E$4:AQ$197,31,FALSE)<>"ja","neen","ja") -> ja
A130: =IF(VLOOKUP(AI129,'Overzicht buitenroosters'!E$4:AQ$197,16,FALSE)=0,'TAAL (muur_vast+4032)'!B$25,CONCATENATE("Rw (C;Ctr) = ",VLOOKUP(AI129,'Overzicht buitenroosters'!E$4:AQ$197,16,FALSE))) -> Zonder akoestische isolatie | Y130: =Y$34 -> Fysische vrije doorlaat: | AF130: =CONCATENATE(VLOOKUP(AI129,'Overzicht buitenroosters'!E$4:AQ$197,13,FALSE)*100,"%") -> 57%
A131: =A$35 -> Waterdichtheidsklasse: | Y131: =Y$35 -> Inbraakwerend: | AF131: =IF(AI131="ja",'TAAL (muur_vast+4032)'!$B$17,'TAAL (muur_vast+4032)'!$B$18) -> neen | AI131: =IF(VLOOKUP(AI129,'Overzicht buitenroosters'!E$4:AQ$197,7,FALSE)<>"ja","neen","ja") -> neen
A132: =IF(VLOOKUP(AI129,'Overzicht buitenroosters'!E$4:AQ$197,17,FALSE)=0,"",CONCATENATE('TAAL (muur_vast+4032)'!B$24," ",VLOOKUP(AI129,'Overzicht buitenroosters'!E$4:AQ$197,17,FALSE)," (0 m/s)")) -> HEVAC-klasse D (0 m/s)
A133: =A$33 -> Geluidsdemping in open positie: | Y133: =Y$33 -> Brandwerend: | AF133: =IF(AJ133="ja",'TAAL (muur_vast+4032)'!$B$17,'TAAL (muur_vast+4032)'!$B$18) -> ja | AI133: 466 | AJ133: =IF(VLOOKUP(AI133,'Overzicht buitenroosters'!E$4:AQ$197,31,FALSE)<>"ja","neen","ja") -> ja
A134: =IF(VLOOKUP(AI133,'Overzicht buitenroosters'!E$4:AQ$197,16,FALSE)=0,'TAAL (muur_vast+4032)'!B$25,CONCATENATE("Rw (C;Ctr) = ",VLOOKUP(AI133,'Overzicht buitenroosters'!E$4:AQ$197,16,FALSE))) -> Zonder akoestische isolatie | Y134: =Y$34 -> Fysische vrije doorlaat: | AF134: =CONCATENATE(VLOOKUP(AI133,'Overzicht buitenroosters'!E$4:AQ$197,13,FALSE)*100,"%") -> 70%
A135: =A$35 -> Waterdichtheidsklasse: | Y135: =Y$35 -> Inbraakwerend: | AF135: =IF(AI135="ja",'TAAL (muur_vast+4032)'!$B$17,'TAAL (muur_vast+4032)'!$B$18) -> neen | AI135: =IF(VLOOKUP(AI133,'Overzicht buitenroosters'!E$4:AQ$197,7,FALSE)<>"ja","neen","ja") -> neen
A136: =IF(VLOOKUP(AI133,'Overzicht buitenroosters'!E$4:AQ$197,17,FALSE)=0,"",CONCATENATE('TAAL (muur_vast+4032)'!B$24," ",VLOOKUP(AI133,'Overzicht buitenroosters'!E$4:AQ$197,17,FALSE)," (0 m/s)")) -> HEVAC-klasse D (0 m/s)
A137: =A$33 -> Geluidsdemping in open positie: | Y137: =Y$33 -> Brandwerend: | AF137: =IF(AJ137="ja",'TAAL (muur_vast+4032)'!$B$17,'TAAL (muur_vast+4032)'!$B$18) -> neen | AI137: 468AK | AJ137: =IF(VLOOKUP(AI137,'Overzicht buitenroosters'!E$4:AQ$197,31,FALSE)<>"ja","neen","ja") -> neen
A138: =IF(VLOOKUP(AI137,'Overzicht buitenroosters'!E$4:AQ$197,16,FALSE)=0,'TAAL (muur_vast+4032)'!B$25,CONCATENATE("Rw (C;Ctr) = ",VLOOKUP(AI137,'Overzicht buitenroosters'!E$4:AQ$197,16,FALSE))) -> Rw (C;Ctr) = 8 (-1;-2) dB | Y138: =Y$34 -> Fysische vrije doorlaat: | AF138: =CONCATENATE(VLOOKUP(AI137,'Overzicht buitenroosters'!E$4:AQ$197,13,FALSE)*100,"%") -> 29%
A139: =A$35 -> Waterdichtheidsklasse: | Y139: =Y$35 -> Inbraakwerend: | AF139: =IF(AI139="ja",'TAAL (muur_vast+4032)'!$B$17,'TAAL (muur_vast+4032)'!$B$18) -> neen | AI139: =IF(VLOOKUP(AI137,'Overzicht buitenroosters'!E$4:AQ$197,7,FALSE)<>"ja","neen","ja") -> neen
A140: =IF(VLOOKUP(AI137,'Overzicht buitenroosters'!E$4:AQ$197,17,FALSE)=0,"",CONCATENATE('TAAL (muur_vast+4032)'!B$24," ",VLOOKUP(AI137,'Overzicht buitenroosters'!E$4:AQ$197,17,FALSE)," (0 m/s)")) -> HEVAC-klasse D (0 m/s)
A141: =A$33 -> Geluidsdemping in open positie: | Y141: =Y$33 -> Brandwerend: | AF141: =IF(AJ141="ja",'TAAL (muur_vast+4032)'!$B$17,'TAAL (muur_vast+4032)'!$B$18) -> neen | AI141: 521 | AJ141: =IF(VLOOKUP(AI141,'Overzicht buitenroosters'!E$4:AQ$197,31,FALSE)<>"ja","neen","ja") -> neen
A142: =IF(VLOOKUP(AI141,'Overzicht buitenroosters'!E$4:AQ$197,16,FALSE)=0,'TAAL (muur_vast+4032)'!B$25,CONCATENATE("Rw (C;Ctr) = ",VLOOKUP(AI141,'Overzicht buitenroosters'!E$4:AQ$197,16,FALSE))) -> Zonder akoestische isolatie | Y142: =Y$34 -> Fysische vrije doorlaat: | AF142: =CONCATENATE(VLOOKUP(AI141,'Overzicht buitenroosters'!E$4:AQ$197,13,FALSE)*100,"%") -> 52%
A143: =A$35 -> Waterdichtheidsklasse: | Y143: =Y$35 -> Inbraakwerend: | AF143: =IF(AI143="ja",'TAAL (muur_vast+4032)'!$B$17,'TAAL (muur_vast+4032)'!$B$18) -> neen | AI143: =IF(VLOOKUP(AI141,'Overzicht buitenroosters'!E$4:AQ$197,7,FALSE)<>"ja","neen","ja") -> neen
A144: =IF(VLOOKUP(AI141,'Overzicht buitenroosters'!E$4:AQ$197,17,FALSE)=0,"",CONCATENATE('TAAL (muur_vast+4032)'!B$24," ",VLOOKUP(AI141,'Overzicht buitenroosters'!E$4:AQ$197,17,FALSE)," (0 m/s)")) -> HEVAC-klasse ? (0 m/s)
A145: =A$33 -> Geluidsdemping in open positie: | Y145: =Y$33 -> Brandwerend: | AF145: =IF(AJ145="ja",'TAAL (muur_vast+4032)'!$B$17,'TAAL (muur_vast+4032)'!$B$18) -> neen | AI145: 621 | AJ145: =IF(VLOOKUP(AI145,'Overzicht buitenroosters'!E$4:AQ$197,31,FALSE)<>"ja","neen","ja") -> neen
A146: =IF(VLOOKUP(AI145,'Overzicht buitenroosters'!E$4:AQ$197,16,FALSE)=0,'TAAL (muur_vast+4032)'!B$25,CONCATENATE("Rw (C;Ctr) = ",VLOOKUP(AI145,'Overzicht buitenroosters'!E$4:AQ$197,16,FALSE))) -> Zonder akoestische isolatie | Y146: =Y$34 -> Fysische vrije doorlaat: | AF146: =CONCATENATE(VLOOKUP(AI145,'Overzicht buitenroosters'!E$4:AQ$197,13,FALSE)*100,"%") -> 52%
A147: =A$35 -> Waterdichtheidsklasse: | Y147: =Y$35 -> Inbraakwerend: | AF147: =IF(AI147="ja",'TAAL (muur_vast+4032)'!$B$17,'TAAL (muur_vast+4032)'!$B$18) -> neen | AI147: =IF(VLOOKUP(AI145,'Overzicht buitenroosters'!E$4:AQ$197,7,FALSE)<>"ja","neen","ja") -> neen
A148: =IF(VLOOKUP(AI145,'Overzicht buitenroosters'!E$4:AQ$197,17,FALSE)=0,"",CONCATENATE('TAAL (muur_vast+4032)'!B$24," ",VLOOKUP(AI145,'Overzicht buitenroosters'!E$4:AQ$197,17,FALSE)," (0 m/s)")) -> HEVAC-klasse ? (0 m/s)
A149: =A$33 -> Geluidsdemping in open positie: | Y149: =Y$33 -> Brandwerend: | AF149: =IF(AJ149="ja",'TAAL (muur_vast+4032)'!$B$17,'TAAL (muur_vast+4032)'!$B$18) -> neen | AI149: 450 | AJ149: =IF(VLOOKUP(AI149,'Overzicht buitenroosters'!E$4:AQ$197,31,FALSE)<>"ja","neen","ja") -> neen
A150: =IF(VLOOKUP(AI149,'Overzicht buitenroosters'!E$4:AQ$197,16,FALSE)=0,'TAAL (muur_vast+4032)'!B$25,CONCATENATE("Rw (C;Ctr) = ",VLOOKUP(AI149,'Overzicht buitenroosters'!E$4:AQ$197,16,FALSE))) -> Zonder akoestische isolatie | Y150: =Y$34 -> Fysische vrije doorlaat: | AF150: =CONCATENATE(VLOOKUP(AI149,'Overzicht buitenroosters'!E$4:AQ$197,13,FALSE)*100,"%") -> 57%
A151: =A$35 -> Waterdichtheidsklasse: | Y151: =Y$35 -> Inbraakwerend: | AF151: =IF(AI151="ja",'TAAL (muur_vast+4032)'!$B$17,'TAAL (muur_vast+4032)'!$B$18) -> neen | AI151: =IF(VLOOKUP(AI149,'Overzicht buitenroosters'!E$4:AQ$197,7,FALSE)<>"ja","neen","ja") -> neen
A152: =IF(VLOOKUP(AI149,'Overzicht buitenroosters'!E$4:AQ$197,17,FALSE)=0,"",CONCATENATE('TAAL (muur_vast+4032)'!B$24," ",VLOOKUP(AI149,'Overzicht buitenroosters'!E$4:AQ$197,17,FALSE)," (0 m/s)")) -> HEVAC-klasse A (0 m/s)
A153: =A$33 -> Geluidsdemping in open positie: | Y153: =Y$33 -> Brandwerend: | AF153: =IF(AJ153="ja",'TAAL (muur_vast+4032)'!$B$17,'TAAL (muur_vast+4032)'!$B$18) -> neen | AI153: 468SA | AJ153: =IF(VLOOKUP(AI153,'Overzicht buitenroosters'!E$4:AQ$197,31,FALSE)<>"ja","neen","ja") -> neen
A154: =IF(VLOOKUP(AI153,'Overzicht buitenroosters'!E$4:AQ$197,16,FALSE)=0,'TAAL (muur_vast+4032)'!B$25,CONCATENATE("Rw (C;Ctr) = ",VLOOKUP(AI153,'Overzicht buitenroosters'!E$4:AQ$197,16,FALSE))) -> Zonder akoestische isolatie | Y154: =Y$34 -> Fysische vrije doorlaat: | AF154: =CONCATENATE(VLOOKUP(AI153,'Overzicht buitenroosters'!E$4:AQ$197,13,FALSE)*100,"%") -> 29%
A155: =A$35 -> Waterdichtheidsklasse: | Y155: =Y$35 -> Inbraakwerend: | AF155: =IF(AI155="ja",'TAAL (muur_vast+4032)'!$B$17,'TAAL (muur_vast+4032)'!$B$18) -> neen | AI155: =IF(VLOOKUP(AI153,'Overzicht buitenroosters'!E$4:AQ$197,7,FALSE)<>"ja","neen","ja") -> neen
A156: =IF(VLOOKUP(AI153,'Overzicht buitenroosters'!E$4:AQ$197,17,FALSE)=0,"",CONCATENATE('TAAL (muur_vast+4032)'!B$24," ",VLOOKUP(AI153,'Overzicht buitenroosters'!E$4:AQ$197,17,FALSE)," (0 m/s)")) -> HEVAC-klasse ? (0 m/s)
A182: ='TAAL (muur_vast+4032)'!B15 -> Resultaten:
A184: Q = | B184: =IF(OR(Z19="",K31<>""),"",AR184) -> 60.81560906 | G184: ='TAAL (muur_vast+4032)'!B16 -> bij een drukverschil van | O184: 1 | Q184: Pa | S184: ='TAAL (muur_vast+4032)'!B41 -> Geometrische vrije doorlaat = | AC184: =IF(OR(Z19="",K31<>""),"",MIN(AY184:AY185)*100) -> 24312 | AG184: mm² | AP184: =IF(AI27="neen",1,IF(AP187=1,2,1)) -> 1 | AQ184: Q = | AR184: =IF(E31="","",VLOOKUP(Z19,'REKENBLAD 4032'!F4:Z963,12,FALSE)) -> 60.81560906 | AS184: m³/h bij een drukval van | AU184: =IF(O184=0,1,O184) -> 1 | AW184: Fysische vrije doorlaat 4032 | AY184: =VLOOKUP('Muur (vast + regelb 4032)'!Z19,'REKENBLAD 4032'!F4:AG10000,8,FALSE)*10000 -> 243.12 | AZ184: cm²
A185: Q = | B185: =IF(OR(Z19="",K31<>""),"",AR185) -> 86.00625914 | G185: ='TAAL (muur_vast+4032)'!B16 -> bij een drukverschil van | O185: 2 | Q185: Pa | S185: Equivalent Area (EA) = | AC185: =IF(AR184="","",(AR184*1000/3600)*(1/(0.61*SQRT(2*AU184/1.2)))*1000) -> 21451.5338 | AG185: mm² | AP185: =IF(AI27="neen",2,IF(OR(AP187=1,AP187=2),3,2)) -> 2 | AQ185: Q = | AR185: =IF(E31="","",VLOOKUP(Z19,'REKENBLAD 4032'!F4:Z963,13,FALSE)) -> 86.00625914 | AS185: m³/h bij een drukval van | AU185: =O185 -> 2 | AW185: Fysische vrije doorlaat buitenrooster | AY185: =IF(BC31="opbouw",BB31*K8*K10/100,BB31*(K8-15)*(K10-15)/100) -> 276.165 | AZ185: cm²
A186: Q = | B186: =IF(OR(Z19="",K31<>""),"",AR186) -> 192.3158419 | G186: ='TAAL (muur_vast+4032)'!B16 -> bij een drukverschil van | O186: 10 | Q186: Pa | AP186: =IF(AI27="neen",3,IF(OR(AP187=1,AP187=2,AP187=3),4,3)) -> 3 | AQ186: Q = | AR186: =IF(E31="","",(VLOOKUP(Z19,'REKENBLAD 4032'!F4:Z963,14,FALSE))) -> 192.3158419 | AS186: m³/h bij een drukval van | AU186: =O186 -> 10
A187: =IF(MAX(AP184:AP187)<4,"","Q =") ->  | B187: =IF(OR(Z19="",K31<>""),"",AR187) -> 160.9029774 | G187: =IF(MAX(AP184:AP187)<4,"",'TAAL (muur_vast+4032)'!B16) ->  | O187: =AC27 -> 7 | Q187: Pa | AP187: =IF(AI27="neen",0,IF(AU187<AU184,1,IF(AND(AU187>AU184,AU187<AU185),2,IF(AND(AU187>AU185,AU187<AU186),3,IF(AU187>AU186,4,0))))) -> 0 | AQ187: Q = | AR187: =IF(E31="","",VLOOKUP(Z19,'REKENBLAD 4032'!F4:Z963,15,FALSE)) -> 160.9029774 | AS187: m³/h bij een drukval van | AU187: =O187 -> 7
A191: ='TAAL (muur_vast+4032)'!B34 -> Principetekening: | AI191: =CONCATENATE('TAAL (muur_vast+4032)'!B8," ",K10,"mm") -> Hoogte muuropening (H) = 300mm | BK191: 1 | BL191: 2 | BN191: 1 | BO191: 2
BF207: =CONCATENATE($BA$29,"=",$BA$31,"mm") -> B1 max=1000000mm | BJ207: =K8 -> 300 | BK207: =IF(OR(BJ207<AV31,BJ207>AX31),"niet ok","ok") -> ok | BL207: =IF(OR(BJ207<AW31,BJ207>AY31),"niet ok","ok") -> ok | BN207: =IF(OR(AND(BK207<>"ok",BK208="ok"),AND(BK207<>"ok",BK208<>"ok"),),IF(BJ207<AV31,CONCATENATE('TAAL (muur_vast+4032)'!#REF!,AV31,'TAAL (muur_vast+4032)'!#REF!),CONCATENATE('TAAL (muur_vast+4032)'!#REF!,AX31,'TAAL (muur_vast+4032)'!#REF!)),"") ->  | BO207: =IF(OR(AND(BL207<>"ok",BL208="ok"),AND(BL207<>"ok",BL208<>"ok")),IF(BJ207<AW31,CONCATENATE('TAAL (muur_vast+4032)'!#REF!,AW31,'TAAL (muur_vast+4032)'!#REF!),CONCATENATE('TAAL (muur_vast+4032)'!#REF!,AY31,'TAAL (muur_vast+4032)'!#REF!)),"") -> 
BJ208: =K10 -> 300 | BK208: =IF(OR(BJ208<AT31,BJ208>BA31),"niet ok","ok") -> ok | BL208: =IF(OR(BJ208<AU31,BJ208>AZ31),"niet ok","ok") -> ok | BN208: =IF(AND(BK207="ok",BK208<>"ok"),IF(BJ208<AT31,CONCATENATE('TAAL (muur_vast+4032)'!#REF!,AT31,'TAAL (muur_vast+4032)'!#REF!),CONCATENATE('TAAL (muur_vast+4032)'!#REF!,BA31,'TAAL (muur_vast+4032)'!#REF!)),"") ->  | BO208: =IF(AND(BL207="ok",BL208<>"ok"),IF(BJ208<AU31,CONCATENATE('TAAL (muur_vast+4032)'!#REF!,AU31,'TAAL (muur_vast+4032)'!#REF!),CONCATENATE('TAAL (muur_vast+4032)'!#REF!,AZ31,'TAAL (muur_vast+4032)'!#REF!)),"") -> 
BK209: =IF(AND(BK207="ok",BK208="ok"),"ok","niet ok") -> ok | BL209: =IF(AND(BL207="ok",BL208="ok"),"ok","niet ok") -> ok | BN209: =IF(BK209="ok","",IF(BN207<>"",BN207,IF(BN208<>"",BN208,IF(BO207<>"",BO207,IF(BO208<>"",BO208,""))))) -> 
BF212: =CONCATENATE($AT$29,"=",$AT$31,"mm") -> B min=200mm
BH213: =CONCATENATE($AX$29,"=",$AX$31,"mm") -> H1 max=1000000mm
BG221: =CONCATENATE($AV$29,"=",$AV$31,"mm") -> H min=200mm
BH253: =CONCATENATE($AU$29,"=",$AU$31,"mm") -> B min=200mm
BO256: =CONCATENATE($AY$29,"=",$AY$31,"mm") -> H2 max=1000000mm
BG258: =CONCATENATE($AZ$29,"=",$AZ$31,"mm") -> B2 max=1000000mm
A259: (1) | B259: ='TAAL (muur_vast+4032)'!B26 -> De waterwerendheid in open stand van het rooster is gegarandeerd wanneer de tussenafstand as-op-as van binnen- en buitenrooster 10cm of meer bedraagt;
A260: (2) | B260: ='TAAL (muur_vast+4032)'!B27 -> Het verbindingskanaal tussen binnen- en buitenrooster dient gesloten te zijn en niet langer dan de dikte van de muur;
A261: (3) | B261: ='TAAL (muur_vast+4032)'!B28 -> Het gecombineerd rooster is voorzien van een Inox muggengaas 304 - 2,3 x 2,3 mm; | BL261: =CONCATENATE($AW$29,"=",$AW$31,"mm") -> H min=200mm
A262: (4) | B262: ='TAAL (muur_vast+4032)'!B29 -> Het is raadzaam het verbindingskanaal wat te laten afhellen naar buiten m.b.t. afvoer vocht;
A263: ="(5)" -> (5) | B263: ='TAAL (muur_vast+4032)'!B31 -> De betreffende tool is louter informatief. Renson kan dan ook niet aansprakelijk worden gesteld voor eventuele onjuistheden in de berekeningen; | BE263: Oorsprong
F265: =CONCATENATE('TAAL (muur_vast+4032)'!#REF!," ",E31) -> 
G267: ='TAAL (muur_vast+4032)'!#REF! -> 
F268: Ä | G268: ='TAAL (muur_vast+4032)'!#REF! -> 
G269: ='TAAL (muur_vast+4032)'!#REF! -> 
F272: =IF(AI31<>1,"",BF207) -> B1 max=1000000mm
H274: =I299 ->  | M274: =M299 ->  | R274: =R299 ->  | AE274: =AE299 -> 
C276: =IF(AI31<>1,"",BH213) -> H1 max=1000000mm
W280: =V306 -> 
F281: =IF(AI31<>1,"",BF212) -> B min=200mm | M281: =M307 -> 
H284: =I307 -> 
AE285: =AE310 -> 
P287: ='TAAL (muur_vast+4032)'!#REF! ->  | AG287: =IF(AI31<>1,"",BO256) -> H2 max=1000000mm
M288: =M313 -> Ä | W288: =V313 ->  | AE288: =AE313 -> 
U291: =IF(AI31<>1,"",BL261) -> H min=200mm
H292: =I316 ->  | S292: =V316 ->  | AE292: =AE316 -> 
E294: ='TAAL (muur_vast+4032)'!#REF! -> 
F296: =IF(AI31<>1,"",BG258) -> B2 max=1000000mm
H299: 1 | I299: =IF(AND(K8<K300,K10>I301),"Ä","") ->  | L299: 2 | M299: =IF(AND(K300<=K8,N300>=K8,K10>I301),"Ä","") ->  | Q299: 3 | R299: =IF(AND(K10>P301,K8>N300,K8<=AB311),"Ä","") ->  | AD299: 4 | AE299: =IF(AND(K10>I301,K8>AB315),"Ä","") ->  | AI299: 1 | AJ299: =IF(I299="Ä",CONCATENATE("B (min) = ",K300,"mm & H (max) = ",I301,"mm"),"") -> 
K300: =AT31 -> 200 | N300: =BA31 -> 1000000 | AI300: 2 | AJ300: =IF(M299="Ä",CONCATENATE("H (max)"," = ",I301,"mm"),"") -> 
I301: =AX31 -> 1000000 | P301: =I301 -> 1000000 | AI301: 3 | AJ301: =IF(R299="Ä",CONCATENATE("B (max)"," = ",N300,"mm & ","H (max)"," = ",P301,"mm"),"") -> 
AI302: 4 | AJ302: =IF(AE299="Ä",CONCATENATE("B x H (max)"," = ",N300,"mm x ",P301,"mm of ","B x H (max)"," = ",AB311,"mm x ",AD312,"mm"),"") -> 
AI303: 5 | AJ303: =IF(I307="Ä",CONCATENATE("B (min)"," = ",K300,"mm"),"") -> 
AI304: 6
AI305: 7 | AJ305: =IF(V306="Ä",CONCATENATE("B (max)"," = ",N300,"mm of ","H (max)"," = ",AD312,"mm"),"") -> 
U306: 7 | V306: =IF(AND(P312<K8,AB311>=K8,K10>N311,K101<=P301),"Ä","") ->  | AI306: 8 | AJ306: =IF(AE310="Ä",CONCATENATE("B (max)"," = ",AB311,"mm & ","H (max)"," = ",AD312,"mm"),"") ->  | CA306: =IF(I307="Ä",CONCATENATE("B te klein! (B >= ",K300,"mm)"),"") -> 
H307: 5 | I307: =IF(AND(I314<=K10,I301>=K10,K8<K300),"Ä","") ->  | L307: 6 | M307: =IF(AND(K300<=K8,N300>=K8,P301>=K10,N311<K10),"Ä","") ->  | AI307: 9
AI308: 10
AI309: 11 | AJ309: =IF(AE313="Ä",CONCATENATE("B (max)"," = ",AB311,"mm"),"") -> 
AD310: 8 | AE310: =IF(AND(AB311<K8,AD312<K10,P301>=K10),"Ä","") ->  | AI310: 12 | AJ310: =IF(I316="Ä",CONCATENATE("B (min)"," = ",K315,"mm & ","H (min)"," = ",I314,"mm"),"") -> 
N311: =N300 -> 1000000 | AB311: =AZ31 -> 1000000 | AI311: 13 | AJ311: =IF(V316="Ä",CONCATENATE("H (min)"," = ",I314,"mm"),"") -> 
P312: =AD312 -> 1000000 | AD312: =AY31 -> 1000000 | AI312: 14 | AJ312: =IF(AE316="Ä",CONCATENATE("B (max)"," = ",AB315,"mm & ","H (min)"," = ",AD314,"mm"),"") -> 
L313: 9 | M313: =IF(AND(K8>=K315,K8<=P312,K10>=I314,K10<=N311),"Ä","") -> Ä | P313: 10 | V313: =IF(AND(P312<K8,AB311>=K8,AD312>=K10,AD314<=K10),"Ä","") ->  | AD313: 11 | AE313: =IF(AND(AD312>=K10,AD314<=K10,AB311<K8),"Ä","") ->  | AJ313: =IF(CONCATENATE(AJ299,AJ300,AJ301,AJ302,AJ303,AJ304,AJ305,AJ306,AJ307,AJ308,AJ309,AJ310,AJ311,AJ312)="","",CONCATENATE('TAAL (muur_vast+4032)'!B40," ",AJ299,AJ300,AJ301,AJ302,AJ303,AJ304,AJ305,AJ306,AJ307,AJ308,AJ309,AJ310,AJ311,AJ312)) -> 
I314: =AD314 -> 200 | AD314: =AW31 -> 200
K315: =K300 -> 200 | AB315: =AB311 -> 1000000
H316: 12 | I316: =IF(AND(K10<I314,K8<K315),"Ä","") ->  | U316: 13 | V316: =IF(AND(K315<=K8,AB315>=K8,I314>K10),"Ä","") ->  | AD316: 14 | AE316: =IF(AND(AB315<K8,AD314>K10),"Ä","") -> 
A324: ="(6)" -> (6) | B324: ='TAAL (muur_vast+4032)'!B32 -> Brandwerende roosters kunnen niet voor buitentoepassingen worden gebruikt.

Sheet regelbare raamroosters 1 (hidden)
Q1: Nederlands | AI1: 2012-09-08
U3: =CONCATENATE('TAAL (muur_vast+4032)'!B6," 17/06/2013") -> Versie 17/06/2013
A4: ='TAAL (muur_vast+4032)'!#REF! -> 
Z5: NBN EN13141-2
A6: ='TAAL (muur_vast+4032)'!B13 -> Vast buitenrooster: | AQ6: =Tabel1[[#Headers],[Vorm]] -> Vorm | AR6: =Tabel1[[#Headers],[Roostertype]] -> Roostertype | AS6: =Tabel1[[#Headers],[Plaatsing]] -> Plaatsing | AT6: =Tabel1[[#Headers],[Akoestisch]] -> Akoestisch | AU6: =Tabel1[[#Headers],[Inbraakwerend]] -> Inbraakwerend | AV6: =Tabel1[[#Headers],[Kaderbreedte '[mm']]] -> Kaderbreedte [mm] | AW6: =Tabel1[[#Headers],[Kolom2]] -> Kolom2 | AX6: =Tabel1[[#Headers],[Ce]] -> Ce | AY6: =Tabel1[[#Headers],[Cd]] -> Cd | AZ6: =Tabel1[[#Headers],[Visuele vrije doorlaat]] -> Visuele vrije doorlaat | BA6: =Tabel1[[#Headers],[Fysische vrije doorlaat]] -> Fysische vrije doorlaat | BB6: =Tabel1[[#Headers],[Aftrek rondom voor de berekening van fysische vrije doorlaat '[mm']]] -> Aftrek rondom voor de berekening van fysische vrije doorlaat [mm] | BC6: =Tabel1[[#Headers],[kaderbreedte2]] -> kaderbreedte2 | BD6: =Tabel1[[#Headers],[Rw (C;Ctr)]] -> Rw (C;Ctr) | BE6: =Tabel1[[#Headers],[Waterdichtheid (0m/s)]] -> Waterdichtheid (0m/s) | BF6: =Tabel1[[#Headers],[Inbouwdiepte]] -> Inbouwdiepte | BG6: =Tabel1[[#Headers],[Aanslag kader]] -> Aanslag kader | BH6: =CONCATENATE('TAAL (muur_vast+4032)'!#REF!,"1 min") ->  | BI6: =CONCATENATE('TAAL (muur_vast+4032)'!#REF!,"2 min") ->  | BJ6: =CONCATENATE('TAAL (muur_vast+4032)'!#REF!,"1 min") ->  | BK6: =CONCATENATE('TAAL (muur_vast+4032)'!#REF!,"2 min") ->  | BL6: =CONCATENATE('TAAL (muur_vast+4032)'!#REF!,"1 max") ->  | BM6: =CONCATENATE('TAAL (muur_vast+4032)'!#REF!,"2 max") ->  | BN6: =CONCATENATE('TAAL (muur_vast+4032)'!#REF!,"2 max") ->  | BO6: =CONCATENATE('TAAL (muur_vast+4032)'!#REF!,"1 max") ->  | BP6: =Tabel1[[#Headers],[Diam min]] -> Diam min | BQ6: =Tabel1[[#Headers],[Diam max]] -> Diam max | BR6: =Tabel1[[#Headers],[Kolom8]] -> Kolom8
A8: ='TAAL (muur_vast+4032)'!B14 -> Type: | E8: 414 | AQ8: =IF(COUNTIF(Tabel1[Roosternaam],'regelbare raamroosters 1'!E8)=0,"",VLOOKUP($E8,Tabel1[[Roosternaam]:[Kolom10]],'Overzicht buitenroosters'!E1,FALSE)) -> 414 | AR8: =IF(COUNTIF(Tabel1[Roosternaam],'regelbare raamroosters 1'!E8)=0,"",VLOOKUP($E8,Tabel1[[Roosternaam]:[Kolom10]],'Overzicht buitenroosters'!F1,FALSE)) -> rechthoekig | AS8: =IF(COUNTIF(Tabel1[Roosternaam],'regelbare raamroosters 1'!E8)=0,"",VLOOKUP($E8,Tabel1[[Roosternaam]:[Kolom10]],'Overzicht buitenroosters'!H1,FALSE)) -> raamrooster | AT8: =IF(COUNTIF(Tabel1[Roosternaam],'regelbare raamroosters 1'!E8)=0,"",VLOOKUP($E8,Tabel1[[Roosternaam]:[Kolom10]],'Overzicht buitenroosters'!I1,FALSE)) -> op glas | AU8: =IF(COUNTIF(Tabel1[Roosternaam],'regelbare raamroosters 1'!E8)=0,"",VLOOKUP($E8,Tabel1[[Roosternaam]:[Kolom10]],'Overzicht buitenroosters'!J1,FALSE)) -> neen | AV8: =IF(COUNTIF(Tabel1[Roosternaam],'regelbare raamroosters 1'!E8)=0,"",VLOOKUP($E8,Tabel1[[Roosternaam]:[Kolom10]],'Overzicht buitenroosters'!K1,FALSE)) -> neen | AW8: =IF(COUNTIF(Tabel1[Roosternaam],'regelbare raamroosters 1'!E8)=0,"",VLOOKUP($E8,Tabel1[[Roosternaam]:[Kolom10]],'Overzicht buitenroosters'!L1,FALSE)) -> 27 | AX8: =IF(COUNTIF(Tabel1[Roosternaam],'regelbare raamroosters 1'!E8)=0,"",VLOOKUP($E8,Tabel1[[Roosternaam]:[Kolom10]],'Overzicht buitenroosters'!M1,FALSE)) -> 0 | AY8: =IF(COUNTIF(Tabel1[Roosternaam],'regelbare raamroosters 1'!E8)=0,"",VLOOKUP($E8,Tabel1[[Roosternaam]:[Kolom10]],'Overzicht buitenroosters'!N1,FALSE)) -> 0.206 | AZ8: =IF(COUNTIF(Tabel1[Roosternaam],'regelbare raamroosters 1'!E8)=0,"",VLOOKUP($E8,Tabel1[[Roosternaam]:[Kolom10]],'Overzicht buitenroosters'!O1,FALSE)) -> 0.198 | BA8: =IF(COUNTIF(Tabel1[Roosternaam],'regelbare raamroosters 1'!E8)=0,"",VLOOKUP($E8,Tabel1[[Roosternaam]:[Kolom10]],'Overzicht buitenroosters'!P1,FALSE)) -> 0.59 | BB8: =IF(COUNTIF(Tabel1[Roosternaam],'regelbare raamroosters 1'!E8)=0,"",VLOOKUP($E8,Tabel1[[Roosternaam]:[Kolom10]],'Overzicht buitenroosters'!Q1,FALSE)) -> 0.45 | BC8: =IF(COUNTIF(Tabel1[Roosternaam],'regelbare raamroosters 1'!E8)=0,"",VLOOKUP($E8,Tabel1[[Roosternaam]:[Kolom10]],'Overzicht buitenroosters'!R1,FALSE)) -> 0 | BD8: =IF(COUNTIF(Tabel1[Roosternaam],'regelbare raamroosters 1'!E8)=0,"",VLOOKUP($E8,Tabel1[[Roosternaam]:[Kolom10]],'Overzicht buitenroosters'!S1,FALSE)) -> 0 | BE8: =IF(COUNTIF(Tabel1[Roosternaam],'regelbare raamroosters 1'!E8)=0,"",VLOOKUP($E8,Tabel1[[Roosternaam]:[Kolom10]],'Overzicht buitenroosters'!T1,FALSE)) -> 0 | BF8: =IF(COUNTIF(Tabel1[Roosternaam],'regelbare raamroosters 1'!E8)=0,"",VLOOKUP($E8,Tabel1[[Roosternaam]:[Kolom10]],'Overzicht buitenroosters'!U1,FALSE)) -> B | BG8: =IF(COUNTIF(Tabel1[Roosternaam],'regelbare raamroosters 1'!E8)=0,"",VLOOKUP($E8,Tabel1[[Roosternaam]:[Kolom10]],'Overzicht buitenroosters'!V1,FALSE)) -> 0 | BH8: =IF(COUNTIF(Tabel1[Roosternaam],'regelbare raamroosters 1'!E8)=0,"",VLOOKUP($E8,Tabel1[[Roosternaam]:[Kolom10]],'Overzicht buitenroosters'!W1,FALSE)) -> 0 | BI8: =IF(COUNTIF(Tabel1[Roosternaam],'regelbare raamroosters 1'!E8)=0,"",VLOOKUP($E8,Tabel1[[Roosternaam]:[Kolom10]],'Overzicht buitenroosters'!X1,FALSE)) -> 130 | BJ8: =IF(COUNTIF(Tabel1[Roosternaam],'regelbare raamroosters 1'!E8)=0,"",VLOOKUP($E8,Tabel1[[Roosternaam]:[Kolom10]],'Overzicht buitenroosters'!Y1,FALSE)) ->  | BK8: =IF(COUNTIF(Tabel1[Roosternaam],'regelbare raamroosters 1'!E8)=0,"",VLOOKUP($E8,Tabel1[[Roosternaam]:[Kolom10]],'Overzicht buitenroosters'!Z1,FALSE)) -> 130 | BL8: =IF(COUNTIF(Tabel1[Roosternaam],'regelbare raamroosters 1'!E8)=0,"",VLOOKUP($E8,Tabel1[[Roosternaam]:[Kolom10]],'Overzicht buitenroosters'!AA1,FALSE)) ->  | BM8: =IF(COUNTIF(Tabel1[Roosternaam],'regelbare raamroosters 1'!E8)=0,"",VLOOKUP($E8,Tabel1[[Roosternaam]:[Kolom10]],'Overzicht buitenroosters'!AB1,FALSE)) -> 1000000 | BN8: =IF(COUNTIF(Tabel1[Roosternaam],'regelbare raamroosters 1'!E8)=0,"",VLOOKUP($E8,Tabel1[[Roosternaam]:[Kolom10]],'Overzicht buitenroosters'!AC1,FALSE)) -> 1000000 | BO8: =IF(COUNTIF(Tabel1[Roosternaam],'regelbare raamroosters 1'!E8)=0,"",VLOOKUP($E8,Tabel1[[Roosternaam]:[Kolom10]],'Overzicht buitenroosters'!AD1,FALSE)) -> 1000000 | BP8: =IF(COUNTIF(Tabel1[Roosternaam],'regelbare raamroosters 1'!E8)=0,"",VLOOKUP($E8,Tabel1[[Roosternaam]:[Kolom10]],'Overzicht buitenroosters'!AE1,FALSE)) -> 1000000 | BQ8: =IF(COUNTIF(Tabel1[Roosternaam],'regelbare raamroosters 1'!E8)=0,"",VLOOKUP($E8,Tabel1[[Roosternaam]:[Kolom10]],'Overzicht buitenroosters'!AF1,FALSE)) -> 0 | BR8: =IF(COUNTIF(Tabel1[Roosternaam],'regelbare raamroosters 1'!E8)=0,"",VLOOKUP($E8,Tabel1[[Roosternaam]:[Kolom10]],'Overzicht buitenroosters'!AN1,FALSE)) -> 0
A10: ='TAAL (muur_vast+4032)'!#REF! -> 
E12: 1000 | G12: mm | AI12: aantal ponsingen = | AJ12: =ROUNDDOWN((E12-80-31+22)/40,0) -> 22
A14: ='TAAL (muur_vast+4032)'!B11 -> Regelbaar binnenrooster 4032: | AI14: Ponsopeningen
A16: ='TAAL (muur_vast+4032)'!B12 -> Samenstelling volgens standaardhoogte 100, 130 of 150 mm: | AI16: =AI18+AI20+AI22 -> 0.21494
E18: 0 | G18: ="x" -> x | H18: 100mm hoog | AI18: =(0.001126*E18)*$AJ$12 -> 0
E20: 1 | G20: ="x" -> x | H20: 130mm hoog | AI20: =(0.001666*E20)*$AJ$12 -> 0.036652
E22: 4 | G22: x | H22: 150mm hoog | AI22: =(0.002026*E22)*$AJ$12 -> 0.178288
A24: ='TAAL (muur_vast+4032)'!B9 -> Vereist minimaal debiet doorheen het combinatierooster:
A26: ='TAAL (muur_vast+4032)'!B10 -> Gevraagd debiet gekend: | K26: neen | N26: Q = | O26: 242 | Q26: ='TAAL (muur_vast+4032)'!#REF! ->  | AC26: 2 | AE26: Pa | AI26: =VLOOKUP(K26,'TAAL (muur_vast+4032)'!B17:C18,2,FALSE) -> neen | AK26: ='TAAL (muur_vast+4032)'!B18 -> neen
A28: ='TAAL (muur_vast+4032)'!#REF! -> 
A30: ='TAAL (muur_vast+4032)'!#REF! ->  | N30: =E18*(100+AJ42)+E20*(130+AJ42)+E22*(150+AJ42)+2*AJ30 -> 791 | P30: mm | AI30: Kaderbreedte = | AJ30: =VLOOKUP('regelbare raamroosters 1'!E8,'Overzicht buitenroosters'!E4:AQ198,8,FALSE) -> 27
A32: ='TAAL (muur_vast+4032)'!#REF! ->  | N32: =E12+2*AJ32 -> 1054 | P32: mm | AI32: Kaderbreedte = | AJ32: =VLOOKUP('regelbare raamroosters 1'!E8,'Overzicht buitenroosters'!E4:AQ198,8,FALSE) -> 27
A35: Netto hoogte raamrooster = | N35: =N30-2*AJ30 -> 737 | P35: mm | AI35: Netto opening = | AJ35: =(N30-2*AJ30)*(N32-2*AJ32)/1000000 -> 0.737
A37: Netto breedte raamrooster = | N37: =N32-2*AJ32 -> 1000 | P37: mm
A42: ='TAAL (muur_vast+4032)'!B15 -> Resultaten: | AI42: Hoogtemarge | AJ42: ='Raam (vast + regelb 4032)'!AL20 -> 1.4
B44: Q = | C44: =(SQRT((('regelbare raamroosters 1'!AJ35*'regelbare raamroosters 1'!AX8)^2*1.66666*P44*'regelbare raamroosters 1'!AI16^2*0.6^2)/('regelbare raamroosters 1'!AI16^2*0.6^2+'regelbare raamroosters 1'!AJ35^2*'regelbare raamroosters 1'!AX8^2)))*3600 -> 0 | H44: ='TAAL (muur_vast+4032)'!B16 -> bij een drukverschil van | P44: 1 | R44: Pa
B45: Q = | C45: =(SQRT((('regelbare raamroosters 1'!AJ35*'regelbare raamroosters 1'!AX8)^2*1.66666*P45*'regelbare raamroosters 1'!AI16^2*0.6^2)/('regelbare raamroosters 1'!AI16^2*0.6^2+'regelbare raamroosters 1'!AJ35^2*'regelbare raamroosters 1'!AX8^2)))*3600 -> 0 | H45: ='TAAL (muur_vast+4032)'!B16 -> bij een drukverschil van | P45: 2 | R45: Pa
B46: Q = | C46: =(SQRT((('regelbare raamroosters 1'!AJ35*'regelbare raamroosters 1'!AX8)^2*1.66666*P46*'regelbare raamroosters 1'!AI16^2*0.6^2)/('regelbare raamroosters 1'!AI16^2*0.6^2+'regelbare raamroosters 1'!AJ35^2*'regelbare raamroosters 1'!AX8^2)))*3600 -> 0 | H46: ='TAAL (muur_vast+4032)'!B16 -> bij een drukverschil van | P46: 10 | R46: Pa
B47: =IF(MAX(AP44:AP47)<4,"","Q =") ->  | C47: =IF(OR(E18="",K8<>""),"",IF(MAX(AP44:AP47)<4,"",VLOOKUP(4,AP$44:AU$47,3,FALSE))) ->  | H47: =IF(MAX(AP44:AP47)<4,"",'TAAL (muur_vast+4032)'!B16) ->  | P47: =IF(MAX(AP44:AP47)<4,"",VLOOKUP(4,AP$44:AU$47,6,FALSE)) -> 
BK51: 1 | BL51: 2 | BN51: 1 | BO51: 2
BF52: =CONCATENATE($BO$6,"=",$BO$8,"mm") ->  | BJ52: =N30 -> 791 | BK52: =IF(OR(BJ52<BJ8,BJ52>BL8),"niet ok","ok") ->  | BL52: =IF(OR(BJ52<BK8,BJ52>BM8),"niet ok","ok") -> ok | BN52: =IF(OR(AND(BK52<>"ok",BK53="ok"),AND(BK52<>"ok",BK53<>"ok"),),IF(BJ52<BJ8,CONCATENATE('TAAL (muur_vast+4032)'!#REF!,BJ8,'TAAL (muur_vast+4032)'!#REF!),CONCATENATE('TAAL (muur_vast+4032)'!#REF!,BL8,'TAAL (muur_vast+4032)'!#REF!)),"") ->  | BO52: =IF(OR(AND(BL52<>"ok",BL53="ok"),AND(BL52<>"ok",BL53<>"ok")),IF(BJ52<BK8,CONCATENATE('TAAL (muur_vast+4032)'!#REF!,BK8,'TAAL (muur_vast+4032)'!#REF!),CONCATENATE('TAAL (muur_vast+4032)'!#REF!,BM8,'TAAL (muur_vast+4032)'!#REF!)),"") -> 
BJ53: =N32 -> 1054 | BK53: =IF(OR(BJ53<BH8,BJ53>BO8),"niet ok","ok") -> ok | BL53: =IF(OR(BJ53<BI8,BJ53>BN8),"niet ok","ok") -> ok | BN53: =IF(AND(BK52="ok",BK53<>"ok"),IF(BJ53<BH8,CONCATENATE('TAAL (muur_vast+4032)'!#REF!,BH8,'TAAL (muur_vast+4032)'!#REF!),CONCATENATE('TAAL (muur_vast+4032)'!#REF!,BO8,'TAAL (muur_vast+4032)'!#REF!)),"") ->  | BO53: =IF(AND(BL52="ok",BL53<>"ok"),IF(BJ53<BI8,CONCATENATE('TAAL (muur_vast+4032)'!#REF!,BI8,'TAAL (muur_vast+4032)'!#REF!),CONCATENATE('TAAL (muur_vast+4032)'!#REF!,BN8,'TAAL (muur_vast+4032)'!#REF!)),"") -> 
BK54: =IF(AND(BK52="ok",BK53="ok"),"ok","niet ok") ->  | BL54: =IF(AND(BL52="ok",BL53="ok"),"ok","niet ok") -> ok | BN54: =IF(BK54="ok","",IF(BN52<>"",BN52,IF(BN53<>"",BN53,IF(BO52<>"",BO52,IF(BO53<>"",BO53,""))))) -> 
BF57: =CONCATENATE($BH$6,"=",$BH$8,"mm") -> 
BH58: =CONCATENATE($BL$6,"=",$BL$8,"mm") -> 
BJ60: =BN54 -> 
BG67: =CONCATENATE($BJ$6,"=",$BJ$8,"mm") -> 
BH69: =CONCATENATE($BI$6,"=",$BI$8,"mm") -> 
BO72: =CONCATENATE($BM$6,"=",$BM$8,"mm") -> 
BG74: =CONCATENATE($BN$6,"=",$BN$8,"mm") -> 
A76: (1) | B76: ='TAAL (muur_vast+4032)'!#REF! -> 
A77: (2) | B77: =LEFT('TAAL (muur_vast+4032)'!B31,110) -> De betreffende tool is louter informatief. Renson kan dan ook niet aansprakelijk worden gesteld voor eventuele | BL77: =CONCATENATE($BK$6,"=",$BK$8,"mm") -> 
B78: =RIGHT('TAAL (muur_vast+4032)'!B31,32) -> onjuistheden in de berekeningen;
A79: (3) | B79: ='TAAL (muur_vast+4032)'!#REF! ->  | BE79: Oorsprong
A80: ="(4)" -> (4) | B80: ='TAAL (muur_vast+4032)'!B32 -> Brandwerende roosters kunnen niet voor buitentoepassingen worden gebruikt.
A83: ='TAAL (muur_vast+4032)'!B30 -> Stavingsstuk EPB

Sheet 4032 # kolommen ponsingen (hidden)
A1: toepasbaar | D1: Breedte muuropening (draaiknop buiten opening) | F1: nettobreedte rooster (excl kader) | H1: Breedte muuropening (draaiknop binnen opening)
A2: muur | C2: # ponsingen | D2: min | E2: max | F2: min | G2: max | H2: min | I2: max
A3: =IF('Muur (vast + regelb 4032)'!AD$17=Lijsten!AH$2,IF(OR('Muur (vast + regelb 4032)'!K$8<D3,'Muur (vast + regelb 4032)'!K$8>E3),0,1),IF('Muur (vast + regelb 4032)'!AD$17=Lijsten!AH$3,IF(OR('Muur (vast + regelb 4032)'!K$10<D3,'Muur (vast + regelb 4032)'!K$10>E3),0,1),"")) -> 0 | C3: 1 | D3: =IF('Muur (vast + regelb 4032)'!J$17=Lijsten!AI$2,(18*C5)+22*(C5-1),(18*C3)+22*(C3-1)) -> 98 | E3: =D4-1 -> 137 | F3: =(18*C3)+22*(C3-1)+80+31 -> 129 | G3: =D4-1+80+31 -> 248 | H3: =D5 -> 178 | I3: =E5 -> 217
A4: =IF('Muur (vast + regelb 4032)'!AD$17=Lijsten!AH$2,IF(OR('Muur (vast + regelb 4032)'!K$8<D4,'Muur (vast + regelb 4032)'!K$8>E4),0,1),IF('Muur (vast + regelb 4032)'!AD$17=Lijsten!AH$3,IF(OR('Muur (vast + regelb 4032)'!K$10<D4,'Muur (vast + regelb 4032)'!K$10>E4),0,1),"")) -> 0 | C4: 2 | D4: =D3+40 -> 138 | E4: =D5-1 -> 177 | F4: =(18*C4)+22*(C4-1)+80+31 -> 169 | G4: =D5-1+80+31 -> 288 | H4: =D6 -> 218 | I4: =E6 -> 257
A5: =IF('Muur (vast + regelb 4032)'!AD$17=Lijsten!AH$2,IF(OR('Muur (vast + regelb 4032)'!K$8<D5,'Muur (vast + regelb 4032)'!K$8>E5),0,1),IF('Muur (vast + regelb 4032)'!AD$17=Lijsten!AH$3,IF(OR('Muur (vast + regelb 4032)'!K$10<D5,'Muur (vast + regelb 4032)'!K$10>E5),0,1),"")) -> 0 | C5: 3 | D5: =D4+40 -> 178 | E5: =D6-1 -> 217 | F5: 209 | G5: 328 | H5: =D7 -> 258 | I5: 297
A6: =IF('Muur (vast + regelb 4032)'!AD$17=Lijsten!AH$2,IF(OR('Muur (vast + regelb 4032)'!K$8<D6,'Muur (vast + regelb 4032)'!K$8>E6),0,1),IF('Muur (vast + regelb 4032)'!AD$17=Lijsten!AH$3,IF(OR('Muur (vast + regelb 4032)'!K$10<D6,'Muur (vast + regelb 4032)'!K$10>E6),0,1),"")) -> 0 | C6: 4 | D6: =D5+40 -> 218 | E6: 257 | F6: 249 | G6: 368 | H6: =D8 -> 298 | I6: 337
A7: =IF('Muur (vast + regelb 4032)'!AD$17=Lijsten!AH$2,IF(OR('Muur (vast + regelb 4032)'!K$8<D7,'Muur (vast + regelb 4032)'!K$8>E7),0,1),IF('Muur (vast + regelb 4032)'!AD$17=Lijsten!AH$3,IF(OR('Muur (vast + regelb 4032)'!K$10<D7,'Muur (vast + regelb 4032)'!K$10>E7),0,1),"")) -> 0 | C7: 5 | D7: 258 | E7: 297 | F7: 289 | G7: 408 | H7: =D9 -> 338 | I7: 377
A8: =IF('Muur (vast + regelb 4032)'!AD$17=Lijsten!AH$2,IF(OR('Muur (vast + regelb 4032)'!K$8<D8,'Muur (vast + regelb 4032)'!K$8>E8),0,1),IF('Muur (vast + regelb 4032)'!AD$17=Lijsten!AH$3,IF(OR('Muur (vast + regelb 4032)'!K$10<D8,'Muur (vast + regelb 4032)'!K$10>E8),0,1),"")) -> 1 | C8: 6 | D8: 298 | E8: 337 | F8: 329 | G8: 448 | H8: =D10 -> 378 | I8: 417
A9: =IF('Muur (vast + regelb 4032)'!AD$17=Lijsten!AH$2,IF(OR('Muur (vast + regelb 4032)'!K$8<D9,'Muur (vast + regelb 4032)'!K$8>E9),0,1),IF('Muur (vast + regelb 4032)'!AD$17=Lijsten!AH$3,IF(OR('Muur (vast + regelb 4032)'!K$10<D9,'Muur (vast + regelb 4032)'!K$10>E9),0,1),"")) -> 0 | C9: 7 | D9: 338 | E9: 377 | F9: 369 | G9: 488 | H9: =D11 -> 418 | I9: 457
A10: =IF('Muur (vast + regelb 4032)'!AD$17=Lijsten!AH$2,IF(OR('Muur (vast + regelb 4032)'!K$8<D10,'Muur (vast + regelb 4032)'!K$8>E10),0,1),IF('Muur (vast + regelb 4032)'!AD$17=Lijsten!AH$3,IF(OR('Muur (vast + regelb 4032)'!K$10<D10,'Muur (vast + regelb 4032)'!K$10>E10),0,1),"")) -> 0 | C10: 8 | D10: 378 | E10: 417 | F10: 409 | G10: 528 | H10: =D12 -> 458 | I10: 497
A11: =IF('Muur (vast + regelb 4032)'!AD$17=Lijsten!AH$2,IF(OR('Muur (vast + regelb 4032)'!K$8<D11,'Muur (vast + regelb 4032)'!K$8>E11),0,1),IF('Muur (vast + regelb 4032)'!AD$17=Lijsten!AH$3,IF(OR('Muur (vast + regelb 4032)'!K$10<D11,'Muur (vast + regelb 4032)'!K$10>E11),0,1),"")) -> 0 | C11: 9 | D11: =D10+40 -> 418 | E11: 457 | F11: 449 | G11: 568 | H11: =D13 -> 498 | I11: 537
A12: =IF('Muur (vast + regelb 4032)'!AD$17=Lijsten!AH$2,IF(OR('Muur (vast + regelb 4032)'!K$8<D12,'Muur (vast + regelb 4032)'!K$8>E12),0,1),IF('Muur (vast + regelb 4032)'!AD$17=Lijsten!AH$3,IF(OR('Muur (vast + regelb 4032)'!K$10<D12,'Muur (vast + regelb 4032)'!K$10>E12),0,1),"")) -> 0 | C12: 10 | D12: 458 | E12: 497 | F12: 489 | G12: 608 | H12: =D14 -> 538 | I12: =E14 -> 577
A13: =IF('Muur (vast + regelb 4032)'!AD$17=Lijsten!AH$2,IF(OR('Muur (vast + regelb 4032)'!K$8<D13,'Muur (vast + regelb 4032)'!K$8>E13),0,1),IF('Muur (vast + regelb 4032)'!AD$17=Lijsten!AH$3,IF(OR('Muur (vast + regelb 4032)'!K$10<D13,'Muur (vast + regelb 4032)'!K$10>E13),0,1),"")) -> 0 | C13: 11 | D13: 498 | E13: 537 | F13: 529 | G13: 648 | H13: =D15 -> 578 | I13: 617
A14: =IF('Muur (vast + regelb 4032)'!AD$17=Lijsten!AH$2,IF(OR('Muur (vast + regelb 4032)'!K$8<D14,'Muur (vast + regelb 4032)'!K$8>E14),0,1),IF('Muur (vast + regelb 4032)'!AD$17=Lijsten!AH$3,IF(OR('Muur (vast + regelb 4032)'!K$10<D14,'Muur (vast + regelb 4032)'!K$10>E14),0,1),"")) -> 0 | C14: 12 | D14: 538 | E14: 577 | F14: 569 | G14: 688 | H14: =D16 -> 618 | I14: 657
A15: =IF('Muur (vast + regelb 4032)'!AD$17=Lijsten!AH$2,IF(OR('Muur (vast + regelb 4032)'!K$8<D15,'Muur (vast + regelb 4032)'!K$8>E15),0,1),IF('Muur (vast + regelb 4032)'!AD$17=Lijsten!AH$3,IF(OR('Muur (vast + regelb 4032)'!K$10<D15,'Muur (vast + regelb 4032)'!K$10>E15),0,1),"")) -> 0 | C15: 13 | D15: 578 | E15: 617 | F15: 609 | G15: 728 | H15: =D17 -> 658 | I15: 697
A16: =IF('Muur (vast + regelb 4032)'!AD$17=Lijsten!AH$2,IF(OR('Muur (vast + regelb 4032)'!K$8<D16,'Muur (vast + regelb 4032)'!K$8>E16),0,1),IF('Muur (vast + regelb 4032)'!AD$17=Lijsten!AH$3,IF(OR('Muur (vast + regelb 4032)'!K$10<D16,'Muur (vast + regelb 4032)'!K$10>E16),0,1),"")) -> 0 | C16: 14 | D16: 618 | E16: 657 | F16: 649 | G16: 768 | H16: =D18 -> 698 | I16: 737
A17: =IF('Muur (vast + regelb 4032)'!AD$17=Lijsten!AH$2,IF(OR('Muur (vast + regelb 4032)'!K$8<D17,'Muur (vast + regelb 4032)'!K$8>E17),0,1),IF('Muur (vast + regelb 4032)'!AD$17=Lijsten!AH$3,IF(OR('Muur (vast + regelb 4032)'!K$10<D17,'Muur (vast + regelb 4032)'!K$10>E17),0,1),"")) -> 0 | C17: 15 | D17: 658 | E17: 697 | F17: 689 | G17: 808 | H17: =D19 -> 738 | I17: 777
A18: =IF('Muur (vast + regelb 4032)'!AD$17=Lijsten!AH$2,IF(OR('Muur (vast + regelb 4032)'!K$8<D18,'Muur (vast + regelb 4032)'!K$8>E18),0,1),IF('Muur (vast + regelb 4032)'!AD$17=Lijsten!AH$3,IF(OR('Muur (vast + regelb 4032)'!K$10<D18,'Muur (vast + regelb 4032)'!K$10>E18),0,1),"")) -> 0 | C18: 16 | D18: 698 | E18: 737 | F18: 729 | G18: 848 | H18: =D20 -> 778 | I18: 817
A19: =IF('Muur (vast + regelb 4032)'!AD$17=Lijsten!AH$2,IF(OR('Muur (vast + regelb 4032)'!K$8<D19,'Muur (vast + regelb 4032)'!K$8>E19),0,1),IF('Muur (vast + regelb 4032)'!AD$17=Lijsten!AH$3,IF(OR('Muur (vast + regelb 4032)'!K$10<D19,'Muur (vast + regelb 4032)'!K$10>E19),0,1),"")) -> 0 | C19: 17 | D19: 738 | E19: 777 | F19: 769 | G19: 888 | H19: =D21 -> 818 | I19: 857
A20: =IF('Muur (vast + regelb 4032)'!AD$17=Lijsten!AH$2,IF(OR('Muur (vast + regelb 4032)'!K$8<D20,'Muur (vast + regelb 4032)'!K$8>E20),0,1),IF('Muur (vast + regelb 4032)'!AD$17=Lijsten!AH$3,IF(OR('Muur (vast + regelb 4032)'!K$10<D20,'Muur (vast + regelb 4032)'!K$10>E20),0,1),"")) -> 0 | C20: 18 | D20: 778 | E20: 817 | F20: 809 | G20: 928 | H20: =D22 -> 858 | I20: 897
A21: =IF('Muur (vast + regelb 4032)'!AD$17=Lijsten!AH$2,IF(OR('Muur (vast + regelb 4032)'!K$8<D21,'Muur (vast + regelb 4032)'!K$8>E21),0,1),IF('Muur (vast + regelb 4032)'!AD$17=Lijsten!AH$3,IF(OR('Muur (vast + regelb 4032)'!K$10<D21,'Muur (vast + regelb 4032)'!K$10>E21),0,1),"")) -> 0 | C21: 19 | D21: 818 | E21: 857 | F21: 849 | G21: 968 | H21: =D23 -> 898 | I21: 937
A22: =IF('Muur (vast + regelb 4032)'!AD$17=Lijsten!AH$2,IF(OR('Muur (vast + regelb 4032)'!K$8<D22,'Muur (vast + regelb 4032)'!K$8>E22),0,1),IF('Muur (vast + regelb 4032)'!AD$17=Lijsten!AH$3,IF(OR('Muur (vast + regelb 4032)'!K$10<D22,'Muur (vast + regelb 4032)'!K$10>E22),0,1),"")) -> 0 | C22: 20 | D22: 858 | E22: 897 | F22: 889 | G22: 1008 | H22: =D24 -> 938 | I22: 977
A23: =IF('Muur (vast + regelb 4032)'!AD$17=Lijsten!AH$2,IF(OR('Muur (vast + regelb 4032)'!K$8<D23,'Muur (vast + regelb 4032)'!K$8>E23),0,1),IF('Muur (vast + regelb 4032)'!AD$17=Lijsten!AH$3,IF(OR('Muur (vast + regelb 4032)'!K$10<D23,'Muur (vast + regelb 4032)'!K$10>E23),0,1),"")) -> 0 | C23: 21 | D23: 898 | E23: 937 | F23: 929 | G23: 1048 | H23: =D25 -> 978 | I23: 1017
A24: =IF('Muur (vast + regelb 4032)'!AD$17=Lijsten!AH$2,IF(OR('Muur (vast + regelb 4032)'!K$8<D24,'Muur (vast + regelb 4032)'!K$8>E24),0,1),IF('Muur (vast + regelb 4032)'!AD$17=Lijsten!AH$3,IF(OR('Muur (vast + regelb 4032)'!K$10<D24,'Muur (vast + regelb 4032)'!K$10>E24),0,1),"")) -> 0 | C24: 22 | D24: 938 | E24: 977 | F24: 969 | G24: 1088 | H24: =D26 -> 1018 | I24: 1057
A25: =IF('Muur (vast + regelb 4032)'!AD$17=Lijsten!AH$2,IF(OR('Muur (vast + regelb 4032)'!K$8<D25,'Muur (vast + regelb 4032)'!K$8>E25),0,1),IF('Muur (vast + regelb 4032)'!AD$17=Lijsten!AH$3,IF(OR('Muur (vast + regelb 4032)'!K$10<D25,'Muur (vast + regelb 4032)'!K$10>E25),0,1),"")) -> 0 | C25: 23 | D25: 978 | E25: 1017 | F25: 1009 | G25: 1128 | H25: =D27 -> 1058 | I25: 1097
A26: =IF('Muur (vast + regelb 4032)'!AD$17=Lijsten!AH$2,IF(OR('Muur (vast + regelb 4032)'!K$8<D26,'Muur (vast + regelb 4032)'!K$8>E26),0,1),IF('Muur (vast + regelb 4032)'!AD$17=Lijsten!AH$3,IF(OR('Muur (vast + regelb 4032)'!K$10<D26,'Muur (vast + regelb 4032)'!K$10>E26),0,1),"")) -> 0 | C26: 24 | D26: 1018 | E26: 1057 | F26: 1049 | G26: 1168 | H26: =D28 -> 1098 | I26: 1137
A27: =IF('Muur (vast + regelb 4032)'!AD$17=Lijsten!AH$2,IF(OR('Muur (vast + regelb 4032)'!K$8<D27,'Muur (vast + regelb 4032)'!K$8>E27),0,1),IF('Muur (vast + regelb 4032)'!AD$17=Lijsten!AH$3,IF(OR('Muur (vast + regelb 4032)'!K$10<D27,'Muur (vast + regelb 4032)'!K$10>E27),0,1),"")) -> 0 | C27: 25 | D27: 1058 | E27: 1097 | F27: 1089 | G27: 1208 | H27: =D29 -> 1138 | I27: 1177
A28: =IF('Muur (vast + regelb 4032)'!AD$17=Lijsten!AH$2,IF(OR('Muur (vast + regelb 4032)'!K$8<D28,'Muur (vast + regelb 4032)'!K$8>E28),0,1),IF('Muur (vast + regelb 4032)'!AD$17=Lijsten!AH$3,IF(OR('Muur (vast + regelb 4032)'!K$10<D28,'Muur (vast + regelb 4032)'!K$10>E28),0,1),"")) -> 0 | C28: 26 | D28: 1098 | E28: 1137 | F28: 1129 | G28: 1248 | H28: =D30 -> 1178 | I28: 1217
A29: =IF('Muur (vast + regelb 4032)'!AD$17=Lijsten!AH$2,IF(OR('Muur (vast + regelb 4032)'!K$8<D29,'Muur (vast + regelb 4032)'!K$8>E29),0,1),IF('Muur (vast + regelb 4032)'!AD$17=Lijsten!AH$3,IF(OR('Muur (vast + regelb 4032)'!K$10<D29,'Muur (vast + regelb 4032)'!K$10>E29),0,1),"")) -> 0 | C29: 27 | D29: 1138 | E29: 1177 | F29: 1169 | G29: 1288 | H29: =D31 -> 1218 | I29: 1257
A30: =IF('Muur (vast + regelb 4032)'!AD$17=Lijsten!AH$2,IF(OR('Muur (vast + regelb 4032)'!K$8<D30,'Muur (vast + regelb 4032)'!K$8>E30),0,1),IF('Muur (vast + regelb 4032)'!AD$17=Lijsten!AH$3,IF(OR('Muur (vast + regelb 4032)'!K$10<D30,'Muur (vast + regelb 4032)'!K$10>E30),0,1),"")) -> 0 | C30: 28 | D30: 1178 | E30: 1217 | F30: 1209 | G30: 1328 | H30: =D32 -> 1258 | I30: 1297
A31: =IF('Muur (vast + regelb 4032)'!AD$17=Lijsten!AH$2,IF(OR('Muur (vast + regelb 4032)'!K$8<D31,'Muur (vast + regelb 4032)'!K$8>E31),0,1),IF('Muur (vast + regelb 4032)'!AD$17=Lijsten!AH$3,IF(OR('Muur (vast + regelb 4032)'!K$10<D31,'Muur (vast + regelb 4032)'!K$10>E31),0,1),"")) -> 0 | C31: 29 | D31: 1218 | E31: 1257 | F31: 1249 | G31: 1368 | H31: =D33 -> 1298 | I31: 1337
A32: =IF('Muur (vast + regelb 4032)'!AD$17=Lijsten!AH$2,IF(OR('Muur (vast + regelb 4032)'!K$8<D32,'Muur (vast + regelb 4032)'!K$8>E32),0,1),IF('Muur (vast + regelb 4032)'!AD$17=Lijsten!AH$3,IF(OR('Muur (vast + regelb 4032)'!K$10<D32,'Muur (vast + regelb 4032)'!K$10>E32),0,1),"")) -> 0 | C32: 30 | D32: 1258 | E32: 1297 | F32: 1289 | G32: 1408 | H32: =D34 -> 1338 | I32: 1377
A33: =IF('Muur (vast + regelb 4032)'!AD$17=Lijsten!AH$2,IF(OR('Muur (vast + regelb 4032)'!K$8<D33,'Muur (vast + regelb 4032)'!K$8>E33),0,1),IF('Muur (vast + regelb 4032)'!AD$17=Lijsten!AH$3,IF(OR('Muur (vast + regelb 4032)'!K$10<D33,'Muur (vast + regelb 4032)'!K$10>E33),0,1),"")) -> 0 | C33: 31 | D33: 1298 | E33: 1337 | F33: 1329 | G33: 1448 | H33: =D35 -> 1378 | I33: 1417
A34: =IF('Muur (vast + regelb 4032)'!AD$17=Lijsten!AH$2,IF(OR('Muur (vast + regelb 4032)'!K$8<D34,'Muur (vast + regelb 4032)'!K$8>E34),0,1),IF('Muur (vast + regelb 4032)'!AD$17=Lijsten!AH$3,IF(OR('Muur (vast + regelb 4032)'!K$10<D34,'Muur (vast + regelb 4032)'!K$10>E34),0,1),"")) -> 0 | C34: 32 | D34: 1338 | E34: 1377 | F34: 1369 | G34: 1488 | H34: =D36 -> 1418 | I34: 1457
A35: =IF('Muur (vast + regelb 4032)'!AD$17=Lijsten!AH$2,IF(OR('Muur (vast + regelb 4032)'!K$8<D35,'Muur (vast + regelb 4032)'!K$8>E35),0,1),IF('Muur (vast + regelb 4032)'!AD$17=Lijsten!AH$3,IF(OR('Muur (vast + regelb 4032)'!K$10<D35,'Muur (vast + regelb 4032)'!K$10>E35),0,1),"")) -> 0 | C35: 33 | D35: 1378 | E35: 1417 | F35: 1409 | G35: 1528 | H35: =D37 -> 1458 | I35: 1497
A36: =IF('Muur (vast + regelb 4032)'!AD$17=Lijsten!AH$2,IF(OR('Muur (vast + regelb 4032)'!K$8<D36,'Muur (vast + regelb 4032)'!K$8>E36),0,1),IF('Muur (vast + regelb 4032)'!AD$17=Lijsten!AH$3,IF(OR('Muur (vast + regelb 4032)'!K$10<D36,'Muur (vast + regelb 4032)'!K$10>E36),0,1),"")) -> 0 | C36: 34 | D36: 1418 | E36: 1457 | F36: 1449 | G36: 1568 | H36: =D38 -> 1498 | I36: 1537
A37: =IF('Muur (vast + regelb 4032)'!AD$17=Lijsten!AH$2,IF(OR('Muur (vast + regelb 4032)'!K$8<D37,'Muur (vast + regelb 4032)'!K$8>E37),0,1),IF('Muur (vast + regelb 4032)'!AD$17=Lijsten!AH$3,IF(OR('Muur (vast + regelb 4032)'!K$10<D37,'Muur (vast + regelb 4032)'!K$10>E37),0,1),"")) -> 0 | C37: 35 | D37: 1458 | E37: 1497 | F37: 1489 | G37: 1608 | H37: =D39 -> 1538 | I37: 1577
A38: =IF('Muur (vast + regelb 4032)'!AD$17=Lijsten!AH$2,IF(OR('Muur (vast + regelb 4032)'!K$8<D38,'Muur (vast + regelb 4032)'!K$8>E38),0,1),IF('Muur (vast + regelb 4032)'!AD$17=Lijsten!AH$3,IF(OR('Muur (vast + regelb 4032)'!K$10<D38,'Muur (vast + regelb 4032)'!K$10>E38),0,1),"")) -> 0 | C38: 36 | D38: 1498 | E38: 1537 | F38: 1529 | G38: 1648 | H38: =D40 -> 1578 | I38: 1617
A39: =IF('Muur (vast + regelb 4032)'!AD$17=Lijsten!AH$2,IF(OR('Muur (vast + regelb 4032)'!K$8<D39,'Muur (vast + regelb 4032)'!K$8>E39),0,1),IF('Muur (vast + regelb 4032)'!AD$17=Lijsten!AH$3,IF(OR('Muur (vast + regelb 4032)'!K$10<D39,'Muur (vast + regelb 4032)'!K$10>E39),0,1),"")) -> 0 | C39: 37 | D39: 1538 | E39: 1577 | F39: 1569 | G39: 1688 | H39: =D41 -> 1618 | I39: 1657
A40: =IF('Muur (vast + regelb 4032)'!AD$17=Lijsten!AH$2,IF(OR('Muur (vast + regelb 4032)'!K$8<D40,'Muur (vast + regelb 4032)'!K$8>E40),0,1),IF('Muur (vast + regelb 4032)'!AD$17=Lijsten!AH$3,IF(OR('Muur (vast + regelb 4032)'!K$10<D40,'Muur (vast + regelb 4032)'!K$10>E40),0,1),"")) -> 0 | C40: 38 | D40: 1578 | E40: 1617 | F40: 1609 | G40: 1728 | H40: =D42 -> 1658 | I40: 1697
A41: =IF('Muur (vast + regelb 4032)'!AD$17=Lijsten!AH$2,IF(OR('Muur (vast + regelb 4032)'!K$8<D41,'Muur (vast + regelb 4032)'!K$8>E41),0,1),IF('Muur (vast + regelb 4032)'!AD$17=Lijsten!AH$3,IF(OR('Muur (vast + regelb 4032)'!K$10<D41,'Muur (vast + regelb 4032)'!K$10>E41),0,1),"")) -> 0 | C41: 39 | D41: 1618 | E41: 1657 | F41: 1649 | G41: 1768 | H41: =D43 -> 1698 | I41: 1737
A42: =IF('Muur (vast + regelb 4032)'!AD$17=Lijsten!AH$2,IF(OR('Muur (vast + regelb 4032)'!K$8<D42,'Muur (vast + regelb 4032)'!K$8>E42),0,1),IF('Muur (vast + regelb 4032)'!AD$17=Lijsten!AH$3,IF(OR('Muur (vast + regelb 4032)'!K$10<D42,'Muur (vast + regelb 4032)'!K$10>E42),0,1),"")) -> 0 | C42: 40 | D42: 1658 | E42: 1697 | F42: 1689 | G42: 1808 | H42: =D44 -> 1738 | I42: 1777
A43: =IF('Muur (vast + regelb 4032)'!AD$17=Lijsten!AH$2,IF(OR('Muur (vast + regelb 4032)'!K$8<D43,'Muur (vast + regelb 4032)'!K$8>E43),0,1),IF('Muur (vast + regelb 4032)'!AD$17=Lijsten!AH$3,IF(OR('Muur (vast + regelb 4032)'!K$10<D43,'Muur (vast + regelb 4032)'!K$10>E43),0,1),"")) -> 0 | C43: 41 | D43: 1698 | E43: 1737 | F43: 1729 | G43: 1848 | H43: =D45 -> 1778 | I43: 1817
A44: =IF('Muur (vast + regelb 4032)'!AD$17=Lijsten!AH$2,IF(OR('Muur (vast + regelb 4032)'!K$8<D44,'Muur (vast + regelb 4032)'!K$8>E44),0,1),IF('Muur (vast + regelb 4032)'!AD$17=Lijsten!AH$3,IF(OR('Muur (vast + regelb 4032)'!K$10<D44,'Muur (vast + regelb 4032)'!K$10>E44),0,1),"")) -> 0 | C44: 42 | D44: 1738 | E44: 1777 | F44: 1769 | G44: 1888 | H44: =D46 -> 1818 | I44: 1857
A45: =IF('Muur (vast + regelb 4032)'!AD$17=Lijsten!AH$2,IF(OR('Muur (vast + regelb 4032)'!K$8<D45,'Muur (vast + regelb 4032)'!K$8>E45),0,1),IF('Muur (vast + regelb 4032)'!AD$17=Lijsten!AH$3,IF(OR('Muur (vast + regelb 4032)'!K$10<D45,'Muur (vast + regelb 4032)'!K$10>E45),0,1),"")) -> 0 | C45: 43 | D45: 1778 | E45: 1817 | F45: 1809 | G45: 1928 | H45: =D47 -> 1858 | I45: 1897
A46: =IF('Muur (vast + regelb 4032)'!AD$17=Lijsten!AH$2,IF(OR('Muur (vast + regelb 4032)'!K$8<D46,'Muur (vast + regelb 4032)'!K$8>E46),0,1),IF('Muur (vast + regelb 4032)'!AD$17=Lijsten!AH$3,IF(OR('Muur (vast + regelb 4032)'!K$10<D46,'Muur (vast + regelb 4032)'!K$10>E46),0,1),"")) -> 0 | C46: 44 | D46: 1818 | E46: 1857 | F46: 1849 | G46: 1968 | H46: =D48 -> 1898 | I46: 1937
A47: =IF('Muur (vast + regelb 4032)'!AD$17=Lijsten!AH$2,IF(OR('Muur (vast + regelb 4032)'!K$8<D47,'Muur (vast + regelb 4032)'!K$8>E47),0,1),IF('Muur (vast + regelb 4032)'!AD$17=Lijsten!AH$3,IF(OR('Muur (vast + regelb 4032)'!K$10<D47,'Muur (vast + regelb 4032)'!K$10>E47),0,1),"")) -> 0 | C47: 45 | D47: 1858 | E47: 1897 | F47: 1889 | G47: 2008 | H47: =D49 -> 1938 | I47: 1977
A48: =IF('Muur (vast + regelb 4032)'!AD$17=Lijsten!AH$2,IF(OR('Muur (vast + regelb 4032)'!K$8<D48,'Muur (vast + regelb 4032)'!K$8>E48),0,1),IF('Muur (vast + regelb 4032)'!AD$17=Lijsten!AH$3,IF(OR('Muur (vast + regelb 4032)'!K$10<D48,'Muur (vast + regelb 4032)'!K$10>E48),0,1),"")) -> 0 | C48: 46 | D48: 1898 | E48: 1937 | F48: 1929 | G48: 2048 | H48: =D50 -> 1978 | I48: 2017
A49: =IF('Muur (vast + regelb 4032)'!AD$17=Lijsten!AH$2,IF(OR('Muur (vast + regelb 4032)'!K$8<D49,'Muur (vast + regelb 4032)'!K$8>E49),0,1),IF('Muur (vast + regelb 4032)'!AD$17=Lijsten!AH$3,IF(OR('Muur (vast + regelb 4032)'!K$10<D49,'Muur (vast + regelb 4032)'!K$10>E49),0,1),"")) -> 0 | C49: 47 | D49: 1938 | E49: 1977 | F49: 1969 | G49: 2088 | H49: =D51 -> 2018 | I49: 2057
A50: =IF('Muur (vast + regelb 4032)'!AD$17=Lijsten!AH$2,IF(OR('Muur (vast + regelb 4032)'!K$8<D50,'Muur (vast + regelb 4032)'!K$8>E50),0,1),IF('Muur (vast + regelb 4032)'!AD$17=Lijsten!AH$3,IF(OR('Muur (vast + regelb 4032)'!K$10<D50,'Muur (vast + regelb 4032)'!K$10>E50),0,1),"")) -> 0 | C50: 48 | D50: 1978 | E50: 2017 | F50: 2009 | G50: 2128 | H50: =D52 -> 2058 | I50: 2097
A51: =IF('Muur (vast + regelb 4032)'!AD$17=Lijsten!AH$2,IF(OR('Muur (vast + regelb 4032)'!K$8<D51,'Muur (vast + regelb 4032)'!K$8>E51),0,1),IF('Muur (vast + regelb 4032)'!AD$17=Lijsten!AH$3,IF(OR('Muur (vast + regelb 4032)'!K$10<D51,'Muur (vast + regelb 4032)'!K$10>E51),0,1),"")) -> 0 | C51: 49 | D51: 2018 | E51: 2057 | F51: 2049 | G51: 2168 | H51: =D53 -> 2098 | I51: 2137
A52: =IF('Muur (vast + regelb 4032)'!AD$17=Lijsten!AH$2,IF(OR('Muur (vast + regelb 4032)'!K$8<D52,'Muur (vast + regelb 4032)'!K$8>E52),0,1),IF('Muur (vast + regelb 4032)'!AD$17=Lijsten!AH$3,IF(OR('Muur (vast + regelb 4032)'!K$10<D52,'Muur (vast + regelb 4032)'!K$10>E52),0,1),"")) -> 0 | C52: 50 | D52: 2058 | E52: 2097 | F52: 2089 | G52: 2208 | H52: =D54 -> 2138 | I52: 2177
A53: =IF('Muur (vast + regelb 4032)'!AD$17=Lijsten!AH$2,IF(OR('Muur (vast + regelb 4032)'!K$8<D53,'Muur (vast + regelb 4032)'!K$8>E53),0,1),IF('Muur (vast + regelb 4032)'!AD$17=Lijsten!AH$3,IF(OR('Muur (vast + regelb 4032)'!K$10<D53,'Muur (vast + regelb 4032)'!K$10>E53),0,1),"")) -> 0 | C53: 51 | D53: 2098 | E53: 2137 | F53: 2129 | G53: 2248 | H53: =D55 -> 2178 | I53: 2217
A54: =IF('Muur (vast + regelb 4032)'!AD$17=Lijsten!AH$2,IF(OR('Muur (vast + regelb 4032)'!K$8<D54,'Muur (vast + regelb 4032)'!K$8>E54),0,1),IF('Muur (vast + regelb 4032)'!AD$17=Lijsten!AH$3,IF(OR('Muur (vast + regelb 4032)'!K$10<D54,'Muur (vast + regelb 4032)'!K$10>E54),0,1),"")) -> 0 | C54: 52 | D54: 2138 | E54: 2177 | F54: 2169 | G54: 2288 | H54: =D56 -> 2218 | I54: 2257
A55: =IF('Muur (vast + regelb 4032)'!AD$17=Lijsten!AH$2,IF(OR('Muur (vast + regelb 4032)'!K$8<D55,'Muur (vast + regelb 4032)'!K$8>E55),0,1),IF('Muur (vast + regelb 4032)'!AD$17=Lijsten!AH$3,IF(OR('Muur (vast + regelb 4032)'!K$10<D55,'Muur (vast + regelb 4032)'!K$10>E55),0,1),"")) -> 0 | C55: 53 | D55: 2178 | E55: 2217 | F55: 2209 | G55: 2328 | H55: =D57 -> 2258 | I55: 2297
A56: =IF('Muur (vast + regelb 4032)'!AD$17=Lijsten!AH$2,IF(OR('Muur (vast + regelb 4032)'!K$8<D56,'Muur (vast + regelb 4032)'!K$8>E56),0,1),IF('Muur (vast + regelb 4032)'!AD$17=Lijsten!AH$3,IF(OR('Muur (vast + regelb 4032)'!K$10<D56,'Muur (vast + regelb 4032)'!K$10>E56),0,1),"")) -> 0 | C56: 54 | D56: 2218 | E56: 2257 | F56: 2249 | G56: 2368 | H56: =D58 -> 2298 | I56: 2337
A57: =IF('Muur (vast + regelb 4032)'!AD$17=Lijsten!AH$2,IF(OR('Muur (vast + regelb 4032)'!K$8<D57,'Muur (vast + regelb 4032)'!K$8>E57),0,1),IF('Muur (vast + regelb 4032)'!AD$17=Lijsten!AH$3,IF(OR('Muur (vast + regelb 4032)'!K$10<D57,'Muur (vast + regelb 4032)'!K$10>E57),0,1),"")) -> 0 | C57: 55 | D57: 2258 | E57: 2297 | F57: 2289 | G57: 2408 | H57: =D59 -> 2338 | I57: 2377
A58: =IF('Muur (vast + regelb 4032)'!AD$17=Lijsten!AH$2,IF(OR('Muur (vast + regelb 4032)'!K$8<D58,'Muur (vast + regelb 4032)'!K$8>E58),0,1),IF('Muur (vast + regelb 4032)'!AD$17=Lijsten!AH$3,IF(OR('Muur (vast + regelb 4032)'!K$10<D58,'Muur (vast + regelb 4032)'!K$10>E58),0,1),"")) -> 0 | C58: 56 | D58: 2298 | E58: 2337 | F58: 2329 | G58: 2448 | H58: =D60 -> 2378 | I58: 2417
A59: =IF('Muur (vast + regelb 4032)'!AD$17=Lijsten!AH$2,IF(OR('Muur (vast + regelb 4032)'!K$8<D59,'Muur (vast + regelb 4032)'!K$8>E59),0,1),IF('Muur (vast + regelb 4032)'!AD$17=Lijsten!AH$3,IF(OR('Muur (vast + regelb 4032)'!K$10<D59,'Muur (vast + regelb 4032)'!K$10>E59),0,1),"")) -> 0 | C59: 57 | D59: 2338 | E59: 2377 | F59: 2369 | G59: 2488 | H59: =D61 -> 2418 | I59: 2457
A60: =IF('Muur (vast + regelb 4032)'!AD$17=Lijsten!AH$2,IF(OR('Muur (vast + regelb 4032)'!K$8<D60,'Muur (vast + regelb 4032)'!K$8>E60),0,1),IF('Muur (vast + regelb 4032)'!AD$17=Lijsten!AH$3,IF(OR('Muur (vast + regelb 4032)'!K$10<D60,'Muur (vast + regelb 4032)'!K$10>E60),0,1),"")) -> 0 | C60: 58 | D60: 2378 | E60: 2417 | F60: 2409 | G60: 2528 | H60: =D62 -> 2458 | I60: 2497
A61: =IF('Muur (vast + regelb 4032)'!AD$17=Lijsten!AH$2,IF(OR('Muur (vast + regelb 4032)'!K$8<D61,'Muur (vast + regelb 4032)'!K$8>E61),0,1),IF('Muur (vast + regelb 4032)'!AD$17=Lijsten!AH$3,IF(OR('Muur (vast + regelb 4032)'!K$10<D61,'Muur (vast + regelb 4032)'!K$10>E61),0,1),"")) -> 0 | C61: 59 | D61: 2418 | E61: 2457 | F61: 2449 | G61: 2568 | H61: =D63 -> 2498 | I61: 2537
A62: =IF('Muur (vast + regelb 4032)'!AD$17=Lijsten!AH$2,IF(OR('Muur (vast + regelb 4032)'!K$8<D62,'Muur (vast + regelb 4032)'!K$8>E62),0,1),IF('Muur (vast + regelb 4032)'!AD$17=Lijsten!AH$3,IF(OR('Muur (vast + regelb 4032)'!K$10<D62,'Muur (vast + regelb 4032)'!K$10>E62),0,1),"")) -> 0 | C62: 60 | D62: 2458 | E62: 2497 | F62: 2489 | G62: 2608 | H62: =D64 -> 2538 | I62: 2577
A63: =IF('Muur (vast + regelb 4032)'!AD$17=Lijsten!AH$2,IF(OR('Muur (vast + regelb 4032)'!K$8<D63,'Muur (vast + regelb 4032)'!K$8>E63),0,1),IF('Muur (vast + regelb 4032)'!AD$17=Lijsten!AH$3,IF(OR('Muur (vast + regelb 4032)'!K$10<D63,'Muur (vast + regelb 4032)'!K$10>E63),0,1),"")) -> 0 | C63: 61 | D63: 2498 | E63: 2537 | F63: 2529 | G63: 2648 | H63: =D65 -> 2578 | I63: 2617
A64: =IF('Muur (vast + regelb 4032)'!AD$17=Lijsten!AH$2,IF(OR('Muur (vast + regelb 4032)'!K$8<D64,'Muur (vast + regelb 4032)'!K$8>E64),0,1),IF('Muur (vast + regelb 4032)'!AD$17=Lijsten!AH$3,IF(OR('Muur (vast + regelb 4032)'!K$10<D64,'Muur (vast + regelb 4032)'!K$10>E64),0,1),"")) -> 0 | C64: 62 | D64: 2538 | E64: 2577 | F64: 2569 | G64: 2688 | H64: =D66 -> 2618 | I64: 2657
A65: =IF('Muur (vast + regelb 4032)'!AD$17=Lijsten!AH$2,IF(OR('Muur (vast + regelb 4032)'!K$8<D65,'Muur (vast + regelb 4032)'!K$8>E65),0,1),IF('Muur (vast + regelb 4032)'!AD$17=Lijsten!AH$3,IF(OR('Muur (vast + regelb 4032)'!K$10<D65,'Muur (vast + regelb 4032)'!K$10>E65),0,1),"")) -> 0 | C65: 63 | D65: 2578 | E65: 2617 | F65: 2609 | G65: 2728 | H65: =D67 -> 2658 | I65: 2697
A66: =IF('Muur (vast + regelb 4032)'!AD$17=Lijsten!AH$2,IF(OR('Muur (vast + regelb 4032)'!K$8<D66,'Muur (vast + regelb 4032)'!K$8>E66),0,1),IF('Muur (vast + regelb 4032)'!AD$17=Lijsten!AH$3,IF(OR('Muur (vast + regelb 4032)'!K$10<D66,'Muur (vast + regelb 4032)'!K$10>E66),0,1),"")) -> 0 | C66: 64 | D66: 2618 | E66: 2657 | F66: 2649 | G66: 2768 | H66: =D68 -> 2698 | I66: 2737
A67: =IF('Muur (vast + regelb 4032)'!AD$17=Lijsten!AH$2,IF(OR('Muur (vast + regelb 4032)'!K$8<D67,'Muur (vast + regelb 4032)'!K$8>E67),0,1),IF('Muur (vast + regelb 4032)'!AD$17=Lijsten!AH$3,IF(OR('Muur (vast + regelb 4032)'!K$10<D67,'Muur (vast + regelb 4032)'!K$10>E67),0,1),"")) -> 0 | C67: 65 | D67: 2658 | E67: 2697 | F67: 2689 | G67: 2808 | H67: =D69 -> 2738 | I67: 2777
A68: =IF('Muur (vast + regelb 4032)'!AD$17=Lijsten!AH$2,IF(OR('Muur (vast + regelb 4032)'!K$8<D68,'Muur (vast + regelb 4032)'!K$8>E68),0,1),IF('Muur (vast + regelb 4032)'!AD$17=Lijsten!AH$3,IF(OR('Muur (vast + regelb 4032)'!K$10<D68,'Muur (vast + regelb 4032)'!K$10>E68),0,1),"")) -> 0 | C68: 66 | D68: 2698 | E68: =D69-1 -> 2737 | F68: =(18*C68)+22*(C68-1)+80+31 -> 2729 | G68: =D69-1+80+31 -> 2848 | H68: =D70 -> 2778 | I68: 2817
A69: =IF('Muur (vast + regelb 4032)'!AD$17=Lijsten!AH$2,IF(OR('Muur (vast + regelb 4032)'!K$8<D69,'Muur (vast + regelb 4032)'!K$8>E69),0,1),IF('Muur (vast + regelb 4032)'!AD$17=Lijsten!AH$3,IF(OR('Muur (vast + regelb 4032)'!K$10<D69,'Muur (vast + regelb 4032)'!K$10>E69),0,1),"")) -> 0 | C69: 67 | D69: 2738 | E69: 2777 | F69: 2769 | G69: 2888 | H69: =D71 -> 2818 | I69: 2857
A70: =IF('Muur (vast + regelb 4032)'!AD$17=Lijsten!AH$2,IF(OR('Muur (vast + regelb 4032)'!K$8<D70,'Muur (vast + regelb 4032)'!K$8>E70),0,1),IF('Muur (vast + regelb 4032)'!AD$17=Lijsten!AH$3,IF(OR('Muur (vast + regelb 4032)'!K$10<D70,'Muur (vast + regelb 4032)'!K$10>E70),0,1),"")) -> 0 | C70: 68 | D70: 2778 | E70: =D71-1 -> 2817 | F70: =(18*C70)+22*(C70-1)+80+31 -> 2809 | G70: =D71-1+80+31 -> 2928 | H70: =D72 -> 2858 | I70: =E72 -> 2897
A71: =IF('Muur (vast + regelb 4032)'!AD$17=Lijsten!AH$2,IF(OR('Muur (vast + regelb 4032)'!K$8<D71,'Muur (vast + regelb 4032)'!K$8>E71),0,1),IF('Muur (vast + regelb 4032)'!AD$17=Lijsten!AH$3,IF(OR('Muur (vast + regelb 4032)'!K$10<D71,'Muur (vast + regelb 4032)'!K$10>E71),0,1),"")) -> 0 | C71: 69 | D71: =D70+40 -> 2818 | E71: 2857 | F71: 2849 | G71: 2968 | H71: 2898 | I71: 2937
A72: =IF('Muur (vast + regelb 4032)'!AD$17=Lijsten!AH$2,IF(OR('Muur (vast + regelb 4032)'!K$8<D72,'Muur (vast + regelb 4032)'!K$8>E72),0,1),IF('Muur (vast + regelb 4032)'!AD$17=Lijsten!AH$3,IF(OR('Muur (vast + regelb 4032)'!K$10<D72,'Muur (vast + regelb 4032)'!K$10>E72),0,1),"")) -> 0 | C72: 70 | D72: 2858 | E72: 2897 | F72: 2889 | G72: 3008 | H72: 2938 | I72: 2977
A73: =IF('Muur (vast + regelb 4032)'!AD$17=Lijsten!AH$2,IF(OR('Muur (vast + regelb 4032)'!K$8<D73,'Muur (vast + regelb 4032)'!K$8>E73),0,1),IF('Muur (vast + regelb 4032)'!AD$17=Lijsten!AH$3,IF(OR('Muur (vast + regelb 4032)'!K$10<D73,'Muur (vast + regelb 4032)'!K$10>E73),0,1),"")) -> 0 | C73: 71 | D73: 2898 | E73: 2937 | F73: 2929 | G73: 3048 | H73: 2978 | I73: 3017
A74: =IF('Muur (vast + regelb 4032)'!AD$17=Lijsten!AH$2,IF(OR('Muur (vast + regelb 4032)'!K$8<D74,'Muur (vast + regelb 4032)'!K$8>E74),0,1),IF('Muur (vast + regelb 4032)'!AD$17=Lijsten!AH$3,IF(OR('Muur (vast + regelb 4032)'!K$10<D74,'Muur (vast + regelb 4032)'!K$10>E74),0,1),"")) -> 0 | C74: 72 | D74: 2938 | E74: 2977 | F74: 2969 | G74: 3088 | H74: 3018 | I74: 3057
A75: =IF('Muur (vast + regelb 4032)'!AD$17=Lijsten!AH$2,IF(OR('Muur (vast + regelb 4032)'!K$8<D75,'Muur (vast + regelb 4032)'!K$8>E75),0,1),IF('Muur (vast + regelb 4032)'!AD$17=Lijsten!AH$3,IF(OR('Muur (vast + regelb 4032)'!K$10<D75,'Muur (vast + regelb 4032)'!K$10>E75),0,1),"")) -> 0 | C75: 73 | D75: 2978 | E75: 3017 | F75: 3009 | G75: 3128 | H75: 3058 | I75: 3097
A76: =IF('Muur (vast + regelb 4032)'!AD$17=Lijsten!AH$2,IF(OR('Muur (vast + regelb 4032)'!K$8<D76,'Muur (vast + regelb 4032)'!K$8>E76),0,1),IF('Muur (vast + regelb 4032)'!AD$17=Lijsten!AH$3,IF(OR('Muur (vast + regelb 4032)'!K$10<D76,'Muur (vast + regelb 4032)'!K$10>E76),0,1),"")) -> 0 | C76: 74 | D76: 3018 | E76: 3057 | F76: 3049 | G76: 3168 | H76: 3098 | I76: 3137
A77: =IF('Muur (vast + regelb 4032)'!AD$17=Lijsten!AH$2,IF(OR('Muur (vast + regelb 4032)'!K$8<D77,'Muur (vast + regelb 4032)'!K$8>E77),0,1),IF('Muur (vast + regelb 4032)'!AD$17=Lijsten!AH$3,IF(OR('Muur (vast + regelb 4032)'!K$10<D77,'Muur (vast + regelb 4032)'!K$10>E77),0,1),"")) -> 0 | C77: 75 | D77: 3058 | E77: 3097 | F77: 3089 | G77: 3208 | H77: 3138 | I77: 3177
A78: =IF('Muur (vast + regelb 4032)'!AD$17=Lijsten!AH$2,IF(OR('Muur (vast + regelb 4032)'!K$8<D78,'Muur (vast + regelb 4032)'!K$8>E78),0,1),IF('Muur (vast + regelb 4032)'!AD$17=Lijsten!AH$3,IF(OR('Muur (vast + regelb 4032)'!K$10<D78,'Muur (vast + regelb 4032)'!K$10>E78),0,1),"")) -> 0 | C78: 76 | D78: 3098 | E78: 3137 | F78: 3129 | G78: 3248 | H78: 3178 | I78: 3217
A79: =IF('Muur (vast + regelb 4032)'!AD$17=Lijsten!AH$2,IF(OR('Muur (vast + regelb 4032)'!K$8<D79,'Muur (vast + regelb 4032)'!K$8>E79),0,1),IF('Muur (vast + regelb 4032)'!AD$17=Lijsten!AH$3,IF(OR('Muur (vast + regelb 4032)'!K$10<D79,'Muur (vast + regelb 4032)'!K$10>E79),0,1),"")) -> 0 | C79: 77 | D79: 3138 | E79: 3177 | F79: 3169 | G79: 3288 | H79: 3218 | I79: 3257
A80: =IF('Muur (vast + regelb 4032)'!AD$17=Lijsten!AH$2,IF(OR('Muur (vast + regelb 4032)'!K$8<D80,'Muur (vast + regelb 4032)'!K$8>E80),0,1),IF('Muur (vast + regelb 4032)'!AD$17=Lijsten!AH$3,IF(OR('Muur (vast + regelb 4032)'!K$10<D80,'Muur (vast + regelb 4032)'!K$10>E80),0,1),"")) -> 0 | C80: 78 | D80: 3178 | E80: 3217 | F80: 3209 | G80: 3328 | H80: 3258 | I80: 3297
A81: =IF('Muur (vast + regelb 4032)'!AD$17=Lijsten!AH$2,IF(OR('Muur (vast + regelb 4032)'!K$8<D81,'Muur (vast + regelb 4032)'!K$8>E81),0,1),IF('Muur (vast + regelb 4032)'!AD$17=Lijsten!AH$3,IF(OR('Muur (vast + regelb 4032)'!K$10<D81,'Muur (vast + regelb 4032)'!K$10>E81),0,1),"")) -> 0 | C81: 79 | D81: 3218 | E81: 3257 | F81: 3249 | G81: 3368 | H81: 3298 | I81: 3337
A82: =IF('Muur (vast + regelb 4032)'!AD$17=Lijsten!AH$2,IF(OR('Muur (vast + regelb 4032)'!K$8<D82,'Muur (vast + regelb 4032)'!K$8>E82),0,1),IF('Muur (vast + regelb 4032)'!AD$17=Lijsten!AH$3,IF(OR('Muur (vast + regelb 4032)'!K$10<D82,'Muur (vast + regelb 4032)'!K$10>E82),0,1),"")) -> 0 | C82: 80 | D82: 3258 | E82: 3297 | F82: 3289 | G82: 3408 | H82: 3338 | I82: 3377
A83: =IF('Muur (vast + regelb 4032)'!AD$17=Lijsten!AH$2,IF(OR('Muur (vast + regelb 4032)'!K$8<D83,'Muur (vast + regelb 4032)'!K$8>E83),0,1),IF('Muur (vast + regelb 4032)'!AD$17=Lijsten!AH$3,IF(OR('Muur (vast + regelb 4032)'!K$10<D83,'Muur (vast + regelb 4032)'!K$10>E83),0,1),"")) -> 0 | C83: 81 | D83: 3298 | E83: 3337 | F83: 3329 | G83: 3448 | H83: 3378 | I83: 3417
A84: =IF('Muur (vast + regelb 4032)'!AD$17=Lijsten!AH$2,IF(OR('Muur (vast + regelb 4032)'!K$8<D84,'Muur (vast + regelb 4032)'!K$8>E84),0,1),IF('Muur (vast + regelb 4032)'!AD$17=Lijsten!AH$3,IF(OR('Muur (vast + regelb 4032)'!K$10<D84,'Muur (vast + regelb 4032)'!K$10>E84),0,1),"")) -> 0 | C84: 82 | D84: 3338 | E84: 3377 | F84: 3369 | G84: 3488 | H84: 3418 | I84: 3457
A85: =IF('Muur (vast + regelb 4032)'!AD$17=Lijsten!AH$2,IF(OR('Muur (vast + regelb 4032)'!K$8<D85,'Muur (vast + regelb 4032)'!K$8>E85),0,1),IF('Muur (vast + regelb 4032)'!AD$17=Lijsten!AH$3,IF(OR('Muur (vast + regelb 4032)'!K$10<D85,'Muur (vast + regelb 4032)'!K$10>E85),0,1),"")) -> 0 | C85: 83 | D85: 3378 | E85: 3417 | F85: 3409 | G85: 3528 | H85: 3458 | I85: 3497
A86: =IF('Muur (vast + regelb 4032)'!AD$17=Lijsten!AH$2,IF(OR('Muur (vast + regelb 4032)'!K$8<D86,'Muur (vast + regelb 4032)'!K$8>E86),0,1),IF('Muur (vast + regelb 4032)'!AD$17=Lijsten!AH$3,IF(OR('Muur (vast + regelb 4032)'!K$10<D86,'Muur (vast + regelb 4032)'!K$10>E86),0,1),"")) -> 0 | C86: 84 | D86: 3418 | E86: 3457 | F86: 3449 | G86: 3568 | H86: 3498 | I86: 3537
A87: =IF('Muur (vast + regelb 4032)'!AD$17=Lijsten!AH$2,IF(OR('Muur (vast + regelb 4032)'!K$8<D87,'Muur (vast + regelb 4032)'!K$8>E87),0,1),IF('Muur (vast + regelb 4032)'!AD$17=Lijsten!AH$3,IF(OR('Muur (vast + regelb 4032)'!K$10<D87,'Muur (vast + regelb 4032)'!K$10>E87),0,1),"")) -> 0 | C87: 85 | D87: 3458 | E87: 3497 | F87: 3489 | G87: 3608 | H87: 3538 | I87: 3577
A88: =IF('Muur (vast + regelb 4032)'!AD$17=Lijsten!AH$2,IF(OR('Muur (vast + regelb 4032)'!K$8<D88,'Muur (vast + regelb 4032)'!K$8>E88),0,1),IF('Muur (vast + regelb 4032)'!AD$17=Lijsten!AH$3,IF(OR('Muur (vast + regelb 4032)'!K$10<D88,'Muur (vast + regelb 4032)'!K$10>E88),0,1),"")) -> 0 | C88: 86 | D88: 3498 | E88: 3537 | F88: 3529 | G88: 3648 | H88: 3578 | I88: 3617
A89: =IF('Muur (vast + regelb 4032)'!AD$17=Lijsten!AH$2,IF(OR('Muur (vast + regelb 4032)'!K$8<D89,'Muur (vast + regelb 4032)'!K$8>E89),0,1),IF('Muur (vast + regelb 4032)'!AD$17=Lijsten!AH$3,IF(OR('Muur (vast + regelb 4032)'!K$10<D89,'Muur (vast + regelb 4032)'!K$10>E89),0,1),"")) -> 0 | C89: 87 | D89: 3538 | E89: 3577 | F89: 3569 | G89: 3688 | H89: 3618 | I89: 3657
A90: =IF('Muur (vast + regelb 4032)'!AD$17=Lijsten!AH$2,IF(OR('Muur (vast + regelb 4032)'!K$8<D90,'Muur (vast + regelb 4032)'!K$8>E90),0,1),IF('Muur (vast + regelb 4032)'!AD$17=Lijsten!AH$3,IF(OR('Muur (vast + regelb 4032)'!K$10<D90,'Muur (vast + regelb 4032)'!K$10>E90),0,1),"")) -> 0 | C90: 88 | D90: 3578 | E90: 3617 | F90: 3609 | G90: 3728 | H90: 3658 | I90: 3697
A91: =IF('Muur (vast + regelb 4032)'!AD$17=Lijsten!AH$2,IF(OR('Muur (vast + regelb 4032)'!K$8<D91,'Muur (vast + regelb 4032)'!K$8>E91),0,1),IF('Muur (vast + regelb 4032)'!AD$17=Lijsten!AH$3,IF(OR('Muur (vast + regelb 4032)'!K$10<D91,'Muur (vast + regelb 4032)'!K$10>E91),0,1),"")) -> 0 | C91: 89 | D91: 3618 | E91: 3657 | F91: 3649 | G91: 3768 | H91: 3698 | I91: 3737
A92: =IF('Muur (vast + regelb 4032)'!AD$17=Lijsten!AH$2,IF(OR('Muur (vast + regelb 4032)'!K$8<D92,'Muur (vast + regelb 4032)'!K$8>E92),0,1),IF('Muur (vast + regelb 4032)'!AD$17=Lijsten!AH$3,IF(OR('Muur (vast + regelb 4032)'!K$10<D92,'Muur (vast + regelb 4032)'!K$10>E92),0,1),"")) -> 0 | C92: 90 | D92: 3658 | E92: 3697 | F92: 3689 | G92: 3808 | H92: 3738 | I92: 3777
A93: =IF('Muur (vast + regelb 4032)'!AD$17=Lijsten!AH$2,IF(OR('Muur (vast + regelb 4032)'!K$8<D93,'Muur (vast + regelb 4032)'!K$8>E93),0,1),IF('Muur (vast + regelb 4032)'!AD$17=Lijsten!AH$3,IF(OR('Muur (vast + regelb 4032)'!K$10<D93,'Muur (vast + regelb 4032)'!K$10>E93),0,1),"")) -> 0 | C93: 91 | D93: 3698 | E93: 3737 | F93: 3729 | G93: 3848 | H93: 3778 | I93: 3817
A94: =IF('Muur (vast + regelb 4032)'!AD$17=Lijsten!AH$2,IF(OR('Muur (vast + regelb 4032)'!K$8<D94,'Muur (vast + regelb 4032)'!K$8>E94),0,1),IF('Muur (vast + regelb 4032)'!AD$17=Lijsten!AH$3,IF(OR('Muur (vast + regelb 4032)'!K$10<D94,'Muur (vast + regelb 4032)'!K$10>E94),0,1),"")) -> 0 | C94: 92 | D94: 3738 | E94: 3777 | F94: 3769 | G94: 3888 | H94: 3818 | I94: 3857
A95: =IF('Muur (vast + regelb 4032)'!AD$17=Lijsten!AH$2,IF(OR('Muur (vast + regelb 4032)'!K$8<D95,'Muur (vast + regelb 4032)'!K$8>E95),0,1),IF('Muur (vast + regelb 4032)'!AD$17=Lijsten!AH$3,IF(OR('Muur (vast + regelb 4032)'!K$10<D95,'Muur (vast + regelb 4032)'!K$10>E95),0,1),"")) -> 0 | C95: 93 | D95: 3778 | E95: 3817 | F95: 3809 | G95: 3928 | H95: 3858 | I95: 3897
A96: =IF('Muur (vast + regelb 4032)'!AD$17=Lijsten!AH$2,IF(OR('Muur (vast + regelb 4032)'!K$8<D96,'Muur (vast + regelb 4032)'!K$8>E96),0,1),IF('Muur (vast + regelb 4032)'!AD$17=Lijsten!AH$3,IF(OR('Muur (vast + regelb 4032)'!K$10<D96,'Muur (vast + regelb 4032)'!K$10>E96),0,1),"")) -> 0 | C96: 94 | D96: 3818 | E96: 3857 | F96: 3849 | G96: 3968 | H96: 3898 | I96: 3937
A97: =IF('Muur (vast + regelb 4032)'!AD$17=Lijsten!AH$2,IF(OR('Muur (vast + regelb 4032)'!K$8<D97,'Muur (vast + regelb 4032)'!K$8>E97),0,1),IF('Muur (vast + regelb 4032)'!AD$17=Lijsten!AH$3,IF(OR('Muur (vast + regelb 4032)'!K$10<D97,'Muur (vast + regelb 4032)'!K$10>E97),0,1),"")) -> 0 | C97: 95 | D97: 3858 | E97: 3897 | F97: 3889 | G97: 4008 | H97: 3938 | I97: 3977
A98: =IF('Muur (vast + regelb 4032)'!AD$17=Lijsten!AH$2,IF(OR('Muur (vast + regelb 4032)'!K$8<D98,'Muur (vast + regelb 4032)'!K$8>E98),0,1),IF('Muur (vast + regelb 4032)'!AD$17=Lijsten!AH$3,IF(OR('Muur (vast + regelb 4032)'!K$10<D98,'Muur (vast + regelb 4032)'!K$10>E98),0,1),"")) -> 0 | C98: 96 | D98: 3898 | E98: 3937 | F98: 3929 | G98: 4048 | H98: 3978 | I98: 4017
A99: =IF('Muur (vast + regelb 4032)'!AD$17=Lijsten!AH$2,IF(OR('Muur (vast + regelb 4032)'!K$8<D99,'Muur (vast + regelb 4032)'!K$8>E99),0,1),IF('Muur (vast + regelb 4032)'!AD$17=Lijsten!AH$3,IF(OR('Muur (vast + regelb 4032)'!K$10<D99,'Muur (vast + regelb 4032)'!K$10>E99),0,1),"")) -> 0 | C99: 97 | D99: 3938 | E99: 3977 | F99: 3969 | G99: 4088 | H99: 4018 | I99: 4057
A100: =IF('Muur (vast + regelb 4032)'!AD$17=Lijsten!AH$2,IF(OR('Muur (vast + regelb 4032)'!K$8<D100,'Muur (vast + regelb 4032)'!K$8>E100),0,1),IF('Muur (vast + regelb 4032)'!AD$17=Lijsten!AH$3,IF(OR('Muur (vast + regelb 4032)'!K$10<D100,'Muur (vast + regelb 4032)'!K$10>E100),0,1),"")) -> 0 | C100: 98 | D100: 3978 | E100: 4017 | F100: 4009 | G100: 4128 | H100: 4058 | I100: 4097
A101: =IF('Muur (vast + regelb 4032)'!AD$17=Lijsten!AH$2,IF(OR('Muur (vast + regelb 4032)'!K$8<D101,'Muur (vast + regelb 4032)'!K$8>E101),0,1),IF('Muur (vast + regelb 4032)'!AD$17=Lijsten!AH$3,IF(OR('Muur (vast + regelb 4032)'!K$10<D101,'Muur (vast + regelb 4032)'!K$10>E101),0,1),"")) -> 0 | C101: 99 | D101: 4018 | E101: 4057 | F101: 4049 | G101: 4168 | H101: 4098 | I101: 4137
A102: =IF('Muur (vast + regelb 4032)'!AD$17=Lijsten!AH$2,IF(OR('Muur (vast + regelb 4032)'!K$8<D102,'Muur (vast + regelb 4032)'!K$8>E102),0,1),IF('Muur (vast + regelb 4032)'!AD$17=Lijsten!AH$3,IF(OR('Muur (vast + regelb 4032)'!K$10<D102,'Muur (vast + regelb 4032)'!K$10>E102),0,1),"")) -> 0 | C102: 100 | D102: 4058 | E102: 4097 | F102: 4089 | G102: 4208 | H102: 4138 | I102: 4177
A103: =IF('Muur (vast + regelb 4032)'!AD$17=Lijsten!AH$2,IF(OR('Muur (vast + regelb 4032)'!K$8<D103,'Muur (vast + regelb 4032)'!K$8>E103),0,1),IF('Muur (vast + regelb 4032)'!AD$17=Lijsten!AH$3,IF(OR('Muur (vast + regelb 4032)'!K$10<D103,'Muur (vast + regelb 4032)'!K$10>E103),0,1),"")) -> 0 | C103: 101 | D103: 4098 | E103: 4137 | F103: 4129 | G103: 4248 | H103: 4178 | I103: 4217
A104: =IF('Muur (vast + regelb 4032)'!AD$17=Lijsten!AH$2,IF(OR('Muur (vast + regelb 4032)'!K$8<D104,'Muur (vast + regelb 4032)'!K$8>E104),0,1),IF('Muur (vast + regelb 4032)'!AD$17=Lijsten!AH$3,IF(OR('Muur (vast + regelb 4032)'!K$10<D104,'Muur (vast + regelb 4032)'!K$10>E104),0,1),"")) -> 0 | C104: 102 | D104: 4138 | E104: 4177 | F104: 4169 | G104: 4288 | H104: 4218 | I104: 4257
A105: =IF('Muur (vast + regelb 4032)'!AD$17=Lijsten!AH$2,IF(OR('Muur (vast + regelb 4032)'!K$8<D105,'Muur (vast + regelb 4032)'!K$8>E105),0,1),IF('Muur (vast + regelb 4032)'!AD$17=Lijsten!AH$3,IF(OR('Muur (vast + regelb 4032)'!K$10<D105,'Muur (vast + regelb 4032)'!K$10>E105),0,1),"")) -> 0 | C105: 103 | D105: 4178 | E105: 4217 | F105: 4209 | G105: 4328 | H105: 4258 | I105: 4297
A106: =IF('Muur (vast + regelb 4032)'!AD$17=Lijsten!AH$2,IF(OR('Muur (vast + regelb 4032)'!K$8<D106,'Muur (vast + regelb 4032)'!K$8>E106),0,1),IF('Muur (vast + regelb 4032)'!AD$17=Lijsten!AH$3,IF(OR('Muur (vast + regelb 4032)'!K$10<D106,'Muur (vast + regelb 4032)'!K$10>E106),0,1),"")) -> 0 | C106: 104 | D106: 4218 | E106: 4257 | F106: 4249 | G106: 4368 | H106: 4298 | I106: 4337
A107: =IF('Muur (vast + regelb 4032)'!AD$17=Lijsten!AH$2,IF(OR('Muur (vast + regelb 4032)'!K$8<D107,'Muur (vast + regelb 4032)'!K$8>E107),0,1),IF('Muur (vast + regelb 4032)'!AD$17=Lijsten!AH$3,IF(OR('Muur (vast + regelb 4032)'!K$10<D107,'Muur (vast + regelb 4032)'!K$10>E107),0,1),"")) -> 0 | C107: 105 | D107: 4258 | E107: 4297 | F107: 4289 | G107: 4408 | H107: 4338 | I107: 4377
A108: =IF('Muur (vast + regelb 4032)'!AD$17=Lijsten!AH$2,IF(OR('Muur (vast + regelb 4032)'!K$8<D108,'Muur (vast + regelb 4032)'!K$8>E108),0,1),IF('Muur (vast + regelb 4032)'!AD$17=Lijsten!AH$3,IF(OR('Muur (vast + regelb 4032)'!K$10<D108,'Muur (vast + regelb 4032)'!K$10>E108),0,1),"")) -> 0 | C108: 106 | D108: 4298 | E108: 4337 | F108: 4329 | G108: 4448 | H108: 4378 | I108: 4417
A109: =IF('Muur (vast + regelb 4032)'!AD$17=Lijsten!AH$2,IF(OR('Muur (vast + regelb 4032)'!K$8<D109,'Muur (vast + regelb 4032)'!K$8>E109),0,1),IF('Muur (vast + regelb 4032)'!AD$17=Lijsten!AH$3,IF(OR('Muur (vast + regelb 4032)'!K$10<D109,'Muur (vast + regelb 4032)'!K$10>E109),0,1),"")) -> 0 | C109: 107 | D109: 4338 | E109: 4377 | F109: 4369 | G109: 4488 | H109: 4418 | I109: 4457
A110: =IF('Muur (vast + regelb 4032)'!AD$17=Lijsten!AH$2,IF(OR('Muur (vast + regelb 4032)'!K$8<D110,'Muur (vast + regelb 4032)'!K$8>E110),0,1),IF('Muur (vast + regelb 4032)'!AD$17=Lijsten!AH$3,IF(OR('Muur (vast + regelb 4032)'!K$10<D110,'Muur (vast + regelb 4032)'!K$10>E110),0,1),"")) -> 0 | C110: 108 | D110: 4378 | E110: 4417 | F110: 4409 | G110: 4528 | H110: 4458 | I110: 4497
A111: =IF('Muur (vast + regelb 4032)'!AD$17=Lijsten!AH$2,IF(OR('Muur (vast + regelb 4032)'!K$8<D111,'Muur (vast + regelb 4032)'!K$8>E111),0,1),IF('Muur (vast + regelb 4032)'!AD$17=Lijsten!AH$3,IF(OR('Muur (vast + regelb 4032)'!K$10<D111,'Muur (vast + regelb 4032)'!K$10>E111),0,1),"")) -> 0 | C111: 109 | D111: 4418 | E111: 4457 | F111: 4449 | G111: 4568 | H111: 4498 | I111: 4537
A112: =IF('Muur (vast + regelb 4032)'!AD$17=Lijsten!AH$2,IF(OR('Muur (vast + regelb 4032)'!K$8<D112,'Muur (vast + regelb 4032)'!K$8>E112),0,1),IF('Muur (vast + regelb 4032)'!AD$17=Lijsten!AH$3,IF(OR('Muur (vast + regelb 4032)'!K$10<D112,'Muur (vast + regelb 4032)'!K$10>E112),0,1),"")) -> 0 | C112: 110 | D112: 4458 | E112: 4497 | F112: 4489 | G112: 4608 | H112: 4538 | I112: 4577
A113: =IF('Muur (vast + regelb 4032)'!AD$17=Lijsten!AH$2,IF(OR('Muur (vast + regelb 4032)'!K$8<D113,'Muur (vast + regelb 4032)'!K$8>E113),0,1),IF('Muur (vast + regelb 4032)'!AD$17=Lijsten!AH$3,IF(OR('Muur (vast + regelb 4032)'!K$10<D113,'Muur (vast + regelb 4032)'!K$10>E113),0,1),"")) -> 0 | C113: 111 | D113: 4498 | E113: 4537 | F113: 4529 | G113: 4648 | H113: 4578 | I113: 4617
A114: =IF('Muur (vast + regelb 4032)'!AD$17=Lijsten!AH$2,IF(OR('Muur (vast + regelb 4032)'!K$8<D114,'Muur (vast + regelb 4032)'!K$8>E114),0,1),IF('Muur (vast + regelb 4032)'!AD$17=Lijsten!AH$3,IF(OR('Muur (vast + regelb 4032)'!K$10<D114,'Muur (vast + regelb 4032)'!K$10>E114),0,1),"")) -> 0 | C114: 112 | D114: 4538 | E114: 4577 | F114: 4569 | G114: 4688 | H114: 4618 | I114: 4657
A115: =IF('Muur (vast + regelb 4032)'!AD$17=Lijsten!AH$2,IF(OR('Muur (vast + regelb 4032)'!K$8<D115,'Muur (vast + regelb 4032)'!K$8>E115),0,1),IF('Muur (vast + regelb 4032)'!AD$17=Lijsten!AH$3,IF(OR('Muur (vast + regelb 4032)'!K$10<D115,'Muur (vast + regelb 4032)'!K$10>E115),0,1),"")) -> 0 | C115: 113 | D115: 4578 | E115: 4617 | F115: 4609 | G115: 4728 | H115: 4658 | I115: 4697
A116: =IF('Muur (vast + regelb 4032)'!AD$17=Lijsten!AH$2,IF(OR('Muur (vast + regelb 4032)'!K$8<D116,'Muur (vast + regelb 4032)'!K$8>E116),0,1),IF('Muur (vast + regelb 4032)'!AD$17=Lijsten!AH$3,IF(OR('Muur (vast + regelb 4032)'!K$10<D116,'Muur (vast + regelb 4032)'!K$10>E116),0,1),"")) -> 0 | C116: 114 | D116: 4618 | E116: 4657 | F116: 4649 | G116: 4768 | H116: 4698 | I116: 4737
A117: =IF('Muur (vast + regelb 4032)'!AD$17=Lijsten!AH$2,IF(OR('Muur (vast + regelb 4032)'!K$8<D117,'Muur (vast + regelb 4032)'!K$8>E117),0,1),IF('Muur (vast + regelb 4032)'!AD$17=Lijsten!AH$3,IF(OR('Muur (vast + regelb 4032)'!K$10<D117,'Muur (vast + regelb 4032)'!K$10>E117),0,1),"")) -> 0 | C117: 115 | D117: 4658 | E117: 4697 | F117: 4689 | G117: 4808 | H117: 4738 | I117: 4777
A118: =IF('Muur (vast + regelb 4032)'!AD$17=Lijsten!AH$2,IF(OR('Muur (vast + regelb 4032)'!K$8<D118,'Muur (vast + regelb 4032)'!K$8>E118),0,1),IF('Muur (vast + regelb 4032)'!AD$17=Lijsten!AH$3,IF(OR('Muur (vast + regelb 4032)'!K$10<D118,'Muur (vast + regelb 4032)'!K$10>E118),0,1),"")) -> 0 | C118: 116 | D118: 4698 | E118: 4737 | F118: 4729 | G118: 4848 | H118: 4778 | I118: 4817
A119: =IF('Muur (vast + regelb 4032)'!AD$17=Lijsten!AH$2,IF(OR('Muur (vast + regelb 4032)'!K$8<D119,'Muur (vast + regelb 4032)'!K$8>E119),0,1),IF('Muur (vast + regelb 4032)'!AD$17=Lijsten!AH$3,IF(OR('Muur (vast + regelb 4032)'!K$10<D119,'Muur (vast + regelb 4032)'!K$10>E119),0,1),"")) -> 0 | C119: 117 | D119: 4738 | E119: 4777 | F119: 4769 | G119: 4888 | H119: 4818 | I119: 4857
A120: =IF('Muur (vast + regelb 4032)'!AD$17=Lijsten!AH$2,IF(OR('Muur (vast + regelb 4032)'!K$8<D120,'Muur (vast + regelb 4032)'!K$8>E120),0,1),IF('Muur (vast + regelb 4032)'!AD$17=Lijsten!AH$3,IF(OR('Muur (vast + regelb 4032)'!K$10<D120,'Muur (vast + regelb 4032)'!K$10>E120),0,1),"")) -> 0 | C120: 118 | D120: 4778 | E120: 4817 | F120: 4809 | G120: 4928 | H120: 4858 | I120: 4897
A121: =IF('Muur (vast + regelb 4032)'!AD$17=Lijsten!AH$2,IF(OR('Muur (vast + regelb 4032)'!K$8<D121,'Muur (vast + regelb 4032)'!K$8>E121),0,1),IF('Muur (vast + regelb 4032)'!AD$17=Lijsten!AH$3,IF(OR('Muur (vast + regelb 4032)'!K$10<D121,'Muur (vast + regelb 4032)'!K$10>E121),0,1),"")) -> 0 | C121: 119 | D121: 4818 | E121: 4857 | F121: 4849 | G121: 4968 | H121: 4898 | I121: 4937
A122: =IF('Muur (vast + regelb 4032)'!AD$17=Lijsten!AH$2,IF(OR('Muur (vast + regelb 4032)'!K$8<D122,'Muur (vast + regelb 4032)'!K$8>E122),0,1),IF('Muur (vast + regelb 4032)'!AD$17=Lijsten!AH$3,IF(OR('Muur (vast + regelb 4032)'!K$10<D122,'Muur (vast + regelb 4032)'!K$10>E122),0,1),"")) -> 0 | C122: 120 | D122: 4858 | E122: 4897 | F122: 4889 | G122: 5008 | H122: 4938 | I122: 4977
A123: =IF('Muur (vast + regelb 4032)'!AD$17=Lijsten!AH$2,IF(OR('Muur (vast + regelb 4032)'!K$8<D123,'Muur (vast + regelb 4032)'!K$8>E123),0,1),IF('Muur (vast + regelb 4032)'!AD$17=Lijsten!AH$3,IF(OR('Muur (vast + regelb 4032)'!K$10<D123,'Muur (vast + regelb 4032)'!K$10>E123),0,1),"")) -> 0 | C123: 121 | D123: 4898 | E123: 4937 | F123: 4929 | G123: 5048 | H123: 4978 | I123: 5017
A124: =IF('Muur (vast + regelb 4032)'!AD$17=Lijsten!AH$2,IF(OR('Muur (vast + regelb 4032)'!K$8<D124,'Muur (vast + regelb 4032)'!K$8>E124),0,1),IF('Muur (vast + regelb 4032)'!AD$17=Lijsten!AH$3,IF(OR('Muur (vast + regelb 4032)'!K$10<D124,'Muur (vast + regelb 4032)'!K$10>E124),0,1),"")) -> 0 | C124: 122 | D124: 4938 | E124: 4977 | F124: 4969 | G124: 5088 | H124: 5018 | I124: 5057
A125: =IF('Muur (vast + regelb 4032)'!AD$17=Lijsten!AH$2,IF(OR('Muur (vast + regelb 4032)'!K$8<D125,'Muur (vast + regelb 4032)'!K$8>E125),0,1),IF('Muur (vast + regelb 4032)'!AD$17=Lijsten!AH$3,IF(OR('Muur (vast + regelb 4032)'!K$10<D125,'Muur (vast + regelb 4032)'!K$10>E125),0,1),"")) -> 0 | C125: 123 | D125: 4978 | E125: 5017 | F125: 5009 | G125: 5128 | H125: 5058 | I125: 5097
A126: =IF('Muur (vast + regelb 4032)'!AD$17=Lijsten!AH$2,IF(OR('Muur (vast + regelb 4032)'!K$8<D126,'Muur (vast + regelb 4032)'!K$8>E126),0,1),IF('Muur (vast + regelb 4032)'!AD$17=Lijsten!AH$3,IF(OR('Muur (vast + regelb 4032)'!K$10<D126,'Muur (vast + regelb 4032)'!K$10>E126),0,1),"")) -> 0 | C126: 124 | D126: 5018 | E126: 5057 | F126: 5049 | G126: 5168 | H126: 5098 | I126: 5137
A127: =IF('Muur (vast + regelb 4032)'!AD$17=Lijsten!AH$2,IF(OR('Muur (vast + regelb 4032)'!K$8<D127,'Muur (vast + regelb 4032)'!K$8>E127),0,1),IF('Muur (vast + regelb 4032)'!AD$17=Lijsten!AH$3,IF(OR('Muur (vast + regelb 4032)'!K$10<D127,'Muur (vast + regelb 4032)'!K$10>E127),0,1),"")) -> 0 | C127: 125 | D127: 5058 | E127: 5097 | F127: 5089 | G127: 5208 | H127: 5138 | I127: 5177
A128: =IF('Muur (vast + regelb 4032)'!AD$17=Lijsten!AH$2,IF(OR('Muur (vast + regelb 4032)'!K$8<D128,'Muur (vast + regelb 4032)'!K$8>E128),0,1),IF('Muur (vast + regelb 4032)'!AD$17=Lijsten!AH$3,IF(OR('Muur (vast + regelb 4032)'!K$10<D128,'Muur (vast + regelb 4032)'!K$10>E128),0,1),"")) -> 0 | C128: 126 | D128: 5098 | E128: 5137 | F128: 5129 | G128: 5248 | H128: 5178 | I128: 5217
A129: =IF('Muur (vast + regelb 4032)'!AD$17=Lijsten!AH$2,IF(OR('Muur (vast + regelb 4032)'!K$8<D129,'Muur (vast + regelb 4032)'!K$8>E129),0,1),IF('Muur (vast + regelb 4032)'!AD$17=Lijsten!AH$3,IF(OR('Muur (vast + regelb 4032)'!K$10<D129,'Muur (vast + regelb 4032)'!K$10>E129),0,1),"")) -> 0 | C129: 127 | D129: 5138 | E129: 5177 | F129: 5169 | G129: 5288 | H129: 5218 | I129: 5257
A130: =IF('Muur (vast + regelb 4032)'!AD$17=Lijsten!AH$2,IF(OR('Muur (vast + regelb 4032)'!K$8<D130,'Muur (vast + regelb 4032)'!K$8>E130),0,1),IF('Muur (vast + regelb 4032)'!AD$17=Lijsten!AH$3,IF(OR('Muur (vast + regelb 4032)'!K$10<D130,'Muur (vast + regelb 4032)'!K$10>E130),0,1),"")) -> 0 | C130: 128 | D130: 5178 | E130: 5217 | F130: 5209 | G130: 5328 | H130: 5258 | I130: 5297
A131: =IF('Muur (vast + regelb 4032)'!AD$17=Lijsten!AH$2,IF(OR('Muur (vast + regelb 4032)'!K$8<D131,'Muur (vast + regelb 4032)'!K$8>E131),0,1),IF('Muur (vast + regelb 4032)'!AD$17=Lijsten!AH$3,IF(OR('Muur (vast + regelb 4032)'!K$10<D131,'Muur (vast + regelb 4032)'!K$10>E131),0,1),"")) -> 0 | C131: 129 | D131: 5218 | E131: 5257 | F131: 5249 | G131: 5368 | H131: 5298 | I131: 5337
A132: =IF('Muur (vast + regelb 4032)'!AD$17=Lijsten!AH$2,IF(OR('Muur (vast + regelb 4032)'!K$8<D132,'Muur (vast + regelb 4032)'!K$8>E132),0,1),IF('Muur (vast + regelb 4032)'!AD$17=Lijsten!AH$3,IF(OR('Muur (vast + regelb 4032)'!K$10<D132,'Muur (vast + regelb 4032)'!K$10>E132),0,1),"")) -> 0 | C132: 130 | D132: 5258 | E132: 5297 | F132: 5289 | G132: 5408 | H132: 5338 | I132: 5377
A133: =IF('Muur (vast + regelb 4032)'!AD$17=Lijsten!AH$2,IF(OR('Muur (vast + regelb 4032)'!K$8<D133,'Muur (vast + regelb 4032)'!K$8>E133),0,1),IF('Muur (vast + regelb 4032)'!AD$17=Lijsten!AH$3,IF(OR('Muur (vast + regelb 4032)'!K$10<D133,'Muur (vast + regelb 4032)'!K$10>E133),0,1),"")) -> 0 | C133: 131 | D133: 5298 | E133: 5337 | F133: 5329 | G133: 5448 | H133: 5378 | I133: 5417
A134: =IF('Muur (vast + regelb 4032)'!AD$17=Lijsten!AH$2,IF(OR('Muur (vast + regelb 4032)'!K$8<D134,'Muur (vast + regelb 4032)'!K$8>E134),0,1),IF('Muur (vast + regelb 4032)'!AD$17=Lijsten!AH$3,IF(OR('Muur (vast + regelb 4032)'!K$10<D134,'Muur (vast + regelb 4032)'!K$10>E134),0,1),"")) -> 0 | C134: 132 | D134: 5338 | E134: =D135-1 -> 5377 | F134: =(18*C134)+22*(C134-1)+80+31 -> 5369 | G134: =D135-1+80+31 -> 5488 | H134: =D136 -> 5418 | I134: =E136 -> 5457
A135: =IF('Muur (vast + regelb 4032)'!AD$17=Lijsten!AH$2,IF(OR('Muur (vast + regelb 4032)'!K$8<D135,'Muur (vast + regelb 4032)'!K$8>E135),0,1),IF('Muur (vast + regelb 4032)'!AD$17=Lijsten!AH$3,IF(OR('Muur (vast + regelb 4032)'!K$10<D135,'Muur (vast + regelb 4032)'!K$10>E135),0,1),"")) -> 0 | C135: 133 | D135: =D134+40 -> 5378 | E135: 5417 | F135: 5409 | G135: 5528 | H135: 5458 | I135: 5497
A136: =IF('Muur (vast + regelb 4032)'!AD$17=Lijsten!AH$2,IF(OR('Muur (vast + regelb 4032)'!K$8<D136,'Muur (vast + regelb 4032)'!K$8>E136),0,1),IF('Muur (vast + regelb 4032)'!AD$17=Lijsten!AH$3,IF(OR('Muur (vast + regelb 4032)'!K$10<D136,'Muur (vast + regelb 4032)'!K$10>E136),0,1),"")) -> 0 | C136: 134 | D136: 5418 | E136: 5457 | F136: 5449 | G136: 5568 | H136: 5498 | I136: 5537
A137: =IF('Muur (vast + regelb 4032)'!AD$17=Lijsten!AH$2,IF(OR('Muur (vast + regelb 4032)'!K$8<D137,'Muur (vast + regelb 4032)'!K$8>E137),0,1),IF('Muur (vast + regelb 4032)'!AD$17=Lijsten!AH$3,IF(OR('Muur (vast + regelb 4032)'!K$10<D137,'Muur (vast + regelb 4032)'!K$10>E137),0,1),"")) -> 0 | C137: 135 | D137: 5458 | E137: 5497 | F137: 5489 | G137: 5608 | H137: 5538 | I137: 5577
A138: =IF('Muur (vast + regelb 4032)'!AD$17=Lijsten!AH$2,IF(OR('Muur (vast + regelb 4032)'!K$8<D138,'Muur (vast + regelb 4032)'!K$8>E138),0,1),IF('Muur (vast + regelb 4032)'!AD$17=Lijsten!AH$3,IF(OR('Muur (vast + regelb 4032)'!K$10<D138,'Muur (vast + regelb 4032)'!K$10>E138),0,1),"")) -> 0 | C138: 136 | D138: 5498 | E138: 5537 | F138: 5529 | G138: 5648 | H138: 5578 | I138: 5617
A139: =IF('Muur (vast + regelb 4032)'!AD$17=Lijsten!AH$2,IF(OR('Muur (vast + regelb 4032)'!K$8<D139,'Muur (vast + regelb 4032)'!K$8>E139),0,1),IF('Muur (vast + regelb 4032)'!AD$17=Lijsten!AH$3,IF(OR('Muur (vast + regelb 4032)'!K$10<D139,'Muur (vast + regelb 4032)'!K$10>E139),0,1),"")) -> 0 | C139: 137 | D139: 5538 | E139: 5577 | F139: 5569 | G139: 5688 | H139: 5618 | I139: 5657
A140: =IF('Muur (vast + regelb 4032)'!AD$17=Lijsten!AH$2,IF(OR('Muur (vast + regelb 4032)'!K$8<D140,'Muur (vast + regelb 4032)'!K$8>E140),0,1),IF('Muur (vast + regelb 4032)'!AD$17=Lijsten!AH$3,IF(OR('Muur (vast + regelb 4032)'!K$10<D140,'Muur (vast + regelb 4032)'!K$10>E140),0,1),"")) -> 0 | C140: 138 | D140: 5578 | E140: 5617 | F140: 5609 | G140: 5728 | H140: 5658 | I140: 5697
A141: =IF('Muur (vast + regelb 4032)'!AD$17=Lijsten!AH$2,IF(OR('Muur (vast + regelb 4032)'!K$8<D141,'Muur (vast + regelb 4032)'!K$8>E141),0,1),IF('Muur (vast + regelb 4032)'!AD$17=Lijsten!AH$3,IF(OR('Muur (vast + regelb 4032)'!K$10<D141,'Muur (vast + regelb 4032)'!K$10>E141),0,1),"")) -> 0 | C141: 139 | D141: 5618 | E141: 5657 | F141: 5649 | G141: 5768 | H141: 5698 | I141: 5737
A142: =IF('Muur (vast + regelb 4032)'!AD$17=Lijsten!AH$2,IF(OR('Muur (vast + regelb 4032)'!K$8<D142,'Muur (vast + regelb 4032)'!K$8>E142),0,1),IF('Muur (vast + regelb 4032)'!AD$17=Lijsten!AH$3,IF(OR('Muur (vast + regelb 4032)'!K$10<D142,'Muur (vast + regelb 4032)'!K$10>E142),0,1),"")) -> 0 | C142: 140 | D142: 5658 | E142: 5697 | F142: 5689 | G142: 5808 | H142: 5738 | I142: 5777
A143: =IF('Muur (vast + regelb 4032)'!AD$17=Lijsten!AH$2,IF(OR('Muur (vast + regelb 4032)'!K$8<D143,'Muur (vast + regelb 4032)'!K$8>E143),0,1),IF('Muur (vast + regelb 4032)'!AD$17=Lijsten!AH$3,IF(OR('Muur (vast + regelb 4032)'!K$10<D143,'Muur (vast + regelb 4032)'!K$10>E143),0,1),"")) -> 0 | C143: 141 | D143: 5698 | E143: 5737 | F143: 5729 | G143: 5848 | H143: 5778 | I143: 5817
A144: =IF('Muur (vast + regelb 4032)'!AD$17=Lijsten!AH$2,IF(OR('Muur (vast + regelb 4032)'!K$8<D144,'Muur (vast + regelb 4032)'!K$8>E144),0,1),IF('Muur (vast + regelb 4032)'!AD$17=Lijsten!AH$3,IF(OR('Muur (vast + regelb 4032)'!K$10<D144,'Muur (vast + regelb 4032)'!K$10>E144),0,1),"")) -> 0 | C144: 142 | D144: 5738 | E144: 5777 | F144: 5769 | G144: 5888 | H144: 5818 | I144: 5857
A145: =IF('Muur (vast + regelb 4032)'!AD$17=Lijsten!AH$2,IF(OR('Muur (vast + regelb 4032)'!K$8<D145,'Muur (vast + regelb 4032)'!K$8>E145),0,1),IF('Muur (vast + regelb 4032)'!AD$17=Lijsten!AH$3,IF(OR('Muur (vast + regelb 4032)'!K$10<D145,'Muur (vast + regelb 4032)'!K$10>E145),0,1),"")) -> 0 | C145: 143 | D145: 5778 | E145: 5817 | F145: 5809 | G145: 5928 | H145: 5858 | I145: 5897
A146: =IF('Muur (vast + regelb 4032)'!AD$17=Lijsten!AH$2,IF(OR('Muur (vast + regelb 4032)'!K$8<D146,'Muur (vast + regelb 4032)'!K$8>E146),0,1),IF('Muur (vast + regelb 4032)'!AD$17=Lijsten!AH$3,IF(OR('Muur (vast + regelb 4032)'!K$10<D146,'Muur (vast + regelb 4032)'!K$10>E146),0,1),"")) -> 0 | C146: 144 | D146: 5818 | E146: 5857 | F146: 5849 | G146: 5968 | H146: 5898 | I146: 5937
A147: =IF('Muur (vast + regelb 4032)'!AD$17=Lijsten!AH$2,IF(OR('Muur (vast + regelb 4032)'!K$8<D147,'Muur (vast + regelb 4032)'!K$8>E147),0,1),IF('Muur (vast + regelb 4032)'!AD$17=Lijsten!AH$3,IF(OR('Muur (vast + regelb 4032)'!K$10<D147,'Muur (vast + regelb 4032)'!K$10>E147),0,1),"")) -> 0 | C147: 145 | D147: 5858 | E147: 5897 | F147: 5889 | G147: 6008 | H147: 5938 | I147: 5977
A148: =IF('Muur (vast + regelb 4032)'!AD$17=Lijsten!AH$2,IF(OR('Muur (vast + regelb 4032)'!K$8<D148,'Muur (vast + regelb 4032)'!K$8>E148),0,1),IF('Muur (vast + regelb 4032)'!AD$17=Lijsten!AH$3,IF(OR('Muur (vast + regelb 4032)'!K$10<D148,'Muur (vast + regelb 4032)'!K$10>E148),0,1),"")) -> 0 | C148: 146 | D148: 5898 | E148: 5937 | F148: 5929 | G148: 6048 | H148: 5978 | I148: 6017
A149: =IF('Muur (vast + regelb 4032)'!AD$17=Lijsten!AH$2,IF(OR('Muur (vast + regelb 4032)'!K$8<D149,'Muur (vast + regelb 4032)'!K$8>E149),0,1),IF('Muur (vast + regelb 4032)'!AD$17=Lijsten!AH$3,IF(OR('Muur (vast + regelb 4032)'!K$10<D149,'Muur (vast + regelb 4032)'!K$10>E149),0,1),"")) -> 0 | C149: 147 | D149: 5938 | E149: 5977 | F149: 5969 | G149: 6088 | H149: 6018 | I149: 6057
A150: =IF('Muur (vast + regelb 4032)'!AD$17=Lijsten!AH$2,IF(OR('Muur (vast + regelb 4032)'!K$8<D150,'Muur (vast + regelb 4032)'!K$8>E150),0,1),IF('Muur (vast + regelb 4032)'!AD$17=Lijsten!AH$3,IF(OR('Muur (vast + regelb 4032)'!K$10<D150,'Muur (vast + regelb 4032)'!K$10>E150),0,1),"")) -> 0 | C150: 148 | D150: 5978 | E150: 6017 | F150: 6009 | G150: 6128 | H150: 6058 | I150: 6097
A151: =IF('Muur (vast + regelb 4032)'!AD$17=Lijsten!AH$2,IF(OR('Muur (vast + regelb 4032)'!K$8<D151,'Muur (vast + regelb 4032)'!K$8>E151),0,1),IF('Muur (vast + regelb 4032)'!AD$17=Lijsten!AH$3,IF(OR('Muur (vast + regelb 4032)'!K$10<D151,'Muur (vast + regelb 4032)'!K$10>E151),0,1),"")) -> 0 | C151: 149 | D151: 6018 | E151: 6057 | F151: 6049 | G151: 6168 | H151: 6098 | I151: 6137
A152: =IF('Muur (vast + regelb 4032)'!AD$17=Lijsten!AH$2,IF(OR('Muur (vast + regelb 4032)'!K$8<D152,'Muur (vast + regelb 4032)'!K$8>E152),0,1),IF('Muur (vast + regelb 4032)'!AD$17=Lijsten!AH$3,IF(OR('Muur (vast + regelb 4032)'!K$10<D152,'Muur (vast + regelb 4032)'!K$10>E152),0,1),"")) -> 0 | C152: 150 | D152: 6058 | E152: 6097 | F152: 6089 | G152: 6208 | H152: 6138 | I152: 6177
A153: =IF('Muur (vast + regelb 4032)'!AD$17=Lijsten!AH$2,IF(OR('Muur (vast + regelb 4032)'!K$8<D153,'Muur (vast + regelb 4032)'!K$8>E153),0,1),IF('Muur (vast + regelb 4032)'!AD$17=Lijsten!AH$3,IF(OR('Muur (vast + regelb 4032)'!K$10<D153,'Muur (vast + regelb 4032)'!K$10>E153),0,1),"")) -> 0 | C153: 151 | D153: 6098 | E153: 6137 | F153: 6129 | G153: 6248 | H153: 6178 | I153: 6217
A154: =IF('Muur (vast + regelb 4032)'!AD$17=Lijsten!AH$2,IF(OR('Muur (vast + regelb 4032)'!K$8<D154,'Muur (vast + regelb 4032)'!K$8>E154),0,1),IF('Muur (vast + regelb 4032)'!AD$17=Lijsten!AH$3,IF(OR('Muur (vast + regelb 4032)'!K$10<D154,'Muur (vast + regelb 4032)'!K$10>E154),0,1),"")) -> 0 | C154: 152 | D154: 6138 | E154: 6177 | F154: 6169 | G154: 6288 | H154: 6218 | I154: 6257
A155: =IF('Muur (vast + regelb 4032)'!AD$17=Lijsten!AH$2,IF(OR('Muur (vast + regelb 4032)'!K$8<D155,'Muur (vast + regelb 4032)'!K$8>E155),0,1),IF('Muur (vast + regelb 4032)'!AD$17=Lijsten!AH$3,IF(OR('Muur (vast + regelb 4032)'!K$10<D155,'Muur (vast + regelb 4032)'!K$10>E155),0,1),"")) -> 0 | C155: 153 | D155: 6178 | E155: 6217 | F155: 6209 | G155: 6328 | H155: 6258 | I155: 6297
A156: =IF('Muur (vast + regelb 4032)'!AD$17=Lijsten!AH$2,IF(OR('Muur (vast + regelb 4032)'!K$8<D156,'Muur (vast + regelb 4032)'!K$8>E156),0,1),IF('Muur (vast + regelb 4032)'!AD$17=Lijsten!AH$3,IF(OR('Muur (vast + regelb 4032)'!K$10<D156,'Muur (vast + regelb 4032)'!K$10>E156),0,1),"")) -> 0 | C156: 154 | D156: 6218 | E156: 6257 | F156: 6249 | G156: 6368 | H156: 6298 | I156: 6337
A157: =IF('Muur (vast + regelb 4032)'!AD$17=Lijsten!AH$2,IF(OR('Muur (vast + regelb 4032)'!K$8<D157,'Muur (vast + regelb 4032)'!K$8>E157),0,1),IF('Muur (vast + regelb 4032)'!AD$17=Lijsten!AH$3,IF(OR('Muur (vast + regelb 4032)'!K$10<D157,'Muur (vast + regelb 4032)'!K$10>E157),0,1),"")) -> 0 | C157: 155 | D157: 6258 | E157: 6297 | F157: 6289 | G157: 6408 | H157: 6338 | I157: 6377
A158: =IF('Muur (vast + regelb 4032)'!AD$17=Lijsten!AH$2,IF(OR('Muur (vast + regelb 4032)'!K$8<D158,'Muur (vast + regelb 4032)'!K$8>E158),0,1),IF('Muur (vast + regelb 4032)'!AD$17=Lijsten!AH$3,IF(OR('Muur (vast + regelb 4032)'!K$10<D158,'Muur (vast + regelb 4032)'!K$10>E158),0,1),"")) -> 0 | C158: 156 | D158: 6298 | E158: 6337 | F158: 6329 | G158: 6448 | H158: 6378 | I158: 6417
A159: =IF('Muur (vast + regelb 4032)'!AD$17=Lijsten!AH$2,IF(OR('Muur (vast + regelb 4032)'!K$8<D159,'Muur (vast + regelb 4032)'!K$8>E159),0,1),IF('Muur (vast + regelb 4032)'!AD$17=Lijsten!AH$3,IF(OR('Muur (vast + regelb 4032)'!K$10<D159,'Muur (vast + regelb 4032)'!K$10>E159),0,1),"")) -> 0 | C159: 157 | D159: 6338 | E159: 6377 | F159: 6369 | G159: 6488 | H159: 6418 | I159: 6457
A160: =IF('Muur (vast + regelb 4032)'!AD$17=Lijsten!AH$2,IF(OR('Muur (vast + regelb 4032)'!K$8<D160,'Muur (vast + regelb 4032)'!K$8>E160),0,1),IF('Muur (vast + regelb 4032)'!AD$17=Lijsten!AH$3,IF(OR('Muur (vast + regelb 4032)'!K$10<D160,'Muur (vast + regelb 4032)'!K$10>E160),0,1),"")) -> 0 | C160: 158 | D160: 6378 | E160: 6417 | F160: 6409 | G160: 6528 | H160: 6458 | I160: 6497
A161: =IF('Muur (vast + regelb 4032)'!AD$17=Lijsten!AH$2,IF(OR('Muur (vast + regelb 4032)'!K$8<D161,'Muur (vast + regelb 4032)'!K$8>E161),0,1),IF('Muur (vast + regelb 4032)'!AD$17=Lijsten!AH$3,IF(OR('Muur (vast + regelb 4032)'!K$10<D161,'Muur (vast + regelb 4032)'!K$10>E161),0,1),"")) -> 0 | C161: 159 | D161: 6418 | E161: 6457 | F161: 6449 | G161: 6568 | H161: 6498 | I161: 6537
A162: =IF('Muur (vast + regelb 4032)'!AD$17=Lijsten!AH$2,IF(OR('Muur (vast + regelb 4032)'!K$8<D162,'Muur (vast + regelb 4032)'!K$8>E162),0,1),IF('Muur (vast + regelb 4032)'!AD$17=Lijsten!AH$3,IF(OR('Muur (vast + regelb 4032)'!K$10<D162,'Muur (vast + regelb 4032)'!K$10>E162),0,1),"")) -> 0 | C162: 160 | D162: 6458 | E162: 6497 | F162: 6489 | G162: 6608 | H162: 6538 | I162: 6577
A163: =IF('Muur (vast + regelb 4032)'!AD$17=Lijsten!AH$2,IF(OR('Muur (vast + regelb 4032)'!K$8<D163,'Muur (vast + regelb 4032)'!K$8>E163),0,1),IF('Muur (vast + regelb 4032)'!AD$17=Lijsten!AH$3,IF(OR('Muur (vast + regelb 4032)'!K$10<D163,'Muur (vast + regelb 4032)'!K$10>E163),0,1),"")) -> 0 | C163: 161 | D163: 6498 | E163: 6537 | F163: 6529 | G163: 6648 | H163: 6578 | I163: 6617
A164: =IF('Muur (vast + regelb 4032)'!AD$17=Lijsten!AH$2,IF(OR('Muur (vast + regelb 4032)'!K$8<D164,'Muur (vast + regelb 4032)'!K$8>E164),0,1),IF('Muur (vast + regelb 4032)'!AD$17=Lijsten!AH$3,IF(OR('Muur (vast + regelb 4032)'!K$10<D164,'Muur (vast + regelb 4032)'!K$10>E164),0,1),"")) -> 0 | C164: 162 | D164: 6538 | E164: 6577 | F164: 6569 | G164: 6688 | H164: 6618 | I164: 6657
A165: =IF('Muur (vast + regelb 4032)'!AD$17=Lijsten!AH$2,IF(OR('Muur (vast + regelb 4032)'!K$8<D165,'Muur (vast + regelb 4032)'!K$8>E165),0,1),IF('Muur (vast + regelb 4032)'!AD$17=Lijsten!AH$3,IF(OR('Muur (vast + regelb 4032)'!K$10<D165,'Muur (vast + regelb 4032)'!K$10>E165),0,1),"")) -> 0 | C165: 163 | D165: 6578 | E165: 6617 | F165: 6609 | G165: 6728 | H165: 6658 | I165: 6697
A166: =IF('Muur (vast + regelb 4032)'!AD$17=Lijsten!AH$2,IF(OR('Muur (vast + regelb 4032)'!K$8<D166,'Muur (vast + regelb 4032)'!K$8>E166),0,1),IF('Muur (vast + regelb 4032)'!AD$17=Lijsten!AH$3,IF(OR('Muur (vast + regelb 4032)'!K$10<D166,'Muur (vast + regelb 4032)'!K$10>E166),0,1),"")) -> 0 | C166: 164 | D166: 6618 | E166: 6657 | F166: 6649 | G166: 6768 | H166: 6698 | I166: 6737
A167: =IF('Muur (vast + regelb 4032)'!AD$17=Lijsten!AH$2,IF(OR('Muur (vast + regelb 4032)'!K$8<D167,'Muur (vast + regelb 4032)'!K$8>E167),0,1),IF('Muur (vast + regelb 4032)'!AD$17=Lijsten!AH$3,IF(OR('Muur (vast + regelb 4032)'!K$10<D167,'Muur (vast + regelb 4032)'!K$10>E167),0,1),"")) -> 0 | C167: 165 | D167: 6658 | E167: 6697 | F167: 6689 | G167: 6808 | H167: 6738 | I167: 6777
A168: =IF('Muur (vast + regelb 4032)'!AD$17=Lijsten!AH$2,IF(OR('Muur (vast + regelb 4032)'!K$8<D168,'Muur (vast + regelb 4032)'!K$8>E168),0,1),IF('Muur (vast + regelb 4032)'!AD$17=Lijsten!AH$3,IF(OR('Muur (vast + regelb 4032)'!K$10<D168,'Muur (vast + regelb 4032)'!K$10>E168),0,1),"")) -> 0 | C168: 166 | D168: 6698 | E168: 6737 | F168: 6729 | G168: 6848 | H168: 6778 | I168: 6817
A169: =IF('Muur (vast + regelb 4032)'!AD$17=Lijsten!AH$2,IF(OR('Muur (vast + regelb 4032)'!K$8<D169,'Muur (vast + regelb 4032)'!K$8>E169),0,1),IF('Muur (vast + regelb 4032)'!AD$17=Lijsten!AH$3,IF(OR('Muur (vast + regelb 4032)'!K$10<D169,'Muur (vast + regelb 4032)'!K$10>E169),0,1),"")) -> 0 | C169: 167 | D169: 6738 | E169: 6777 | F169: 6769 | G169: 6888 | H169: 6818 | I169: 6857
A170: =IF('Muur (vast + regelb 4032)'!AD$17=Lijsten!AH$2,IF(OR('Muur (vast + regelb 4032)'!K$8<D170,'Muur (vast + regelb 4032)'!K$8>E170),0,1),IF('Muur (vast + regelb 4032)'!AD$17=Lijsten!AH$3,IF(OR('Muur (vast + regelb 4032)'!K$10<D170,'Muur (vast + regelb 4032)'!K$10>E170),0,1),"")) -> 0 | C170: 168 | D170: 6778 | E170: 6817 | F170: 6809 | G170: 6928 | H170: 6858 | I170: 6897
A171: =IF('Muur (vast + regelb 4032)'!AD$17=Lijsten!AH$2,IF(OR('Muur (vast + regelb 4032)'!K$8<D171,'Muur (vast + regelb 4032)'!K$8>E171),0,1),IF('Muur (vast + regelb 4032)'!AD$17=Lijsten!AH$3,IF(OR('Muur (vast + regelb 4032)'!K$10<D171,'Muur (vast + regelb 4032)'!K$10>E171),0,1),"")) -> 0 | C171: 169 | D171: 6818 | E171: 6857 | F171: 6849 | G171: 6968 | H171: 6898 | I171: 6937
A172: =IF('Muur (vast + regelb 4032)'!AD$17=Lijsten!AH$2,IF(OR('Muur (vast + regelb 4032)'!K$8<D172,'Muur (vast + regelb 4032)'!K$8>E172),0,1),IF('Muur (vast + regelb 4032)'!AD$17=Lijsten!AH$3,IF(OR('Muur (vast + regelb 4032)'!K$10<D172,'Muur (vast + regelb 4032)'!K$10>E172),0,1),"")) -> 0 | C172: 170 | D172: 6858 | E172: 6897 | F172: 6889 | G172: 7008 | H172: 6938 | I172: 6977
A173: =IF('Muur (vast + regelb 4032)'!AD$17=Lijsten!AH$2,IF(OR('Muur (vast + regelb 4032)'!K$8<D173,'Muur (vast + regelb 4032)'!K$8>E173),0,1),IF('Muur (vast + regelb 4032)'!AD$17=Lijsten!AH$3,IF(OR('Muur (vast + regelb 4032)'!K$10<D173,'Muur (vast + regelb 4032)'!K$10>E173),0,1),"")) -> 0 | C173: 171 | D173: 6898 | E173: 6937 | F173: 6929 | G173: 7048 | H173: 6978 | I173: 7017
A174: =IF('Muur (vast + regelb 4032)'!AD$17=Lijsten!AH$2,IF(OR('Muur (vast + regelb 4032)'!K$8<D174,'Muur (vast + regelb 4032)'!K$8>E174),0,1),IF('Muur (vast + regelb 4032)'!AD$17=Lijsten!AH$3,IF(OR('Muur (vast + regelb 4032)'!K$10<D174,'Muur (vast + regelb 4032)'!K$10>E174),0,1),"")) -> 0 | C174: 172 | D174: 6938 | E174: 6977 | F174: 6969 | G174: 7088 | H174: 7018 | I174: 7057
A175: =IF('Muur (vast + regelb 4032)'!AD$17=Lijsten!AH$2,IF(OR('Muur (vast + regelb 4032)'!K$8<D175,'Muur (vast + regelb 4032)'!K$8>E175),0,1),IF('Muur (vast + regelb 4032)'!AD$17=Lijsten!AH$3,IF(OR('Muur (vast + regelb 4032)'!K$10<D175,'Muur (vast + regelb 4032)'!K$10>E175),0,1),"")) -> 0 | C175: 173 | D175: 6978 | E175: 7017 | F175: 7009 | G175: 7128 | H175: 7058 | I175: 7097
A176: =IF('Muur (vast + regelb 4032)'!AD$17=Lijsten!AH$2,IF(OR('Muur (vast + regelb 4032)'!K$8<D176,'Muur (vast + regelb 4032)'!K$8>E176),0,1),IF('Muur (vast + regelb 4032)'!AD$17=Lijsten!AH$3,IF(OR('Muur (vast + regelb 4032)'!K$10<D176,'Muur (vast + regelb 4032)'!K$10>E176),0,1),"")) -> 0 | C176: 174 | D176: 7018 | E176: 7057 | F176: 7049 | G176: 7168 | H176: 7098 | I176: 7137
A177: =IF('Muur (vast + regelb 4032)'!AD$17=Lijsten!AH$2,IF(OR('Muur (vast + regelb 4032)'!K$8<D177,'Muur (vast + regelb 4032)'!K$8>E177),0,1),IF('Muur (vast + regelb 4032)'!AD$17=Lijsten!AH$3,IF(OR('Muur (vast + regelb 4032)'!K$10<D177,'Muur (vast + regelb 4032)'!K$10>E177),0,1),"")) -> 0 | C177: 175 | D177: 7058 | E177: 7097 | F177: 7089 | G177: 7208 | H177: 7138 | I177: 7177
A178: =IF('Muur (vast + regelb 4032)'!AD$17=Lijsten!AH$2,IF(OR('Muur (vast + regelb 4032)'!K$8<D178,'Muur (vast + regelb 4032)'!K$8>E178),0,1),IF('Muur (vast + regelb 4032)'!AD$17=Lijsten!AH$3,IF(OR('Muur (vast + regelb 4032)'!K$10<D178,'Muur (vast + regelb 4032)'!K$10>E178),0,1),"")) -> 0 | C178: 176 | D178: 7098 | E178: 7137 | F178: 7129 | G178: 7248 | H178: 7178 | I178: 7217
A179: =IF('Muur (vast + regelb 4032)'!AD$17=Lijsten!AH$2,IF(OR('Muur (vast + regelb 4032)'!K$8<D179,'Muur (vast + regelb 4032)'!K$8>E179),0,1),IF('Muur (vast + regelb 4032)'!AD$17=Lijsten!AH$3,IF(OR('Muur (vast + regelb 4032)'!K$10<D179,'Muur (vast + regelb 4032)'!K$10>E179),0,1),"")) -> 0 | C179: 177 | D179: 7138 | E179: 7177 | F179: 7169 | G179: 7288 | H179: 7218 | I179: 7257
A180: =IF('Muur (vast + regelb 4032)'!AD$17=Lijsten!AH$2,IF(OR('Muur (vast + regelb 4032)'!K$8<D180,'Muur (vast + regelb 4032)'!K$8>E180),0,1),IF('Muur (vast + regelb 4032)'!AD$17=Lijsten!AH$3,IF(OR('Muur (vast + regelb 4032)'!K$10<D180,'Muur (vast + regelb 4032)'!K$10>E180),0,1),"")) -> 0 | C180: 178 | D180: 7178 | E180: 7217 | F180: 7209 | G180: 7328 | H180: 7258 | I180: 7297
A181: =IF('Muur (vast + regelb 4032)'!AD$17=Lijsten!AH$2,IF(OR('Muur (vast + regelb 4032)'!K$8<D181,'Muur (vast + regelb 4032)'!K$8>E181),0,1),IF('Muur (vast + regelb 4032)'!AD$17=Lijsten!AH$3,IF(OR('Muur (vast + regelb 4032)'!K$10<D181,'Muur (vast + regelb 4032)'!K$10>E181),0,1),"")) -> 0 | C181: 179 | D181: 7218 | E181: 7257 | F181: 7249 | G181: 7368 | H181: 7298 | I181: 7337
A182: =IF('Muur (vast + regelb 4032)'!AD$17=Lijsten!AH$2,IF(OR('Muur (vast + regelb 4032)'!K$8<D182,'Muur (vast + regelb 4032)'!K$8>E182),0,1),IF('Muur (vast + regelb 4032)'!AD$17=Lijsten!AH$3,IF(OR('Muur (vast + regelb 4032)'!K$10<D182,'Muur (vast + regelb 4032)'!K$10>E182),0,1),"")) -> 0 | C182: 180 | D182: 7258 | E182: 7297 | F182: 7289 | G182: 7408 | H182: 7338 | I182: 7377
A183: =IF('Muur (vast + regelb 4032)'!AD$17=Lijsten!AH$2,IF(OR('Muur (vast + regelb 4032)'!K$8<D183,'Muur (vast + regelb 4032)'!K$8>E183),0,1),IF('Muur (vast + regelb 4032)'!AD$17=Lijsten!AH$3,IF(OR('Muur (vast + regelb 4032)'!K$10<D183,'Muur (vast + regelb 4032)'!K$10>E183),0,1),"")) -> 0 | C183: 181 | D183: 7298 | E183: 7337 | F183: 7329 | G183: 7448 | H183: 7378 | I183: 7417
A184: =IF('Muur (vast + regelb 4032)'!AD$17=Lijsten!AH$2,IF(OR('Muur (vast + regelb 4032)'!K$8<D184,'Muur (vast + regelb 4032)'!K$8>E184),0,1),IF('Muur (vast + regelb 4032)'!AD$17=Lijsten!AH$3,IF(OR('Muur (vast + regelb 4032)'!K$10<D184,'Muur (vast + regelb 4032)'!K$10>E184),0,1),"")) -> 0 | C184: 182 | D184: 7338 | E184: 7377 | F184: 7369 | G184: 7488 | H184: 7418 | I184: 7457
A185: =IF('Muur (vast + regelb 4032)'!AD$17=Lijsten!AH$2,IF(OR('Muur (vast + regelb 4032)'!K$8<D185,'Muur (vast + regelb 4032)'!K$8>E185),0,1),IF('Muur (vast + regelb 4032)'!AD$17=Lijsten!AH$3,IF(OR('Muur (vast + regelb 4032)'!K$10<D185,'Muur (vast + regelb 4032)'!K$10>E185),0,1),"")) -> 0 | C185: 183 | D185: 7378 | E185: 7417 | F185: 7409 | G185: 7528 | H185: 7458 | I185: 7497
A186: =IF('Muur (vast + regelb 4032)'!AD$17=Lijsten!AH$2,IF(OR('Muur (vast + regelb 4032)'!K$8<D186,'Muur (vast + regelb 4032)'!K$8>E186),0,1),IF('Muur (vast + regelb 4032)'!AD$17=Lijsten!AH$3,IF(OR('Muur (vast + regelb 4032)'!K$10<D186,'Muur (vast + regelb 4032)'!K$10>E186),0,1),"")) -> 0 | C186: 184 | D186: 7418 | E186: 7457 | F186: 7449 | G186: 7568 | H186: 7498 | I186: 7537
A187: =IF('Muur (vast + regelb 4032)'!AD$17=Lijsten!AH$2,IF(OR('Muur (vast + regelb 4032)'!K$8<D187,'Muur (vast + regelb 4032)'!K$8>E187),0,1),IF('Muur (vast + regelb 4032)'!AD$17=Lijsten!AH$3,IF(OR('Muur (vast + regelb 4032)'!K$10<D187,'Muur (vast + regelb 4032)'!K$10>E187),0,1),"")) -> 0 | C187: 185 | D187: 7458 | E187: 7497 | F187: 7489 | G187: 7608 | H187: 7538 | I187: 7577
A188: =IF('Muur (vast + regelb 4032)'!AD$17=Lijsten!AH$2,IF(OR('Muur (vast + regelb 4032)'!K$8<D188,'Muur (vast + regelb 4032)'!K$8>E188),0,1),IF('Muur (vast + regelb 4032)'!AD$17=Lijsten!AH$3,IF(OR('Muur (vast + regelb 4032)'!K$10<D188,'Muur (vast + regelb 4032)'!K$10>E188),0,1),"")) -> 0 | C188: 186 | D188: 7498 | E188: 7537 | F188: 7529 | G188: 7648 | H188: 7578 | I188: 7617
A189: =IF('Muur (vast + regelb 4032)'!AD$17=Lijsten!AH$2,IF(OR('Muur (vast + regelb 4032)'!K$8<D189,'Muur (vast + regelb 4032)'!K$8>E189),0,1),IF('Muur (vast + regelb 4032)'!AD$17=Lijsten!AH$3,IF(OR('Muur (vast + regelb 4032)'!K$10<D189,'Muur (vast + regelb 4032)'!K$10>E189),0,1),"")) -> 0 | C189: 187 | D189: 7538 | E189: 7577 | F189: 7569 | G189: 7688 | H189: 7618 | I189: 7657
A190: =IF('Muur (vast + regelb 4032)'!AD$17=Lijsten!AH$2,IF(OR('Muur (vast + regelb 4032)'!K$8<D190,'Muur (vast + regelb 4032)'!K$8>E190),0,1),IF('Muur (vast + regelb 4032)'!AD$17=Lijsten!AH$3,IF(OR('Muur (vast + regelb 4032)'!K$10<D190,'Muur (vast + regelb 4032)'!K$10>E190),0,1),"")) -> 0 | C190: 188 | D190: 7578 | E190: 7617 | F190: 7609 | G190: 7728 | H190: 7658 | I190: 7697
A191: =IF('Muur (vast + regelb 4032)'!AD$17=Lijsten!AH$2,IF(OR('Muur (vast + regelb 4032)'!K$8<D191,'Muur (vast + regelb 4032)'!K$8>E191),0,1),IF('Muur (vast + regelb 4032)'!AD$17=Lijsten!AH$3,IF(OR('Muur (vast + regelb 4032)'!K$10<D191,'Muur (vast + regelb 4032)'!K$10>E191),0,1),"")) -> 0 | C191: 189 | D191: 7618 | E191: 7657 | F191: 7649 | G191: 7768 | H191: 7698 | I191: 7737
A192: =IF('Muur (vast + regelb 4032)'!AD$17=Lijsten!AH$2,IF(OR('Muur (vast + regelb 4032)'!K$8<D192,'Muur (vast + regelb 4032)'!K$8>E192),0,1),IF('Muur (vast + regelb 4032)'!AD$17=Lijsten!AH$3,IF(OR('Muur (vast + regelb 4032)'!K$10<D192,'Muur (vast + regelb 4032)'!K$10>E192),0,1),"")) -> 0 | C192: 190 | D192: 7658 | E192: 7697 | F192: 7689 | G192: 7808 | H192: 7738 | I192: 7777
A193: =IF('Muur (vast + regelb 4032)'!AD$17=Lijsten!AH$2,IF(OR('Muur (vast + regelb 4032)'!K$8<D193,'Muur (vast + regelb 4032)'!K$8>E193),0,1),IF('Muur (vast + regelb 4032)'!AD$17=Lijsten!AH$3,IF(OR('Muur (vast + regelb 4032)'!K$10<D193,'Muur (vast + regelb 4032)'!K$10>E193),0,1),"")) -> 0 | C193: 191 | D193: 7698 | E193: 7737 | F193: 7729 | G193: 7848 | H193: 7778 | I193: 7817
A194: =IF('Muur (vast + regelb 4032)'!AD$17=Lijsten!AH$2,IF(OR('Muur (vast + regelb 4032)'!K$8<D194,'Muur (vast + regelb 4032)'!K$8>E194),0,1),IF('Muur (vast + regelb 4032)'!AD$17=Lijsten!AH$3,IF(OR('Muur (vast + regelb 4032)'!K$10<D194,'Muur (vast + regelb 4032)'!K$10>E194),0,1),"")) -> 0 | C194: 192 | D194: 7738 | E194: 7777 | F194: 7769 | G194: 7888 | H194: 7818 | I194: 7857
A195: =IF('Muur (vast + regelb 4032)'!AD$17=Lijsten!AH$2,IF(OR('Muur (vast + regelb 4032)'!K$8<D195,'Muur (vast + regelb 4032)'!K$8>E195),0,1),IF('Muur (vast + regelb 4032)'!AD$17=Lijsten!AH$3,IF(OR('Muur (vast + regelb 4032)'!K$10<D195,'Muur (vast + regelb 4032)'!K$10>E195),0,1),"")) -> 0 | C195: 193 | D195: 7778 | E195: 7817 | F195: 7809 | G195: 7928 | H195: 7858 | I195: 7897
A196: =IF('Muur (vast + regelb 4032)'!AD$17=Lijsten!AH$2,IF(OR('Muur (vast + regelb 4032)'!K$8<D196,'Muur (vast + regelb 4032)'!K$8>E196),0,1),IF('Muur (vast + regelb 4032)'!AD$17=Lijsten!AH$3,IF(OR('Muur (vast + regelb 4032)'!K$10<D196,'Muur (vast + regelb 4032)'!K$10>E196),0,1),"")) -> 0 | C196: 194 | D196: 7818 | E196: 7857 | F196: 7849 | G196: 7968 | H196: 7898 | I196: 7937
A197: =IF('Muur (vast + regelb 4032)'!AD$17=Lijsten!AH$2,IF(OR('Muur (vast + regelb 4032)'!K$8<D197,'Muur (vast + regelb 4032)'!K$8>E197),0,1),IF('Muur (vast + regelb 4032)'!AD$17=Lijsten!AH$3,IF(OR('Muur (vast + regelb 4032)'!K$10<D197,'Muur (vast + regelb 4032)'!K$10>E197),0,1),"")) -> 0 | C197: 195 | D197: 7858 | E197: 7897 | F197: 7889 | G197: 8008 | H197: 7938 | I197: 7977
A198: =IF('Muur (vast + regelb 4032)'!AD$17=Lijsten!AH$2,IF(OR('Muur (vast + regelb 4032)'!K$8<D198,'Muur (vast + regelb 4032)'!K$8>E198),0,1),IF('Muur (vast + regelb 4032)'!AD$17=Lijsten!AH$3,IF(OR('Muur (vast + regelb 4032)'!K$10<D198,'Muur (vast + regelb 4032)'!K$10>E198),0,1),"")) -> 0 | C198: 196 | D198: 7898 | E198: =D199-1 -> 7937 | F198: =(18*C198)+22*(C198-1)+80+31 -> 7929 | G198: =D199-1+80+31 -> 8048 | H198: =D200 -> 7978 | I198: =E200 -> 8017
A199: =IF('Muur (vast + regelb 4032)'!AD$17=Lijsten!AH$2,IF(OR('Muur (vast + regelb 4032)'!K$8<D199,'Muur (vast + regelb 4032)'!K$8>E199),0,1),IF('Muur (vast + regelb 4032)'!AD$17=Lijsten!AH$3,IF(OR('Muur (vast + regelb 4032)'!K$10<D199,'Muur (vast + regelb 4032)'!K$10>E199),0,1),"")) -> 0 | C199: 197 | D199: =D198+40 -> 7938 | E199: 7977 | F199: 7969 | G199: 8088 | H199: 8018 | I199: 8057
A200: =IF('Muur (vast + regelb 4032)'!AD$17=Lijsten!AH$2,IF(OR('Muur (vast + regelb 4032)'!K$8<D200,'Muur (vast + regelb 4032)'!K$8>E200),0,1),IF('Muur (vast + regelb 4032)'!AD$17=Lijsten!AH$3,IF(OR('Muur (vast + regelb 4032)'!K$10<D200,'Muur (vast + regelb 4032)'!K$10>E200),0,1),"")) -> 0 | C200: 198 | D200: 7978 | E200: 8017 | F200: 8009 | G200: 8128 | H200: 8058 | I200: 8097
... 102 more rows

Sheet Muur (2 x vast + regelb 4032) (hidden)
Y1: ='Muur (vast + regelb 4032)'!Y1:AH1 -> Nederlands
AC3: ='Muur (vast + regelb 4032)'!AC3:AH3 -> Versie 28/02/2022
A4: =taal!B3 -> Muurrooster (2 x vast rooster + regelbaar rooster 4032)
A10: =taal!B4 -> Gekende afmetingen muuropening:
A12: =taal!B7 -> Breedte muuropening = | K12: ='Muur (vast + regelb 4032)'!K8:L8 -> 300 | M12: mm
A14: =taal!B6 -> Hoogte muuropening = | K14: ='Muur (vast + regelb 4032)'!K10:L10 -> 300 | M14: mm | Q14: =[5]taal!B20 -> H
X20: =[5]taal!B19 -> B
A21: =[5]taal!B4 -> Gekende afmetingen muuropening:
A23: =[5]taal!B22 -> Diameter muuropening (D): | K23: 100 | M23: mm
A28: =taal!B12 -> Vast buitenrooster:
A30: =taal!B8 -> Naam rooster = | K30: ='Muur (vast + regelb 4032)'!E31 -> 445/86 | BO30: Fysische vrije doorlaat= | BP30: ='Muur (vast + regelb 4032)'!AY185 -> 276.165 | BS30: cm²
A34: =taal!B38 -> Vast tussenrooster
A36: =taal!B8 -> Naam rooster = | K36: 412 | AY36: Ce = | BA36: =IF(AI40=1,VLOOKUP(K36,'Overzicht buitenroosters'!$E$4:$O$197,10,FALSE),0) -> 0.172 | BO36: Fysische vrije doorlaat= | BP36: =BU36*(K12-15)*(K14-15)/100 -> 316.7775 | BS36: cm² | BU36: =VLOOKUP(K36,'Overzicht buitenroosters'!$E$4:$Q$197,13,FALSE) -> 0.39
AY38: Cd = | BA38: =IF(AI40=2,VLOOKUP(K36,'Overzicht buitenroosters'!$E$4:$O$197,11,FALSE),0) -> 0
A40: =taal!B13 -> Regelbaar binnenrooster: | AI40: 1
A42: =taal!B8 -> Naam rooster = | K42: 4032 | BO42: Fysische vrije doorlaat= | BP42: ='Muur (vast + regelb 4032)'!AY184 -> 243.12 | BS42: cm²
A44: =taal!B35 -> Samenstelling volgens standaardhoogte 100, 130 of 150 mm: | X44: ='Muur (vast + regelb 4032)'!Z19 -> 2 x 150mm
A46: =taal!B36 -> Oriëntatie: | X46: ='Muur (vast + regelb 4032)'!AD17 -> horizontaal
A48: =taal!B37 -> Positie van de bediening: | X48: ='Muur (vast + regelb 4032)'!J17 -> binnen de muuropening
A53: =taal!B16 -> Resultaten:
B55: Q = | C55: =(K12*K14*0.000001)*BA55*SQRT((P55/(1+(BA55/(BA38+BA36))^2))/0.6)*3600 -> 46.44506779 | H55: =taal!B18 -> bij een drukverschil van | P55: 1 | S55: =taal!B39 -> Geometrische vrije doorlaat = | AC55: =MIN(BP30,BP36,BP42)*100 -> 24312 | AG55: mm² | AJ55: =CONCATENATE("buitenrooster ",K30," + ","binnenrooster ",K42) -> buitenrooster 445/86 + binnenrooster 4032 | AY55: Ce = | BA55: =AP56/3600/AP58*SQRT(1.2/(2*AP57)) -> 0.1453937291
B56: Q = | C56: =(K12*K14*0.000001)*BA55*SQRT((P56/(1+(BA55/(BA38+BA36))^2))/0.6)*3600 -> 65.68324478 | H56: =H55 -> bij een drukverschil van | P56: 2 | S56: Equivalent Area (EA) = | AC56: =IF(C55="","",(C55*1000/3600)*(1/(0.61*SQRT(2*P55/1.2)))*1000) -> 16382.60237 | AG56: mm² | AL56: Q = | AP56: ='Muur (vast + regelb 4032)'!B184 -> 60.81560906 | AS56: m³/h
B57: Q = | C57: =(K12*K14*0.000001)*BA55*SQRT((P57/(1+(BA55/(BA38+BA36))^2))/0.6)*3600 -> 146.8722003 | H57: =H55 -> bij een drukverschil van | P57: 10 | AL57: DP = | AP57: ='Muur (vast + regelb 4032)'!O184 -> 1 | AS57: Pa
B58: Q = | C58: =(K12*K14*0.000001)*BA55*SQRT((P58/(1+(BA55/(BA38+BA36))^2))/0.6)*3600 -> 207.7086576 | H58: =H56 -> bij een drukverschil van | P58: 20 | AL58: A = | AP58: =K12*K14/1000000 -> 0.09 | AS58: m²
A62: =[5]taal!B16 -> Resultaten:
B64: Q = | C64: =(K23*K23*PI()/4*0.000001)*AA42*SQRT((P64/(1+(AA42/AA30)^2))/0.6)*3600 ->  | H64: =[5]taal!B18 -> bij een drukverschil van | P64: 1
B65: Q = | C65: =(K23*K23*PI()/4*0.000001)*AA42*SQRT((P65/(1+(AA42/AA30)^2))/0.6)*3600 ->  | H65: =H64 -> bij een drukverschil van | P65: 2
B66: Q = | C66: =(K23*K23*PI()/4*0.000001)*AA42*SQRT((P66/(1+(AA42/AA30)^2))/0.6)*3600 ->  | H66: =H64 -> bij een drukverschil van | P66: 10
B67: Q = | C67: =(K23*K23*PI()/4*0.000001)*AA42*SQRT((P67/(1+(AA42/AA30)^2))/0.6)*3600 ->  | H67: =H65 -> bij een drukverschil van | P67: 20
A84: (1) | B84: =taal!B40 -> De waterwerendheid in open stand van het rooster is gegarandeerd wanneer de tussenafstand as-op-as van binnen- en buitenrooster 10cm of meer bedraagt;
A85: (2) | B85: =taal!B41 -> Het verbindingskanaal tussen binnen- en buitenrooster dient gesloten te zijn en niet langer dan de dikte van de muur;
A86: (3) | B86: =taal!B42 -> Het gecombineerd rooster is voorzien van een Inox muggengaas 304 - 2,3 x 2,3 mm;
A87: (4) | B87: =taal!B43 -> Het is raadzaam het verbindingskanaal wat te laten afhellen naar buiten m.b.t. afvoer vocht;
A88: ="(5)" -> (5) | B88: =taal!B44 -> De betreffende tool is louter informatief. Renson kan dan ook niet aansprakelijk worden gesteld voor eventuele onjuistheden in de berekeningen;
A89: ="(6)" -> (6) | B89: =taal!B45 -> Brandwerende roosters kunnen niet voor buitentoepassingen worden gebruikt.
A114: RECHTHOEKIGE ROOSTERS
A116: volgnummers | E116: Keuzelijst buitenrooster | I116: akoestische eis voldaan | J116: inbraakwerende eis voldaan | K116: Brandwerende eis is voldaan | L116: KEUZELIJST ROOSTER
A118: =IF(AND(I118="x",K118="x",J118="x"),1,0) ->  | C118: 1 | E118: =IF(MAX('[3]Overzicht buitenroosters'!C4:C625)<'Muur (2 x vast + regelb 4032)'!C118,0,VLOOKUP(C118,'[3]Overzicht buitenroosters'!$C$4:$AF$625,3,FALSE)) -> 411 | I118: =IF(E118=0,0,IF(#REF!="ja",IF(VLOOKUP(E118,'[3]Overzicht buitenroosters'!E$4:K$596,6,FALSE)="ja","x",0),"x")) ->  | J118: =IF(E118=0,0,IF(#REF!="ja",IF(VLOOKUP(E118,'[3]Overzicht buitenroosters'!E$4:K$596,7,FALSE)="ja","x",0),"x")) ->  | K118: =IF(E118=0,0,IF(#REF!="ja",IF(VLOOKUP(E118,'[3]Overzicht buitenroosters'!E$4:AK$596,31,FALSE)="ja","x",0),"x")) ->  | L118: =IF(MAX(A$118:B$526)<C118,"",VLOOKUP(C118,A$118:AH$526,5,FALSE)) -> 
A119: =IF(AND(I119="x",K119="x",J119="x"),MAX(A$118:A118)+1,0) ->  | C119: 2 | E119: =IF(MAX('[3]Overzicht buitenroosters'!C5:C626)<'Muur (2 x vast + regelb 4032)'!C119,0,VLOOKUP(C119,'[3]Overzicht buitenroosters'!$C$4:$AF$625,3,FALSE)) -> 412 | I119: =IF(E119=0,0,IF(#REF!="ja",IF(VLOOKUP(E119,'[3]Overzicht buitenroosters'!E$4:K$596,6,FALSE)="ja","x",0),"x")) ->  | J119: =IF(E119=0,0,IF(#REF!="ja",IF(VLOOKUP(E119,'[3]Overzicht buitenroosters'!E$4:K$596,7,FALSE)="ja","x",0),"x")) ->  | K119: =IF(E119=0,0,IF(#REF!="ja",IF(VLOOKUP(E119,'[3]Overzicht buitenroosters'!E$4:AK$596,31,FALSE)="ja","x",0),"x")) -> 
A120: =IF(AND(I120="x",K120="x",J120="x"),MAX(A$118:A119)+1,0) ->  | C120: 3 | E120: =IF(MAX('[3]Overzicht buitenroosters'!C6:C627)<'Muur (2 x vast + regelb 4032)'!C120,0,VLOOKUP(C120,'[3]Overzicht buitenroosters'!$C$4:$AF$625,3,FALSE)) -> 421 | I120: =IF(E120=0,0,IF(#REF!="ja",IF(VLOOKUP(E120,'[3]Overzicht buitenroosters'!E$4:K$596,6,FALSE)="ja","x",0),"x")) ->  | J120: =IF(E120=0,0,IF(#REF!="ja",IF(VLOOKUP(E120,'[3]Overzicht buitenroosters'!E$4:K$596,7,FALSE)="ja","x",0),"x")) ->  | K120: =IF(E120=0,0,IF(#REF!="ja",IF(VLOOKUP(E120,'[3]Overzicht buitenroosters'!E$4:AK$596,31,FALSE)="ja","x",0),"x")) -> 
A121: =IF(AND(I121="x",K121="x",J121="x"),MAX(A$118:A120)+1,0) ->  | C121: 4 | E121: =IF(MAX('[3]Overzicht buitenroosters'!C7:C628)<'Muur (2 x vast + regelb 4032)'!C121,0,VLOOKUP(C121,'[3]Overzicht buitenroosters'!$C$4:$AF$625,3,FALSE)) -> 422 | I121: =IF(E121=0,0,IF(#REF!="ja",IF(VLOOKUP(E121,'[3]Overzicht buitenroosters'!E$4:K$596,6,FALSE)="ja","x",0),"x")) ->  | J121: =IF(E121=0,0,IF(#REF!="ja",IF(VLOOKUP(E121,'[3]Overzicht buitenroosters'!E$4:K$596,7,FALSE)="ja","x",0),"x")) ->  | K121: =IF(E121=0,0,IF(#REF!="ja",IF(VLOOKUP(E121,'[3]Overzicht buitenroosters'!E$4:AK$596,31,FALSE)="ja","x",0),"x")) -> 
A122: =IF(AND(I122="x",K122="x",J122="x"),MAX(A$118:A121)+1,0) ->  | C122: 5 | E122: =IF(MAX('[3]Overzicht buitenroosters'!C8:C629)<'Muur (2 x vast + regelb 4032)'!C122,0,VLOOKUP(C122,'[3]Overzicht buitenroosters'!$C$4:$AF$625,3,FALSE)) -> 425 | I122: =IF(E122=0,0,IF(#REF!="ja",IF(VLOOKUP(E122,'[3]Overzicht buitenroosters'!E$4:K$596,6,FALSE)="ja","x",0),"x")) ->  | J122: =IF(E122=0,0,IF(#REF!="ja",IF(VLOOKUP(E122,'[3]Overzicht buitenroosters'!E$4:K$596,7,FALSE)="ja","x",0),"x")) ->  | K122: =IF(E122=0,0,IF(#REF!="ja",IF(VLOOKUP(E122,'[3]Overzicht buitenroosters'!E$4:AK$596,31,FALSE)="ja","x",0),"x")) -> 
A123: =IF(AND(I123="x",K123="x",J123="x"),MAX(A$118:A122)+1,0) ->  | C123: 6 | E123: =IF(MAX('[3]Overzicht buitenroosters'!C9:C630)<'Muur (2 x vast + regelb 4032)'!C123,0,VLOOKUP(C123,'[3]Overzicht buitenroosters'!$C$4:$AF$625,3,FALSE)) -> 427 | I123: =IF(E123=0,0,IF(#REF!="ja",IF(VLOOKUP(E123,'[3]Overzicht buitenroosters'!E$4:K$596,6,FALSE)="ja","x",0),"x")) ->  | J123: =IF(E123=0,0,IF(#REF!="ja",IF(VLOOKUP(E123,'[3]Overzicht buitenroosters'!E$4:K$596,7,FALSE)="ja","x",0),"x")) ->  | K123: =IF(E123=0,0,IF(#REF!="ja",IF(VLOOKUP(E123,'[3]Overzicht buitenroosters'!E$4:AK$596,31,FALSE)="ja","x",0),"x")) -> 
A124: =IF(AND(I124="x",K124="x",J124="x"),MAX(A$118:A123)+1,0) ->  | C124: 7 | E124: =IF(MAX('[3]Overzicht buitenroosters'!C10:C631)<'Muur (2 x vast + regelb 4032)'!C124,0,VLOOKUP(C124,'[3]Overzicht buitenroosters'!$C$4:$AF$625,3,FALSE)) -> 431 | I124: =IF(E124=0,0,IF(#REF!="ja",IF(VLOOKUP(E124,'[3]Overzicht buitenroosters'!E$4:K$596,6,FALSE)="ja","x",0),"x")) ->  | J124: =IF(E124=0,0,IF(#REF!="ja",IF(VLOOKUP(E124,'[3]Overzicht buitenroosters'!E$4:K$596,7,FALSE)="ja","x",0),"x")) ->  | K124: =IF(E124=0,0,IF(#REF!="ja",IF(VLOOKUP(E124,'[3]Overzicht buitenroosters'!E$4:AK$596,31,FALSE)="ja","x",0),"x")) -> 
A125: =IF(AND(I125="x",K125="x",J125="x"),MAX(A$118:A124)+1,0) ->  | C125: 8 | E125: =IF(MAX('[3]Overzicht buitenroosters'!C11:C632)<'Muur (2 x vast + regelb 4032)'!C125,0,VLOOKUP(C125,'[3]Overzicht buitenroosters'!$C$4:$AF$625,3,FALSE)) -> 451 | I125: =IF(E125=0,0,IF(#REF!="ja",IF(VLOOKUP(E125,'[3]Overzicht buitenroosters'!E$4:K$596,6,FALSE)="ja","x",0),"x")) ->  | J125: =IF(E125=0,0,IF(#REF!="ja",IF(VLOOKUP(E125,'[3]Overzicht buitenroosters'!E$4:K$596,7,FALSE)="ja","x",0),"x")) ->  | K125: =IF(E125=0,0,IF(#REF!="ja",IF(VLOOKUP(E125,'[3]Overzicht buitenroosters'!E$4:AK$596,31,FALSE)="ja","x",0),"x")) -> 
A126: =IF(AND(I126="x",K126="x",J126="x"),MAX(A$118:A125)+1,0) ->  | C126: 9 | E126: =IF(MAX('[3]Overzicht buitenroosters'!C12:C633)<'Muur (2 x vast + regelb 4032)'!C126,0,VLOOKUP(C126,'[3]Overzicht buitenroosters'!$C$4:$AF$625,3,FALSE)) -> 452 | I126: =IF(E126=0,0,IF(#REF!="ja",IF(VLOOKUP(E126,'[3]Overzicht buitenroosters'!E$4:K$596,6,FALSE)="ja","x",0),"x")) ->  | J126: =IF(E126=0,0,IF(#REF!="ja",IF(VLOOKUP(E126,'[3]Overzicht buitenroosters'!E$4:K$596,7,FALSE)="ja","x",0),"x")) ->  | K126: =IF(E126=0,0,IF(#REF!="ja",IF(VLOOKUP(E126,'[3]Overzicht buitenroosters'!E$4:AK$596,31,FALSE)="ja","x",0),"x")) -> 
A127: =IF(AND(I127="x",K127="x",J127="x"),MAX(A$118:A126)+1,0) ->  | C127: 10 | E127: =IF(MAX('[3]Overzicht buitenroosters'!C13:C634)<'Muur (2 x vast + regelb 4032)'!C127,0,VLOOKUP(C127,'[3]Overzicht buitenroosters'!$C$4:$AF$625,3,FALSE)) -> 453 | I127: =IF(E127=0,0,IF(#REF!="ja",IF(VLOOKUP(E127,'[3]Overzicht buitenroosters'!E$4:K$596,6,FALSE)="ja","x",0),"x")) ->  | J127: =IF(E127=0,0,IF(#REF!="ja",IF(VLOOKUP(E127,'[3]Overzicht buitenroosters'!E$4:K$596,7,FALSE)="ja","x",0),"x")) ->  | K127: =IF(E127=0,0,IF(#REF!="ja",IF(VLOOKUP(E127,'[3]Overzicht buitenroosters'!E$4:AK$596,31,FALSE)="ja","x",0),"x")) -> 
A128: =IF(AND(I128="x",K128="x",J128="x"),MAX(A$118:A127)+1,0) ->  | C128: 11 | E128: =IF(MAX('[3]Overzicht buitenroosters'!C14:C635)<'Muur (2 x vast + regelb 4032)'!C128,0,VLOOKUP(C128,'[3]Overzicht buitenroosters'!$C$4:$AF$625,3,FALSE)) -> 480 | I128: =IF(E128=0,0,IF(#REF!="ja",IF(VLOOKUP(E128,'[3]Overzicht buitenroosters'!E$4:K$596,6,FALSE)="ja","x",0),"x")) ->  | J128: =IF(E128=0,0,IF(#REF!="ja",IF(VLOOKUP(E128,'[3]Overzicht buitenroosters'!E$4:K$596,7,FALSE)="ja","x",0),"x")) ->  | K128: =IF(E128=0,0,IF(#REF!="ja",IF(VLOOKUP(E128,'[3]Overzicht buitenroosters'!E$4:AK$596,31,FALSE)="ja","x",0),"x")) -> 
A129: =IF(AND(I129="x",K129="x",J129="x"),MAX(A$118:A128)+1,0) ->  | C129: 12 | E129: =IF(MAX('[3]Overzicht buitenroosters'!C15:C636)<'Muur (2 x vast + regelb 4032)'!C129,0,VLOOKUP(C129,'[3]Overzicht buitenroosters'!$C$4:$AF$625,3,FALSE)) -> 481 | I129: =IF(E129=0,0,IF(#REF!="ja",IF(VLOOKUP(E129,'[3]Overzicht buitenroosters'!E$4:K$596,6,FALSE)="ja","x",0),"x")) ->  | J129: =IF(E129=0,0,IF(#REF!="ja",IF(VLOOKUP(E129,'[3]Overzicht buitenroosters'!E$4:K$596,7,FALSE)="ja","x",0),"x")) ->  | K129: =IF(E129=0,0,IF(#REF!="ja",IF(VLOOKUP(E129,'[3]Overzicht buitenroosters'!E$4:AK$596,31,FALSE)="ja","x",0),"x")) -> 
A130: =IF(AND(I130="x",K130="x",J130="x"),MAX(A$118:A129)+1,0) ->  | C130: 13 | E130: =IF(MAX('[3]Overzicht buitenroosters'!C16:C637)<'Muur (2 x vast + regelb 4032)'!C130,0,VLOOKUP(C130,'[3]Overzicht buitenroosters'!$C$4:$AF$625,3,FALSE)) -> 491 | I130: =IF(E130=0,0,IF(#REF!="ja",IF(VLOOKUP(E130,'[3]Overzicht buitenroosters'!E$4:K$596,6,FALSE)="ja","x",0),"x")) ->  | J130: =IF(E130=0,0,IF(#REF!="ja",IF(VLOOKUP(E130,'[3]Overzicht buitenroosters'!E$4:K$596,7,FALSE)="ja","x",0),"x")) ->  | K130: =IF(E130=0,0,IF(#REF!="ja",IF(VLOOKUP(E130,'[3]Overzicht buitenroosters'!E$4:AK$596,31,FALSE)="ja","x",0),"x")) -> 
A131: =IF(AND(I131="x",K131="x",J131="x"),MAX(A$118:A130)+1,0) ->  | C131: 14 | E131: =IF(MAX('[3]Overzicht buitenroosters'!C17:C638)<'Muur (2 x vast + regelb 4032)'!C131,0,VLOOKUP(C131,'[3]Overzicht buitenroosters'!$C$4:$AF$625,3,FALSE)) -> 421WK2 | I131: =IF(E131=0,0,IF(#REF!="ja",IF(VLOOKUP(E131,'[3]Overzicht buitenroosters'!E$4:K$596,6,FALSE)="ja","x",0),"x")) ->  | J131: =IF(E131=0,0,IF(#REF!="ja",IF(VLOOKUP(E131,'[3]Overzicht buitenroosters'!E$4:K$596,7,FALSE)="ja","x",0),"x")) ->  | K131: =IF(E131=0,0,IF(#REF!="ja",IF(VLOOKUP(E131,'[3]Overzicht buitenroosters'!E$4:AK$596,31,FALSE)="ja","x",0),"x")) -> 
A132: =IF(AND(I132="x",K132="x",J132="x"),MAX(A$118:A131)+1,0) ->  | C132: 15 | E132: =IF(MAX('[3]Overzicht buitenroosters'!C18:C639)<'Muur (2 x vast + regelb 4032)'!C132,0,VLOOKUP(C132,'[3]Overzicht buitenroosters'!$C$4:$AF$625,3,FALSE)) -> 423WK4 | I132: =IF(E132=0,0,IF(#REF!="ja",IF(VLOOKUP(E132,'[3]Overzicht buitenroosters'!E$4:K$596,6,FALSE)="ja","x",0),"x")) ->  | J132: =IF(E132=0,0,IF(#REF!="ja",IF(VLOOKUP(E132,'[3]Overzicht buitenroosters'!E$4:K$596,7,FALSE)="ja","x",0),"x")) ->  | K132: =IF(E132=0,0,IF(#REF!="ja",IF(VLOOKUP(E132,'[3]Overzicht buitenroosters'!E$4:AK$596,31,FALSE)="ja","x",0),"x")) -> 
A133: =IF(AND(I133="x",K133="x",J133="x"),MAX(A$118:A132)+1,0) ->  | C133: 16 | E133: =IF(MAX('[3]Overzicht buitenroosters'!C19:C640)<'Muur (2 x vast + regelb 4032)'!C133,0,VLOOKUP(C133,'[3]Overzicht buitenroosters'!$C$4:$AF$625,3,FALSE)) -> 431WK2 | I133: =IF(E133=0,0,IF(#REF!="ja",IF(VLOOKUP(E133,'[3]Overzicht buitenroosters'!E$4:K$596,6,FALSE)="ja","x",0),"x")) ->  | J133: =IF(E133=0,0,IF(#REF!="ja",IF(VLOOKUP(E133,'[3]Overzicht buitenroosters'!E$4:K$596,7,FALSE)="ja","x",0),"x")) ->  | K133: =IF(E133=0,0,IF(#REF!="ja",IF(VLOOKUP(E133,'[3]Overzicht buitenroosters'!E$4:AK$596,31,FALSE)="ja","x",0),"x")) -> 
A134: =IF(AND(I134="x",K134="x",J134="x"),MAX(A$118:A133)+1,0) ->  | C134: 17 | E134: =IF(MAX('[3]Overzicht buitenroosters'!C20:C641)<'Muur (2 x vast + regelb 4032)'!C134,0,VLOOKUP(C134,'[3]Overzicht buitenroosters'!$C$4:$AF$625,3,FALSE)) -> 446/150 | I134: =IF(E134=0,0,IF(#REF!="ja",IF(VLOOKUP(E134,'[3]Overzicht buitenroosters'!E$4:K$596,6,FALSE)="ja","x",0),"x")) ->  | J134: =IF(E134=0,0,IF(#REF!="ja",IF(VLOOKUP(E134,'[3]Overzicht buitenroosters'!E$4:K$596,7,FALSE)="ja","x",0),"x")) ->  | K134: =IF(E134=0,0,IF(#REF!="ja",IF(VLOOKUP(E134,'[3]Overzicht buitenroosters'!E$4:AK$596,31,FALSE)="ja","x",0),"x")) -> 
A135: =IF(AND(I135="x",K135="x",J135="x"),MAX(A$118:A134)+1,0) ->  | C135: 18 | E135: =IF(MAX('[3]Overzicht buitenroosters'!C21:C642)<'Muur (2 x vast + regelb 4032)'!C135,0,VLOOKUP(C135,'[3]Overzicht buitenroosters'!$C$4:$AF$625,3,FALSE)) -> 446/225 | I135: =IF(E135=0,0,IF(#REF!="ja",IF(VLOOKUP(E135,'[3]Overzicht buitenroosters'!E$4:K$596,6,FALSE)="ja","x",0),"x")) ->  | J135: =IF(E135=0,0,IF(#REF!="ja",IF(VLOOKUP(E135,'[3]Overzicht buitenroosters'!E$4:K$596,7,FALSE)="ja","x",0),"x")) ->  | K135: =IF(E135=0,0,IF(#REF!="ja",IF(VLOOKUP(E135,'[3]Overzicht buitenroosters'!E$4:AK$596,31,FALSE)="ja","x",0),"x")) -> 
A136: =IF(AND(I136="x",K136="x",J136="x"),MAX(A$118:A135)+1,0) ->  | C136: 19 | E136: =IF(MAX('[3]Overzicht buitenroosters'!C22:C643)<'Muur (2 x vast + regelb 4032)'!C136,0,VLOOKUP(C136,'[3]Overzicht buitenroosters'!$C$4:$AF$625,3,FALSE)) -> 446/300 | I136: =IF(E136=0,0,IF(#REF!="ja",IF(VLOOKUP(E136,'[3]Overzicht buitenroosters'!E$4:K$596,6,FALSE)="ja","x",0),"x")) ->  | J136: =IF(E136=0,0,IF(#REF!="ja",IF(VLOOKUP(E136,'[3]Overzicht buitenroosters'!E$4:K$596,7,FALSE)="ja","x",0),"x")) ->  | K136: =IF(E136=0,0,IF(#REF!="ja",IF(VLOOKUP(E136,'[3]Overzicht buitenroosters'!E$4:AK$596,31,FALSE)="ja","x",0),"x")) -> 
A137: =IF(AND(I137="x",K137="x",J137="x"),MAX(A$118:A136)+1,0) ->  | C137: 20 | E137: =IF(MAX('[3]Overzicht buitenroosters'!C23:C644)<'Muur (2 x vast + regelb 4032)'!C137,0,VLOOKUP(C137,'[3]Overzicht buitenroosters'!$C$4:$AF$625,3,FALSE)) -> 447/150 | I137: =IF(E137=0,0,IF(#REF!="ja",IF(VLOOKUP(E137,'[3]Overzicht buitenroosters'!E$4:K$596,6,FALSE)="ja","x",0),"x")) ->  | J137: =IF(E137=0,0,IF(#REF!="ja",IF(VLOOKUP(E137,'[3]Overzicht buitenroosters'!E$4:K$596,7,FALSE)="ja","x",0),"x")) ->  | K137: =IF(E137=0,0,IF(#REF!="ja",IF(VLOOKUP(E137,'[3]Overzicht buitenroosters'!E$4:AK$596,31,FALSE)="ja","x",0),"x")) -> 
A138: =IF(AND(I138="x",K138="x",J138="x"),MAX(A$118:A137)+1,0) ->  | C138: 21 | E138: =IF(MAX('[3]Overzicht buitenroosters'!C24:C645)<'Muur (2 x vast + regelb 4032)'!C138,0,VLOOKUP(C138,'[3]Overzicht buitenroosters'!$C$4:$AF$625,3,FALSE)) -> 468AK | I138: =IF(E138=0,0,IF(#REF!="ja",IF(VLOOKUP(E138,'[3]Overzicht buitenroosters'!E$4:K$596,6,FALSE)="ja","x",0),"x")) ->  | J138: =IF(E138=0,0,IF(#REF!="ja",IF(VLOOKUP(E138,'[3]Overzicht buitenroosters'!E$4:K$596,7,FALSE)="ja","x",0),"x")) ->  | K138: =IF(E138=0,0,IF(#REF!="ja",IF(VLOOKUP(E138,'[3]Overzicht buitenroosters'!E$4:AK$596,31,FALSE)="ja","x",0),"x")) -> 
A139: =IF(AND(I139="x",K139="x",J139="x"),MAX(A$118:A138)+1,0) ->  | C139: 22 | E139: =IF(MAX('[3]Overzicht buitenroosters'!C25:C646)<'Muur (2 x vast + regelb 4032)'!C139,0,VLOOKUP(C139,'[3]Overzicht buitenroosters'!$C$4:$AF$625,3,FALSE)) -> 447/225 | I139: =IF(E139=0,0,IF(#REF!="ja",IF(VLOOKUP(E139,'[3]Overzicht buitenroosters'!E$4:K$596,6,FALSE)="ja","x",0),"x")) ->  | J139: =IF(E139=0,0,IF(#REF!="ja",IF(VLOOKUP(E139,'[3]Overzicht buitenroosters'!E$4:K$596,7,FALSE)="ja","x",0),"x")) ->  | K139: =IF(E139=0,0,IF(#REF!="ja",IF(VLOOKUP(E139,'[3]Overzicht buitenroosters'!E$4:AK$596,31,FALSE)="ja","x",0),"x")) -> 
A140: =IF(AND(I140="x",K140="x",J140="x"),MAX(A$118:A139)+1,0) ->  | C140: 23 | E140: =IF(MAX('[3]Overzicht buitenroosters'!C26:C647)<'Muur (2 x vast + regelb 4032)'!C140,0,VLOOKUP(C140,'[3]Overzicht buitenroosters'!$C$4:$AF$625,3,FALSE)) -> 452V | I140: =IF(E140=0,0,IF(#REF!="ja",IF(VLOOKUP(E140,'[3]Overzicht buitenroosters'!E$4:K$596,6,FALSE)="ja","x",0),"x")) ->  | J140: =IF(E140=0,0,IF(#REF!="ja",IF(VLOOKUP(E140,'[3]Overzicht buitenroosters'!E$4:K$596,7,FALSE)="ja","x",0),"x")) ->  | K140: =IF(E140=0,0,IF(#REF!="ja",IF(VLOOKUP(E140,'[3]Overzicht buitenroosters'!E$4:AK$596,31,FALSE)="ja","x",0),"x")) -> 
A141: =IF(AND(I141="x",K141="x",J141="x"),MAX(A$118:A140)+1,0) ->  | C141: 24 | E141: =IF(MAX('[3]Overzicht buitenroosters'!C27:C648)<'Muur (2 x vast + regelb 4032)'!C141,0,VLOOKUP(C141,'[3]Overzicht buitenroosters'!$C$4:$AF$625,3,FALSE)) -> 465 | I141: =IF(E141=0,0,IF(#REF!="ja",IF(VLOOKUP(E141,'[3]Overzicht buitenroosters'!E$4:K$596,6,FALSE)="ja","x",0),"x")) ->  | J141: =IF(E141=0,0,IF(#REF!="ja",IF(VLOOKUP(E141,'[3]Overzicht buitenroosters'!E$4:K$596,7,FALSE)="ja","x",0),"x")) ->  | K141: =IF(E141=0,0,IF(#REF!="ja",IF(VLOOKUP(E141,'[3]Overzicht buitenroosters'!E$4:AK$596,31,FALSE)="ja","x",0),"x")) -> 
A142: =IF(AND(I142="x",K142="x",J142="x"),MAX(A$118:A141)+1,0) ->  | C142: 25 | E142: =IF(MAX('[3]Overzicht buitenroosters'!C28:C649)<'Muur (2 x vast + regelb 4032)'!C142,0,VLOOKUP(C142,'[3]Overzicht buitenroosters'!$C$4:$AF$625,3,FALSE)) -> 466 | I142: =IF(E142=0,0,IF(#REF!="ja",IF(VLOOKUP(E142,'[3]Overzicht buitenroosters'!E$4:K$596,6,FALSE)="ja","x",0),"x")) ->  | J142: =IF(E142=0,0,IF(#REF!="ja",IF(VLOOKUP(E142,'[3]Overzicht buitenroosters'!E$4:K$596,7,FALSE)="ja","x",0),"x")) ->  | K142: =IF(E142=0,0,IF(#REF!="ja",IF(VLOOKUP(E142,'[3]Overzicht buitenroosters'!E$4:AK$596,31,FALSE)="ja","x",0),"x")) -> 
A143: =IF(AND(I143="x",K143="x",J143="x"),MAX(A$118:A142)+1,0) ->  | C143: 26 | E143: =IF(MAX('[3]Overzicht buitenroosters'!C29:C650)<'Muur (2 x vast + regelb 4032)'!C143,0,VLOOKUP(C143,'[3]Overzicht buitenroosters'!$C$4:$AF$625,3,FALSE)) -> 464 | I143: =IF(E143=0,0,IF(#REF!="ja",IF(VLOOKUP(E143,'[3]Overzicht buitenroosters'!E$4:K$596,6,FALSE)="ja","x",0),"x")) ->  | J143: =IF(E143=0,0,IF(#REF!="ja",IF(VLOOKUP(E143,'[3]Overzicht buitenroosters'!E$4:K$596,7,FALSE)="ja","x",0),"x")) ->  | K143: =IF(E143=0,0,IF(#REF!="ja",IF(VLOOKUP(E143,'[3]Overzicht buitenroosters'!E$4:AK$596,31,FALSE)="ja","x",0),"x")) -> 
A144: =IF(AND(I144="x",K144="x",J144="x"),MAX(A$118:A143)+1,0) -> 0 | C144: 27 | E144: =IF(MAX('[3]Overzicht buitenroosters'!C30:C651)<'Muur (2 x vast + regelb 4032)'!C144,0,VLOOKUP(C144,'[3]Overzicht buitenroosters'!$C$4:$AF$625,3,FALSE)) -> 0 | I144: =IF(E144=0,0,IF(#REF!="ja",IF(VLOOKUP(E144,'[3]Overzicht buitenroosters'!E$4:K$596,6,FALSE)="ja","x",0),"x")) -> 0 | J144: =IF(E144=0,0,IF(#REF!="ja",IF(VLOOKUP(E144,'[3]Overzicht buitenroosters'!E$4:K$596,7,FALSE)="ja","x",0),"x")) -> 0 | K144: =IF(E144=0,0,IF(#REF!="ja",IF(VLOOKUP(E144,'[3]Overzicht buitenroosters'!E$4:AK$596,31,FALSE)="ja","x",0),"x")) -> 0
A145: =IF(AND(I145="x",K145="x",J145="x"),MAX(A$118:A144)+1,0) -> 0 | C145: 28 | E145: =IF(MAX('[3]Overzicht buitenroosters'!C31:C652)<'Muur (2 x vast + regelb 4032)'!C145,0,VLOOKUP(C145,'[3]Overzicht buitenroosters'!$C$4:$AF$625,3,FALSE)) -> 0 | I145: =IF(E145=0,0,IF(#REF!="ja",IF(VLOOKUP(E145,'[3]Overzicht buitenroosters'!E$4:K$596,6,FALSE)="ja","x",0),"x")) -> 0 | J145: =IF(E145=0,0,IF(#REF!="ja",IF(VLOOKUP(E145,'[3]Overzicht buitenroosters'!E$4:K$596,7,FALSE)="ja","x",0),"x")) -> 0 | K145: =IF(E145=0,0,IF(#REF!="ja",IF(VLOOKUP(E145,'[3]Overzicht buitenroosters'!E$4:AK$596,31,FALSE)="ja","x",0),"x")) -> 0
A146: =IF(AND(I146="x",K146="x",J146="x"),MAX(A$118:A145)+1,0) -> 0 | C146: 29 | E146: =IF(MAX('[3]Overzicht buitenroosters'!C32:C653)<'Muur (2 x vast + regelb 4032)'!C146,0,VLOOKUP(C146,'[3]Overzicht buitenroosters'!$C$4:$AF$625,3,FALSE)) -> 0 | I146: =IF(E146=0,0,IF(#REF!="ja",IF(VLOOKUP(E146,'[3]Overzicht buitenroosters'!E$4:K$596,6,FALSE)="ja","x",0),"x")) -> 0 | J146: =IF(E146=0,0,IF(#REF!="ja",IF(VLOOKUP(E146,'[3]Overzicht buitenroosters'!E$4:K$596,7,FALSE)="ja","x",0),"x")) -> 0 | K146: =IF(E146=0,0,IF(#REF!="ja",IF(VLOOKUP(E146,'[3]Overzicht buitenroosters'!E$4:AK$596,31,FALSE)="ja","x",0),"x")) -> 0
A147: =IF(AND(I147="x",K147="x",J147="x"),MAX(A$118:A146)+1,0) -> 0 | C147: 30 | E147: =IF(MAX('[3]Overzicht buitenroosters'!C33:C654)<'Muur (2 x vast + regelb 4032)'!C147,0,VLOOKUP(C147,'[3]Overzicht buitenroosters'!$C$4:$AF$625,3,FALSE)) -> 0 | I147: =IF(E147=0,0,IF(#REF!="ja",IF(VLOOKUP(E147,'[3]Overzicht buitenroosters'!E$4:K$596,6,FALSE)="ja","x",0),"x")) -> 0 | J147: =IF(E147=0,0,IF(#REF!="ja",IF(VLOOKUP(E147,'[3]Overzicht buitenroosters'!E$4:K$596,7,FALSE)="ja","x",0),"x")) -> 0 | K147: =IF(E147=0,0,IF(#REF!="ja",IF(VLOOKUP(E147,'[3]Overzicht buitenroosters'!E$4:AK$596,31,FALSE)="ja","x",0),"x")) -> 0
A148: =IF(AND(I148="x",K148="x",J148="x"),MAX(A$118:A147)+1,0) -> 0 | C148: 31 | E148: =IF(MAX('[3]Overzicht buitenroosters'!C34:C655)<'Muur (2 x vast + regelb 4032)'!C148,0,VLOOKUP(C148,'[3]Overzicht buitenroosters'!$C$4:$AF$625,3,FALSE)) -> 0 | I148: =IF(E148=0,0,IF(#REF!="ja",IF(VLOOKUP(E148,'[3]Overzicht buitenroosters'!E$4:K$596,6,FALSE)="ja","x",0),"x")) -> 0 | J148: =IF(E148=0,0,IF(#REF!="ja",IF(VLOOKUP(E148,'[3]Overzicht buitenroosters'!E$4:K$596,7,FALSE)="ja","x",0),"x")) -> 0 | K148: =IF(E148=0,0,IF(#REF!="ja",IF(VLOOKUP(E148,'[3]Overzicht buitenroosters'!E$4:AK$596,31,FALSE)="ja","x",0),"x")) -> 0
A149: =IF(AND(I149="x",K149="x",J149="x"),MAX(A$118:A148)+1,0) -> 0 | C149: 32 | E149: =IF(MAX('[3]Overzicht buitenroosters'!C35:C656)<'Muur (2 x vast + regelb 4032)'!C149,0,VLOOKUP(C149,'[3]Overzicht buitenroosters'!$C$4:$AF$625,3,FALSE)) -> 0 | I149: =IF(E149=0,0,IF(#REF!="ja",IF(VLOOKUP(E149,'[3]Overzicht buitenroosters'!E$4:K$596,6,FALSE)="ja","x",0),"x")) -> 0 | J149: =IF(E149=0,0,IF(#REF!="ja",IF(VLOOKUP(E149,'[3]Overzicht buitenroosters'!E$4:K$596,7,FALSE)="ja","x",0),"x")) -> 0 | K149: =IF(E149=0,0,IF(#REF!="ja",IF(VLOOKUP(E149,'[3]Overzicht buitenroosters'!E$4:AK$596,31,FALSE)="ja","x",0),"x")) -> 0
A150: =IF(AND(I150="x",K150="x",J150="x"),MAX(A$118:A149)+1,0) -> 0 | C150: 33 | E150: =IF(MAX('[3]Overzicht buitenroosters'!C35:C657)<'Muur (2 x vast + regelb 4032)'!C150,0,VLOOKUP(C150,'[3]Overzicht buitenroosters'!$C$4:$AF$625,3,FALSE)) -> 0 | I150: =IF(E150=0,0,IF(#REF!="ja",IF(VLOOKUP(E150,'[3]Overzicht buitenroosters'!E$4:K$596,6,FALSE)="ja","x",0),"x")) -> 0 | J150: =IF(E150=0,0,IF(#REF!="ja",IF(VLOOKUP(E150,'[3]Overzicht buitenroosters'!E$4:K$596,7,FALSE)="ja","x",0),"x")) -> 0 | K150: =IF(E150=0,0,IF(#REF!="ja",IF(VLOOKUP(E150,'[3]Overzicht buitenroosters'!E$4:AK$596,31,FALSE)="ja","x",0),"x")) -> 0
A151: =IF(AND(I151="x",K151="x",J151="x"),MAX(A$118:A150)+1,0) -> 0 | C151: 34 | E151: =IF(MAX('[3]Overzicht buitenroosters'!C36:C658)<'Muur (2 x vast + regelb 4032)'!C151,0,VLOOKUP(C151,'[3]Overzicht buitenroosters'!$C$4:$AF$625,3,FALSE)) -> 0 | I151: =IF(E151=0,0,IF(#REF!="ja",IF(VLOOKUP(E151,'[3]Overzicht buitenroosters'!E$4:K$596,6,FALSE)="ja","x",0),"x")) -> 0 | J151: =IF(E151=0,0,IF(#REF!="ja",IF(VLOOKUP(E151,'[3]Overzicht buitenroosters'!E$4:K$596,7,FALSE)="ja","x",0),"x")) -> 0 | K151: =IF(E151=0,0,IF(#REF!="ja",IF(VLOOKUP(E151,'[3]Overzicht buitenroosters'!E$4:AK$596,31,FALSE)="ja","x",0),"x")) -> 0
A152: =IF(AND(I152="x",K152="x",J152="x"),MAX(A$118:A151)+1,0) -> 0 | C152: 35 | E152: =IF(MAX('[3]Overzicht buitenroosters'!C37:C659)<'Muur (2 x vast + regelb 4032)'!C152,0,VLOOKUP(C152,'[3]Overzicht buitenroosters'!$C$4:$AF$625,3,FALSE)) -> 0 | I152: =IF(E152=0,0,IF(#REF!="ja",IF(VLOOKUP(E152,'[3]Overzicht buitenroosters'!E$4:K$596,6,FALSE)="ja","x",0),"x")) -> 0 | J152: =IF(E152=0,0,IF(#REF!="ja",IF(VLOOKUP(E152,'[3]Overzicht buitenroosters'!E$4:K$596,7,FALSE)="ja","x",0),"x")) -> 0 | K152: =IF(E152=0,0,IF(#REF!="ja",IF(VLOOKUP(E152,'[3]Overzicht buitenroosters'!E$4:AK$596,31,FALSE)="ja","x",0),"x")) -> 0
A153: =IF(AND(I153="x",K153="x",J153="x"),MAX(A$118:A152)+1,0) -> 0 | C153: 36 | E153: =IF(MAX('[3]Overzicht buitenroosters'!C38:C660)<'Muur (2 x vast + regelb 4032)'!C153,0,VLOOKUP(C153,'[3]Overzicht buitenroosters'!$C$4:$AF$625,3,FALSE)) -> 0 | I153: =IF(E153=0,0,IF(#REF!="ja",IF(VLOOKUP(E153,'[3]Overzicht buitenroosters'!E$4:K$596,6,FALSE)="ja","x",0),"x")) -> 0 | J153: =IF(E153=0,0,IF(#REF!="ja",IF(VLOOKUP(E153,'[3]Overzicht buitenroosters'!E$4:K$596,7,FALSE)="ja","x",0),"x")) -> 0 | K153: =IF(E153=0,0,IF(#REF!="ja",IF(VLOOKUP(E153,'[3]Overzicht buitenroosters'!E$4:AK$596,31,FALSE)="ja","x",0),"x")) -> 0
A154: =IF(AND(I154="x",K154="x",J154="x"),MAX(A$118:A153)+1,0) -> 0 | C154: 37 | E154: =IF(MAX('[3]Overzicht buitenroosters'!C39:C661)<'Muur (2 x vast + regelb 4032)'!C154,0,VLOOKUP(C154,'[3]Overzicht buitenroosters'!$C$4:$AF$625,3,FALSE)) -> 0 | I154: =IF(E154=0,0,IF(#REF!="ja",IF(VLOOKUP(E154,'[3]Overzicht buitenroosters'!E$4:K$596,6,FALSE)="ja","x",0),"x")) -> 0 | J154: =IF(E154=0,0,IF(#REF!="ja",IF(VLOOKUP(E154,'[3]Overzicht buitenroosters'!E$4:K$596,7,FALSE)="ja","x",0),"x")) -> 0 | K154: =IF(E154=0,0,IF(#REF!="ja",IF(VLOOKUP(E154,'[3]Overzicht buitenroosters'!E$4:AK$596,31,FALSE)="ja","x",0),"x")) -> 0
A155: =IF(AND(I155="x",K155="x",J155="x"),MAX(A$118:A154)+1,0) -> 0 | C155: 38 | E155: =IF(MAX('[3]Overzicht buitenroosters'!C40:C662)<'Muur (2 x vast + regelb 4032)'!C155,0,VLOOKUP(C155,'[3]Overzicht buitenroosters'!$C$4:$AF$625,3,FALSE)) -> 0 | I155: =IF(E155=0,0,IF(#REF!="ja",IF(VLOOKUP(E155,'[3]Overzicht buitenroosters'!E$4:K$596,6,FALSE)="ja","x",0),"x")) -> 0 | J155: =IF(E155=0,0,IF(#REF!="ja",IF(VLOOKUP(E155,'[3]Overzicht buitenroosters'!E$4:K$596,7,FALSE)="ja","x",0),"x")) -> 0 | K155: =IF(E155=0,0,IF(#REF!="ja",IF(VLOOKUP(E155,'[3]Overzicht buitenroosters'!E$4:AK$596,31,FALSE)="ja","x",0),"x")) -> 0
A156: =IF(AND(I156="x",K156="x",J156="x"),MAX(A$118:A155)+1,0) -> 0 | C156: 39 | E156: =IF(MAX('[3]Overzicht buitenroosters'!C41:C663)<'Muur (2 x vast + regelb 4032)'!C156,0,VLOOKUP(C156,'[3]Overzicht buitenroosters'!$C$4:$AF$625,3,FALSE)) -> 0 | I156: =IF(E156=0,0,IF(#REF!="ja",IF(VLOOKUP(E156,'[3]Overzicht buitenroosters'!E$4:K$596,6,FALSE)="ja","x",0),"x")) -> 0 | J156: =IF(E156=0,0,IF(#REF!="ja",IF(VLOOKUP(E156,'[3]Overzicht buitenroosters'!E$4:K$596,7,FALSE)="ja","x",0),"x")) -> 0 | K156: =IF(E156=0,0,IF(#REF!="ja",IF(VLOOKUP(E156,'[3]Overzicht buitenroosters'!E$4:AK$596,31,FALSE)="ja","x",0),"x")) -> 0
A157: =IF(AND(I157="x",K157="x",J157="x"),MAX(A$118:A156)+1,0) -> 0 | C157: 40 | E157: =IF(MAX('[3]Overzicht buitenroosters'!C42:C664)<'Muur (2 x vast + regelb 4032)'!C157,0,VLOOKUP(C157,'[3]Overzicht buitenroosters'!$C$4:$AF$625,3,FALSE)) -> 0 | I157: =IF(E157=0,0,IF(#REF!="ja",IF(VLOOKUP(E157,'[3]Overzicht buitenroosters'!E$4:K$596,6,FALSE)="ja","x",0),"x")) -> 0 | J157: =IF(E157=0,0,IF(#REF!="ja",IF(VLOOKUP(E157,'[3]Overzicht buitenroosters'!E$4:K$596,7,FALSE)="ja","x",0),"x")) -> 0 | K157: =IF(E157=0,0,IF(#REF!="ja",IF(VLOOKUP(E157,'[3]Overzicht buitenroosters'!E$4:AK$596,31,FALSE)="ja","x",0),"x")) -> 0
A158: =IF(AND(I158="x",K158="x",J158="x"),MAX(A$118:A157)+1,0) -> 0 | C158: 41 | E158: =IF(MAX('[3]Overzicht buitenroosters'!C43:C665)<'Muur (2 x vast + regelb 4032)'!C158,0,VLOOKUP(C158,'[3]Overzicht buitenroosters'!$C$4:$AF$625,3,FALSE)) -> 0 | I158: =IF(E158=0,0,IF(#REF!="ja",IF(VLOOKUP(E158,'[3]Overzicht buitenroosters'!E$4:K$596,6,FALSE)="ja","x",0),"x")) -> 0 | J158: =IF(E158=0,0,IF(#REF!="ja",IF(VLOOKUP(E158,'[3]Overzicht buitenroosters'!E$4:K$596,7,FALSE)="ja","x",0),"x")) -> 0 | K158: =IF(E158=0,0,IF(#REF!="ja",IF(VLOOKUP(E158,'[3]Overzicht buitenroosters'!E$4:AK$596,31,FALSE)="ja","x",0),"x")) -> 0
A159: =IF(AND(I159="x",K159="x",J159="x"),MAX(A$118:A158)+1,0) -> 0 | C159: 42 | E159: =IF(MAX('[3]Overzicht buitenroosters'!C44:C666)<'Muur (2 x vast + regelb 4032)'!C159,0,VLOOKUP(C159,'[3]Overzicht buitenroosters'!$C$4:$AF$625,3,FALSE)) -> 0 | I159: =IF(E159=0,0,IF(#REF!="ja",IF(VLOOKUP(E159,'[3]Overzicht buitenroosters'!E$4:K$596,6,FALSE)="ja","x",0),"x")) -> 0 | J159: =IF(E159=0,0,IF(#REF!="ja",IF(VLOOKUP(E159,'[3]Overzicht buitenroosters'!E$4:K$596,7,FALSE)="ja","x",0),"x")) -> 0 | K159: =IF(E159=0,0,IF(#REF!="ja",IF(VLOOKUP(E159,'[3]Overzicht buitenroosters'!E$4:AK$596,31,FALSE)="ja","x",0),"x")) -> 0
A160: =IF(AND(I160="x",K160="x",J160="x"),MAX(A$118:A159)+1,0) -> 0 | C160: 43 | E160: =IF(MAX('[3]Overzicht buitenroosters'!C44:C667)<'Muur (2 x vast + regelb 4032)'!C160,0,VLOOKUP(C160,'[3]Overzicht buitenroosters'!$C$4:$AF$625,3,FALSE)) -> 0 | I160: =IF(E160=0,0,IF(#REF!="ja",IF(VLOOKUP(E160,'[3]Overzicht buitenroosters'!E$4:K$596,6,FALSE)="ja","x",0),"x")) -> 0 | J160: =IF(E160=0,0,IF(#REF!="ja",IF(VLOOKUP(E160,'[3]Overzicht buitenroosters'!E$4:K$596,7,FALSE)="ja","x",0),"x")) -> 0 | K160: =IF(E160=0,0,IF(#REF!="ja",IF(VLOOKUP(E160,'[3]Overzicht buitenroosters'!E$4:AK$596,31,FALSE)="ja","x",0),"x")) -> 0
A161: =IF(AND(I161="x",K161="x",J161="x"),MAX(A$118:A160)+1,0) -> 0 | C161: 44 | E161: =IF(MAX('[3]Overzicht buitenroosters'!C44:C668)<'Muur (2 x vast + regelb 4032)'!C161,0,VLOOKUP(C161,'[3]Overzicht buitenroosters'!$C$4:$AF$625,3,FALSE)) -> 0 | I161: =IF(E161=0,0,IF(#REF!="ja",IF(VLOOKUP(E161,'[3]Overzicht buitenroosters'!E$4:K$596,6,FALSE)="ja","x",0),"x")) -> 0 | J161: =IF(E161=0,0,IF(#REF!="ja",IF(VLOOKUP(E161,'[3]Overzicht buitenroosters'!E$4:K$596,7,FALSE)="ja","x",0),"x")) -> 0 | K161: =IF(E161=0,0,IF(#REF!="ja",IF(VLOOKUP(E161,'[3]Overzicht buitenroosters'!E$4:AK$596,31,FALSE)="ja","x",0),"x")) -> 0
A162: =IF(AND(I162="x",K162="x",J162="x"),MAX(A$118:A161)+1,0) -> 0 | C162: 45 | E162: =IF(MAX('[3]Overzicht buitenroosters'!C45:C669)<'Muur (2 x vast + regelb 4032)'!C162,0,VLOOKUP(C162,'[3]Overzicht buitenroosters'!$C$4:$AF$625,3,FALSE)) -> 0 | I162: =IF(E162=0,0,IF(#REF!="ja",IF(VLOOKUP(E162,'[3]Overzicht buitenroosters'!E$4:K$596,6,FALSE)="ja","x",0),"x")) -> 0 | J162: =IF(E162=0,0,IF(#REF!="ja",IF(VLOOKUP(E162,'[3]Overzicht buitenroosters'!E$4:K$596,7,FALSE)="ja","x",0),"x")) -> 0 | K162: =IF(E162=0,0,IF(#REF!="ja",IF(VLOOKUP(E162,'[3]Overzicht buitenroosters'!E$4:AK$596,31,FALSE)="ja","x",0),"x")) -> 0
A163: =IF(AND(I163="x",K163="x",J163="x"),MAX(A$118:A162)+1,0) -> 0 | C163: 46 | E163: =IF(MAX('[3]Overzicht buitenroosters'!C46:C670)<'Muur (2 x vast + regelb 4032)'!C163,0,VLOOKUP(C163,'[3]Overzicht buitenroosters'!$C$4:$AF$625,3,FALSE)) -> 0 | I163: =IF(E163=0,0,IF(#REF!="ja",IF(VLOOKUP(E163,'[3]Overzicht buitenroosters'!E$4:K$596,6,FALSE)="ja","x",0),"x")) -> 0 | J163: =IF(E163=0,0,IF(#REF!="ja",IF(VLOOKUP(E163,'[3]Overzicht buitenroosters'!E$4:K$596,7,FALSE)="ja","x",0),"x")) -> 0 | K163: =IF(E163=0,0,IF(#REF!="ja",IF(VLOOKUP(E163,'[3]Overzicht buitenroosters'!E$4:AK$596,31,FALSE)="ja","x",0),"x")) -> 0
A164: =IF(AND(I164="x",K164="x",J164="x"),MAX(A$118:A163)+1,0) -> 0 | C164: 47 | E164: =IF(MAX('[3]Overzicht buitenroosters'!C46:C671)<'Muur (2 x vast + regelb 4032)'!C164,0,VLOOKUP(C164,'[3]Overzicht buitenroosters'!$C$4:$AF$625,3,FALSE)) -> 0 | I164: =IF(E164=0,0,IF(#REF!="ja",IF(VLOOKUP(E164,'[3]Overzicht buitenroosters'!E$4:K$596,6,FALSE)="ja","x",0),"x")) -> 0 | J164: =IF(E164=0,0,IF(#REF!="ja",IF(VLOOKUP(E164,'[3]Overzicht buitenroosters'!E$4:K$596,7,FALSE)="ja","x",0),"x")) -> 0 | K164: =IF(E164=0,0,IF(#REF!="ja",IF(VLOOKUP(E164,'[3]Overzicht buitenroosters'!E$4:AK$596,31,FALSE)="ja","x",0),"x")) -> 0
A165: =IF(AND(I165="x",K165="x",J165="x"),MAX(A$118:A164)+1,0) -> 0 | C165: 48 | E165: =IF(MAX('[3]Overzicht buitenroosters'!C47:C672)<'Muur (2 x vast + regelb 4032)'!C165,0,VLOOKUP(C165,'[3]Overzicht buitenroosters'!$C$4:$AF$625,3,FALSE)) -> 0 | I165: =IF(E165=0,0,IF(#REF!="ja",IF(VLOOKUP(E165,'[3]Overzicht buitenroosters'!E$4:K$596,6,FALSE)="ja","x",0),"x")) -> 0 | J165: =IF(E165=0,0,IF(#REF!="ja",IF(VLOOKUP(E165,'[3]Overzicht buitenroosters'!E$4:K$596,7,FALSE)="ja","x",0),"x")) -> 0 | K165: =IF(E165=0,0,IF(#REF!="ja",IF(VLOOKUP(E165,'[3]Overzicht buitenroosters'!E$4:AK$596,31,FALSE)="ja","x",0),"x")) -> 0
A166: =IF(AND(I166="x",K166="x",J166="x"),MAX(A$118:A165)+1,0) -> 0 | C166: 49 | E166: =IF(MAX('[3]Overzicht buitenroosters'!C48:C673)<'Muur (2 x vast + regelb 4032)'!C166,0,VLOOKUP(C166,'[3]Overzicht buitenroosters'!$C$4:$AF$625,3,FALSE)) -> 0 | I166: =IF(E166=0,0,IF(#REF!="ja",IF(VLOOKUP(E166,'[3]Overzicht buitenroosters'!E$4:K$596,6,FALSE)="ja","x",0),"x")) -> 0 | J166: =IF(E166=0,0,IF(#REF!="ja",IF(VLOOKUP(E166,'[3]Overzicht buitenroosters'!E$4:K$596,7,FALSE)="ja","x",0),"x")) -> 0 | K166: =IF(E166=0,0,IF(#REF!="ja",IF(VLOOKUP(E166,'[3]Overzicht buitenroosters'!E$4:AK$596,31,FALSE)="ja","x",0),"x")) -> 0
A167: =IF(AND(I167="x",K167="x",J167="x"),MAX(A$118:A166)+1,0) -> 0 | C167: 50 | E167: =IF(MAX('[3]Overzicht buitenroosters'!C49:C674)<'Muur (2 x vast + regelb 4032)'!C167,0,VLOOKUP(C167,'[3]Overzicht buitenroosters'!$C$4:$AF$625,3,FALSE)) -> 0 | I167: =IF(E167=0,0,IF(#REF!="ja",IF(VLOOKUP(E167,'[3]Overzicht buitenroosters'!E$4:K$596,6,FALSE)="ja","x",0),"x")) -> 0 | J167: =IF(E167=0,0,IF(#REF!="ja",IF(VLOOKUP(E167,'[3]Overzicht buitenroosters'!E$4:K$596,7,FALSE)="ja","x",0),"x")) -> 0 | K167: =IF(E167=0,0,IF(#REF!="ja",IF(VLOOKUP(E167,'[3]Overzicht buitenroosters'!E$4:AK$596,31,FALSE)="ja","x",0),"x")) -> 0
A168: =IF(AND(I168="x",K168="x",J168="x"),MAX(A$118:A167)+1,0) -> 0 | C168: 51 | E168: =IF(MAX('[3]Overzicht buitenroosters'!C50:C675)<'Muur (2 x vast + regelb 4032)'!C168,0,VLOOKUP(C168,'[3]Overzicht buitenroosters'!$C$4:$AF$625,3,FALSE)) -> 0 | I168: =IF(E168=0,0,IF(#REF!="ja",IF(VLOOKUP(E168,'[3]Overzicht buitenroosters'!E$4:K$596,6,FALSE)="ja","x",0),"x")) -> 0 | J168: =IF(E168=0,0,IF(#REF!="ja",IF(VLOOKUP(E168,'[3]Overzicht buitenroosters'!E$4:K$596,7,FALSE)="ja","x",0),"x")) -> 0 | K168: =IF(E168=0,0,IF(#REF!="ja",IF(VLOOKUP(E168,'[3]Overzicht buitenroosters'!E$4:AK$596,31,FALSE)="ja","x",0),"x")) -> 0
A169: =IF(AND(I169="x",K169="x",J169="x"),MAX(A$118:A168)+1,0) -> 0 | C169: 52 | E169: =IF(MAX('[3]Overzicht buitenroosters'!C51:C676)<'Muur (2 x vast + regelb 4032)'!C169,0,VLOOKUP(C169,'[3]Overzicht buitenroosters'!$C$4:$AF$625,3,FALSE)) -> 0 | I169: =IF(E169=0,0,IF(#REF!="ja",IF(VLOOKUP(E169,'[3]Overzicht buitenroosters'!E$4:K$596,6,FALSE)="ja","x",0),"x")) -> 0 | J169: =IF(E169=0,0,IF(#REF!="ja",IF(VLOOKUP(E169,'[3]Overzicht buitenroosters'!E$4:K$596,7,FALSE)="ja","x",0),"x")) -> 0 | K169: =IF(E169=0,0,IF(#REF!="ja",IF(VLOOKUP(E169,'[3]Overzicht buitenroosters'!E$4:AK$596,31,FALSE)="ja","x",0),"x")) -> 0
A170: =IF(AND(I170="x",K170="x",J170="x"),MAX(A$118:A169)+1,0) -> 0 | C170: 53 | E170: =IF(MAX('[3]Overzicht buitenroosters'!C52:C677)<'Muur (2 x vast + regelb 4032)'!C170,0,VLOOKUP(C170,'[3]Overzicht buitenroosters'!$C$4:$AF$625,3,FALSE)) -> 0 | I170: =IF(E170=0,0,IF(#REF!="ja",IF(VLOOKUP(E170,'[3]Overzicht buitenroosters'!E$4:K$596,6,FALSE)="ja","x",0),"x")) -> 0 | J170: =IF(E170=0,0,IF(#REF!="ja",IF(VLOOKUP(E170,'[3]Overzicht buitenroosters'!E$4:K$596,7,FALSE)="ja","x",0),"x")) -> 0 | K170: =IF(E170=0,0,IF(#REF!="ja",IF(VLOOKUP(E170,'[3]Overzicht buitenroosters'!E$4:AK$596,31,FALSE)="ja","x",0),"x")) -> 0
A171: =IF(AND(I171="x",K171="x",J171="x"),MAX(A$118:A170)+1,0) -> 0 | C171: 54 | E171: =IF(MAX('[3]Overzicht buitenroosters'!C53:C678)<'Muur (2 x vast + regelb 4032)'!C171,0,VLOOKUP(C171,'[3]Overzicht buitenroosters'!$C$4:$AF$625,3,FALSE)) -> 0 | I171: =IF(E171=0,0,IF(#REF!="ja",IF(VLOOKUP(E171,'[3]Overzicht buitenroosters'!E$4:K$596,6,FALSE)="ja","x",0),"x")) -> 0 | J171: =IF(E171=0,0,IF(#REF!="ja",IF(VLOOKUP(E171,'[3]Overzicht buitenroosters'!E$4:K$596,7,FALSE)="ja","x",0),"x")) -> 0 | K171: =IF(E171=0,0,IF(#REF!="ja",IF(VLOOKUP(E171,'[3]Overzicht buitenroosters'!E$4:AK$596,31,FALSE)="ja","x",0),"x")) -> 0
A172: =IF(AND(I172="x",K172="x",J172="x"),MAX(A$118:A171)+1,0) -> 0 | C172: 55 | E172: =IF(MAX('[3]Overzicht buitenroosters'!C54:C679)<'Muur (2 x vast + regelb 4032)'!C172,0,VLOOKUP(C172,'[3]Overzicht buitenroosters'!$C$4:$AF$625,3,FALSE)) -> 0 | I172: =IF(E172=0,0,IF(#REF!="ja",IF(VLOOKUP(E172,'[3]Overzicht buitenroosters'!E$4:K$596,6,FALSE)="ja","x",0),"x")) -> 0 | J172: =IF(E172=0,0,IF(#REF!="ja",IF(VLOOKUP(E172,'[3]Overzicht buitenroosters'!E$4:K$596,7,FALSE)="ja","x",0),"x")) -> 0 | K172: =IF(E172=0,0,IF(#REF!="ja",IF(VLOOKUP(E172,'[3]Overzicht buitenroosters'!E$4:AK$596,31,FALSE)="ja","x",0),"x")) -> 0
A173: =IF(AND(I173="x",K173="x",J173="x"),MAX(A$118:A172)+1,0) -> 0 | C173: 56 | E173: =IF(MAX('[3]Overzicht buitenroosters'!C55:C680)<'Muur (2 x vast + regelb 4032)'!C173,0,VLOOKUP(C173,'[3]Overzicht buitenroosters'!$C$4:$AF$625,3,FALSE)) -> 0 | I173: =IF(E173=0,0,IF(#REF!="ja",IF(VLOOKUP(E173,'[3]Overzicht buitenroosters'!E$4:K$596,6,FALSE)="ja","x",0),"x")) -> 0 | J173: =IF(E173=0,0,IF(#REF!="ja",IF(VLOOKUP(E173,'[3]Overzicht buitenroosters'!E$4:K$596,7,FALSE)="ja","x",0),"x")) -> 0 | K173: =IF(E173=0,0,IF(#REF!="ja",IF(VLOOKUP(E173,'[3]Overzicht buitenroosters'!E$4:AK$596,31,FALSE)="ja","x",0),"x")) -> 0
A174: =IF(AND(I174="x",K174="x",J174="x"),MAX(A$118:A173)+1,0) -> 0 | C174: 57 | E174: =IF(MAX('[3]Overzicht buitenroosters'!C56:C681)<'Muur (2 x vast + regelb 4032)'!C174,0,VLOOKUP(C174,'[3]Overzicht buitenroosters'!$C$4:$AF$625,3,FALSE)) -> 0 | I174: =IF(E174=0,0,IF(#REF!="ja",IF(VLOOKUP(E174,'[3]Overzicht buitenroosters'!E$4:K$596,6,FALSE)="ja","x",0),"x")) -> 0 | J174: =IF(E174=0,0,IF(#REF!="ja",IF(VLOOKUP(E174,'[3]Overzicht buitenroosters'!E$4:K$596,7,FALSE)="ja","x",0),"x")) -> 0 | K174: =IF(E174=0,0,IF(#REF!="ja",IF(VLOOKUP(E174,'[3]Overzicht buitenroosters'!E$4:AK$596,31,FALSE)="ja","x",0),"x")) -> 0
A175: =IF(AND(I175="x",K175="x",J175="x"),MAX(A$118:A174)+1,0) -> 0 | C175: 58 | E175: =IF(MAX('[3]Overzicht buitenroosters'!C57:C682)<'Muur (2 x vast + regelb 4032)'!C175,0,VLOOKUP(C175,'[3]Overzicht buitenroosters'!$C$4:$AF$625,3,FALSE)) -> 0 | I175: =IF(E175=0,0,IF(#REF!="ja",IF(VLOOKUP(E175,'[3]Overzicht buitenroosters'!E$4:K$596,6,FALSE)="ja","x",0),"x")) -> 0 | J175: =IF(E175=0,0,IF(#REF!="ja",IF(VLOOKUP(E175,'[3]Overzicht buitenroosters'!E$4:K$596,7,FALSE)="ja","x",0),"x")) -> 0 | K175: =IF(E175=0,0,IF(#REF!="ja",IF(VLOOKUP(E175,'[3]Overzicht buitenroosters'!E$4:AK$596,31,FALSE)="ja","x",0),"x")) -> 0
A176: =IF(AND(I176="x",K176="x",J176="x"),MAX(A$118:A175)+1,0) -> 0 | C176: 59 | E176: =IF(MAX('[3]Overzicht buitenroosters'!C58:C683)<'Muur (2 x vast + regelb 4032)'!C176,0,VLOOKUP(C176,'[3]Overzicht buitenroosters'!$C$4:$AF$625,3,FALSE)) -> 0 | I176: =IF(E176=0,0,IF(#REF!="ja",IF(VLOOKUP(E176,'[3]Overzicht buitenroosters'!E$4:K$596,6,FALSE)="ja","x",0),"x")) -> 0 | J176: =IF(E176=0,0,IF(#REF!="ja",IF(VLOOKUP(E176,'[3]Overzicht buitenroosters'!E$4:K$596,7,FALSE)="ja","x",0),"x")) -> 0 | K176: =IF(E176=0,0,IF(#REF!="ja",IF(VLOOKUP(E176,'[3]Overzicht buitenroosters'!E$4:AK$596,31,FALSE)="ja","x",0),"x")) -> 0
A177: =IF(AND(I177="x",K177="x",J177="x"),MAX(A$118:A176)+1,0) -> 0 | C177: 60 | E177: =IF(MAX('[3]Overzicht buitenroosters'!C59:C684)<'Muur (2 x vast + regelb 4032)'!C177,0,VLOOKUP(C177,'[3]Overzicht buitenroosters'!$C$4:$AF$625,3,FALSE)) -> 0 | I177: =IF(E177=0,0,IF(#REF!="ja",IF(VLOOKUP(E177,'[3]Overzicht buitenroosters'!E$4:K$596,6,FALSE)="ja","x",0),"x")) -> 0 | J177: =IF(E177=0,0,IF(#REF!="ja",IF(VLOOKUP(E177,'[3]Overzicht buitenroosters'!E$4:K$596,7,FALSE)="ja","x",0),"x")) -> 0 | K177: =IF(E177=0,0,IF(#REF!="ja",IF(VLOOKUP(E177,'[3]Overzicht buitenroosters'!E$4:AK$596,31,FALSE)="ja","x",0),"x")) -> 0
A178: =IF(AND(I178="x",K178="x",J178="x"),MAX(A$118:A177)+1,0) -> 0 | C178: 61 | E178: =IF(MAX('[3]Overzicht buitenroosters'!C60:C685)<'Muur (2 x vast + regelb 4032)'!C178,0,VLOOKUP(C178,'[3]Overzicht buitenroosters'!$C$4:$AF$625,3,FALSE)) -> 0 | I178: =IF(E178=0,0,IF(#REF!="ja",IF(VLOOKUP(E178,'[3]Overzicht buitenroosters'!E$4:K$596,6,FALSE)="ja","x",0),"x")) -> 0 | J178: =IF(E178=0,0,IF(#REF!="ja",IF(VLOOKUP(E178,'[3]Overzicht buitenroosters'!E$4:K$596,7,FALSE)="ja","x",0),"x")) -> 0 | K178: =IF(E178=0,0,IF(#REF!="ja",IF(VLOOKUP(E178,'[3]Overzicht buitenroosters'!E$4:AK$596,31,FALSE)="ja","x",0),"x")) -> 0
A179: =IF(AND(I179="x",K179="x",J179="x"),MAX(A$118:A178)+1,0) -> 0 | C179: 62 | E179: =IF(MAX('[3]Overzicht buitenroosters'!C61:C686)<'Muur (2 x vast + regelb 4032)'!C179,0,VLOOKUP(C179,'[3]Overzicht buitenroosters'!$C$4:$AF$625,3,FALSE)) -> 0 | I179: =IF(E179=0,0,IF(#REF!="ja",IF(VLOOKUP(E179,'[3]Overzicht buitenroosters'!E$4:K$596,6,FALSE)="ja","x",0),"x")) -> 0 | J179: =IF(E179=0,0,IF(#REF!="ja",IF(VLOOKUP(E179,'[3]Overzicht buitenroosters'!E$4:K$596,7,FALSE)="ja","x",0),"x")) -> 0 | K179: =IF(E179=0,0,IF(#REF!="ja",IF(VLOOKUP(E179,'[3]Overzicht buitenroosters'!E$4:AK$596,31,FALSE)="ja","x",0),"x")) -> 0
A180: =IF(AND(I180="x",K180="x",J180="x"),MAX(A$118:A179)+1,0) -> 0 | C180: 63 | E180: =IF(MAX('[3]Overzicht buitenroosters'!C62:C687)<'Muur (2 x vast + regelb 4032)'!C180,0,VLOOKUP(C180,'[3]Overzicht buitenroosters'!$C$4:$AF$625,3,FALSE)) -> 0 | I180: =IF(E180=0,0,IF(#REF!="ja",IF(VLOOKUP(E180,'[3]Overzicht buitenroosters'!E$4:K$596,6,FALSE)="ja","x",0),"x")) -> 0 | J180: =IF(E180=0,0,IF(#REF!="ja",IF(VLOOKUP(E180,'[3]Overzicht buitenroosters'!E$4:K$596,7,FALSE)="ja","x",0),"x")) -> 0 | K180: =IF(E180=0,0,IF(#REF!="ja",IF(VLOOKUP(E180,'[3]Overzicht buitenroosters'!E$4:AK$596,31,FALSE)="ja","x",0),"x")) -> 0
A181: =IF(AND(I181="x",K181="x",J181="x"),MAX(A$118:A180)+1,0) -> 0 | C181: 64 | E181: =IF(MAX('[3]Overzicht buitenroosters'!C63:C688)<'Muur (2 x vast + regelb 4032)'!C181,0,VLOOKUP(C181,'[3]Overzicht buitenroosters'!$C$4:$AF$625,3,FALSE)) -> 0 | I181: =IF(E181=0,0,IF(#REF!="ja",IF(VLOOKUP(E181,'[3]Overzicht buitenroosters'!E$4:K$596,6,FALSE)="ja","x",0),"x")) -> 0 | J181: =IF(E181=0,0,IF(#REF!="ja",IF(VLOOKUP(E181,'[3]Overzicht buitenroosters'!E$4:K$596,7,FALSE)="ja","x",0),"x")) -> 0 | K181: =IF(E181=0,0,IF(#REF!="ja",IF(VLOOKUP(E181,'[3]Overzicht buitenroosters'!E$4:AK$596,31,FALSE)="ja","x",0),"x")) -> 0
A182: =IF(AND(I182="x",K182="x",J182="x"),MAX(A$118:A181)+1,0) -> 0 | C182: 65 | E182: =IF(MAX('[3]Overzicht buitenroosters'!C64:C689)<'Muur (2 x vast + regelb 4032)'!C182,0,VLOOKUP(C182,'[3]Overzicht buitenroosters'!$C$4:$AF$625,3,FALSE)) -> 0 | I182: =IF(E182=0,0,IF(#REF!="ja",IF(VLOOKUP(E182,'[3]Overzicht buitenroosters'!E$4:K$596,6,FALSE)="ja","x",0),"x")) -> 0 | J182: =IF(E182=0,0,IF(#REF!="ja",IF(VLOOKUP(E182,'[3]Overzicht buitenroosters'!E$4:K$596,7,FALSE)="ja","x",0),"x")) -> 0 | K182: =IF(E182=0,0,IF(#REF!="ja",IF(VLOOKUP(E182,'[3]Overzicht buitenroosters'!E$4:AK$596,31,FALSE)="ja","x",0),"x")) -> 0 | L182: =IF(MAX(A$118:B$526)<C182,"",VLOOKUP(C182,A$118:AH$526,5,FALSE)) -> 
A183: =IF(AND(I183="x",K183="x",J183="x"),MAX(A$118:A182)+1,0) -> 0 | C183: 66 | E183: =IF(MAX('[3]Overzicht buitenroosters'!C65:C690)<'Muur (2 x vast + regelb 4032)'!C183,0,VLOOKUP(C183,'[3]Overzicht buitenroosters'!$C$4:$AF$625,3,FALSE)) -> 0 | I183: =IF(E183=0,0,IF(#REF!="ja",IF(VLOOKUP(E183,'[3]Overzicht buitenroosters'!E$4:K$596,6,FALSE)="ja","x",0),"x")) -> 0 | J183: =IF(E183=0,0,IF(#REF!="ja",IF(VLOOKUP(E183,'[3]Overzicht buitenroosters'!E$4:K$596,7,FALSE)="ja","x",0),"x")) -> 0 | K183: =IF(E183=0,0,IF(#REF!="ja",IF(VLOOKUP(E183,'[3]Overzicht buitenroosters'!E$4:AK$596,31,FALSE)="ja","x",0),"x")) -> 0
A184: =IF(AND(I184="x",K184="x",J184="x"),MAX(A$118:A183)+1,0) -> 0 | C184: 67 | E184: =IF(MAX('[3]Overzicht buitenroosters'!C66:C691)<'Muur (2 x vast + regelb 4032)'!C184,0,VLOOKUP(C184,'[3]Overzicht buitenroosters'!$C$4:$AF$625,3,FALSE)) -> 0 | I184: =IF(E184=0,0,IF(#REF!="ja",IF(VLOOKUP(E184,'[3]Overzicht buitenroosters'!E$4:K$596,6,FALSE)="ja","x",0),"x")) -> 0 | J184: =IF(E184=0,0,IF(#REF!="ja",IF(VLOOKUP(E184,'[3]Overzicht buitenroosters'!E$4:K$596,7,FALSE)="ja","x",0),"x")) -> 0 | K184: =IF(E184=0,0,IF(#REF!="ja",IF(VLOOKUP(E184,'[3]Overzicht buitenroosters'!E$4:AK$596,31,FALSE)="ja","x",0),"x")) -> 0
A185: =IF(AND(I185="x",K185="x",J185="x"),MAX(A$118:A184)+1,0) -> 0 | C185: 68 | E185: =IF(MAX('[3]Overzicht buitenroosters'!C67:C692)<'Muur (2 x vast + regelb 4032)'!C185,0,VLOOKUP(C185,'[3]Overzicht buitenroosters'!$C$4:$AF$625,3,FALSE)) -> 0 | I185: =IF(E185=0,0,IF(#REF!="ja",IF(VLOOKUP(E185,'[3]Overzicht buitenroosters'!E$4:K$596,6,FALSE)="ja","x",0),"x")) -> 0 | J185: =IF(E185=0,0,IF(#REF!="ja",IF(VLOOKUP(E185,'[3]Overzicht buitenroosters'!E$4:K$596,7,FALSE)="ja","x",0),"x")) -> 0 | K185: =IF(E185=0,0,IF(#REF!="ja",IF(VLOOKUP(E185,'[3]Overzicht buitenroosters'!E$4:AK$596,31,FALSE)="ja","x",0),"x")) -> 0
A186: =IF(AND(I186="x",K186="x",J186="x"),MAX(A$118:A185)+1,0) -> 0 | C186: 69 | E186: =IF(MAX('[3]Overzicht buitenroosters'!C68:C693)<'Muur (2 x vast + regelb 4032)'!C186,0,VLOOKUP(C186,'[3]Overzicht buitenroosters'!$C$4:$AF$625,3,FALSE)) -> 0 | I186: =IF(E186=0,0,IF(#REF!="ja",IF(VLOOKUP(E186,'[3]Overzicht buitenroosters'!E$4:K$596,6,FALSE)="ja","x",0),"x")) -> 0 | J186: =IF(E186=0,0,IF(#REF!="ja",IF(VLOOKUP(E186,'[3]Overzicht buitenroosters'!E$4:K$596,7,FALSE)="ja","x",0),"x")) -> 0 | K186: =IF(E186=0,0,IF(#REF!="ja",IF(VLOOKUP(E186,'[3]Overzicht buitenroosters'!E$4:AK$596,31,FALSE)="ja","x",0),"x")) -> 0
A187: =IF(AND(I187="x",K187="x",J187="x"),MAX(A$118:A186)+1,0) -> 0 | C187: 70 | E187: =IF(MAX('[3]Overzicht buitenroosters'!C69:C694)<'Muur (2 x vast + regelb 4032)'!C187,0,VLOOKUP(C187,'[3]Overzicht buitenroosters'!$C$4:$AF$625,3,FALSE)) -> 0 | I187: =IF(E187=0,0,IF(#REF!="ja",IF(VLOOKUP(E187,'[3]Overzicht buitenroosters'!E$4:K$596,6,FALSE)="ja","x",0),"x")) -> 0 | J187: =IF(E187=0,0,IF(#REF!="ja",IF(VLOOKUP(E187,'[3]Overzicht buitenroosters'!E$4:K$596,7,FALSE)="ja","x",0),"x")) -> 0 | K187: =IF(E187=0,0,IF(#REF!="ja",IF(VLOOKUP(E187,'[3]Overzicht buitenroosters'!E$4:AK$596,31,FALSE)="ja","x",0),"x")) -> 0
A188: =IF(AND(I188="x",K188="x",J188="x"),MAX(A$118:A187)+1,0) -> 0 | C188: 71 | E188: =IF(MAX('[3]Overzicht buitenroosters'!C70:C695)<'Muur (2 x vast + regelb 4032)'!C188,0,VLOOKUP(C188,'[3]Overzicht buitenroosters'!$C$4:$AF$625,3,FALSE)) -> 0 | I188: =IF(E188=0,0,IF(#REF!="ja",IF(VLOOKUP(E188,'[3]Overzicht buitenroosters'!E$4:K$596,6,FALSE)="ja","x",0),"x")) -> 0 | J188: =IF(E188=0,0,IF(#REF!="ja",IF(VLOOKUP(E188,'[3]Overzicht buitenroosters'!E$4:K$596,7,FALSE)="ja","x",0),"x")) -> 0 | K188: =IF(E188=0,0,IF(#REF!="ja",IF(VLOOKUP(E188,'[3]Overzicht buitenroosters'!E$4:AK$596,31,FALSE)="ja","x",0),"x")) -> 0
A189: =IF(AND(I189="x",K189="x",J189="x"),MAX(A$118:A188)+1,0) -> 0 | C189: 72 | E189: =IF(MAX('[3]Overzicht buitenroosters'!C71:C696)<'Muur (2 x vast + regelb 4032)'!C189,0,VLOOKUP(C189,'[3]Overzicht buitenroosters'!$C$4:$AF$625,3,FALSE)) -> 0 | I189: =IF(E189=0,0,IF(#REF!="ja",IF(VLOOKUP(E189,'[3]Overzicht buitenroosters'!E$4:K$596,6,FALSE)="ja","x",0),"x")) -> 0 | J189: =IF(E189=0,0,IF(#REF!="ja",IF(VLOOKUP(E189,'[3]Overzicht buitenroosters'!E$4:K$596,7,FALSE)="ja","x",0),"x")) -> 0 | K189: =IF(E189=0,0,IF(#REF!="ja",IF(VLOOKUP(E189,'[3]Overzicht buitenroosters'!E$4:AK$596,31,FALSE)="ja","x",0),"x")) -> 0
A190: =IF(AND(I190="x",K190="x",J190="x"),MAX(A$118:A189)+1,0) -> 0 | C190: 73 | E190: =IF(MAX('[3]Overzicht buitenroosters'!C72:C697)<'Muur (2 x vast + regelb 4032)'!C190,0,VLOOKUP(C190,'[3]Overzicht buitenroosters'!$C$4:$AF$625,3,FALSE)) -> 0 | I190: =IF(E190=0,0,IF(#REF!="ja",IF(VLOOKUP(E190,'[3]Overzicht buitenroosters'!E$4:K$596,6,FALSE)="ja","x",0),"x")) -> 0 | J190: =IF(E190=0,0,IF(#REF!="ja",IF(VLOOKUP(E190,'[3]Overzicht buitenroosters'!E$4:K$596,7,FALSE)="ja","x",0),"x")) -> 0 | K190: =IF(E190=0,0,IF(#REF!="ja",IF(VLOOKUP(E190,'[3]Overzicht buitenroosters'!E$4:AK$596,31,FALSE)="ja","x",0),"x")) -> 0
A191: =IF(AND(I191="x",K191="x",J191="x"),MAX(A$118:A190)+1,0) -> 0 | C191: 74 | E191: =IF(MAX('[3]Overzicht buitenroosters'!C73:C698)<'Muur (2 x vast + regelb 4032)'!C191,0,VLOOKUP(C191,'[3]Overzicht buitenroosters'!$C$4:$AF$625,3,FALSE)) -> 0 | I191: =IF(E191=0,0,IF(#REF!="ja",IF(VLOOKUP(E191,'[3]Overzicht buitenroosters'!E$4:K$596,6,FALSE)="ja","x",0),"x")) -> 0 | J191: =IF(E191=0,0,IF(#REF!="ja",IF(VLOOKUP(E191,'[3]Overzicht buitenroosters'!E$4:K$596,7,FALSE)="ja","x",0),"x")) -> 0 | K191: =IF(E191=0,0,IF(#REF!="ja",IF(VLOOKUP(E191,'[3]Overzicht buitenroosters'!E$4:AK$596,31,FALSE)="ja","x",0),"x")) -> 0
A192: =IF(AND(I192="x",K192="x",J192="x"),MAX(A$118:A191)+1,0) -> 0 | C192: 75 | E192: =IF(MAX('[3]Overzicht buitenroosters'!C74:C699)<'Muur (2 x vast + regelb 4032)'!C192,0,VLOOKUP(C192,'[3]Overzicht buitenroosters'!$C$4:$AF$625,3,FALSE)) -> 0 | I192: =IF(E192=0,0,IF(#REF!="ja",IF(VLOOKUP(E192,'[3]Overzicht buitenroosters'!E$4:K$596,6,FALSE)="ja","x",0),"x")) -> 0 | J192: =IF(E192=0,0,IF(#REF!="ja",IF(VLOOKUP(E192,'[3]Overzicht buitenroosters'!E$4:K$596,7,FALSE)="ja","x",0),"x")) -> 0 | K192: =IF(E192=0,0,IF(#REF!="ja",IF(VLOOKUP(E192,'[3]Overzicht buitenroosters'!E$4:AK$596,31,FALSE)="ja","x",0),"x")) -> 0
A193: =IF(AND(I193="x",K193="x",J193="x"),MAX(A$118:A192)+1,0) -> 0 | C193: 76 | E193: =IF(MAX('[3]Overzicht buitenroosters'!C75:C700)<'Muur (2 x vast + regelb 4032)'!C193,0,VLOOKUP(C193,'[3]Overzicht buitenroosters'!$C$4:$AF$625,3,FALSE)) -> 0 | I193: =IF(E193=0,0,IF(#REF!="ja",IF(VLOOKUP(E193,'[3]Overzicht buitenroosters'!E$4:K$596,6,FALSE)="ja","x",0),"x")) -> 0 | J193: =IF(E193=0,0,IF(#REF!="ja",IF(VLOOKUP(E193,'[3]Overzicht buitenroosters'!E$4:K$596,7,FALSE)="ja","x",0),"x")) -> 0 | K193: =IF(E193=0,0,IF(#REF!="ja",IF(VLOOKUP(E193,'[3]Overzicht buitenroosters'!E$4:AK$596,31,FALSE)="ja","x",0),"x")) -> 0
A194: =IF(AND(I194="x",K194="x",J194="x"),MAX(A$118:A193)+1,0) -> 0 | C194: 77 | E194: =IF(MAX('[3]Overzicht buitenroosters'!C76:C701)<'Muur (2 x vast + regelb 4032)'!C194,0,VLOOKUP(C194,'[3]Overzicht buitenroosters'!$C$4:$AF$625,3,FALSE)) -> 0 | I194: =IF(E194=0,0,IF(#REF!="ja",IF(VLOOKUP(E194,'[3]Overzicht buitenroosters'!E$4:K$596,6,FALSE)="ja","x",0),"x")) -> 0 | J194: =IF(E194=0,0,IF(#REF!="ja",IF(VLOOKUP(E194,'[3]Overzicht buitenroosters'!E$4:K$596,7,FALSE)="ja","x",0),"x")) -> 0 | K194: =IF(E194=0,0,IF(#REF!="ja",IF(VLOOKUP(E194,'[3]Overzicht buitenroosters'!E$4:AK$596,31,FALSE)="ja","x",0),"x")) -> 0
A195: =IF(AND(I195="x",K195="x",J195="x"),MAX(A$118:A194)+1,0) -> 0 | C195: 78 | E195: =IF(MAX('[3]Overzicht buitenroosters'!C77:C702)<'Muur (2 x vast + regelb 4032)'!C195,0,VLOOKUP(C195,'[3]Overzicht buitenroosters'!$C$4:$AF$625,3,FALSE)) -> 0 | I195: =IF(E195=0,0,IF(#REF!="ja",IF(VLOOKUP(E195,'[3]Overzicht buitenroosters'!E$4:K$596,6,FALSE)="ja","x",0),"x")) -> 0 | J195: =IF(E195=0,0,IF(#REF!="ja",IF(VLOOKUP(E195,'[3]Overzicht buitenroosters'!E$4:K$596,7,FALSE)="ja","x",0),"x")) -> 0 | K195: =IF(E195=0,0,IF(#REF!="ja",IF(VLOOKUP(E195,'[3]Overzicht buitenroosters'!E$4:AK$596,31,FALSE)="ja","x",0),"x")) -> 0
A196: =IF(AND(I196="x",K196="x",J196="x"),MAX(A$118:A195)+1,0) -> 0 | C196: 79 | E196: =IF(MAX('[3]Overzicht buitenroosters'!C78:C703)<'Muur (2 x vast + regelb 4032)'!C196,0,VLOOKUP(C196,'[3]Overzicht buitenroosters'!$C$4:$AF$625,3,FALSE)) -> 0 | I196: =IF(E196=0,0,IF(#REF!="ja",IF(VLOOKUP(E196,'[3]Overzicht buitenroosters'!E$4:K$596,6,FALSE)="ja","x",0),"x")) -> 0 | J196: =IF(E196=0,0,IF(#REF!="ja",IF(VLOOKUP(E196,'[3]Overzicht buitenroosters'!E$4:K$596,7,FALSE)="ja","x",0),"x")) -> 0 | K196: =IF(E196=0,0,IF(#REF!="ja",IF(VLOOKUP(E196,'[3]Overzicht buitenroosters'!E$4:AK$596,31,FALSE)="ja","x",0),"x")) -> 0
A197: =IF(AND(I197="x",K197="x",J197="x"),MAX(A$118:A196)+1,0) -> 0 | C197: 80 | E197: =IF(MAX('[3]Overzicht buitenroosters'!C79:C704)<'Muur (2 x vast + regelb 4032)'!C197,0,VLOOKUP(C197,'[3]Overzicht buitenroosters'!$C$4:$AF$625,3,FALSE)) -> 0 | I197: =IF(E197=0,0,IF(#REF!="ja",IF(VLOOKUP(E197,'[3]Overzicht buitenroosters'!E$4:K$596,6,FALSE)="ja","x",0),"x")) -> 0 | J197: =IF(E197=0,0,IF(#REF!="ja",IF(VLOOKUP(E197,'[3]Overzicht buitenroosters'!E$4:K$596,7,FALSE)="ja","x",0),"x")) -> 0 | K197: =IF(E197=0,0,IF(#REF!="ja",IF(VLOOKUP(E197,'[3]Overzicht buitenroosters'!E$4:AK$596,31,FALSE)="ja","x",0),"x")) -> 0
A198: =IF(AND(I198="x",K198="x",J198="x"),MAX(A$118:A197)+1,0) -> 0 | C198: 81 | E198: =IF(MAX('[3]Overzicht buitenroosters'!C80:C705)<'Muur (2 x vast + regelb 4032)'!C198,0,VLOOKUP(C198,'[3]Overzicht buitenroosters'!$C$4:$AF$625,3,FALSE)) -> 0 | I198: =IF(E198=0,0,IF(#REF!="ja",IF(VLOOKUP(E198,'[3]Overzicht buitenroosters'!E$4:K$596,6,FALSE)="ja","x",0),"x")) -> 0 | J198: =IF(E198=0,0,IF(#REF!="ja",IF(VLOOKUP(E198,'[3]Overzicht buitenroosters'!E$4:K$596,7,FALSE)="ja","x",0),"x")) -> 0 | K198: =IF(E198=0,0,IF(#REF!="ja",IF(VLOOKUP(E198,'[3]Overzicht buitenroosters'!E$4:AK$596,31,FALSE)="ja","x",0),"x")) -> 0
A199: =IF(AND(I199="x",K199="x",J199="x"),MAX(A$118:A198)+1,0) -> 0 | C199: 82 | E199: =IF(MAX('[3]Overzicht buitenroosters'!C81:C706)<'Muur (2 x vast + regelb 4032)'!C199,0,VLOOKUP(C199,'[3]Overzicht buitenroosters'!$C$4:$AF$625,3,FALSE)) -> 0 | I199: =IF(E199=0,0,IF(#REF!="ja",IF(VLOOKUP(E199,'[3]Overzicht buitenroosters'!E$4:K$596,6,FALSE)="ja","x",0),"x")) -> 0 | J199: =IF(E199=0,0,IF(#REF!="ja",IF(VLOOKUP(E199,'[3]Overzicht buitenroosters'!E$4:K$596,7,FALSE)="ja","x",0),"x")) -> 0 | K199: =IF(E199=0,0,IF(#REF!="ja",IF(VLOOKUP(E199,'[3]Overzicht buitenroosters'!E$4:AK$596,31,FALSE)="ja","x",0),"x")) -> 0
A200: =IF(AND(I200="x",K200="x",J200="x"),MAX(A$118:A199)+1,0) -> 0 | C200: 83 | E200: =IF(MAX('[3]Overzicht buitenroosters'!C82:C707)<'Muur (2 x vast + regelb 4032)'!C200,0,VLOOKUP(C200,'[3]Overzicht buitenroosters'!$C$4:$AF$625,3,FALSE)) -> 0 | I200: =IF(E200=0,0,IF(#REF!="ja",IF(VLOOKUP(E200,'[3]Overzicht buitenroosters'!E$4:K$596,6,FALSE)="ja","x",0),"x")) -> 0 | J200: =IF(E200=0,0,IF(#REF!="ja",IF(VLOOKUP(E200,'[3]Overzicht buitenroosters'!E$4:K$596,7,FALSE)="ja","x",0),"x")) -> 0 | K200: =IF(E200=0,0,IF(#REF!="ja",IF(VLOOKUP(E200,'[3]Overzicht buitenroosters'!E$4:AK$596,31,FALSE)="ja","x",0),"x")) -> 0
A201: =IF(AND(I201="x",K201="x",J201="x"),MAX(A$118:A200)+1,0) -> 0 | C201: 84 | E201: =IF(MAX('[3]Overzicht buitenroosters'!C83:C708)<'Muur (2 x vast + regelb 4032)'!C201,0,VLOOKUP(C201,'[3]Overzicht buitenroosters'!$C$4:$AF$625,3,FALSE)) -> 0 | I201: =IF(E201=0,0,IF(#REF!="ja",IF(VLOOKUP(E201,'[3]Overzicht buitenroosters'!E$4:K$596,6,FALSE)="ja","x",0),"x")) -> 0 | J201: =IF(E201=0,0,IF(#REF!="ja",IF(VLOOKUP(E201,'[3]Overzicht buitenroosters'!E$4:K$596,7,FALSE)="ja","x",0),"x")) -> 0 | K201: =IF(E201=0,0,IF(#REF!="ja",IF(VLOOKUP(E201,'[3]Overzicht buitenroosters'!E$4:AK$596,31,FALSE)="ja","x",0),"x")) -> 0
A202: =IF(AND(I202="x",K202="x",J202="x"),MAX(A$118:A201)+1,0) -> 0 | C202: 85 | E202: =IF(MAX('[3]Overzicht buitenroosters'!C84:C709)<'Muur (2 x vast + regelb 4032)'!C202,0,VLOOKUP(C202,'[3]Overzicht buitenroosters'!$C$4:$AF$625,3,FALSE)) -> 0 | I202: =IF(E202=0,0,IF(#REF!="ja",IF(VLOOKUP(E202,'[3]Overzicht buitenroosters'!E$4:K$596,6,FALSE)="ja","x",0),"x")) -> 0 | J202: =IF(E202=0,0,IF(#REF!="ja",IF(VLOOKUP(E202,'[3]Overzicht buitenroosters'!E$4:K$596,7,FALSE)="ja","x",0),"x")) -> 0 | K202: =IF(E202=0,0,IF(#REF!="ja",IF(VLOOKUP(E202,'[3]Overzicht buitenroosters'!E$4:AK$596,31,FALSE)="ja","x",0),"x")) -> 0
A203: =IF(AND(I203="x",K203="x",J203="x"),MAX(A$118:A202)+1,0) -> 0 | C203: 86 | E203: =IF(MAX('[3]Overzicht buitenroosters'!C85:C710)<'Muur (2 x vast + regelb 4032)'!C203,0,VLOOKUP(C203,'[3]Overzicht buitenroosters'!$C$4:$AF$625,3,FALSE)) -> 0 | I203: =IF(E203=0,0,IF(#REF!="ja",IF(VLOOKUP(E203,'[3]Overzicht buitenroosters'!E$4:K$596,6,FALSE)="ja","x",0),"x")) -> 0 | J203: =IF(E203=0,0,IF(#REF!="ja",IF(VLOOKUP(E203,'[3]Overzicht buitenroosters'!E$4:K$596,7,FALSE)="ja","x",0),"x")) -> 0 | K203: =IF(E203=0,0,IF(#REF!="ja",IF(VLOOKUP(E203,'[3]Overzicht buitenroosters'!E$4:AK$596,31,FALSE)="ja","x",0),"x")) -> 0
A204: =IF(AND(I204="x",K204="x",J204="x"),MAX(A$118:A203)+1,0) -> 0 | C204: 87 | E204: =IF(MAX('[3]Overzicht buitenroosters'!C86:C711)<'Muur (2 x vast + regelb 4032)'!C204,0,VLOOKUP(C204,'[3]Overzicht buitenroosters'!$C$4:$AF$625,3,FALSE)) -> 0 | I204: =IF(E204=0,0,IF(#REF!="ja",IF(VLOOKUP(E204,'[3]Overzicht buitenroosters'!E$4:K$596,6,FALSE)="ja","x",0),"x")) -> 0 | J204: =IF(E204=0,0,IF(#REF!="ja",IF(VLOOKUP(E204,'[3]Overzicht buitenroosters'!E$4:K$596,7,FALSE)="ja","x",0),"x")) -> 0 | K204: =IF(E204=0,0,IF(#REF!="ja",IF(VLOOKUP(E204,'[3]Overzicht buitenroosters'!E$4:AK$596,31,FALSE)="ja","x",0),"x")) -> 0
A205: =IF(AND(I205="x",K205="x",J205="x"),MAX(A$118:A204)+1,0) -> 0 | C205: 88 | E205: =IF(MAX('[3]Overzicht buitenroosters'!C87:C712)<'Muur (2 x vast + regelb 4032)'!C205,0,VLOOKUP(C205,'[3]Overzicht buitenroosters'!$C$4:$AF$625,3,FALSE)) -> 0 | I205: =IF(E205=0,0,IF(#REF!="ja",IF(VLOOKUP(E205,'[3]Overzicht buitenroosters'!E$4:K$596,6,FALSE)="ja","x",0),"x")) -> 0 | J205: =IF(E205=0,0,IF(#REF!="ja",IF(VLOOKUP(E205,'[3]Overzicht buitenroosters'!E$4:K$596,7,FALSE)="ja","x",0),"x")) -> 0 | K205: =IF(E205=0,0,IF(#REF!="ja",IF(VLOOKUP(E205,'[3]Overzicht buitenroosters'!E$4:AK$596,31,FALSE)="ja","x",0),"x")) -> 0
A206: =IF(AND(I206="x",K206="x",J206="x"),MAX(A$118:A205)+1,0) -> 0 | C206: 89 | E206: =IF(MAX('[3]Overzicht buitenroosters'!C88:C713)<'Muur (2 x vast + regelb 4032)'!C206,0,VLOOKUP(C206,'[3]Overzicht buitenroosters'!$C$4:$AF$625,3,FALSE)) -> 0 | I206: =IF(E206=0,0,IF(#REF!="ja",IF(VLOOKUP(E206,'[3]Overzicht buitenroosters'!E$4:K$596,6,FALSE)="ja","x",0),"x")) -> 0 | J206: =IF(E206=0,0,IF(#REF!="ja",IF(VLOOKUP(E206,'[3]Overzicht buitenroosters'!E$4:K$596,7,FALSE)="ja","x",0),"x")) -> 0 | K206: =IF(E206=0,0,IF(#REF!="ja",IF(VLOOKUP(E206,'[3]Overzicht buitenroosters'!E$4:AK$596,31,FALSE)="ja","x",0),"x")) -> 0
A207: =IF(AND(I207="x",K207="x",J207="x"),MAX(A$118:A206)+1,0) -> 0 | C207: 90 | E207: =IF(MAX('[3]Overzicht buitenroosters'!C89:C714)<'Muur (2 x vast + regelb 4032)'!C207,0,VLOOKUP(C207,'[3]Overzicht buitenroosters'!$C$4:$AF$625,3,FALSE)) -> 0 | I207: =IF(E207=0,0,IF(#REF!="ja",IF(VLOOKUP(E207,'[3]Overzicht buitenroosters'!E$4:K$596,6,FALSE)="ja","x",0),"x")) -> 0 | J207: =IF(E207=0,0,IF(#REF!="ja",IF(VLOOKUP(E207,'[3]Overzicht buitenroosters'!E$4:K$596,7,FALSE)="ja","x",0),"x")) -> 0 | K207: =IF(E207=0,0,IF(#REF!="ja",IF(VLOOKUP(E207,'[3]Overzicht buitenroosters'!E$4:AK$596,31,FALSE)="ja","x",0),"x")) -> 0
A208: =IF(AND(I208="x",K208="x",J208="x"),MAX(A$118:A207)+1,0) -> 0 | C208: 91 | E208: =IF(MAX('[3]Overzicht buitenroosters'!C90:C715)<'Muur (2 x vast + regelb 4032)'!C208,0,VLOOKUP(C208,'[3]Overzicht buitenroosters'!$C$4:$AF$625,3,FALSE)) -> 0 | I208: =IF(E208=0,0,IF(#REF!="ja",IF(VLOOKUP(E208,'[3]Overzicht buitenroosters'!E$4:K$596,6,FALSE)="ja","x",0),"x")) -> 0 | J208: =IF(E208=0,0,IF(#REF!="ja",IF(VLOOKUP(E208,'[3]Overzicht buitenroosters'!E$4:K$596,7,FALSE)="ja","x",0),"x")) -> 0 | K208: =IF(E208=0,0,IF(#REF!="ja",IF(VLOOKUP(E208,'[3]Overzicht buitenroosters'!E$4:AK$596,31,FALSE)="ja","x",0),"x")) -> 0
A209: =IF(AND(I209="x",K209="x",J209="x"),MAX(A$118:A208)+1,0) -> 0 | C209: 92 | E209: =IF(MAX('[3]Overzicht buitenroosters'!C91:C716)<'Muur (2 x vast + regelb 4032)'!C209,0,VLOOKUP(C209,'[3]Overzicht buitenroosters'!$C$4:$AF$625,3,FALSE)) -> 0 | I209: =IF(E209=0,0,IF(#REF!="ja",IF(VLOOKUP(E209,'[3]Overzicht buitenroosters'!E$4:K$596,6,FALSE)="ja","x",0),"x")) -> 0 | J209: =IF(E209=0,0,IF(#REF!="ja",IF(VLOOKUP(E209,'[3]Overzicht buitenroosters'!E$4:K$596,7,FALSE)="ja","x",0),"x")) -> 0 | K209: =IF(E209=0,0,IF(#REF!="ja",IF(VLOOKUP(E209,'[3]Overzicht buitenroosters'!E$4:AK$596,31,FALSE)="ja","x",0),"x")) -> 0
A210: =IF(AND(I210="x",K210="x",J210="x"),MAX(A$118:A209)+1,0) -> 0 | C210: 93 | E210: =IF(MAX('[3]Overzicht buitenroosters'!C92:C717)<'Muur (2 x vast + regelb 4032)'!C210,0,VLOOKUP(C210,'[3]Overzicht buitenroosters'!$C$4:$AF$625,3,FALSE)) -> 0 | I210: =IF(E210=0,0,IF(#REF!="ja",IF(VLOOKUP(E210,'[3]Overzicht buitenroosters'!E$4:K$596,6,FALSE)="ja","x",0),"x")) -> 0 | J210: =IF(E210=0,0,IF(#REF!="ja",IF(VLOOKUP(E210,'[3]Overzicht buitenroosters'!E$4:K$596,7,FALSE)="ja","x",0),"x")) -> 0 | K210: =IF(E210=0,0,IF(#REF!="ja",IF(VLOOKUP(E210,'[3]Overzicht buitenroosters'!E$4:AK$596,31,FALSE)="ja","x",0),"x")) -> 0
A211: =IF(AND(I211="x",K211="x",J211="x"),MAX(A$118:A210)+1,0) -> 0 | C211: 94 | E211: =IF(MAX('[3]Overzicht buitenroosters'!C93:C718)<'Muur (2 x vast + regelb 4032)'!C211,0,VLOOKUP(C211,'[3]Overzicht buitenroosters'!$C$4:$AF$625,3,FALSE)) -> 0 | I211: =IF(E211=0,0,IF(#REF!="ja",IF(VLOOKUP(E211,'[3]Overzicht buitenroosters'!E$4:K$596,6,FALSE)="ja","x",0),"x")) -> 0 | J211: =IF(E211=0,0,IF(#REF!="ja",IF(VLOOKUP(E211,'[3]Overzicht buitenroosters'!E$4:K$596,7,FALSE)="ja","x",0),"x")) -> 0 | K211: =IF(E211=0,0,IF(#REF!="ja",IF(VLOOKUP(E211,'[3]Overzicht buitenroosters'!E$4:AK$596,31,FALSE)="ja","x",0),"x")) -> 0
A212: =IF(AND(I212="x",K212="x",J212="x"),MAX(A$118:A211)+1,0) -> 0 | C212: 95 | E212: =IF(MAX('[3]Overzicht buitenroosters'!C94:C719)<'Muur (2 x vast + regelb 4032)'!C212,0,VLOOKUP(C212,'[3]Overzicht buitenroosters'!$C$4:$AF$625,3,FALSE)) -> 0 | I212: =IF(E212=0,0,IF(#REF!="ja",IF(VLOOKUP(E212,'[3]Overzicht buitenroosters'!E$4:K$596,6,FALSE)="ja","x",0),"x")) -> 0 | J212: =IF(E212=0,0,IF(#REF!="ja",IF(VLOOKUP(E212,'[3]Overzicht buitenroosters'!E$4:K$596,7,FALSE)="ja","x",0),"x")) -> 0 | K212: =IF(E212=0,0,IF(#REF!="ja",IF(VLOOKUP(E212,'[3]Overzicht buitenroosters'!E$4:AK$596,31,FALSE)="ja","x",0),"x")) -> 0
A213: =IF(AND(I213="x",K213="x",J213="x"),MAX(A$118:A212)+1,0) -> 0 | C213: 96 | E213: =IF(MAX('[3]Overzicht buitenroosters'!C95:C720)<'Muur (2 x vast + regelb 4032)'!C213,0,VLOOKUP(C213,'[3]Overzicht buitenroosters'!$C$4:$AF$625,3,FALSE)) -> 0 | I213: =IF(E213=0,0,IF(#REF!="ja",IF(VLOOKUP(E213,'[3]Overzicht buitenroosters'!E$4:K$596,6,FALSE)="ja","x",0),"x")) -> 0 | J213: =IF(E213=0,0,IF(#REF!="ja",IF(VLOOKUP(E213,'[3]Overzicht buitenroosters'!E$4:K$596,7,FALSE)="ja","x",0),"x")) -> 0 | K213: =IF(E213=0,0,IF(#REF!="ja",IF(VLOOKUP(E213,'[3]Overzicht buitenroosters'!E$4:AK$596,31,FALSE)="ja","x",0),"x")) -> 0
A214: =IF(AND(I214="x",K214="x",J214="x"),MAX(A$118:A213)+1,0) -> 0 | C214: 97 | E214: =IF(MAX('[3]Overzicht buitenroosters'!C96:C721)<'Muur (2 x vast + regelb 4032)'!C214,0,VLOOKUP(C214,'[3]Overzicht buitenroosters'!$C$4:$AF$625,3,FALSE)) -> 0 | I214: =IF(E214=0,0,IF(#REF!="ja",IF(VLOOKUP(E214,'[3]Overzicht buitenroosters'!E$4:K$596,6,FALSE)="ja","x",0),"x")) -> 0 | J214: =IF(E214=0,0,IF(#REF!="ja",IF(VLOOKUP(E214,'[3]Overzicht buitenroosters'!E$4:K$596,7,FALSE)="ja","x",0),"x")) -> 0 | K214: =IF(E214=0,0,IF(#REF!="ja",IF(VLOOKUP(E214,'[3]Overzicht buitenroosters'!E$4:AK$596,31,FALSE)="ja","x",0),"x")) -> 0
A215: =IF(AND(I215="x",K215="x",J215="x"),MAX(A$118:A214)+1,0) -> 0 | C215: 98 | E215: =IF(MAX('[3]Overzicht buitenroosters'!C97:C722)<'Muur (2 x vast + regelb 4032)'!C215,0,VLOOKUP(C215,'[3]Overzicht buitenroosters'!$C$4:$AF$625,3,FALSE)) -> 0 | I215: =IF(E215=0,0,IF(#REF!="ja",IF(VLOOKUP(E215,'[3]Overzicht buitenroosters'!E$4:K$596,6,FALSE)="ja","x",0),"x")) -> 0 | J215: =IF(E215=0,0,IF(#REF!="ja",IF(VLOOKUP(E215,'[3]Overzicht buitenroosters'!E$4:K$596,7,FALSE)="ja","x",0),"x")) -> 0 | K215: =IF(E215=0,0,IF(#REF!="ja",IF(VLOOKUP(E215,'[3]Overzicht buitenroosters'!E$4:AK$596,31,FALSE)="ja","x",0),"x")) -> 0
A216: =IF(AND(I216="x",K216="x",J216="x"),MAX(A$118:A215)+1,0) -> 0 | C216: 99 | E216: =IF(MAX('[3]Overzicht buitenroosters'!C98:C723)<'Muur (2 x vast + regelb 4032)'!C216,0,VLOOKUP(C216,'[3]Overzicht buitenroosters'!$C$4:$AF$625,3,FALSE)) -> 0 | I216: =IF(E216=0,0,IF(#REF!="ja",IF(VLOOKUP(E216,'[3]Overzicht buitenroosters'!E$4:K$596,6,FALSE)="ja","x",0),"x")) -> 0 | J216: =IF(E216=0,0,IF(#REF!="ja",IF(VLOOKUP(E216,'[3]Overzicht buitenroosters'!E$4:K$596,7,FALSE)="ja","x",0),"x")) -> 0 | K216: =IF(E216=0,0,IF(#REF!="ja",IF(VLOOKUP(E216,'[3]Overzicht buitenroosters'!E$4:AK$596,31,FALSE)="ja","x",0),"x")) -> 0
A217: =IF(AND(I217="x",K217="x",J217="x"),MAX(A$118:A216)+1,0) -> 0 | C217: 100 | E217: =IF(MAX('[3]Overzicht buitenroosters'!C99:C724)<'Muur (2 x vast + regelb 4032)'!C217,0,VLOOKUP(C217,'[3]Overzicht buitenroosters'!$C$4:$AF$625,3,FALSE)) -> 0 | I217: =IF(E217=0,0,IF(#REF!="ja",IF(VLOOKUP(E217,'[3]Overzicht buitenroosters'!E$4:K$596,6,FALSE)="ja","x",0),"x")) -> 0 | J217: =IF(E217=0,0,IF(#REF!="ja",IF(VLOOKUP(E217,'[3]Overzicht buitenroosters'!E$4:K$596,7,FALSE)="ja","x",0),"x")) -> 0 | K217: =IF(E217=0,0,IF(#REF!="ja",IF(VLOOKUP(E217,'[3]Overzicht buitenroosters'!E$4:AK$596,31,FALSE)="ja","x",0),"x")) -> 0
A218: =IF(AND(I218="x",K218="x",J218="x"),MAX(A$118:A217)+1,0) -> 0 | C218: 101 | E218: =IF(MAX('[3]Overzicht buitenroosters'!C100:C725)<'Muur (2 x vast + regelb 4032)'!C218,0,VLOOKUP(C218,'[3]Overzicht buitenroosters'!$C$4:$AF$625,3,FALSE)) -> 0 | I218: =IF(E218=0,0,IF(#REF!="ja",IF(VLOOKUP(E218,'[3]Overzicht buitenroosters'!E$4:K$596,6,FALSE)="ja","x",0),"x")) -> 0 | J218: =IF(E218=0,0,IF(#REF!="ja",IF(VLOOKUP(E218,'[3]Overzicht buitenroosters'!E$4:K$596,7,FALSE)="ja","x",0),"x")) -> 0 | K218: =IF(E218=0,0,IF(#REF!="ja",IF(VLOOKUP(E218,'[3]Overzicht buitenroosters'!E$4:AK$596,31,FALSE)="ja","x",0),"x")) -> 0
A219: =IF(AND(I219="x",K219="x",J219="x"),MAX(A$118:A218)+1,0) -> 0 | C219: 102 | E219: =IF(MAX('[3]Overzicht buitenroosters'!C101:C726)<'Muur (2 x vast + regelb 4032)'!C219,0,VLOOKUP(C219,'[3]Overzicht buitenroosters'!$C$4:$AF$625,3,FALSE)) -> 0 | I219: =IF(E219=0,0,IF(#REF!="ja",IF(VLOOKUP(E219,'[3]Overzicht buitenroosters'!E$4:K$596,6,FALSE)="ja","x",0),"x")) -> 0 | J219: =IF(E219=0,0,IF(#REF!="ja",IF(VLOOKUP(E219,'[3]Overzicht buitenroosters'!E$4:K$596,7,FALSE)="ja","x",0),"x")) -> 0 | K219: =IF(E219=0,0,IF(#REF!="ja",IF(VLOOKUP(E219,'[3]Overzicht buitenroosters'!E$4:AK$596,31,FALSE)="ja","x",0),"x")) -> 0
A220: =IF(AND(I220="x",K220="x",J220="x"),MAX(A$118:A219)+1,0) -> 0 | C220: 103 | E220: =IF(MAX('[3]Overzicht buitenroosters'!C102:C727)<'Muur (2 x vast + regelb 4032)'!C220,0,VLOOKUP(C220,'[3]Overzicht buitenroosters'!$C$4:$AF$625,3,FALSE)) -> 0 | I220: =IF(E220=0,0,IF(#REF!="ja",IF(VLOOKUP(E220,'[3]Overzicht buitenroosters'!E$4:K$596,6,FALSE)="ja","x",0),"x")) -> 0 | J220: =IF(E220=0,0,IF(#REF!="ja",IF(VLOOKUP(E220,'[3]Overzicht buitenroosters'!E$4:K$596,7,FALSE)="ja","x",0),"x")) -> 0 | K220: =IF(E220=0,0,IF(#REF!="ja",IF(VLOOKUP(E220,'[3]Overzicht buitenroosters'!E$4:AK$596,31,FALSE)="ja","x",0),"x")) -> 0
A221: =IF(AND(I221="x",K221="x",J221="x"),MAX(A$118:A220)+1,0) -> 0 | C221: 104 | E221: =IF(MAX('[3]Overzicht buitenroosters'!C103:C728)<'Muur (2 x vast + regelb 4032)'!C221,0,VLOOKUP(C221,'[3]Overzicht buitenroosters'!$C$4:$AF$625,3,FALSE)) -> 0 | I221: =IF(E221=0,0,IF(#REF!="ja",IF(VLOOKUP(E221,'[3]Overzicht buitenroosters'!E$4:K$596,6,FALSE)="ja","x",0),"x")) -> 0 | J221: =IF(E221=0,0,IF(#REF!="ja",IF(VLOOKUP(E221,'[3]Overzicht buitenroosters'!E$4:K$596,7,FALSE)="ja","x",0),"x")) -> 0 | K221: =IF(E221=0,0,IF(#REF!="ja",IF(VLOOKUP(E221,'[3]Overzicht buitenroosters'!E$4:AK$596,31,FALSE)="ja","x",0),"x")) -> 0
A222: =IF(AND(I222="x",K222="x",J222="x"),MAX(A$118:A221)+1,0) -> 0 | C222: 105 | E222: =IF(MAX('[3]Overzicht buitenroosters'!C104:C729)<'Muur (2 x vast + regelb 4032)'!C222,0,VLOOKUP(C222,'[3]Overzicht buitenroosters'!$C$4:$AF$625,3,FALSE)) -> 0 | I222: =IF(E222=0,0,IF(#REF!="ja",IF(VLOOKUP(E222,'[3]Overzicht buitenroosters'!E$4:K$596,6,FALSE)="ja","x",0),"x")) -> 0 | J222: =IF(E222=0,0,IF(#REF!="ja",IF(VLOOKUP(E222,'[3]Overzicht buitenroosters'!E$4:K$596,7,FALSE)="ja","x",0),"x")) -> 0 | K222: =IF(E222=0,0,IF(#REF!="ja",IF(VLOOKUP(E222,'[3]Overzicht buitenroosters'!E$4:AK$596,31,FALSE)="ja","x",0),"x")) -> 0
A223: =IF(AND(I223="x",K223="x",J223="x"),MAX(A$118:A222)+1,0) -> 0 | C223: 106 | E223: =IF(MAX('[3]Overzicht buitenroosters'!C105:C730)<'Muur (2 x vast + regelb 4032)'!C223,0,VLOOKUP(C223,'[3]Overzicht buitenroosters'!$C$4:$AF$625,3,FALSE)) -> 0 | I223: =IF(E223=0,0,IF(#REF!="ja",IF(VLOOKUP(E223,'[3]Overzicht buitenroosters'!E$4:K$596,6,FALSE)="ja","x",0),"x")) -> 0 | J223: =IF(E223=0,0,IF(#REF!="ja",IF(VLOOKUP(E223,'[3]Overzicht buitenroosters'!E$4:K$596,7,FALSE)="ja","x",0),"x")) -> 0 | K223: =IF(E223=0,0,IF(#REF!="ja",IF(VLOOKUP(E223,'[3]Overzicht buitenroosters'!E$4:AK$596,31,FALSE)="ja","x",0),"x")) -> 0
A224: =IF(AND(I224="x",K224="x",J224="x"),MAX(A$118:A223)+1,0) -> 0 | C224: 107 | E224: =IF(MAX('[3]Overzicht buitenroosters'!C106:C731)<'Muur (2 x vast + regelb 4032)'!C224,0,VLOOKUP(C224,'[3]Overzicht buitenroosters'!$C$4:$AF$625,3,FALSE)) -> 0 | I224: =IF(E224=0,0,IF(#REF!="ja",IF(VLOOKUP(E224,'[3]Overzicht buitenroosters'!E$4:K$596,6,FALSE)="ja","x",0),"x")) -> 0 | J224: =IF(E224=0,0,IF(#REF!="ja",IF(VLOOKUP(E224,'[3]Overzicht buitenroosters'!E$4:K$596,7,FALSE)="ja","x",0),"x")) -> 0 | K224: =IF(E224=0,0,IF(#REF!="ja",IF(VLOOKUP(E224,'[3]Overzicht buitenroosters'!E$4:AK$596,31,FALSE)="ja","x",0),"x")) -> 0
A225: =IF(AND(I225="x",K225="x",J225="x"),MAX(A$118:A224)+1,0) -> 0 | C225: 108 | E225: =IF(MAX('[3]Overzicht buitenroosters'!C107:C732)<'Muur (2 x vast + regelb 4032)'!C225,0,VLOOKUP(C225,'[3]Overzicht buitenroosters'!$C$4:$AF$625,3,FALSE)) -> 0 | I225: =IF(E225=0,0,IF(#REF!="ja",IF(VLOOKUP(E225,'[3]Overzicht buitenroosters'!E$4:K$596,6,FALSE)="ja","x",0),"x")) -> 0 | J225: =IF(E225=0,0,IF(#REF!="ja",IF(VLOOKUP(E225,'[3]Overzicht buitenroosters'!E$4:K$596,7,FALSE)="ja","x",0),"x")) -> 0 | K225: =IF(E225=0,0,IF(#REF!="ja",IF(VLOOKUP(E225,'[3]Overzicht buitenroosters'!E$4:AK$596,31,FALSE)="ja","x",0),"x")) -> 0
A226: =IF(AND(I226="x",K226="x",J226="x"),MAX(A$118:A225)+1,0) -> 0 | C226: 109 | E226: =IF(MAX('[3]Overzicht buitenroosters'!C108:C733)<'Muur (2 x vast + regelb 4032)'!C226,0,VLOOKUP(C226,'[3]Overzicht buitenroosters'!$C$4:$AF$625,3,FALSE)) -> 0 | I226: =IF(E226=0,0,IF(#REF!="ja",IF(VLOOKUP(E226,'[3]Overzicht buitenroosters'!E$4:K$596,6,FALSE)="ja","x",0),"x")) -> 0 | J226: =IF(E226=0,0,IF(#REF!="ja",IF(VLOOKUP(E226,'[3]Overzicht buitenroosters'!E$4:K$596,7,FALSE)="ja","x",0),"x")) -> 0 | K226: =IF(E226=0,0,IF(#REF!="ja",IF(VLOOKUP(E226,'[3]Overzicht buitenroosters'!E$4:AK$596,31,FALSE)="ja","x",0),"x")) -> 0
A227: =IF(AND(I227="x",K227="x",J227="x"),MAX(A$118:A226)+1,0) -> 0 | C227: 110 | E227: =IF(MAX('[3]Overzicht buitenroosters'!C109:C734)<'Muur (2 x vast + regelb 4032)'!C227,0,VLOOKUP(C227,'[3]Overzicht buitenroosters'!$C$4:$AF$625,3,FALSE)) -> 0 | I227: =IF(E227=0,0,IF(#REF!="ja",IF(VLOOKUP(E227,'[3]Overzicht buitenroosters'!E$4:K$596,6,FALSE)="ja","x",0),"x")) -> 0 | J227: =IF(E227=0,0,IF(#REF!="ja",IF(VLOOKUP(E227,'[3]Overzicht buitenroosters'!E$4:K$596,7,FALSE)="ja","x",0),"x")) -> 0 | K227: =IF(E227=0,0,IF(#REF!="ja",IF(VLOOKUP(E227,'[3]Overzicht buitenroosters'!E$4:AK$596,31,FALSE)="ja","x",0),"x")) -> 0
A228: =IF(AND(I228="x",K228="x",J228="x"),MAX(A$118:A227)+1,0) -> 0 | C228: 111 | E228: =IF(MAX('[3]Overzicht buitenroosters'!C110:C735)<'Muur (2 x vast + regelb 4032)'!C228,0,VLOOKUP(C228,'[3]Overzicht buitenroosters'!$C$4:$AF$625,3,FALSE)) -> 0 | I228: =IF(E228=0,0,IF(#REF!="ja",IF(VLOOKUP(E228,'[3]Overzicht buitenroosters'!E$4:K$596,6,FALSE)="ja","x",0),"x")) -> 0 | J228: =IF(E228=0,0,IF(#REF!="ja",IF(VLOOKUP(E228,'[3]Overzicht buitenroosters'!E$4:K$596,7,FALSE)="ja","x",0),"x")) -> 0 | K228: =IF(E228=0,0,IF(#REF!="ja",IF(VLOOKUP(E228,'[3]Overzicht buitenroosters'!E$4:AK$596,31,FALSE)="ja","x",0),"x")) -> 0
A229: =IF(AND(I229="x",K229="x",J229="x"),MAX(A$118:A228)+1,0) -> 0 | C229: 112 | E229: =IF(MAX('[3]Overzicht buitenroosters'!C111:C736)<'Muur (2 x vast + regelb 4032)'!C229,0,VLOOKUP(C229,'[3]Overzicht buitenroosters'!$C$4:$AF$625,3,FALSE)) -> 0 | I229: =IF(E229=0,0,IF(#REF!="ja",IF(VLOOKUP(E229,'[3]Overzicht buitenroosters'!E$4:K$596,6,FALSE)="ja","x",0),"x")) -> 0 | J229: =IF(E229=0,0,IF(#REF!="ja",IF(VLOOKUP(E229,'[3]Overzicht buitenroosters'!E$4:K$596,7,FALSE)="ja","x",0),"x")) -> 0 | K229: =IF(E229=0,0,IF(#REF!="ja",IF(VLOOKUP(E229,'[3]Overzicht buitenroosters'!E$4:AK$596,31,FALSE)="ja","x",0),"x")) -> 0
A230: =IF(AND(I230="x",K230="x",J230="x"),MAX(A$118:A229)+1,0) -> 0 | C230: 113 | E230: =IF(MAX('[3]Overzicht buitenroosters'!C112:C737)<'Muur (2 x vast + regelb 4032)'!C230,0,VLOOKUP(C230,'[3]Overzicht buitenroosters'!$C$4:$AF$625,3,FALSE)) -> 0 | I230: =IF(E230=0,0,IF(#REF!="ja",IF(VLOOKUP(E230,'[3]Overzicht buitenroosters'!E$4:K$596,6,FALSE)="ja","x",0),"x")) -> 0 | J230: =IF(E230=0,0,IF(#REF!="ja",IF(VLOOKUP(E230,'[3]Overzicht buitenroosters'!E$4:K$596,7,FALSE)="ja","x",0),"x")) -> 0 | K230: =IF(E230=0,0,IF(#REF!="ja",IF(VLOOKUP(E230,'[3]Overzicht buitenroosters'!E$4:AK$596,31,FALSE)="ja","x",0),"x")) -> 0
A231: =IF(AND(I231="x",K231="x",J231="x"),MAX(A$118:A230)+1,0) -> 0 | C231: 114 | E231: =IF(MAX('[3]Overzicht buitenroosters'!C113:C738)<'Muur (2 x vast + regelb 4032)'!C231,0,VLOOKUP(C231,'[3]Overzicht buitenroosters'!$C$4:$AF$625,3,FALSE)) -> 0 | I231: =IF(E231=0,0,IF(#REF!="ja",IF(VLOOKUP(E231,'[3]Overzicht buitenroosters'!E$4:K$596,6,FALSE)="ja","x",0),"x")) -> 0 | J231: =IF(E231=0,0,IF(#REF!="ja",IF(VLOOKUP(E231,'[3]Overzicht buitenroosters'!E$4:K$596,7,FALSE)="ja","x",0),"x")) -> 0 | K231: =IF(E231=0,0,IF(#REF!="ja",IF(VLOOKUP(E231,'[3]Overzicht buitenroosters'!E$4:AK$596,31,FALSE)="ja","x",0),"x")) -> 0
A232: =IF(AND(I232="x",K232="x",J232="x"),MAX(A$118:A231)+1,0) -> 0 | C232: 115 | E232: =IF(MAX('[3]Overzicht buitenroosters'!C114:C739)<'Muur (2 x vast + regelb 4032)'!C232,0,VLOOKUP(C232,'[3]Overzicht buitenroosters'!$C$4:$AF$625,3,FALSE)) -> 0 | I232: =IF(E232=0,0,IF(#REF!="ja",IF(VLOOKUP(E232,'[3]Overzicht buitenroosters'!E$4:K$596,6,FALSE)="ja","x",0),"x")) -> 0 | J232: =IF(E232=0,0,IF(#REF!="ja",IF(VLOOKUP(E232,'[3]Overzicht buitenroosters'!E$4:K$596,7,FALSE)="ja","x",0),"x")) -> 0 | K232: =IF(E232=0,0,IF(#REF!="ja",IF(VLOOKUP(E232,'[3]Overzicht buitenroosters'!E$4:AK$596,31,FALSE)="ja","x",0),"x")) -> 0
A233: =IF(AND(I233="x",K233="x",J233="x"),MAX(A$118:A232)+1,0) -> 0 | C233: 116 | E233: =IF(MAX('[3]Overzicht buitenroosters'!C115:C740)<'Muur (2 x vast + regelb 4032)'!C233,0,VLOOKUP(C233,'[3]Overzicht buitenroosters'!$C$4:$AF$625,3,FALSE)) -> 0 | I233: =IF(E233=0,0,IF(#REF!="ja",IF(VLOOKUP(E233,'[3]Overzicht buitenroosters'!E$4:K$596,6,FALSE)="ja","x",0),"x")) -> 0 | J233: =IF(E233=0,0,IF(#REF!="ja",IF(VLOOKUP(E233,'[3]Overzicht buitenroosters'!E$4:K$596,7,FALSE)="ja","x",0),"x")) -> 0 | K233: =IF(E233=0,0,IF(#REF!="ja",IF(VLOOKUP(E233,'[3]Overzicht buitenroosters'!E$4:AK$596,31,FALSE)="ja","x",0),"x")) -> 0
A234: =IF(AND(I234="x",K234="x",J234="x"),MAX(A$118:A233)+1,0) -> 0 | C234: 117 | E234: =IF(MAX('[3]Overzicht buitenroosters'!C116:C741)<'Muur (2 x vast + regelb 4032)'!C234,0,VLOOKUP(C234,'[3]Overzicht buitenroosters'!$C$4:$AF$625,3,FALSE)) -> 0 | I234: =IF(E234=0,0,IF(#REF!="ja",IF(VLOOKUP(E234,'[3]Overzicht buitenroosters'!E$4:K$596,6,FALSE)="ja","x",0),"x")) -> 0 | J234: =IF(E234=0,0,IF(#REF!="ja",IF(VLOOKUP(E234,'[3]Overzicht buitenroosters'!E$4:K$596,7,FALSE)="ja","x",0),"x")) -> 0 | K234: =IF(E234=0,0,IF(#REF!="ja",IF(VLOOKUP(E234,'[3]Overzicht buitenroosters'!E$4:AK$596,31,FALSE)="ja","x",0),"x")) -> 0
A235: =IF(AND(I235="x",K235="x",J235="x"),MAX(A$118:A234)+1,0) -> 0 | C235: 118 | E235: =IF(MAX('[3]Overzicht buitenroosters'!C117:C742)<'Muur (2 x vast + regelb 4032)'!C235,0,VLOOKUP(C235,'[3]Overzicht buitenroosters'!$C$4:$AF$625,3,FALSE)) -> 0 | I235: =IF(E235=0,0,IF(#REF!="ja",IF(VLOOKUP(E235,'[3]Overzicht buitenroosters'!E$4:K$596,6,FALSE)="ja","x",0),"x")) -> 0 | J235: =IF(E235=0,0,IF(#REF!="ja",IF(VLOOKUP(E235,'[3]Overzicht buitenroosters'!E$4:K$596,7,FALSE)="ja","x",0),"x")) -> 0 | K235: =IF(E235=0,0,IF(#REF!="ja",IF(VLOOKUP(E235,'[3]Overzicht buitenroosters'!E$4:AK$596,31,FALSE)="ja","x",0),"x")) -> 0
A236: =IF(AND(I236="x",K236="x",J236="x"),MAX(A$118:A235)+1,0) -> 0 | C236: 119 | E236: =IF(MAX('[3]Overzicht buitenroosters'!C118:C743)<'Muur (2 x vast + regelb 4032)'!C236,0,VLOOKUP(C236,'[3]Overzicht buitenroosters'!$C$4:$AF$625,3,FALSE)) -> 0 | I236: =IF(E236=0,0,IF(#REF!="ja",IF(VLOOKUP(E236,'[3]Overzicht buitenroosters'!E$4:K$596,6,FALSE)="ja","x",0),"x")) -> 0 | J236: =IF(E236=0,0,IF(#REF!="ja",IF(VLOOKUP(E236,'[3]Overzicht buitenroosters'!E$4:K$596,7,FALSE)="ja","x",0),"x")) -> 0 | K236: =IF(E236=0,0,IF(#REF!="ja",IF(VLOOKUP(E236,'[3]Overzicht buitenroosters'!E$4:AK$596,31,FALSE)="ja","x",0),"x")) -> 0
A237: =IF(AND(I237="x",K237="x",J237="x"),MAX(A$118:A236)+1,0) -> 0 | C237: 120 | E237: =IF(MAX('[3]Overzicht buitenroosters'!C119:C744)<'Muur (2 x vast + regelb 4032)'!C237,0,VLOOKUP(C237,'[3]Overzicht buitenroosters'!$C$4:$AF$625,3,FALSE)) -> 0 | I237: =IF(E237=0,0,IF(#REF!="ja",IF(VLOOKUP(E237,'[3]Overzicht buitenroosters'!E$4:K$596,6,FALSE)="ja","x",0),"x")) -> 0 | J237: =IF(E237=0,0,IF(#REF!="ja",IF(VLOOKUP(E237,'[3]Overzicht buitenroosters'!E$4:K$596,7,FALSE)="ja","x",0),"x")) -> 0 | K237: =IF(E237=0,0,IF(#REF!="ja",IF(VLOOKUP(E237,'[3]Overzicht buitenroosters'!E$4:AK$596,31,FALSE)="ja","x",0),"x")) -> 0
A238: =IF(AND(I238="x",K238="x",J238="x"),MAX(A$118:A237)+1,0) -> 0 | C238: 121 | E238: =IF(MAX('[3]Overzicht buitenroosters'!C120:C745)<'Muur (2 x vast + regelb 4032)'!C238,0,VLOOKUP(C238,'[3]Overzicht buitenroosters'!$C$4:$AF$625,3,FALSE)) -> 0 | I238: =IF(E238=0,0,IF(#REF!="ja",IF(VLOOKUP(E238,'[3]Overzicht buitenroosters'!E$4:K$596,6,FALSE)="ja","x",0),"x")) -> 0 | J238: =IF(E238=0,0,IF(#REF!="ja",IF(VLOOKUP(E238,'[3]Overzicht buitenroosters'!E$4:K$596,7,FALSE)="ja","x",0),"x")) -> 0 | K238: =IF(E238=0,0,IF(#REF!="ja",IF(VLOOKUP(E238,'[3]Overzicht buitenroosters'!E$4:AK$596,31,FALSE)="ja","x",0),"x")) -> 0
A239: =IF(AND(I239="x",K239="x",J239="x"),MAX(A$118:A238)+1,0) -> 0 | C239: 122 | E239: =IF(MAX('[3]Overzicht buitenroosters'!C121:C746)<'Muur (2 x vast + regelb 4032)'!C239,0,VLOOKUP(C239,'[3]Overzicht buitenroosters'!$C$4:$AF$625,3,FALSE)) -> 0 | I239: =IF(E239=0,0,IF(#REF!="ja",IF(VLOOKUP(E239,'[3]Overzicht buitenroosters'!E$4:K$596,6,FALSE)="ja","x",0),"x")) -> 0 | J239: =IF(E239=0,0,IF(#REF!="ja",IF(VLOOKUP(E239,'[3]Overzicht buitenroosters'!E$4:K$596,7,FALSE)="ja","x",0),"x")) -> 0 | K239: =IF(E239=0,0,IF(#REF!="ja",IF(VLOOKUP(E239,'[3]Overzicht buitenroosters'!E$4:AK$596,31,FALSE)="ja","x",0),"x")) -> 0
A240: =IF(AND(I240="x",K240="x",J240="x"),MAX(A$118:A239)+1,0) -> 0 | C240: 123 | E240: =IF(MAX('[3]Overzicht buitenroosters'!C122:C747)<'Muur (2 x vast + regelb 4032)'!C240,0,VLOOKUP(C240,'[3]Overzicht buitenroosters'!$C$4:$AF$625,3,FALSE)) -> 0 | I240: =IF(E240=0,0,IF(#REF!="ja",IF(VLOOKUP(E240,'[3]Overzicht buitenroosters'!E$4:K$596,6,FALSE)="ja","x",0),"x")) -> 0 | J240: =IF(E240=0,0,IF(#REF!="ja",IF(VLOOKUP(E240,'[3]Overzicht buitenroosters'!E$4:K$596,7,FALSE)="ja","x",0),"x")) -> 0 | K240: =IF(E240=0,0,IF(#REF!="ja",IF(VLOOKUP(E240,'[3]Overzicht buitenroosters'!E$4:AK$596,31,FALSE)="ja","x",0),"x")) -> 0
A241: =IF(AND(I241="x",K241="x",J241="x"),MAX(A$118:A240)+1,0) -> 0 | C241: 124 | E241: =IF(MAX('[3]Overzicht buitenroosters'!C123:C748)<'Muur (2 x vast + regelb 4032)'!C241,0,VLOOKUP(C241,'[3]Overzicht buitenroosters'!$C$4:$AF$625,3,FALSE)) -> 0 | I241: =IF(E241=0,0,IF(#REF!="ja",IF(VLOOKUP(E241,'[3]Overzicht buitenroosters'!E$4:K$596,6,FALSE)="ja","x",0),"x")) -> 0 | J241: =IF(E241=0,0,IF(#REF!="ja",IF(VLOOKUP(E241,'[3]Overzicht buitenroosters'!E$4:K$596,7,FALSE)="ja","x",0),"x")) -> 0 | K241: =IF(E241=0,0,IF(#REF!="ja",IF(VLOOKUP(E241,'[3]Overzicht buitenroosters'!E$4:AK$596,31,FALSE)="ja","x",0),"x")) -> 0
A242: =IF(AND(I242="x",K242="x",J242="x"),MAX(A$118:A241)+1,0) -> 0 | C242: 125 | E242: =IF(MAX('[3]Overzicht buitenroosters'!C124:C749)<'Muur (2 x vast + regelb 4032)'!C242,0,VLOOKUP(C242,'[3]Overzicht buitenroosters'!$C$4:$AF$625,3,FALSE)) -> 0 | I242: =IF(E242=0,0,IF(#REF!="ja",IF(VLOOKUP(E242,'[3]Overzicht buitenroosters'!E$4:K$596,6,FALSE)="ja","x",0),"x")) -> 0 | J242: =IF(E242=0,0,IF(#REF!="ja",IF(VLOOKUP(E242,'[3]Overzicht buitenroosters'!E$4:K$596,7,FALSE)="ja","x",0),"x")) -> 0 | K242: =IF(E242=0,0,IF(#REF!="ja",IF(VLOOKUP(E242,'[3]Overzicht buitenroosters'!E$4:AK$596,31,FALSE)="ja","x",0),"x")) -> 0
A243: =IF(AND(I243="x",K243="x",J243="x"),MAX(A$118:A242)+1,0) -> 0 | C243: 126 | E243: =IF(MAX('[3]Overzicht buitenroosters'!C125:C750)<'Muur (2 x vast + regelb 4032)'!C243,0,VLOOKUP(C243,'[3]Overzicht buitenroosters'!$C$4:$AF$625,3,FALSE)) -> 0 | I243: =IF(E243=0,0,IF(#REF!="ja",IF(VLOOKUP(E243,'[3]Overzicht buitenroosters'!E$4:K$596,6,FALSE)="ja","x",0),"x")) -> 0 | J243: =IF(E243=0,0,IF(#REF!="ja",IF(VLOOKUP(E243,'[3]Overzicht buitenroosters'!E$4:K$596,7,FALSE)="ja","x",0),"x")) -> 0 | K243: =IF(E243=0,0,IF(#REF!="ja",IF(VLOOKUP(E243,'[3]Overzicht buitenroosters'!E$4:AK$596,31,FALSE)="ja","x",0),"x")) -> 0
A244: =IF(AND(I244="x",K244="x",J244="x"),MAX(A$118:A243)+1,0) -> 0 | C244: 127 | E244: =IF(MAX('[3]Overzicht buitenroosters'!C126:C751)<'Muur (2 x vast + regelb 4032)'!C244,0,VLOOKUP(C244,'[3]Overzicht buitenroosters'!$C$4:$AF$625,3,FALSE)) -> 0 | I244: =IF(E244=0,0,IF(#REF!="ja",IF(VLOOKUP(E244,'[3]Overzicht buitenroosters'!E$4:K$596,6,FALSE)="ja","x",0),"x")) -> 0 | J244: =IF(E244=0,0,IF(#REF!="ja",IF(VLOOKUP(E244,'[3]Overzicht buitenroosters'!E$4:K$596,7,FALSE)="ja","x",0),"x")) -> 0 | K244: =IF(E244=0,0,IF(#REF!="ja",IF(VLOOKUP(E244,'[3]Overzicht buitenroosters'!E$4:AK$596,31,FALSE)="ja","x",0),"x")) -> 0
A245: =IF(AND(I245="x",K245="x",J245="x"),MAX(A$118:A244)+1,0) -> 0 | C245: 128 | E245: =IF(MAX('[3]Overzicht buitenroosters'!C127:C752)<'Muur (2 x vast + regelb 4032)'!C245,0,VLOOKUP(C245,'[3]Overzicht buitenroosters'!$C$4:$AF$625,3,FALSE)) -> 0 | I245: =IF(E245=0,0,IF(#REF!="ja",IF(VLOOKUP(E245,'[3]Overzicht buitenroosters'!E$4:K$596,6,FALSE)="ja","x",0),"x")) -> 0 | J245: =IF(E245=0,0,IF(#REF!="ja",IF(VLOOKUP(E245,'[3]Overzicht buitenroosters'!E$4:K$596,7,FALSE)="ja","x",0),"x")) -> 0 | K245: =IF(E245=0,0,IF(#REF!="ja",IF(VLOOKUP(E245,'[3]Overzicht buitenroosters'!E$4:AK$596,31,FALSE)="ja","x",0),"x")) -> 0
A246: =IF(AND(I246="x",K246="x",J246="x"),MAX(A$118:A245)+1,0) -> 0 | C246: 129 | E246: =IF(MAX('[3]Overzicht buitenroosters'!C128:C753)<'Muur (2 x vast + regelb 4032)'!C246,0,VLOOKUP(C246,'[3]Overzicht buitenroosters'!$C$4:$AF$625,3,FALSE)) -> 0 | I246: =IF(E246=0,0,IF(#REF!="ja",IF(VLOOKUP(E246,'[3]Overzicht buitenroosters'!E$4:K$596,6,FALSE)="ja","x",0),"x")) -> 0 | J246: =IF(E246=0,0,IF(#REF!="ja",IF(VLOOKUP(E246,'[3]Overzicht buitenroosters'!E$4:K$596,7,FALSE)="ja","x",0),"x")) -> 0 | K246: =IF(E246=0,0,IF(#REF!="ja",IF(VLOOKUP(E246,'[3]Overzicht buitenroosters'!E$4:AK$596,31,FALSE)="ja","x",0),"x")) -> 0 | L246: =IF(MAX(A$118:B$526)<C246,"",VLOOKUP(C246,A$118:AH$526,5,FALSE)) -> 
A247: =IF(AND(I247="x",K247="x",J247="x"),MAX(A$118:A246)+1,0) -> 0 | C247: 130 | E247: =IF(MAX('[3]Overzicht buitenroosters'!C129:C754)<'Muur (2 x vast + regelb 4032)'!C247,0,VLOOKUP(C247,'[3]Overzicht buitenroosters'!$C$4:$AF$625,3,FALSE)) -> 0 | I247: =IF(E247=0,0,IF(#REF!="ja",IF(VLOOKUP(E247,'[3]Overzicht buitenroosters'!E$4:K$596,6,FALSE)="ja","x",0),"x")) -> 0 | J247: =IF(E247=0,0,IF(#REF!="ja",IF(VLOOKUP(E247,'[3]Overzicht buitenroosters'!E$4:K$596,7,FALSE)="ja","x",0),"x")) -> 0 | K247: =IF(E247=0,0,IF(#REF!="ja",IF(VLOOKUP(E247,'[3]Overzicht buitenroosters'!E$4:AK$596,31,FALSE)="ja","x",0),"x")) -> 0
A248: =IF(AND(I248="x",K248="x",J248="x"),MAX(A$118:A247)+1,0) -> 0 | C248: 131 | E248: =IF(MAX('[3]Overzicht buitenroosters'!C130:C755)<'Muur (2 x vast + regelb 4032)'!C248,0,VLOOKUP(C248,'[3]Overzicht buitenroosters'!$C$4:$AF$625,3,FALSE)) -> 0 | I248: =IF(E248=0,0,IF(#REF!="ja",IF(VLOOKUP(E248,'[3]Overzicht buitenroosters'!E$4:K$596,6,FALSE)="ja","x",0),"x")) -> 0 | J248: =IF(E248=0,0,IF(#REF!="ja",IF(VLOOKUP(E248,'[3]Overzicht buitenroosters'!E$4:K$596,7,FALSE)="ja","x",0),"x")) -> 0 | K248: =IF(E248=0,0,IF(#REF!="ja",IF(VLOOKUP(E248,'[3]Overzicht buitenroosters'!E$4:AK$596,31,FALSE)="ja","x",0),"x")) -> 0
A249: =IF(AND(I249="x",K249="x",J249="x"),MAX(A$118:A248)+1,0) -> 0 | C249: 132 | E249: =IF(MAX('[3]Overzicht buitenroosters'!C131:C756)<'Muur (2 x vast + regelb 4032)'!C249,0,VLOOKUP(C249,'[3]Overzicht buitenroosters'!$C$4:$AF$625,3,FALSE)) -> 0 | I249: =IF(E249=0,0,IF(#REF!="ja",IF(VLOOKUP(E249,'[3]Overzicht buitenroosters'!E$4:K$596,6,FALSE)="ja","x",0),"x")) -> 0 | J249: =IF(E249=0,0,IF(#REF!="ja",IF(VLOOKUP(E249,'[3]Overzicht buitenroosters'!E$4:K$596,7,FALSE)="ja","x",0),"x")) -> 0 | K249: =IF(E249=0,0,IF(#REF!="ja",IF(VLOOKUP(E249,'[3]Overzicht buitenroosters'!E$4:AK$596,31,FALSE)="ja","x",0),"x")) -> 0
A250: =IF(AND(I250="x",K250="x",J250="x"),MAX(A$118:A249)+1,0) -> 0 | C250: 133 | E250: =IF(MAX('[3]Overzicht buitenroosters'!C132:C757)<'Muur (2 x vast + regelb 4032)'!C250,0,VLOOKUP(C250,'[3]Overzicht buitenroosters'!$C$4:$AF$625,3,FALSE)) -> 0 | I250: =IF(E250=0,0,IF(#REF!="ja",IF(VLOOKUP(E250,'[3]Overzicht buitenroosters'!E$4:K$596,6,FALSE)="ja","x",0),"x")) -> 0 | J250: =IF(E250=0,0,IF(#REF!="ja",IF(VLOOKUP(E250,'[3]Overzicht buitenroosters'!E$4:K$596,7,FALSE)="ja","x",0),"x")) -> 0 | K250: =IF(E250=0,0,IF(#REF!="ja",IF(VLOOKUP(E250,'[3]Overzicht buitenroosters'!E$4:AK$596,31,FALSE)="ja","x",0),"x")) -> 0
A251: =IF(AND(I251="x",K251="x",J251="x"),MAX(A$118:A250)+1,0) -> 0 | C251: 134 | E251: =IF(MAX('[3]Overzicht buitenroosters'!C133:C758)<'Muur (2 x vast + regelb 4032)'!C251,0,VLOOKUP(C251,'[3]Overzicht buitenroosters'!$C$4:$AF$625,3,FALSE)) -> 0 | I251: =IF(E251=0,0,IF(#REF!="ja",IF(VLOOKUP(E251,'[3]Overzicht buitenroosters'!E$4:K$596,6,FALSE)="ja","x",0),"x")) -> 0 | J251: =IF(E251=0,0,IF(#REF!="ja",IF(VLOOKUP(E251,'[3]Overzicht buitenroosters'!E$4:K$596,7,FALSE)="ja","x",0),"x")) -> 0 | K251: =IF(E251=0,0,IF(#REF!="ja",IF(VLOOKUP(E251,'[3]Overzicht buitenroosters'!E$4:AK$596,31,FALSE)="ja","x",0),"x")) -> 0
A252: =IF(AND(I252="x",K252="x",J252="x"),MAX(A$118:A251)+1,0) -> 0 | C252: 135 | E252: =IF(MAX('[3]Overzicht buitenroosters'!C134:C759)<'Muur (2 x vast + regelb 4032)'!C252,0,VLOOKUP(C252,'[3]Overzicht buitenroosters'!$C$4:$AF$625,3,FALSE)) -> 0 | I252: =IF(E252=0,0,IF(#REF!="ja",IF(VLOOKUP(E252,'[3]Overzicht buitenroosters'!E$4:K$596,6,FALSE)="ja","x",0),"x")) -> 0 | J252: =IF(E252=0,0,IF(#REF!="ja",IF(VLOOKUP(E252,'[3]Overzicht buitenroosters'!E$4:K$596,7,FALSE)="ja","x",0),"x")) -> 0 | K252: =IF(E252=0,0,IF(#REF!="ja",IF(VLOOKUP(E252,'[3]Overzicht buitenroosters'!E$4:AK$596,31,FALSE)="ja","x",0),"x")) -> 0
A253: =IF(AND(I253="x",K253="x",J253="x"),MAX(A$118:A252)+1,0) -> 0 | C253: 136 | E253: =IF(MAX('[3]Overzicht buitenroosters'!C135:C760)<'Muur (2 x vast + regelb 4032)'!C253,0,VLOOKUP(C253,'[3]Overzicht buitenroosters'!$C$4:$AF$625,3,FALSE)) -> 0 | I253: =IF(E253=0,0,IF(#REF!="ja",IF(VLOOKUP(E253,'[3]Overzicht buitenroosters'!E$4:K$596,6,FALSE)="ja","x",0),"x")) -> 0 | J253: =IF(E253=0,0,IF(#REF!="ja",IF(VLOOKUP(E253,'[3]Overzicht buitenroosters'!E$4:K$596,7,FALSE)="ja","x",0),"x")) -> 0 | K253: =IF(E253=0,0,IF(#REF!="ja",IF(VLOOKUP(E253,'[3]Overzicht buitenroosters'!E$4:AK$596,31,FALSE)="ja","x",0),"x")) -> 0
A254: =IF(AND(I254="x",K254="x",J254="x"),MAX(A$118:A253)+1,0) -> 0 | C254: 137 | E254: =IF(MAX('[3]Overzicht buitenroosters'!C136:C761)<'Muur (2 x vast + regelb 4032)'!C254,0,VLOOKUP(C254,'[3]Overzicht buitenroosters'!$C$4:$AF$625,3,FALSE)) -> 0 | I254: =IF(E254=0,0,IF(#REF!="ja",IF(VLOOKUP(E254,'[3]Overzicht buitenroosters'!E$4:K$596,6,FALSE)="ja","x",0),"x")) -> 0 | J254: =IF(E254=0,0,IF(#REF!="ja",IF(VLOOKUP(E254,'[3]Overzicht buitenroosters'!E$4:K$596,7,FALSE)="ja","x",0),"x")) -> 0 | K254: =IF(E254=0,0,IF(#REF!="ja",IF(VLOOKUP(E254,'[3]Overzicht buitenroosters'!E$4:AK$596,31,FALSE)="ja","x",0),"x")) -> 0
A255: =IF(AND(I255="x",K255="x",J255="x"),MAX(A$118:A254)+1,0) -> 0 | C255: 138 | E255: =IF(MAX('[3]Overzicht buitenroosters'!C137:C762)<'Muur (2 x vast + regelb 4032)'!C255,0,VLOOKUP(C255,'[3]Overzicht buitenroosters'!$C$4:$AF$625,3,FALSE)) -> 0 | I255: =IF(E255=0,0,IF(#REF!="ja",IF(VLOOKUP(E255,'[3]Overzicht buitenroosters'!E$4:K$596,6,FALSE)="ja","x",0),"x")) -> 0 | J255: =IF(E255=0,0,IF(#REF!="ja",IF(VLOOKUP(E255,'[3]Overzicht buitenroosters'!E$4:K$596,7,FALSE)="ja","x",0),"x")) -> 0 | K255: =IF(E255=0,0,IF(#REF!="ja",IF(VLOOKUP(E255,'[3]Overzicht buitenroosters'!E$4:AK$596,31,FALSE)="ja","x",0),"x")) -> 0
A256: =IF(AND(I256="x",K256="x",J256="x"),MAX(A$118:A255)+1,0) -> 0 | C256: 139 | E256: =IF(MAX('[3]Overzicht buitenroosters'!C138:C763)<'Muur (2 x vast + regelb 4032)'!C256,0,VLOOKUP(C256,'[3]Overzicht buitenroosters'!$C$4:$AF$625,3,FALSE)) -> 0 | I256: =IF(E256=0,0,IF(#REF!="ja",IF(VLOOKUP(E256,'[3]Overzicht buitenroosters'!E$4:K$596,6,FALSE)="ja","x",0),"x")) -> 0 | J256: =IF(E256=0,0,IF(#REF!="ja",IF(VLOOKUP(E256,'[3]Overzicht buitenroosters'!E$4:K$596,7,FALSE)="ja","x",0),"x")) -> 0 | K256: =IF(E256=0,0,IF(#REF!="ja",IF(VLOOKUP(E256,'[3]Overzicht buitenroosters'!E$4:AK$596,31,FALSE)="ja","x",0),"x")) -> 0
A257: =IF(AND(I257="x",K257="x",J257="x"),MAX(A$118:A256)+1,0) -> 0 | C257: 140 | E257: =IF(MAX('[3]Overzicht buitenroosters'!C139:C764)<'Muur (2 x vast + regelb 4032)'!C257,0,VLOOKUP(C257,'[3]Overzicht buitenroosters'!$C$4:$AF$625,3,FALSE)) -> 0 | I257: =IF(E257=0,0,IF(#REF!="ja",IF(VLOOKUP(E257,'[3]Overzicht buitenroosters'!E$4:K$596,6,FALSE)="ja","x",0),"x")) -> 0 | J257: =IF(E257=0,0,IF(#REF!="ja",IF(VLOOKUP(E257,'[3]Overzicht buitenroosters'!E$4:K$596,7,FALSE)="ja","x",0),"x")) -> 0 | K257: =IF(E257=0,0,IF(#REF!="ja",IF(VLOOKUP(E257,'[3]Overzicht buitenroosters'!E$4:AK$596,31,FALSE)="ja","x",0),"x")) -> 0
A258: =IF(AND(I258="x",K258="x",J258="x"),MAX(A$118:A257)+1,0) -> 0 | C258: 141 | E258: =IF(MAX('[3]Overzicht buitenroosters'!C140:C765)<'Muur (2 x vast + regelb 4032)'!C258,0,VLOOKUP(C258,'[3]Overzicht buitenroosters'!$C$4:$AF$625,3,FALSE)) -> 0 | I258: =IF(E258=0,0,IF(#REF!="ja",IF(VLOOKUP(E258,'[3]Overzicht buitenroosters'!E$4:K$596,6,FALSE)="ja","x",0),"x")) -> 0 | J258: =IF(E258=0,0,IF(#REF!="ja",IF(VLOOKUP(E258,'[3]Overzicht buitenroosters'!E$4:K$596,7,FALSE)="ja","x",0),"x")) -> 0 | K258: =IF(E258=0,0,IF(#REF!="ja",IF(VLOOKUP(E258,'[3]Overzicht buitenroosters'!E$4:AK$596,31,FALSE)="ja","x",0),"x")) -> 0
A259: =IF(AND(I259="x",K259="x",J259="x"),MAX(A$118:A258)+1,0) -> 0 | C259: 142 | E259: =IF(MAX('[3]Overzicht buitenroosters'!C141:C766)<'Muur (2 x vast + regelb 4032)'!C259,0,VLOOKUP(C259,'[3]Overzicht buitenroosters'!$C$4:$AF$625,3,FALSE)) -> 0 | I259: =IF(E259=0,0,IF(#REF!="ja",IF(VLOOKUP(E259,'[3]Overzicht buitenroosters'!E$4:K$596,6,FALSE)="ja","x",0),"x")) -> 0 | J259: =IF(E259=0,0,IF(#REF!="ja",IF(VLOOKUP(E259,'[3]Overzicht buitenroosters'!E$4:K$596,7,FALSE)="ja","x",0),"x")) -> 0 | K259: =IF(E259=0,0,IF(#REF!="ja",IF(VLOOKUP(E259,'[3]Overzicht buitenroosters'!E$4:AK$596,31,FALSE)="ja","x",0),"x")) -> 0
A260: =IF(AND(I260="x",K260="x",J260="x"),MAX(A$118:A259)+1,0) -> 0 | C260: 143 | E260: =IF(MAX('[3]Overzicht buitenroosters'!C142:C767)<'Muur (2 x vast + regelb 4032)'!C260,0,VLOOKUP(C260,'[3]Overzicht buitenroosters'!$C$4:$AF$625,3,FALSE)) -> 0 | I260: =IF(E260=0,0,IF(#REF!="ja",IF(VLOOKUP(E260,'[3]Overzicht buitenroosters'!E$4:K$596,6,FALSE)="ja","x",0),"x")) -> 0 | J260: =IF(E260=0,0,IF(#REF!="ja",IF(VLOOKUP(E260,'[3]Overzicht buitenroosters'!E$4:K$596,7,FALSE)="ja","x",0),"x")) -> 0 | K260: =IF(E260=0,0,IF(#REF!="ja",IF(VLOOKUP(E260,'[3]Overzicht buitenroosters'!E$4:AK$596,31,FALSE)="ja","x",0),"x")) -> 0
A261: =IF(AND(I261="x",K261="x",J261="x"),MAX(A$118:A260)+1,0) -> 0 | C261: 144 | E261: =IF(MAX('[3]Overzicht buitenroosters'!C143:C768)<'Muur (2 x vast + regelb 4032)'!C261,0,VLOOKUP(C261,'[3]Overzicht buitenroosters'!$C$4:$AF$625,3,FALSE)) -> 0 | I261: =IF(E261=0,0,IF(#REF!="ja",IF(VLOOKUP(E261,'[3]Overzicht buitenroosters'!E$4:K$596,6,FALSE)="ja","x",0),"x")) -> 0 | J261: =IF(E261=0,0,IF(#REF!="ja",IF(VLOOKUP(E261,'[3]Overzicht buitenroosters'!E$4:K$596,7,FALSE)="ja","x",0),"x")) -> 0 | K261: =IF(E261=0,0,IF(#REF!="ja",IF(VLOOKUP(E261,'[3]Overzicht buitenroosters'!E$4:AK$596,31,FALSE)="ja","x",0),"x")) -> 0
A262: =IF(AND(I262="x",K262="x",J262="x"),MAX(A$118:A261)+1,0) -> 0 | C262: 145 | E262: =IF(MAX('[3]Overzicht buitenroosters'!C144:C769)<'Muur (2 x vast + regelb 4032)'!C262,0,VLOOKUP(C262,'[3]Overzicht buitenroosters'!$C$4:$AF$625,3,FALSE)) -> 0 | I262: =IF(E262=0,0,IF(#REF!="ja",IF(VLOOKUP(E262,'[3]Overzicht buitenroosters'!E$4:K$596,6,FALSE)="ja","x",0),"x")) -> 0 | J262: =IF(E262=0,0,IF(#REF!="ja",IF(VLOOKUP(E262,'[3]Overzicht buitenroosters'!E$4:K$596,7,FALSE)="ja","x",0),"x")) -> 0 | K262: =IF(E262=0,0,IF(#REF!="ja",IF(VLOOKUP(E262,'[3]Overzicht buitenroosters'!E$4:AK$596,31,FALSE)="ja","x",0),"x")) -> 0
A263: =IF(AND(I263="x",K263="x",J263="x"),MAX(A$118:A262)+1,0) -> 0 | C263: 146 | E263: =IF(MAX('[3]Overzicht buitenroosters'!C145:C770)<'Muur (2 x vast + regelb 4032)'!C263,0,VLOOKUP(C263,'[3]Overzicht buitenroosters'!$C$4:$AF$625,3,FALSE)) -> 0 | I263: =IF(E263=0,0,IF(#REF!="ja",IF(VLOOKUP(E263,'[3]Overzicht buitenroosters'!E$4:K$596,6,FALSE)="ja","x",0),"x")) -> 0 | J263: =IF(E263=0,0,IF(#REF!="ja",IF(VLOOKUP(E263,'[3]Overzicht buitenroosters'!E$4:K$596,7,FALSE)="ja","x",0),"x")) -> 0 | K263: =IF(E263=0,0,IF(#REF!="ja",IF(VLOOKUP(E263,'[3]Overzicht buitenroosters'!E$4:AK$596,31,FALSE)="ja","x",0),"x")) -> 0
A264: =IF(AND(I264="x",K264="x",J264="x"),MAX(A$118:A263)+1,0) -> 0 | C264: 147 | E264: =IF(MAX('[3]Overzicht buitenroosters'!C146:C771)<'Muur (2 x vast + regelb 4032)'!C264,0,VLOOKUP(C264,'[3]Overzicht buitenroosters'!$C$4:$AF$625,3,FALSE)) -> 0 | I264: =IF(E264=0,0,IF(#REF!="ja",IF(VLOOKUP(E264,'[3]Overzicht buitenroosters'!E$4:K$596,6,FALSE)="ja","x",0),"x")) -> 0 | J264: =IF(E264=0,0,IF(#REF!="ja",IF(VLOOKUP(E264,'[3]Overzicht buitenroosters'!E$4:K$596,7,FALSE)="ja","x",0),"x")) -> 0 | K264: =IF(E264=0,0,IF(#REF!="ja",IF(VLOOKUP(E264,'[3]Overzicht buitenroosters'!E$4:AK$596,31,FALSE)="ja","x",0),"x")) -> 0
A265: =IF(AND(I265="x",K265="x",J265="x"),MAX(A$118:A264)+1,0) -> 0 | C265: 148 | E265: =IF(MAX('[3]Overzicht buitenroosters'!C147:C772)<'Muur (2 x vast + regelb 4032)'!C265,0,VLOOKUP(C265,'[3]Overzicht buitenroosters'!$C$4:$AF$625,3,FALSE)) -> 0 | I265: =IF(E265=0,0,IF(#REF!="ja",IF(VLOOKUP(E265,'[3]Overzicht buitenroosters'!E$4:K$596,6,FALSE)="ja","x",0),"x")) -> 0 | J265: =IF(E265=0,0,IF(#REF!="ja",IF(VLOOKUP(E265,'[3]Overzicht buitenroosters'!E$4:K$596,7,FALSE)="ja","x",0),"x")) -> 0 | K265: =IF(E265=0,0,IF(#REF!="ja",IF(VLOOKUP(E265,'[3]Overzicht buitenroosters'!E$4:AK$596,31,FALSE)="ja","x",0),"x")) -> 0
A266: =IF(AND(I266="x",K266="x",J266="x"),MAX(A$118:A265)+1,0) -> 0 | C266: 149 | E266: =IF(MAX('[3]Overzicht buitenroosters'!C148:C773)<'Muur (2 x vast + regelb 4032)'!C266,0,VLOOKUP(C266,'[3]Overzicht buitenroosters'!$C$4:$AF$625,3,FALSE)) -> 0 | I266: =IF(E266=0,0,IF(#REF!="ja",IF(VLOOKUP(E266,'[3]Overzicht buitenroosters'!E$4:K$596,6,FALSE)="ja","x",0),"x")) -> 0 | J266: =IF(E266=0,0,IF(#REF!="ja",IF(VLOOKUP(E266,'[3]Overzicht buitenroosters'!E$4:K$596,7,FALSE)="ja","x",0),"x")) -> 0 | K266: =IF(E266=0,0,IF(#REF!="ja",IF(VLOOKUP(E266,'[3]Overzicht buitenroosters'!E$4:AK$596,31,FALSE)="ja","x",0),"x")) -> 0
A267: =IF(AND(I267="x",K267="x",J267="x"),MAX(A$118:A266)+1,0) -> 0 | C267: 150 | E267: =IF(MAX('[3]Overzicht buitenroosters'!C149:C774)<'Muur (2 x vast + regelb 4032)'!C267,0,VLOOKUP(C267,'[3]Overzicht buitenroosters'!$C$4:$AF$625,3,FALSE)) -> 0 | I267: =IF(E267=0,0,IF(#REF!="ja",IF(VLOOKUP(E267,'[3]Overzicht buitenroosters'!E$4:K$596,6,FALSE)="ja","x",0),"x")) -> 0 | J267: =IF(E267=0,0,IF(#REF!="ja",IF(VLOOKUP(E267,'[3]Overzicht buitenroosters'!E$4:K$596,7,FALSE)="ja","x",0),"x")) -> 0 | K267: =IF(E267=0,0,IF(#REF!="ja",IF(VLOOKUP(E267,'[3]Overzicht buitenroosters'!E$4:AK$596,31,FALSE)="ja","x",0),"x")) -> 0
A268: =IF(AND(I268="x",K268="x",J268="x"),MAX(A$118:A267)+1,0) -> 0 | C268: 151 | E268: =IF(MAX('[3]Overzicht buitenroosters'!C150:C775)<'Muur (2 x vast + regelb 4032)'!C268,0,VLOOKUP(C268,'[3]Overzicht buitenroosters'!$C$4:$AF$625,3,FALSE)) -> 0 | I268: =IF(E268=0,0,IF(#REF!="ja",IF(VLOOKUP(E268,'[3]Overzicht buitenroosters'!E$4:K$596,6,FALSE)="ja","x",0),"x")) -> 0 | J268: =IF(E268=0,0,IF(#REF!="ja",IF(VLOOKUP(E268,'[3]Overzicht buitenroosters'!E$4:K$596,7,FALSE)="ja","x",0),"x")) -> 0 | K268: =IF(E268=0,0,IF(#REF!="ja",IF(VLOOKUP(E268,'[3]Overzicht buitenroosters'!E$4:AK$596,31,FALSE)="ja","x",0),"x")) -> 0
A269: =IF(AND(I269="x",K269="x",J269="x"),MAX(A$118:A268)+1,0) -> 0 | C269: 152 | E269: =IF(MAX('[3]Overzicht buitenroosters'!C151:C776)<'Muur (2 x vast + regelb 4032)'!C269,0,VLOOKUP(C269,'[3]Overzicht buitenroosters'!$C$4:$AF$625,3,FALSE)) -> 0 | I269: =IF(E269=0,0,IF(#REF!="ja",IF(VLOOKUP(E269,'[3]Overzicht buitenroosters'!E$4:K$596,6,FALSE)="ja","x",0),"x")) -> 0 | J269: =IF(E269=0,0,IF(#REF!="ja",IF(VLOOKUP(E269,'[3]Overzicht buitenroosters'!E$4:K$596,7,FALSE)="ja","x",0),"x")) -> 0 | K269: =IF(E269=0,0,IF(#REF!="ja",IF(VLOOKUP(E269,'[3]Overzicht buitenroosters'!E$4:AK$596,31,FALSE)="ja","x",0),"x")) -> 0
A270: =IF(AND(I270="x",K270="x",J270="x"),MAX(A$118:A269)+1,0) -> 0 | C270: 153 | E270: =IF(MAX('[3]Overzicht buitenroosters'!C152:C777)<'Muur (2 x vast + regelb 4032)'!C270,0,VLOOKUP(C270,'[3]Overzicht buitenroosters'!$C$4:$AF$625,3,FALSE)) -> 0 | I270: =IF(E270=0,0,IF(#REF!="ja",IF(VLOOKUP(E270,'[3]Overzicht buitenroosters'!E$4:K$596,6,FALSE)="ja","x",0),"x")) -> 0 | J270: =IF(E270=0,0,IF(#REF!="ja",IF(VLOOKUP(E270,'[3]Overzicht buitenroosters'!E$4:K$596,7,FALSE)="ja","x",0),"x")) -> 0 | K270: =IF(E270=0,0,IF(#REF!="ja",IF(VLOOKUP(E270,'[3]Overzicht buitenroosters'!E$4:AK$596,31,FALSE)="ja","x",0),"x")) -> 0
A271: =IF(AND(I271="x",K271="x",J271="x"),MAX(A$118:A270)+1,0) -> 0 | C271: 154 | E271: =IF(MAX('[3]Overzicht buitenroosters'!C153:C778)<'Muur (2 x vast + regelb 4032)'!C271,0,VLOOKUP(C271,'[3]Overzicht buitenroosters'!$C$4:$AF$625,3,FALSE)) -> 0 | I271: =IF(E271=0,0,IF(#REF!="ja",IF(VLOOKUP(E271,'[3]Overzicht buitenroosters'!E$4:K$596,6,FALSE)="ja","x",0),"x")) -> 0 | J271: =IF(E271=0,0,IF(#REF!="ja",IF(VLOOKUP(E271,'[3]Overzicht buitenroosters'!E$4:K$596,7,FALSE)="ja","x",0),"x")) -> 0 | K271: =IF(E271=0,0,IF(#REF!="ja",IF(VLOOKUP(E271,'[3]Overzicht buitenroosters'!E$4:AK$596,31,FALSE)="ja","x",0),"x")) -> 0
A272: =IF(AND(I272="x",K272="x",J272="x"),MAX(A$118:A271)+1,0) -> 0 | C272: 155 | E272: =IF(MAX('[3]Overzicht buitenroosters'!C154:C779)<'Muur (2 x vast + regelb 4032)'!C272,0,VLOOKUP(C272,'[3]Overzicht buitenroosters'!$C$4:$AF$625,3,FALSE)) -> 0 | I272: =IF(E272=0,0,IF(#REF!="ja",IF(VLOOKUP(E272,'[3]Overzicht buitenroosters'!E$4:K$596,6,FALSE)="ja","x",0),"x")) -> 0 | J272: =IF(E272=0,0,IF(#REF!="ja",IF(VLOOKUP(E272,'[3]Overzicht buitenroosters'!E$4:K$596,7,FALSE)="ja","x",0),"x")) -> 0 | K272: =IF(E272=0,0,IF(#REF!="ja",IF(VLOOKUP(E272,'[3]Overzicht buitenroosters'!E$4:AK$596,31,FALSE)="ja","x",0),"x")) -> 0
A273: =IF(AND(I273="x",K273="x",J273="x"),MAX(A$118:A272)+1,0) -> 0 | C273: 156 | E273: =IF(MAX('[3]Overzicht buitenroosters'!C155:C780)<'Muur (2 x vast + regelb 4032)'!C273,0,VLOOKUP(C273,'[3]Overzicht buitenroosters'!$C$4:$AF$625,3,FALSE)) -> 0 | I273: =IF(E273=0,0,IF(#REF!="ja",IF(VLOOKUP(E273,'[3]Overzicht buitenroosters'!E$4:K$596,6,FALSE)="ja","x",0),"x")) -> 0 | J273: =IF(E273=0,0,IF(#REF!="ja",IF(VLOOKUP(E273,'[3]Overzicht buitenroosters'!E$4:K$596,7,FALSE)="ja","x",0),"x")) -> 0 | K273: =IF(E273=0,0,IF(#REF!="ja",IF(VLOOKUP(E273,'[3]Overzicht buitenroosters'!E$4:AK$596,31,FALSE)="ja","x",0),"x")) -> 0
A274: =IF(AND(I274="x",K274="x",J274="x"),MAX(A$118:A273)+1,0) -> 0 | C274: 157 | E274: =IF(MAX('[3]Overzicht buitenroosters'!C156:C781)<'Muur (2 x vast + regelb 4032)'!C274,0,VLOOKUP(C274,'[3]Overzicht buitenroosters'!$C$4:$AF$625,3,FALSE)) -> 0 | I274: =IF(E274=0,0,IF(#REF!="ja",IF(VLOOKUP(E274,'[3]Overzicht buitenroosters'!E$4:K$596,6,FALSE)="ja","x",0),"x")) -> 0 | J274: =IF(E274=0,0,IF(#REF!="ja",IF(VLOOKUP(E274,'[3]Overzicht buitenroosters'!E$4:K$596,7,FALSE)="ja","x",0),"x")) -> 0 | K274: =IF(E274=0,0,IF(#REF!="ja",IF(VLOOKUP(E274,'[3]Overzicht buitenroosters'!E$4:AK$596,31,FALSE)="ja","x",0),"x")) -> 0
A275: =IF(AND(I275="x",K275="x",J275="x"),MAX(A$118:A274)+1,0) -> 0 | C275: 158 | E275: =IF(MAX('[3]Overzicht buitenroosters'!C157:C782)<'Muur (2 x vast + regelb 4032)'!C275,0,VLOOKUP(C275,'[3]Overzicht buitenroosters'!$C$4:$AF$625,3,FALSE)) -> 0 | I275: =IF(E275=0,0,IF(#REF!="ja",IF(VLOOKUP(E275,'[3]Overzicht buitenroosters'!E$4:K$596,6,FALSE)="ja","x",0),"x")) -> 0 | J275: =IF(E275=0,0,IF(#REF!="ja",IF(VLOOKUP(E275,'[3]Overzicht buitenroosters'!E$4:K$596,7,FALSE)="ja","x",0),"x")) -> 0 | K275: =IF(E275=0,0,IF(#REF!="ja",IF(VLOOKUP(E275,'[3]Overzicht buitenroosters'!E$4:AK$596,31,FALSE)="ja","x",0),"x")) -> 0
A276: =IF(AND(I276="x",K276="x",J276="x"),MAX(A$118:A275)+1,0) -> 0 | C276: 159 | E276: =IF(MAX('[3]Overzicht buitenroosters'!C158:C783)<'Muur (2 x vast + regelb 4032)'!C276,0,VLOOKUP(C276,'[3]Overzicht buitenroosters'!$C$4:$AF$625,3,FALSE)) -> 0 | I276: =IF(E276=0,0,IF(#REF!="ja",IF(VLOOKUP(E276,'[3]Overzicht buitenroosters'!E$4:K$596,6,FALSE)="ja","x",0),"x")) -> 0 | J276: =IF(E276=0,0,IF(#REF!="ja",IF(VLOOKUP(E276,'[3]Overzicht buitenroosters'!E$4:K$596,7,FALSE)="ja","x",0),"x")) -> 0 | K276: =IF(E276=0,0,IF(#REF!="ja",IF(VLOOKUP(E276,'[3]Overzicht buitenroosters'!E$4:AK$596,31,FALSE)="ja","x",0),"x")) -> 0
A277: =IF(AND(I277="x",K277="x",J277="x"),MAX(A$118:A276)+1,0) -> 0 | C277: 160 | E277: =IF(MAX('[3]Overzicht buitenroosters'!C159:C784)<'Muur (2 x vast + regelb 4032)'!C277,0,VLOOKUP(C277,'[3]Overzicht buitenroosters'!$C$4:$AF$625,3,FALSE)) -> 0 | I277: =IF(E277=0,0,IF(#REF!="ja",IF(VLOOKUP(E277,'[3]Overzicht buitenroosters'!E$4:K$596,6,FALSE)="ja","x",0),"x")) -> 0 | J277: =IF(E277=0,0,IF(#REF!="ja",IF(VLOOKUP(E277,'[3]Overzicht buitenroosters'!E$4:K$596,7,FALSE)="ja","x",0),"x")) -> 0 | K277: =IF(E277=0,0,IF(#REF!="ja",IF(VLOOKUP(E277,'[3]Overzicht buitenroosters'!E$4:AK$596,31,FALSE)="ja","x",0),"x")) -> 0
A278: =IF(AND(I278="x",K278="x",J278="x"),MAX(A$118:A277)+1,0) -> 0 | C278: 161 | E278: =IF(MAX('[3]Overzicht buitenroosters'!C160:C785)<'Muur (2 x vast + regelb 4032)'!C278,0,VLOOKUP(C278,'[3]Overzicht buitenroosters'!$C$4:$AF$625,3,FALSE)) -> 0 | I278: =IF(E278=0,0,IF(#REF!="ja",IF(VLOOKUP(E278,'[3]Overzicht buitenroosters'!E$4:K$596,6,FALSE)="ja","x",0),"x")) -> 0 | J278: =IF(E278=0,0,IF(#REF!="ja",IF(VLOOKUP(E278,'[3]Overzicht buitenroosters'!E$4:K$596,7,FALSE)="ja","x",0),"x")) -> 0 | K278: =IF(E278=0,0,IF(#REF!="ja",IF(VLOOKUP(E278,'[3]Overzicht buitenroosters'!E$4:AK$596,31,FALSE)="ja","x",0),"x")) -> 0
A279: =IF(AND(I279="x",K279="x",J279="x"),MAX(A$118:A278)+1,0) -> 0 | C279: 162 | E279: =IF(MAX('[3]Overzicht buitenroosters'!C161:C786)<'Muur (2 x vast + regelb 4032)'!C279,0,VLOOKUP(C279,'[3]Overzicht buitenroosters'!$C$4:$AF$625,3,FALSE)) -> 0 | I279: =IF(E279=0,0,IF(#REF!="ja",IF(VLOOKUP(E279,'[3]Overzicht buitenroosters'!E$4:K$596,6,FALSE)="ja","x",0),"x")) -> 0 | J279: =IF(E279=0,0,IF(#REF!="ja",IF(VLOOKUP(E279,'[3]Overzicht buitenroosters'!E$4:K$596,7,FALSE)="ja","x",0),"x")) -> 0 | K279: =IF(E279=0,0,IF(#REF!="ja",IF(VLOOKUP(E279,'[3]Overzicht buitenroosters'!E$4:AK$596,31,FALSE)="ja","x",0),"x")) -> 0
A280: =IF(AND(I280="x",K280="x",J280="x"),MAX(A$118:A279)+1,0) -> 0 | C280: 163 | E280: =IF(MAX('[3]Overzicht buitenroosters'!C162:C787)<'Muur (2 x vast + regelb 4032)'!C280,0,VLOOKUP(C280,'[3]Overzicht buitenroosters'!$C$4:$AF$625,3,FALSE)) -> 0 | I280: =IF(E280=0,0,IF(#REF!="ja",IF(VLOOKUP(E280,'[3]Overzicht buitenroosters'!E$4:K$596,6,FALSE)="ja","x",0),"x")) -> 0 | J280: =IF(E280=0,0,IF(#REF!="ja",IF(VLOOKUP(E280,'[3]Overzicht buitenroosters'!E$4:K$596,7,FALSE)="ja","x",0),"x")) -> 0 | K280: =IF(E280=0,0,IF(#REF!="ja",IF(VLOOKUP(E280,'[3]Overzicht buitenroosters'!E$4:AK$596,31,FALSE)="ja","x",0),"x")) -> 0
... 657 more rows

Sheet REKENBLAD 4032 (hidden)
I1: muur | J1: raam
G2: Hoogte opening | I2: =COUNTIF(I4:I963,1) -> 3 | J2: =COUNTIF(J4:J963,1) -> 0 | K2: Sectie ponsing [m²]
A3: raam | B3: muur | C3: m100 | D3: m130 | E3: m150 | G3: minimaal | H3: maximaal | K3: Sectie / kolom [m²] | L3: # ponsingen | M3: Aponsing [m²] | N3: Aopening [m²] | O3: Ce,buitenrooster | P3: Ce,4032 | Q3: ='Muur (vast + regelb 4032)'!O184 -> 1 | R3: ='Muur (vast + regelb 4032)'!O185 -> 2 | S3: ='Muur (vast + regelb 4032)'!O186 -> 10 | T3: =CONCATENATE("Q [m³/h] bij ",'Muur (vast + regelb 4032)'!AC27,"Pa") -> Q [m³/h] bij 7Pa | U3: marge hoogte | V3: # ponsingen | W3: Aponsing [m²] | X3: Aopening [m²] | Y3: Ce,buitenrooster | Z3: Ce,4032 | AA3: 1 | AB3: 2 | AC3: 10 | AD3: =CONCATENATE("Q [m³/h] bij ",'Muur (vast + regelb 4032)'!AK27,"Pa") -> Q [m³/h] bij neenPa | AE3: m100 | AF3: m130 | AG3: m150
A4: =J4 -> 0 | B4: =I4 -> 0 | C4: 0 | D4: 0 | E4: 1 | F4: 1 x 150mm | G4: =(100*C4+130*D4+150*E4+(C4+D4+E4-1)*1.4)-37 -> 113 | H4: =100*C4+130*D4+150*E4+(C4+D4+E4-1)*1.4 -> 150 | I4: =IF('Muur (vast + regelb 4032)'!AJ$17="horizontaal",IF(OR('Muur (vast + regelb 4032)'!K$10<G4,'Muur (vast + regelb 4032)'!K$10>H4),0,1),IF('Muur (vast + regelb 4032)'!AJ$17="verticaal",IF(OR('Muur (vast + regelb 4032)'!K$8<G4,'Muur (vast + regelb 4032)'!K$8>H4),0,1),"")) -> 0 | J4: =IF('regelbare raamroosters 1'!N$30-'regelbare raamroosters 1'!AJ$32*2=H4,1,0) -> 0 | K4: =C4*0.001126+D4*0.001666+E4*0.002026 -> 0.002026 | L4: =VLOOKUP(1,'4032 # kolommen ponsingen'!A$3:E$400,3,FALSE) -> 6 | M4: =K4*L4 -> 0.012156 | N4: ='Muur (vast + regelb 4032)'!$K$8*'Muur (vast + regelb 4032)'!$K$10*0.000001 -> 0.09 | O4: ='Muur (vast + regelb 4032)'!$AR$31 -> 0.329 | P4: 0.6 | Q4: =(SQRT(((N4*O4)^2*1.66666*'Muur (vast + regelb 4032)'!$AU$184*IF(P4=0.6,M4,N4)^2*P4^2)/(IF(P4=0.6,M4,N4)^2*P4^2+N4^2*O4^2)))*3600 -> 32.91371165 | R4: =(SQRT(((N4*O4)^2*1.66666*'Muur (vast + regelb 4032)'!$AU$185*IF(P4=0.6,M4,N4)^2*P4^2)/(IF(P4=0.6,M4,N4)^2*P4^2+N4^2*O4^2)))*3600 -> 46.54701741 | S4: =(SQRT(((N4*O4)^2*1.66666*'Muur (vast + regelb 4032)'!$AU$186*IF(P4=0.6,M4,N4)^2*P4^2)/(IF(P4=0.6,M4,N4)^2*P4^2+N4^2*O4^2)))*3600 -> 104.0822951 | T4: =(SQRT(((N4*O4)^2*1.66666*'Muur (vast + regelb 4032)'!$AU$187*IF(P4=0.6,M4,N4)^2*P4^2)/(IF(P4=0.6,M4,N4)^2*P4^2+N4^2*O4^2)))*3600 -> 87.08149576 | U4: =(C4*100+D4*130+E4*150+(C4+D4+E4-1)*1.4)-IF('Muur (vast + regelb 4032)'!AJ$17="horizontaal",'Muur (vast + regelb 4032)'!$K$10,IF('Muur (vast + regelb 4032)'!AJ$17="verticaal",'Muur (vast + regelb 4032)'!$K$8,0)) -> -150 | V4: =VLOOKUP(1,'4032 # kolommen ponsingen'!B$3:E$102,2,FALSE) ->  | W4: =K4*V4 ->  | X4: ='regelbare raamroosters 1'!$N$30*'regelbare raamroosters 1'!$N$32*0.000001 -> 0.833714 | Y4: ='regelbare raamroosters 1'!$AX$8 -> 0 | Z4: 0.6 | AA4: =(SQRT((('regelbare raamroosters 1'!AJ35*'regelbare raamroosters 1'!AX8)^2*1.66666*'regelbare raamroosters 1'!AU$44*'regelbare raamroosters 1'!AI16^2*0.6^2)/('regelbare raamroosters 1'!AI16^2*0.6^2+'regelbare raamroosters 1'!AJ35^2*'regelbare raamroosters 1'!AX8^2)))*3600 -> 0 | AB4: =(SQRT(((X4*Y4)^2*1.66666*'regelbare raamroosters 1'!AU$45*IF(Z4=0.6,W4,X4)^2*Z4^2)/(IF(Z4=0.6,W4,X4)^2*Z4^2+X4^2*Y4^2)))*3600 ->  | AC4: =(SQRT(((X4*Y4)^2*1.66666*'regelbare raamroosters 1'!AU$46*IF(Z4=0.6,W4,X4)^2*Z4^2)/(IF(Z4=0.6,W4,X4)^2*Z4^2+X4^2*Y4^2)))*3600 ->  | AD4: =(SQRT(((X4*Y4)^2*1.66666*'regelbare raamroosters 1'!AU$47*IF(Z4=0.6,W4,X4)^2*Z4^2)/(IF(Z4=0.6,W4,X4)^2*Z4^2+X4^2*Y4^2)))*3600 ->  | AE4: =C4 -> 0 | AF4: =D4 -> 0 | AG4: 1
A5: =IF(J5=0,0,MAX(A$4:A4)+1) -> 0 | B5: =IF(I5=0,0,MAX(B$4:B4)+1) -> 1 | C5: 0 | D5: 0 | E5: 2 | F5: 2 x 150mm | G5: =(100*C5+130*D5+150*E5+(C5+D5+E5-1)*1.4)-37 -> 264.4 | H5: =100*C5+130*D5+150*E5+(C5+D5+E5-1)*1.4 -> 301.4 | I5: =IF('Muur (vast + regelb 4032)'!AJ$17="horizontaal",IF(OR('Muur (vast + regelb 4032)'!K$10<G5,'Muur (vast + regelb 4032)'!K$10>H5),0,1),IF('Muur (vast + regelb 4032)'!AJ$17="verticaal",IF(OR('Muur (vast + regelb 4032)'!K$8<G5,'Muur (vast + regelb 4032)'!K$8>H5),0,1),"")) -> 1 | J5: =IF('regelbare raamroosters 1'!N$30-'regelbare raamroosters 1'!AJ$32*2=H5,1,0) -> 0 | K5: =C5*0.001126+D5*0.001666+E5*0.002026 -> 0.004052 | L5: =VLOOKUP(1,'4032 # kolommen ponsingen'!A$3:E$400,3,FALSE) -> 6 | M5: =K5*L5 -> 0.024312 | N5: ='Muur (vast + regelb 4032)'!$K$8*'Muur (vast + regelb 4032)'!$K$10*0.000001 -> 0.09 | O5: ='Muur (vast + regelb 4032)'!$AR$31 -> 0.329 | P5: 0.6 | Q5: =(SQRT(((N5*O5)^2*1.66666*'Muur (vast + regelb 4032)'!$AU$184*IF(P5=0.6,M5,N5)^2*P5^2)/(IF(P5=0.6,M5,N5)^2*P5^2+N5^2*O5^2)))*3600 -> 60.81560906 | R5: =(SQRT(((N5*O5)^2*1.66666*'Muur (vast + regelb 4032)'!$AU$185*IF(P5=0.6,M5,N5)^2*P5^2)/(IF(P5=0.6,M5,N5)^2*P5^2+N5^2*O5^2)))*3600 -> 86.00625914 | S5: =(SQRT(((N5*O5)^2*1.66666*'Muur (vast + regelb 4032)'!$AU$186*IF(P5=0.6,M5,N5)^2*P5^2)/(IF(P5=0.6,M5,N5)^2*P5^2+N5^2*O5^2)))*3600 -> 192.3158419 | T5: =(SQRT(((N5*O5)^2*1.66666*'Muur (vast + regelb 4032)'!$AU$187*IF(P5=0.6,M5,N5)^2*P5^2)/(IF(P5=0.6,M5,N5)^2*P5^2+N5^2*O5^2)))*3600 -> 160.9029774 | U5: =(C5*100+D5*130+E5*150+(C5+D5+E5-1)*1.4)-IF('Muur (vast + regelb 4032)'!AJ$17="horizontaal",'Muur (vast + regelb 4032)'!$K$10,IF('Muur (vast + regelb 4032)'!AJ$17="verticaal",'Muur (vast + regelb 4032)'!$K$8,0)) -> 1.4 | V5: =VLOOKUP(1,'4032 # kolommen ponsingen'!B$3:E$102,2,FALSE) ->  | W5: =K5*V5 ->  | X5: ='regelbare raamroosters 1'!$N$30*'regelbare raamroosters 1'!$N$32*0.000001 -> 0.833714 | Y5: ='regelbare raamroosters 1'!$AX$8 -> 0 | Z5: 0.6 | AA5: =(SQRT(((X5*Y5)^2*1.66666*'regelbare raamroosters 1'!AU$44*IF(Z5=0.6,W5,X5)^2*Z5^2)/(IF(Z5=0.6,W5,X5)^2*Z5^2+X5^2*Y5^2)))*3600 ->  | AB5: =(SQRT(((X5*Y5)^2*1.66666*'regelbare raamroosters 1'!AU$45*IF(Z5=0.6,W5,X5)^2*Z5^2)/(IF(Z5=0.6,W5,X5)^2*Z5^2+X5^2*Y5^2)))*3600 ->  | AC5: =(SQRT(((X5*Y5)^2*1.66666*'regelbare raamroosters 1'!AU$46*IF(Z5=0.6,W5,X5)^2*Z5^2)/(IF(Z5=0.6,W5,X5)^2*Z5^2+X5^2*Y5^2)))*3600 ->  | AD5: =(SQRT(((X5*Y5)^2*1.66666*'regelbare raamroosters 1'!AU$47*IF(Z5=0.6,W5,X5)^2*Z5^2)/(IF(Z5=0.6,W5,X5)^2*Z5^2+X5^2*Y5^2)))*3600 ->  | AE5: =C5 -> 0 | AF5: =D5 -> 0 | AG5: =E5 -> 2
A6: =IF(J6=0,0,MAX(A$4:A5)+1) -> 0 | B6: =IF(I6=0,0,MAX(B$4:B5)+1) -> 0 | C6: 0 | D6: 0 | E6: 3 | F6: 3 x 150mm | G6: 415.8 | H6: 452.8 | I6: =IF('Muur (vast + regelb 4032)'!AJ$17="horizontaal",IF(OR('Muur (vast + regelb 4032)'!K$10<G6,'Muur (vast + regelb 4032)'!K$10>H6),0,1),IF('Muur (vast + regelb 4032)'!AJ$17="verticaal",IF(OR('Muur (vast + regelb 4032)'!K$8<G6,'Muur (vast + regelb 4032)'!K$8>H6),0,1),"")) -> 0 | J6: =IF('regelbare raamroosters 1'!N$30-'regelbare raamroosters 1'!AJ$32*2=H6,1,0) -> 0 | K6: 0.006078 | L6: =VLOOKUP(1,'4032 # kolommen ponsingen'!A$3:E$400,3,FALSE) -> 6 | M6: 0.036468 | N6: ='Muur (vast + regelb 4032)'!$K$8*'Muur (vast + regelb 4032)'!$K$10*0.000001 -> 0.09 | O6: ='Muur (vast + regelb 4032)'!$AR$31 -> 0.329 | P6: 0.6 | Q6: =(SQRT(((N6*O6)^2*1.66666*'Muur (vast + regelb 4032)'!$AU$184*IF(P6=0.6,M6,N6)^2*P6^2)/(IF(P6=0.6,M6,N6)^2*P6^2+N6^2*O6^2)))*3600 -> 81.78514054 | R6: =(SQRT(((N6*O6)^2*1.66666*'Muur (vast + regelb 4032)'!$AU$185*IF(P6=0.6,M6,N6)^2*P6^2)/(IF(P6=0.6,M6,N6)^2*P6^2+N6^2*O6^2)))*3600 -> 115.661655 | S6: =(SQRT(((N6*O6)^2*1.66666*'Muur (vast + regelb 4032)'!$AU$186*IF(P6=0.6,M6,N6)^2*P6^2)/(IF(P6=0.6,M6,N6)^2*P6^2+N6^2*O6^2)))*3600 -> 258.6273229 | T6: =(SQRT(((N6*O6)^2*1.66666*'Muur (vast + regelb 4032)'!$AU$187*IF(P6=0.6,M6,N6)^2*P6^2)/(IF(P6=0.6,M6,N6)^2*P6^2+N6^2*O6^2)))*3600 -> 216.3831428 | U6: =(C6*100+D6*130+E6*150+(C6+D6+E6-1)*1.4)-IF('Muur (vast + regelb 4032)'!AJ$17="horizontaal",'Muur (vast + regelb 4032)'!$K$10,IF('Muur (vast + regelb 4032)'!AJ$17="verticaal",'Muur (vast + regelb 4032)'!$K$8,0)) -> 152.8 | V6: =VLOOKUP(1,'4032 # kolommen ponsingen'!B$3:E$102,2,FALSE) ->  | X6: ='regelbare raamroosters 1'!$N$30*'regelbare raamroosters 1'!$N$32*0.000001 -> 0.833714 | Y6: ='regelbare raamroosters 1'!$AX$8 -> 0 | Z6: 0.6 | AA6: =(SQRT(((X6*Y6)^2*1.66666*'regelbare raamroosters 1'!AU$44*IF(Z6=0.6,W6,X6)^2*Z6^2)/(IF(Z6=0.6,W6,X6)^2*Z6^2+X6^2*Y6^2)))*3600 ->  | AB6: =(SQRT(((X6*Y6)^2*1.66666*'regelbare raamroosters 1'!AU$45*IF(Z6=0.6,W6,X6)^2*Z6^2)/(IF(Z6=0.6,W6,X6)^2*Z6^2+X6^2*Y6^2)))*3600 ->  | AC6: =(SQRT(((X6*Y6)^2*1.66666*'regelbare raamroosters 1'!AU$46*IF(Z6=0.6,W6,X6)^2*Z6^2)/(IF(Z6=0.6,W6,X6)^2*Z6^2+X6^2*Y6^2)))*3600 ->  | AD6: =(SQRT(((X6*Y6)^2*1.66666*'regelbare raamroosters 1'!AU$47*IF(Z6=0.6,W6,X6)^2*Z6^2)/(IF(Z6=0.6,W6,X6)^2*Z6^2+X6^2*Y6^2)))*3600 ->  | AE6: 0 | AF6: 0 | AG6: 3
A7: =IF(J7=0,0,MAX(A$4:A6)+1) -> 0 | B7: =IF(I7=0,0,MAX(B$4:B6)+1) -> 0 | C7: 0 | D7: 0 | E7: 4 | F7: 4 x 150mm | G7: 567.2 | H7: 604.2 | I7: =IF('Muur (vast + regelb 4032)'!AJ$17="horizontaal",IF(OR('Muur (vast + regelb 4032)'!K$10<G7,'Muur (vast + regelb 4032)'!K$10>H7),0,1),IF('Muur (vast + regelb 4032)'!AJ$17="verticaal",IF(OR('Muur (vast + regelb 4032)'!K$8<G7,'Muur (vast + regelb 4032)'!K$8>H7),0,1),"")) -> 0 | J7: =IF('regelbare raamroosters 1'!N$30-'regelbare raamroosters 1'!AJ$32*2=H7,1,0) -> 0 | K7: 0.008104 | L7: =VLOOKUP(1,'4032 # kolommen ponsingen'!A$3:E$400,3,FALSE) -> 6 | M7: 0.048624 | N7: ='Muur (vast + regelb 4032)'!$K$8*'Muur (vast + regelb 4032)'!$K$10*0.000001 -> 0.09 | O7: ='Muur (vast + regelb 4032)'!$AR$31 -> 0.329 | P7: 0.6 | Q7: =(SQRT(((N7*O7)^2*1.66666*'Muur (vast + regelb 4032)'!$AU$184*IF(P7=0.6,M7,N7)^2*P7^2)/(IF(P7=0.6,M7,N7)^2*P7^2+N7^2*O7^2)))*3600 -> 96.58447696 | R7: =(SQRT(((N7*O7)^2*1.66666*'Muur (vast + regelb 4032)'!$AU$185*IF(P7=0.6,M7,N7)^2*P7^2)/(IF(P7=0.6,M7,N7)^2*P7^2+N7^2*O7^2)))*3600 -> 136.5910772 | S7: =(SQRT(((N7*O7)^2*1.66666*'Muur (vast + regelb 4032)'!$AU$186*IF(P7=0.6,M7,N7)^2*P7^2)/(IF(P7=0.6,M7,N7)^2*P7^2+N7^2*O7^2)))*3600 -> 305.4269338 | T7: =(SQRT(((N7*O7)^2*1.66666*'Muur (vast + regelb 4032)'!$AU$187*IF(P7=0.6,M7,N7)^2*P7^2)/(IF(P7=0.6,M7,N7)^2*P7^2+N7^2*O7^2)))*3600 -> 255.5385065 | U7: =(C7*100+D7*130+E7*150+(C7+D7+E7-1)*1.4)-IF('Muur (vast + regelb 4032)'!AJ$17="horizontaal",'Muur (vast + regelb 4032)'!$K$10,IF('Muur (vast + regelb 4032)'!AJ$17="verticaal",'Muur (vast + regelb 4032)'!$K$8,0)) -> 304.2 | V7: =VLOOKUP(1,'4032 # kolommen ponsingen'!B$3:E$102,2,FALSE) ->  | X7: ='regelbare raamroosters 1'!$N$30*'regelbare raamroosters 1'!$N$32*0.000001 -> 0.833714 | Y7: ='regelbare raamroosters 1'!$AX$8 -> 0 | Z7: 0.6 | AA7: =(SQRT(((X7*Y7)^2*1.66666*'regelbare raamroosters 1'!AU$44*IF(Z7=0.6,W7,X7)^2*Z7^2)/(IF(Z7=0.6,W7,X7)^2*Z7^2+X7^2*Y7^2)))*3600 ->  | AB7: =(SQRT(((X7*Y7)^2*1.66666*'regelbare raamroosters 1'!AU$45*IF(Z7=0.6,W7,X7)^2*Z7^2)/(IF(Z7=0.6,W7,X7)^2*Z7^2+X7^2*Y7^2)))*3600 ->  | AC7: =(SQRT(((X7*Y7)^2*1.66666*'regelbare raamroosters 1'!AU$46*IF(Z7=0.6,W7,X7)^2*Z7^2)/(IF(Z7=0.6,W7,X7)^2*Z7^2+X7^2*Y7^2)))*3600 ->  | AD7: =(SQRT(((X7*Y7)^2*1.66666*'regelbare raamroosters 1'!AU$47*IF(Z7=0.6,W7,X7)^2*Z7^2)/(IF(Z7=0.6,W7,X7)^2*Z7^2+X7^2*Y7^2)))*3600 ->  | AE7: 0 | AF7: 0 | AG7: 4
A8: =IF(J8=0,0,MAX(A$4:A7)+1) -> 0 | B8: =IF(I8=0,0,MAX(B$4:B7)+1) -> 0 | C8: 0 | D8: 0 | E8: 5 | F8: 5 x 150mm | G8: 718.6 | H8: 755.6 | I8: =IF('Muur (vast + regelb 4032)'!AJ$17="horizontaal",IF(OR('Muur (vast + regelb 4032)'!K$10<G8,'Muur (vast + regelb 4032)'!K$10>H8),0,1),IF('Muur (vast + regelb 4032)'!AJ$17="verticaal",IF(OR('Muur (vast + regelb 4032)'!K$8<G8,'Muur (vast + regelb 4032)'!K$8>H8),0,1),"")) -> 0 | J8: =IF('regelbare raamroosters 1'!N$30-'regelbare raamroosters 1'!AJ$32*2=H8,1,0) -> 0 | K8: 0.01013 | L8: =VLOOKUP(1,'4032 # kolommen ponsingen'!A$3:E$400,3,FALSE) -> 6 | M8: 0.06078 | N8: ='Muur (vast + regelb 4032)'!$K$8*'Muur (vast + regelb 4032)'!$K$10*0.000001 -> 0.09 | O8: ='Muur (vast + regelb 4032)'!$AR$31 -> 0.329 | P8: 0.6 | Q8: =(SQRT(((N8*O8)^2*1.66666*'Muur (vast + regelb 4032)'!$AU$184*IF(P8=0.6,M8,N8)^2*P8^2)/(IF(P8=0.6,M8,N8)^2*P8^2+N8^2*O8^2)))*3600 -> 106.8336209 | R8: =(SQRT(((N8*O8)^2*1.66666*'Muur (vast + regelb 4032)'!$AU$185*IF(P8=0.6,M8,N8)^2*P8^2)/(IF(P8=0.6,M8,N8)^2*P8^2+N8^2*O8^2)))*3600 -> 151.0855556 | S8: =(SQRT(((N8*O8)^2*1.66666*'Muur (vast + regelb 4032)'!$AU$186*IF(P8=0.6,M8,N8)^2*P8^2)/(IF(P8=0.6,M8,N8)^2*P8^2+N8^2*O8^2)))*3600 -> 337.8375727 | T8: =(SQRT(((N8*O8)^2*1.66666*'Muur (vast + regelb 4032)'!$AU$187*IF(P8=0.6,M8,N8)^2*P8^2)/(IF(P8=0.6,M8,N8)^2*P8^2+N8^2*O8^2)))*3600 -> 282.6551926 | U8: =(C8*100+D8*130+E8*150+(C8+D8+E8-1)*1.4)-IF('Muur (vast + regelb 4032)'!AJ$17="horizontaal",'Muur (vast + regelb 4032)'!$K$10,IF('Muur (vast + regelb 4032)'!AJ$17="verticaal",'Muur (vast + regelb 4032)'!$K$8,0)) -> 455.6 | V8: =VLOOKUP(1,'4032 # kolommen ponsingen'!B$3:E$102,2,FALSE) ->  | X8: ='regelbare raamroosters 1'!$N$30*'regelbare raamroosters 1'!$N$32*0.000001 -> 0.833714 | Y8: ='regelbare raamroosters 1'!$AX$8 -> 0 | Z8: 0.6 | AA8: =(SQRT(((X8*Y8)^2*1.66666*'regelbare raamroosters 1'!AU$44*IF(Z8=0.6,W8,X8)^2*Z8^2)/(IF(Z8=0.6,W8,X8)^2*Z8^2+X8^2*Y8^2)))*3600 ->  | AB8: =(SQRT(((X8*Y8)^2*1.66666*'regelbare raamroosters 1'!AU$45*IF(Z8=0.6,W8,X8)^2*Z8^2)/(IF(Z8=0.6,W8,X8)^2*Z8^2+X8^2*Y8^2)))*3600 ->  | AC8: =(SQRT(((X8*Y8)^2*1.66666*'regelbare raamroosters 1'!AU$46*IF(Z8=0.6,W8,X8)^2*Z8^2)/(IF(Z8=0.6,W8,X8)^2*Z8^2+X8^2*Y8^2)))*3600 ->  | AD8: =(SQRT(((X8*Y8)^2*1.66666*'regelbare raamroosters 1'!AU$47*IF(Z8=0.6,W8,X8)^2*Z8^2)/(IF(Z8=0.6,W8,X8)^2*Z8^2+X8^2*Y8^2)))*3600 ->  | AE8: 0 | AF8: 0 | AG8: 5
A9: =IF(J9=0,0,MAX(A$4:A8)+1) -> 0 | B9: =IF(I9=0,0,MAX(B$4:B8)+1) -> 0 | C9: 0 | D9: 0 | E9: 6 | F9: 6 x 150mm | G9: =(100*C9+130*D9+150*E9+(C9+D9+E9-1)*1.4)-37 -> 870 | H9: =100*C9+130*D9+150*E9+(C9+D9+E9-1)*1.4 -> 907 | I9: =IF('Muur (vast + regelb 4032)'!AJ$17="horizontaal",IF(OR('Muur (vast + regelb 4032)'!K$10<G9,'Muur (vast + regelb 4032)'!K$10>H9),0,1),IF('Muur (vast + regelb 4032)'!AJ$17="verticaal",IF(OR('Muur (vast + regelb 4032)'!K$8<G9,'Muur (vast + regelb 4032)'!K$8>H9),0,1),"")) -> 0 | J9: =IF('regelbare raamroosters 1'!N$30-'regelbare raamroosters 1'!AJ$32*2=H9,1,0) -> 0 | K9: 0.012156 | L9: =VLOOKUP(1,'4032 # kolommen ponsingen'!A$3:E$400,3,FALSE) -> 6 | M9: =K9*L9 -> 0.072936 | N9: ='Muur (vast + regelb 4032)'!$K$8*'Muur (vast + regelb 4032)'!$K$10*0.000001 -> 0.09 | O9: ='Muur (vast + regelb 4032)'!$AR$31 -> 0.329 | P9: 0.6 | Q9: =(SQRT(((N9*O9)^2*1.66666*'Muur (vast + regelb 4032)'!$AU$184*IF(P9=0.6,M9,N9)^2*P9^2)/(IF(P9=0.6,M9,N9)^2*P9^2+N9^2*O9^2)))*3600 -> 113.9759294 | R9: =(SQRT(((N9*O9)^2*1.66666*'Muur (vast + regelb 4032)'!$AU$185*IF(P9=0.6,M9,N9)^2*P9^2)/(IF(P9=0.6,M9,N9)^2*P9^2+N9^2*O9^2)))*3600 -> 161.1863052 | S9: =(SQRT(((N9*O9)^2*1.66666*'Muur (vast + regelb 4032)'!$AU$186*IF(P9=0.6,M9,N9)^2*P9^2)/(IF(P9=0.6,M9,N9)^2*P9^2+N9^2*O9^2)))*3600 -> 360.4235354 | T9: =(SQRT(((N9*O9)^2*1.66666*'Muur (vast + regelb 4032)'!$AU$187*IF(P9=0.6,M9,N9)^2*P9^2)/(IF(P9=0.6,M9,N9)^2*P9^2+N9^2*O9^2)))*3600 -> 301.5519647 | U9: =(C9*100+D9*130+E9*150+(C9+D9+E9-1)*1.4)-IF('Muur (vast + regelb 4032)'!AJ$17="horizontaal",'Muur (vast + regelb 4032)'!$K$10,IF('Muur (vast + regelb 4032)'!AJ$17="verticaal",'Muur (vast + regelb 4032)'!$K$8,0)) -> 607 | V9: =VLOOKUP(1,'4032 # kolommen ponsingen'!B$3:E$102,2,FALSE) ->  | X9: ='regelbare raamroosters 1'!$N$30*'regelbare raamroosters 1'!$N$32*0.000001 -> 0.833714 | Y9: ='regelbare raamroosters 1'!$AX$8 -> 0 | Z9: 0.6 | AA9: =(SQRT(((X9*Y9)^2*1.66666*'regelbare raamroosters 1'!AU$44*IF(Z9=0.6,W9,X9)^2*Z9^2)/(IF(Z9=0.6,W9,X9)^2*Z9^2+X9^2*Y9^2)))*3600 ->  | AB9: =(SQRT(((X9*Y9)^2*1.66666*'regelbare raamroosters 1'!AU$45*IF(Z9=0.6,W9,X9)^2*Z9^2)/(IF(Z9=0.6,W9,X9)^2*Z9^2+X9^2*Y9^2)))*3600 ->  | AC9: =(SQRT(((X9*Y9)^2*1.66666*'regelbare raamroosters 1'!AU$46*IF(Z9=0.6,W9,X9)^2*Z9^2)/(IF(Z9=0.6,W9,X9)^2*Z9^2+X9^2*Y9^2)))*3600 ->  | AD9: =(SQRT(((X9*Y9)^2*1.66666*'regelbare raamroosters 1'!AU$47*IF(Z9=0.6,W9,X9)^2*Z9^2)/(IF(Z9=0.6,W9,X9)^2*Z9^2+X9^2*Y9^2)))*3600 ->  | AE9: 0 | AF9: 0 | AG9: 6
A10: =IF(J10=0,0,MAX(A$4:A9)+1) -> 0 | B10: =IF(I10=0,0,MAX(B$4:B9)+1) -> 0 | C10: 0 | D10: 0 | E10: 7 | F10: 7 x 150mm | G10: 1021.4 | H10: 1058.4 | I10: =IF('Muur (vast + regelb 4032)'!AJ$17="horizontaal",IF(OR('Muur (vast + regelb 4032)'!K$10<G10,'Muur (vast + regelb 4032)'!K$10>H10),0,1),IF('Muur (vast + regelb 4032)'!AJ$17="verticaal",IF(OR('Muur (vast + regelb 4032)'!K$8<G10,'Muur (vast + regelb 4032)'!K$8>H10),0,1),"")) -> 0 | J10: =IF('regelbare raamroosters 1'!N$30-'regelbare raamroosters 1'!AJ$32*2=H10,1,0) -> 0 | K10: 0.014182 | L10: =VLOOKUP(1,'4032 # kolommen ponsingen'!A$3:E$400,3,FALSE) -> 6 | M10: 0.085092 | N10: ='Muur (vast + regelb 4032)'!$K$8*'Muur (vast + regelb 4032)'!$K$10*0.000001 -> 0.09 | O10: ='Muur (vast + regelb 4032)'!$AR$31 -> 0.329 | P10: 0.6 | Q10: =(SQRT(((N10*O10)^2*1.66666*'Muur (vast + regelb 4032)'!$AU$184*IF(P10=0.6,M10,N10)^2*P10^2)/(IF(P10=0.6,M10,N10)^2*P10^2+N10^2*O10^2)))*3600 -> 119.0429343 | R10: =(SQRT(((N10*O10)^2*1.66666*'Muur (vast + regelb 4032)'!$AU$185*IF(P10=0.6,M10,N10)^2*P10^2)/(IF(P10=0.6,M10,N10)^2*P10^2+N10^2*O10^2)))*3600 -> 168.3521322 | S10: =(SQRT(((N10*O10)^2*1.66666*'Muur (vast + regelb 4032)'!$AU$186*IF(P10=0.6,M10,N10)^2*P10^2)/(IF(P10=0.6,M10,N10)^2*P10^2+N10^2*O10^2)))*3600 -> 376.4468118 | T10: =(SQRT(((N10*O10)^2*1.66666*'Muur (vast + regelb 4032)'!$AU$187*IF(P10=0.6,M10,N10)^2*P10^2)/(IF(P10=0.6,M10,N10)^2*P10^2+N10^2*O10^2)))*3600 -> 314.9579996 | U10: =(C10*100+D10*130+E10*150+(C10+D10+E10-1)*1.4)-IF('Muur (vast + regelb 4032)'!AJ$17="horizontaal",'Muur (vast + regelb 4032)'!$K$10,IF('Muur (vast + regelb 4032)'!AJ$17="verticaal",'Muur (vast + regelb 4032)'!$K$8,0)) -> 758.4 | V10: =VLOOKUP(1,'4032 # kolommen ponsingen'!B$3:E$102,2,FALSE) ->  | X10: ='regelbare raamroosters 1'!$N$30*'regelbare raamroosters 1'!$N$32*0.000001 -> 0.833714 | Y10: ='regelbare raamroosters 1'!$AX$8 -> 0 | Z10: 0.6 | AA10: =(SQRT(((X10*Y10)^2*1.66666*'regelbare raamroosters 1'!AU$44*IF(Z10=0.6,W10,X10)^2*Z10^2)/(IF(Z10=0.6,W10,X10)^2*Z10^2+X10^2*Y10^2)))*3600 ->  | AB10: =(SQRT(((X10*Y10)^2*1.66666*'regelbare raamroosters 1'!AU$45*IF(Z10=0.6,W10,X10)^2*Z10^2)/(IF(Z10=0.6,W10,X10)^2*Z10^2+X10^2*Y10^2)))*3600 ->  | AC10: =(SQRT(((X10*Y10)^2*1.66666*'regelbare raamroosters 1'!AU$46*IF(Z10=0.6,W10,X10)^2*Z10^2)/(IF(Z10=0.6,W10,X10)^2*Z10^2+X10^2*Y10^2)))*3600 ->  | AD10: =(SQRT(((X10*Y10)^2*1.66666*'regelbare raamroosters 1'!AU$47*IF(Z10=0.6,W10,X10)^2*Z10^2)/(IF(Z10=0.6,W10,X10)^2*Z10^2+X10^2*Y10^2)))*3600 ->  | AE10: 0 | AF10: 0 | AG10: 7
A11: =IF(J11=0,0,MAX(A$4:A10)+1) -> 0 | B11: =IF(I11=0,0,MAX(B$4:B10)+1) -> 0 | C11: 0 | D11: 0 | E11: 8 | F11: 8 x 150mm | G11: 1172.8 | H11: 1209.8 | I11: =IF('Muur (vast + regelb 4032)'!AJ$17="horizontaal",IF(OR('Muur (vast + regelb 4032)'!K$10<G11,'Muur (vast + regelb 4032)'!K$10>H11),0,1),IF('Muur (vast + regelb 4032)'!AJ$17="verticaal",IF(OR('Muur (vast + regelb 4032)'!K$8<G11,'Muur (vast + regelb 4032)'!K$8>H11),0,1),"")) -> 0 | J11: =IF('regelbare raamroosters 1'!N$30-'regelbare raamroosters 1'!AJ$32*2=H11,1,0) -> 0 | K11: 0.016208 | L11: =VLOOKUP(1,'4032 # kolommen ponsingen'!A$3:E$400,3,FALSE) -> 6 | M11: 0.097248 | N11: ='Muur (vast + regelb 4032)'!$K$8*'Muur (vast + regelb 4032)'!$K$10*0.000001 -> 0.09 | O11: ='Muur (vast + regelb 4032)'!$AR$31 -> 0.329 | P11: 0.6 | Q11: =(SQRT(((N11*O11)^2*1.66666*'Muur (vast + regelb 4032)'!$AU$184*IF(P11=0.6,M11,N11)^2*P11^2)/(IF(P11=0.6,M11,N11)^2*P11^2+N11^2*O11^2)))*3600 -> 122.7175736 | R11: =(SQRT(((N11*O11)^2*1.66666*'Muur (vast + regelb 4032)'!$AU$185*IF(P11=0.6,M11,N11)^2*P11^2)/(IF(P11=0.6,M11,N11)^2*P11^2+N11^2*O11^2)))*3600 -> 173.548857 | S11: =(SQRT(((N11*O11)^2*1.66666*'Muur (vast + regelb 4032)'!$AU$186*IF(P11=0.6,M11,N11)^2*P11^2)/(IF(P11=0.6,M11,N11)^2*P11^2+N11^2*O11^2)))*3600 -> 388.0670416 | T11: =(SQRT(((N11*O11)^2*1.66666*'Muur (vast + regelb 4032)'!$AU$187*IF(P11=0.6,M11,N11)^2*P11^2)/(IF(P11=0.6,M11,N11)^2*P11^2+N11^2*O11^2)))*3600 -> 324.6801813 | U11: =(C11*100+D11*130+E11*150+(C11+D11+E11-1)*1.4)-IF('Muur (vast + regelb 4032)'!AJ$17="horizontaal",'Muur (vast + regelb 4032)'!$K$10,IF('Muur (vast + regelb 4032)'!AJ$17="verticaal",'Muur (vast + regelb 4032)'!$K$8,0)) -> 909.8 | V11: =VLOOKUP(1,'4032 # kolommen ponsingen'!B$3:E$102,2,FALSE) ->  | X11: ='regelbare raamroosters 1'!$N$30*'regelbare raamroosters 1'!$N$32*0.000001 -> 0.833714 | Y11: ='regelbare raamroosters 1'!$AX$8 -> 0 | Z11: 0.6 | AA11: =(SQRT(((X11*Y11)^2*1.66666*'regelbare raamroosters 1'!AU$44*IF(Z11=0.6,W11,X11)^2*Z11^2)/(IF(Z11=0.6,W11,X11)^2*Z11^2+X11^2*Y11^2)))*3600 ->  | AB11: =(SQRT(((X11*Y11)^2*1.66666*'regelbare raamroosters 1'!AU$45*IF(Z11=0.6,W11,X11)^2*Z11^2)/(IF(Z11=0.6,W11,X11)^2*Z11^2+X11^2*Y11^2)))*3600 ->  | AC11: =(SQRT(((X11*Y11)^2*1.66666*'regelbare raamroosters 1'!AU$46*IF(Z11=0.6,W11,X11)^2*Z11^2)/(IF(Z11=0.6,W11,X11)^2*Z11^2+X11^2*Y11^2)))*3600 ->  | AD11: =(SQRT(((X11*Y11)^2*1.66666*'regelbare raamroosters 1'!AU$47*IF(Z11=0.6,W11,X11)^2*Z11^2)/(IF(Z11=0.6,W11,X11)^2*Z11^2+X11^2*Y11^2)))*3600 ->  | AE11: 0 | AF11: 0 | AG11: 8
A12: =IF(J12=0,0,MAX(A$4:A11)+1) -> 0 | B12: =IF(I12=0,0,MAX(B$4:B11)+1) -> 0 | C12: 0 | D12: 0 | E12: 9 | F12: 9 x 150mm | G12: 1324.2 | H12: 1361.2 | I12: =IF('Muur (vast + regelb 4032)'!AJ$17="horizontaal",IF(OR('Muur (vast + regelb 4032)'!K$10<G12,'Muur (vast + regelb 4032)'!K$10>H12),0,1),IF('Muur (vast + regelb 4032)'!AJ$17="verticaal",IF(OR('Muur (vast + regelb 4032)'!K$8<G12,'Muur (vast + regelb 4032)'!K$8>H12),0,1),"")) -> 0 | J12: =IF('regelbare raamroosters 1'!N$30-'regelbare raamroosters 1'!AJ$32*2=H12,1,0) -> 0 | K12: 0.018234 | L12: =VLOOKUP(1,'4032 # kolommen ponsingen'!A$3:E$400,3,FALSE) -> 6 | M12: 0.109404 | N12: ='Muur (vast + regelb 4032)'!$K$8*'Muur (vast + regelb 4032)'!$K$10*0.000001 -> 0.09 | O12: ='Muur (vast + regelb 4032)'!$AR$31 -> 0.329 | P12: 0.6 | Q12: =(SQRT(((N12*O12)^2*1.66666*'Muur (vast + regelb 4032)'!$AU$184*IF(P12=0.6,M12,N12)^2*P12^2)/(IF(P12=0.6,M12,N12)^2*P12^2+N12^2*O12^2)))*3600 -> 125.4429168 | R12: =(SQRT(((N12*O12)^2*1.66666*'Muur (vast + regelb 4032)'!$AU$185*IF(P12=0.6,M12,N12)^2*P12^2)/(IF(P12=0.6,M12,N12)^2*P12^2+N12^2*O12^2)))*3600 -> 177.4030743 | S12: =(SQRT(((N12*O12)^2*1.66666*'Muur (vast + regelb 4032)'!$AU$186*IF(P12=0.6,M12,N12)^2*P12^2)/(IF(P12=0.6,M12,N12)^2*P12^2+N12^2*O12^2)))*3600 -> 396.6853335 | T12: =(SQRT(((N12*O12)^2*1.66666*'Muur (vast + regelb 4032)'!$AU$187*IF(P12=0.6,M12,N12)^2*P12^2)/(IF(P12=0.6,M12,N12)^2*P12^2+N12^2*O12^2)))*3600 -> 331.8907616 | U12: =(C12*100+D12*130+E12*150+(C12+D12+E12-1)*1.4)-IF('Muur (vast + regelb 4032)'!AJ$17="horizontaal",'Muur (vast + regelb 4032)'!$K$10,IF('Muur (vast + regelb 4032)'!AJ$17="verticaal",'Muur (vast + regelb 4032)'!$K$8,0)) -> 1061.2 | V12: =VLOOKUP(1,'4032 # kolommen ponsingen'!B$3:E$102,2,FALSE) ->  | X12: ='regelbare raamroosters 1'!$N$30*'regelbare raamroosters 1'!$N$32*0.000001 -> 0.833714 | Y12: ='regelbare raamroosters 1'!$AX$8 -> 0 | Z12: 0.6 | AA12: =(SQRT(((X12*Y12)^2*1.66666*'regelbare raamroosters 1'!AU$44*IF(Z12=0.6,W12,X12)^2*Z12^2)/(IF(Z12=0.6,W12,X12)^2*Z12^2+X12^2*Y12^2)))*3600 ->  | AB12: =(SQRT(((X12*Y12)^2*1.66666*'regelbare raamroosters 1'!AU$45*IF(Z12=0.6,W12,X12)^2*Z12^2)/(IF(Z12=0.6,W12,X12)^2*Z12^2+X12^2*Y12^2)))*3600 ->  | AC12: =(SQRT(((X12*Y12)^2*1.66666*'regelbare raamroosters 1'!AU$46*IF(Z12=0.6,W12,X12)^2*Z12^2)/(IF(Z12=0.6,W12,X12)^2*Z12^2+X12^2*Y12^2)))*3600 ->  | AD12: =(SQRT(((X12*Y12)^2*1.66666*'regelbare raamroosters 1'!AU$47*IF(Z12=0.6,W12,X12)^2*Z12^2)/(IF(Z12=0.6,W12,X12)^2*Z12^2+X12^2*Y12^2)))*3600 ->  | AE12: 0 | AF12: 0 | AG12: 9
A13: =IF(J13=0,0,MAX(A$4:A12)+1) -> 0 | B13: =IF(I13=0,0,MAX(B$4:B12)+1) -> 0 | C13: 0 | D13: 0 | E13: 10 | F13: 10 x 150mm | G13: 1475.6 | H13: 1512.6 | I13: =IF('Muur (vast + regelb 4032)'!AJ$17="horizontaal",IF(OR('Muur (vast + regelb 4032)'!K$10<G13,'Muur (vast + regelb 4032)'!K$10>H13),0,1),IF('Muur (vast + regelb 4032)'!AJ$17="verticaal",IF(OR('Muur (vast + regelb 4032)'!K$8<G13,'Muur (vast + regelb 4032)'!K$8>H13),0,1),"")) -> 0 | J13: =IF('regelbare raamroosters 1'!N$30-'regelbare raamroosters 1'!AJ$32*2=H13,1,0) -> 0 | K13: 0.02026 | L13: =VLOOKUP(1,'4032 # kolommen ponsingen'!A$3:E$400,3,FALSE) -> 6 | M13: 0.12156 | N13: ='Muur (vast + regelb 4032)'!$K$8*'Muur (vast + regelb 4032)'!$K$10*0.000001 -> 0.09 | O13: ='Muur (vast + regelb 4032)'!$AR$31 -> 0.329 | P13: 0.6 | Q13: =(SQRT(((N13*O13)^2*1.66666*'Muur (vast + regelb 4032)'!$AU$184*IF(P13=0.6,M13,N13)^2*P13^2)/(IF(P13=0.6,M13,N13)^2*P13^2+N13^2*O13^2)))*3600 -> 127.5076396 | R13: =(SQRT(((N13*O13)^2*1.66666*'Muur (vast + regelb 4032)'!$AU$185*IF(P13=0.6,M13,N13)^2*P13^2)/(IF(P13=0.6,M13,N13)^2*P13^2+N13^2*O13^2)))*3600 -> 180.3230332 | S13: =(SQRT(((N13*O13)^2*1.66666*'Muur (vast + regelb 4032)'!$AU$186*IF(P13=0.6,M13,N13)^2*P13^2)/(IF(P13=0.6,M13,N13)^2*P13^2+N13^2*O13^2)))*3600 -> 403.2145601 | T13: =(SQRT(((N13*O13)^2*1.66666*'Muur (vast + regelb 4032)'!$AU$187*IF(P13=0.6,M13,N13)^2*P13^2)/(IF(P13=0.6,M13,N13)^2*P13^2+N13^2*O13^2)))*3600 -> 337.3535046 | U13: =(C13*100+D13*130+E13*150+(C13+D13+E13-1)*1.4)-IF('Muur (vast + regelb 4032)'!AJ$17="horizontaal",'Muur (vast + regelb 4032)'!$K$10,IF('Muur (vast + regelb 4032)'!AJ$17="verticaal",'Muur (vast + regelb 4032)'!$K$8,0)) -> 1212.6 | V13: =VLOOKUP(1,'4032 # kolommen ponsingen'!B$3:E$102,2,FALSE) ->  | X13: ='regelbare raamroosters 1'!$N$30*'regelbare raamroosters 1'!$N$32*0.000001 -> 0.833714 | Y13: ='regelbare raamroosters 1'!$AX$8 -> 0 | Z13: 0.6 | AA13: =(SQRT(((X13*Y13)^2*1.66666*'regelbare raamroosters 1'!AU$44*IF(Z13=0.6,W13,X13)^2*Z13^2)/(IF(Z13=0.6,W13,X13)^2*Z13^2+X13^2*Y13^2)))*3600 ->  | AB13: =(SQRT(((X13*Y13)^2*1.66666*'regelbare raamroosters 1'!AU$45*IF(Z13=0.6,W13,X13)^2*Z13^2)/(IF(Z13=0.6,W13,X13)^2*Z13^2+X13^2*Y13^2)))*3600 ->  | AC13: =(SQRT(((X13*Y13)^2*1.66666*'regelbare raamroosters 1'!AU$46*IF(Z13=0.6,W13,X13)^2*Z13^2)/(IF(Z13=0.6,W13,X13)^2*Z13^2+X13^2*Y13^2)))*3600 ->  | AD13: =(SQRT(((X13*Y13)^2*1.66666*'regelbare raamroosters 1'!AU$47*IF(Z13=0.6,W13,X13)^2*Z13^2)/(IF(Z13=0.6,W13,X13)^2*Z13^2+X13^2*Y13^2)))*3600 ->  | AE13: 0 | AF13: 0 | AG13: 10
A14: =IF(J14=0,0,MAX(A$4:A13)+1) -> 0 | B14: =IF(I14=0,0,MAX(B$4:B13)+1) -> 0 | C14: 0 | D14: 0 | E14: 11 | F14: 11 x 150mm | G14: 1627 | H14: 1664 | I14: =IF('Muur (vast + regelb 4032)'!AJ$17="horizontaal",IF(OR('Muur (vast + regelb 4032)'!K$10<G14,'Muur (vast + regelb 4032)'!K$10>H14),0,1),IF('Muur (vast + regelb 4032)'!AJ$17="verticaal",IF(OR('Muur (vast + regelb 4032)'!K$8<G14,'Muur (vast + regelb 4032)'!K$8>H14),0,1),"")) -> 0 | J14: =IF('regelbare raamroosters 1'!N$30-'regelbare raamroosters 1'!AJ$32*2=H14,1,0) -> 0 | K14: 0.022286 | L14: =VLOOKUP(1,'4032 # kolommen ponsingen'!A$3:E$400,3,FALSE) -> 6 | M14: 0.133716 | N14: ='Muur (vast + regelb 4032)'!$K$8*'Muur (vast + regelb 4032)'!$K$10*0.000001 -> 0.09 | O14: ='Muur (vast + regelb 4032)'!$AR$31 -> 0.329 | P14: 0.6 | Q14: =(SQRT(((N14*O14)^2*1.66666*'Muur (vast + regelb 4032)'!$AU$184*IF(P14=0.6,M14,N14)^2*P14^2)/(IF(P14=0.6,M14,N14)^2*P14^2+N14^2*O14^2)))*3600 -> 129.1026618 | R14: =(SQRT(((N14*O14)^2*1.66666*'Muur (vast + regelb 4032)'!$AU$185*IF(P14=0.6,M14,N14)^2*P14^2)/(IF(P14=0.6,M14,N14)^2*P14^2+N14^2*O14^2)))*3600 -> 182.5787353 | S14: =(SQRT(((N14*O14)^2*1.66666*'Muur (vast + regelb 4032)'!$AU$186*IF(P14=0.6,M14,N14)^2*P14^2)/(IF(P14=0.6,M14,N14)^2*P14^2+N14^2*O14^2)))*3600 -> 408.2584633 | T14: =(SQRT(((N14*O14)^2*1.66666*'Muur (vast + regelb 4032)'!$AU$187*IF(P14=0.6,M14,N14)^2*P14^2)/(IF(P14=0.6,M14,N14)^2*P14^2+N14^2*O14^2)))*3600 -> 341.5735368 | U14: =(C14*100+D14*130+E14*150+(C14+D14+E14-1)*1.4)-IF('Muur (vast + regelb 4032)'!AJ$17="horizontaal",'Muur (vast + regelb 4032)'!$K$10,IF('Muur (vast + regelb 4032)'!AJ$17="verticaal",'Muur (vast + regelb 4032)'!$K$8,0)) -> 1364 | V14: =VLOOKUP(1,'4032 # kolommen ponsingen'!B$3:E$102,2,FALSE) ->  | X14: ='regelbare raamroosters 1'!$N$30*'regelbare raamroosters 1'!$N$32*0.000001 -> 0.833714 | Y14: ='regelbare raamroosters 1'!$AX$8 -> 0 | Z14: 0.6 | AA14: =(SQRT(((X14*Y14)^2*1.66666*'regelbare raamroosters 1'!AU$44*IF(Z14=0.6,W14,X14)^2*Z14^2)/(IF(Z14=0.6,W14,X14)^2*Z14^2+X14^2*Y14^2)))*3600 ->  | AB14: =(SQRT(((X14*Y14)^2*1.66666*'regelbare raamroosters 1'!AU$45*IF(Z14=0.6,W14,X14)^2*Z14^2)/(IF(Z14=0.6,W14,X14)^2*Z14^2+X14^2*Y14^2)))*3600 ->  | AC14: =(SQRT(((X14*Y14)^2*1.66666*'regelbare raamroosters 1'!AU$46*IF(Z14=0.6,W14,X14)^2*Z14^2)/(IF(Z14=0.6,W14,X14)^2*Z14^2+X14^2*Y14^2)))*3600 ->  | AD14: =(SQRT(((X14*Y14)^2*1.66666*'regelbare raamroosters 1'!AU$47*IF(Z14=0.6,W14,X14)^2*Z14^2)/(IF(Z14=0.6,W14,X14)^2*Z14^2+X14^2*Y14^2)))*3600 ->  | AE14: 0 | AF14: 0 | AG14: 11
A15: =IF(J15=0,0,MAX(A$4:A14)+1) -> 0 | B15: =IF(I15=0,0,MAX(B$4:B14)+1) -> 0 | C15: 0 | D15: 0 | E15: 12 | F15: 12 x 150mm | G15: 1778.4 | H15: 1815.4 | I15: =IF('Muur (vast + regelb 4032)'!AJ$17="horizontaal",IF(OR('Muur (vast + regelb 4032)'!K$10<G15,'Muur (vast + regelb 4032)'!K$10>H15),0,1),IF('Muur (vast + regelb 4032)'!AJ$17="verticaal",IF(OR('Muur (vast + regelb 4032)'!K$8<G15,'Muur (vast + regelb 4032)'!K$8>H15),0,1),"")) -> 0 | J15: =IF('regelbare raamroosters 1'!N$30-'regelbare raamroosters 1'!AJ$32*2=H15,1,0) -> 0 | K15: 0.024312 | L15: =VLOOKUP(1,'4032 # kolommen ponsingen'!A$3:E$400,3,FALSE) -> 6 | M15: 0.145872 | N15: ='Muur (vast + regelb 4032)'!$K$8*'Muur (vast + regelb 4032)'!$K$10*0.000001 -> 0.09 | O15: ='Muur (vast + regelb 4032)'!$AR$31 -> 0.329 | P15: 0.6 | Q15: =(SQRT(((N15*O15)^2*1.66666*'Muur (vast + regelb 4032)'!$AU$184*IF(P15=0.6,M15,N15)^2*P15^2)/(IF(P15=0.6,M15,N15)^2*P15^2+N15^2*O15^2)))*3600 -> 130.3567032 | R15: =(SQRT(((N15*O15)^2*1.66666*'Muur (vast + regelb 4032)'!$AU$185*IF(P15=0.6,M15,N15)^2*P15^2)/(IF(P15=0.6,M15,N15)^2*P15^2+N15^2*O15^2)))*3600 -> 184.3522176 | S15: =(SQRT(((N15*O15)^2*1.66666*'Muur (vast + regelb 4032)'!$AU$186*IF(P15=0.6,M15,N15)^2*P15^2)/(IF(P15=0.6,M15,N15)^2*P15^2+N15^2*O15^2)))*3600 -> 412.2240903 | T15: =(SQRT(((N15*O15)^2*1.66666*'Muur (vast + regelb 4032)'!$AU$187*IF(P15=0.6,M15,N15)^2*P15^2)/(IF(P15=0.6,M15,N15)^2*P15^2+N15^2*O15^2)))*3600 -> 344.8914183 | U15: =(C15*100+D15*130+E15*150+(C15+D15+E15-1)*1.4)-IF('Muur (vast + regelb 4032)'!AJ$17="horizontaal",'Muur (vast + regelb 4032)'!$K$10,IF('Muur (vast + regelb 4032)'!AJ$17="verticaal",'Muur (vast + regelb 4032)'!$K$8,0)) -> 1515.4 | V15: =VLOOKUP(1,'4032 # kolommen ponsingen'!B$3:E$102,2,FALSE) ->  | X15: ='regelbare raamroosters 1'!$N$30*'regelbare raamroosters 1'!$N$32*0.000001 -> 0.833714 | Y15: ='regelbare raamroosters 1'!$AX$8 -> 0 | Z15: 0.6 | AA15: =(SQRT(((X15*Y15)^2*1.66666*'regelbare raamroosters 1'!AU$44*IF(Z15=0.6,W15,X15)^2*Z15^2)/(IF(Z15=0.6,W15,X15)^2*Z15^2+X15^2*Y15^2)))*3600 ->  | AB15: =(SQRT(((X15*Y15)^2*1.66666*'regelbare raamroosters 1'!AU$45*IF(Z15=0.6,W15,X15)^2*Z15^2)/(IF(Z15=0.6,W15,X15)^2*Z15^2+X15^2*Y15^2)))*3600 ->  | AC15: =(SQRT(((X15*Y15)^2*1.66666*'regelbare raamroosters 1'!AU$46*IF(Z15=0.6,W15,X15)^2*Z15^2)/(IF(Z15=0.6,W15,X15)^2*Z15^2+X15^2*Y15^2)))*3600 ->  | AD15: =(SQRT(((X15*Y15)^2*1.66666*'regelbare raamroosters 1'!AU$47*IF(Z15=0.6,W15,X15)^2*Z15^2)/(IF(Z15=0.6,W15,X15)^2*Z15^2+X15^2*Y15^2)))*3600 ->  | AE15: 0 | AF15: 0 | AG15: 12
A16: =IF(J16=0,0,MAX(A$4:A15)+1) -> 0 | B16: =IF(I16=0,0,MAX(B$4:B15)+1) -> 0 | C16: 0 | D16: 0 | E16: 13 | F16: 13 x 150mm | G16: 1929.8 | H16: 1966.8 | I16: =IF('Muur (vast + regelb 4032)'!AJ$17="horizontaal",IF(OR('Muur (vast + regelb 4032)'!K$10<G16,'Muur (vast + regelb 4032)'!K$10>H16),0,1),IF('Muur (vast + regelb 4032)'!AJ$17="verticaal",IF(OR('Muur (vast + regelb 4032)'!K$8<G16,'Muur (vast + regelb 4032)'!K$8>H16),0,1),"")) -> 0 | J16: =IF('regelbare raamroosters 1'!N$30-'regelbare raamroosters 1'!AJ$32*2=H16,1,0) -> 0 | K16: 0.026338 | L16: =VLOOKUP(1,'4032 # kolommen ponsingen'!A$3:E$400,3,FALSE) -> 6 | M16: 0.158028 | N16: ='Muur (vast + regelb 4032)'!$K$8*'Muur (vast + regelb 4032)'!$K$10*0.000001 -> 0.09 | O16: ='Muur (vast + regelb 4032)'!$AR$31 -> 0.329 | P16: 0.6 | Q16: =(SQRT(((N16*O16)^2*1.66666*'Muur (vast + regelb 4032)'!$AU$184*IF(P16=0.6,M16,N16)^2*P16^2)/(IF(P16=0.6,M16,N16)^2*P16^2+N16^2*O16^2)))*3600 -> 131.3583353 | R16: =(SQRT(((N16*O16)^2*1.66666*'Muur (vast + regelb 4032)'!$AU$185*IF(P16=0.6,M16,N16)^2*P16^2)/(IF(P16=0.6,M16,N16)^2*P16^2+N16^2*O16^2)))*3600 -> 185.7687393 | S16: =(SQRT(((N16*O16)^2*1.66666*'Muur (vast + regelb 4032)'!$AU$186*IF(P16=0.6,M16,N16)^2*P16^2)/(IF(P16=0.6,M16,N16)^2*P16^2+N16^2*O16^2)))*3600 -> 415.3915292 | T16: =(SQRT(((N16*O16)^2*1.66666*'Muur (vast + regelb 4032)'!$AU$187*IF(P16=0.6,M16,N16)^2*P16^2)/(IF(P16=0.6,M16,N16)^2*P16^2+N16^2*O16^2)))*3600 -> 347.5414878 | U16: =(C16*100+D16*130+E16*150+(C16+D16+E16-1)*1.4)-IF('Muur (vast + regelb 4032)'!AJ$17="horizontaal",'Muur (vast + regelb 4032)'!$K$10,IF('Muur (vast + regelb 4032)'!AJ$17="verticaal",'Muur (vast + regelb 4032)'!$K$8,0)) -> 1666.8 | V16: =VLOOKUP(1,'4032 # kolommen ponsingen'!B$3:E$102,2,FALSE) ->  | X16: ='regelbare raamroosters 1'!$N$30*'regelbare raamroosters 1'!$N$32*0.000001 -> 0.833714 | Y16: ='regelbare raamroosters 1'!$AX$8 -> 0 | Z16: 0.6 | AA16: =(SQRT(((X16*Y16)^2*1.66666*'regelbare raamroosters 1'!AU$44*IF(Z16=0.6,W16,X16)^2*Z16^2)/(IF(Z16=0.6,W16,X16)^2*Z16^2+X16^2*Y16^2)))*3600 ->  | AB16: =(SQRT(((X16*Y16)^2*1.66666*'regelbare raamroosters 1'!AU$45*IF(Z16=0.6,W16,X16)^2*Z16^2)/(IF(Z16=0.6,W16,X16)^2*Z16^2+X16^2*Y16^2)))*3600 ->  | AC16: =(SQRT(((X16*Y16)^2*1.66666*'regelbare raamroosters 1'!AU$46*IF(Z16=0.6,W16,X16)^2*Z16^2)/(IF(Z16=0.6,W16,X16)^2*Z16^2+X16^2*Y16^2)))*3600 ->  | AD16: =(SQRT(((X16*Y16)^2*1.66666*'regelbare raamroosters 1'!AU$47*IF(Z16=0.6,W16,X16)^2*Z16^2)/(IF(Z16=0.6,W16,X16)^2*Z16^2+X16^2*Y16^2)))*3600 ->  | AE16: 0 | AF16: 0 | AG16: 13
A17: =IF(J17=0,0,MAX(A$4:A16)+1) -> 0 | B17: =IF(I17=0,0,MAX(B$4:B16)+1) -> 0 | C17: 0 | D17: 0 | E17: 14 | F17: 14 x 150mm | G17: 2081.2 | H17: 2118.2 | I17: =IF('Muur (vast + regelb 4032)'!AJ$17="horizontaal",IF(OR('Muur (vast + regelb 4032)'!K$10<G17,'Muur (vast + regelb 4032)'!K$10>H17),0,1),IF('Muur (vast + regelb 4032)'!AJ$17="verticaal",IF(OR('Muur (vast + regelb 4032)'!K$8<G17,'Muur (vast + regelb 4032)'!K$8>H17),0,1),"")) -> 0 | J17: =IF('regelbare raamroosters 1'!N$30-'regelbare raamroosters 1'!AJ$32*2=H17,1,0) -> 0 | K17: 0.028364 | L17: =VLOOKUP(1,'4032 # kolommen ponsingen'!A$3:E$400,3,FALSE) -> 6 | M17: 0.170184 | N17: ='Muur (vast + regelb 4032)'!$K$8*'Muur (vast + regelb 4032)'!$K$10*0.000001 -> 0.09 | O17: ='Muur (vast + regelb 4032)'!$AR$31 -> 0.329 | P17: 0.6 | Q17: =(SQRT(((N17*O17)^2*1.66666*'Muur (vast + regelb 4032)'!$AU$184*IF(P17=0.6,M17,N17)^2*P17^2)/(IF(P17=0.6,M17,N17)^2*P17^2+N17^2*O17^2)))*3600 -> 132.16974 | R17: =(SQRT(((N17*O17)^2*1.66666*'Muur (vast + regelb 4032)'!$AU$185*IF(P17=0.6,M17,N17)^2*P17^2)/(IF(P17=0.6,M17,N17)^2*P17^2+N17^2*O17^2)))*3600 -> 186.9162389 | S17: =(SQRT(((N17*O17)^2*1.66666*'Muur (vast + regelb 4032)'!$AU$186*IF(P17=0.6,M17,N17)^2*P17^2)/(IF(P17=0.6,M17,N17)^2*P17^2+N17^2*O17^2)))*3600 -> 417.9574163 | T17: =(SQRT(((N17*O17)^2*1.66666*'Muur (vast + regelb 4032)'!$AU$187*IF(P17=0.6,M17,N17)^2*P17^2)/(IF(P17=0.6,M17,N17)^2*P17^2+N17^2*O17^2)))*3600 -> 349.688263 | U17: =(C17*100+D17*130+E17*150+(C17+D17+E17-1)*1.4)-IF('Muur (vast + regelb 4032)'!AJ$17="horizontaal",'Muur (vast + regelb 4032)'!$K$10,IF('Muur (vast + regelb 4032)'!AJ$17="verticaal",'Muur (vast + regelb 4032)'!$K$8,0)) -> 1818.2 | V17: =VLOOKUP(1,'4032 # kolommen ponsingen'!B$3:E$102,2,FALSE) ->  | X17: ='regelbare raamroosters 1'!$N$30*'regelbare raamroosters 1'!$N$32*0.000001 -> 0.833714 | Y17: ='regelbare raamroosters 1'!$AX$8 -> 0 | Z17: 0.6 | AA17: =(SQRT(((X17*Y17)^2*1.66666*'regelbare raamroosters 1'!AU$44*IF(Z17=0.6,W17,X17)^2*Z17^2)/(IF(Z17=0.6,W17,X17)^2*Z17^2+X17^2*Y17^2)))*3600 ->  | AB17: =(SQRT(((X17*Y17)^2*1.66666*'regelbare raamroosters 1'!AU$45*IF(Z17=0.6,W17,X17)^2*Z17^2)/(IF(Z17=0.6,W17,X17)^2*Z17^2+X17^2*Y17^2)))*3600 ->  | AC17: =(SQRT(((X17*Y17)^2*1.66666*'regelbare raamroosters 1'!AU$46*IF(Z17=0.6,W17,X17)^2*Z17^2)/(IF(Z17=0.6,W17,X17)^2*Z17^2+X17^2*Y17^2)))*3600 ->  | AD17: =(SQRT(((X17*Y17)^2*1.66666*'regelbare raamroosters 1'!AU$47*IF(Z17=0.6,W17,X17)^2*Z17^2)/(IF(Z17=0.6,W17,X17)^2*Z17^2+X17^2*Y17^2)))*3600 ->  | AE17: 0 | AF17: 0 | AG17: 14
A18: =IF(J18=0,0,MAX(A$4:A17)+1) -> 0 | B18: =IF(I18=0,0,MAX(B$4:B17)+1) -> 0 | C18: 0 | D18: 0 | E18: 15 | F18: 15 x 150mm | G18: 2232.6 | H18: 2269.6 | I18: =IF('Muur (vast + regelb 4032)'!AJ$17="horizontaal",IF(OR('Muur (vast + regelb 4032)'!K$10<G18,'Muur (vast + regelb 4032)'!K$10>H18),0,1),IF('Muur (vast + regelb 4032)'!AJ$17="verticaal",IF(OR('Muur (vast + regelb 4032)'!K$8<G18,'Muur (vast + regelb 4032)'!K$8>H18),0,1),"")) -> 0 | J18: =IF('regelbare raamroosters 1'!N$30-'regelbare raamroosters 1'!AJ$32*2=H18,1,0) -> 0 | K18: 0.03039 | L18: =VLOOKUP(1,'4032 # kolommen ponsingen'!A$3:E$400,3,FALSE) -> 6 | M18: 0.18234 | N18: ='Muur (vast + regelb 4032)'!$K$8*'Muur (vast + regelb 4032)'!$K$10*0.000001 -> 0.09 | O18: ='Muur (vast + regelb 4032)'!$AR$31 -> 0.329 | P18: 0.6 | Q18: =(SQRT(((N18*O18)^2*1.66666*'Muur (vast + regelb 4032)'!$AU$184*IF(P18=0.6,M18,N18)^2*P18^2)/(IF(P18=0.6,M18,N18)^2*P18^2+N18^2*O18^2)))*3600 -> 132.8354131 | R18: =(SQRT(((N18*O18)^2*1.66666*'Muur (vast + regelb 4032)'!$AU$185*IF(P18=0.6,M18,N18)^2*P18^2)/(IF(P18=0.6,M18,N18)^2*P18^2+N18^2*O18^2)))*3600 -> 187.8576428 | S18: =(SQRT(((N18*O18)^2*1.66666*'Muur (vast + regelb 4032)'!$AU$186*IF(P18=0.6,M18,N18)^2*P18^2)/(IF(P18=0.6,M18,N18)^2*P18^2+N18^2*O18^2)))*3600 -> 420.0624594 | T18: =(SQRT(((N18*O18)^2*1.66666*'Muur (vast + regelb 4032)'!$AU$187*IF(P18=0.6,M18,N18)^2*P18^2)/(IF(P18=0.6,M18,N18)^2*P18^2+N18^2*O18^2)))*3600 -> 351.4494684 | U18: =(C18*100+D18*130+E18*150+(C18+D18+E18-1)*1.4)-IF('Muur (vast + regelb 4032)'!AJ$17="horizontaal",'Muur (vast + regelb 4032)'!$K$10,IF('Muur (vast + regelb 4032)'!AJ$17="verticaal",'Muur (vast + regelb 4032)'!$K$8,0)) -> 1969.6 | V18: =VLOOKUP(1,'4032 # kolommen ponsingen'!B$3:E$102,2,FALSE) ->  | X18: ='regelbare raamroosters 1'!$N$30*'regelbare raamroosters 1'!$N$32*0.000001 -> 0.833714 | Y18: ='regelbare raamroosters 1'!$AX$8 -> 0 | Z18: 0.6 | AA18: =(SQRT(((X18*Y18)^2*1.66666*'regelbare raamroosters 1'!AU$44*IF(Z18=0.6,W18,X18)^2*Z18^2)/(IF(Z18=0.6,W18,X18)^2*Z18^2+X18^2*Y18^2)))*3600 ->  | AB18: =(SQRT(((X18*Y18)^2*1.66666*'regelbare raamroosters 1'!AU$45*IF(Z18=0.6,W18,X18)^2*Z18^2)/(IF(Z18=0.6,W18,X18)^2*Z18^2+X18^2*Y18^2)))*3600 ->  | AC18: =(SQRT(((X18*Y18)^2*1.66666*'regelbare raamroosters 1'!AU$46*IF(Z18=0.6,W18,X18)^2*Z18^2)/(IF(Z18=0.6,W18,X18)^2*Z18^2+X18^2*Y18^2)))*3600 ->  | AD18: =(SQRT(((X18*Y18)^2*1.66666*'regelbare raamroosters 1'!AU$47*IF(Z18=0.6,W18,X18)^2*Z18^2)/(IF(Z18=0.6,W18,X18)^2*Z18^2+X18^2*Y18^2)))*3600 ->  | AE18: =C18 -> 0 | AF18: =D18 -> 0 | AG18: =E18 -> 15
A19: =IF(J19=0,0,MAX(A$4:A18)+1) -> 0 | B19: =IF(I19=0,0,MAX(B$4:B18)+1) -> 0 | C19: 0 | D19: 0 | E19: 16 | F19: 16 x 150mm | G19: 2384 | H19: 2421 | I19: =IF('Muur (vast + regelb 4032)'!AJ$17="horizontaal",IF(OR('Muur (vast + regelb 4032)'!K$10<G19,'Muur (vast + regelb 4032)'!K$10>H19),0,1),IF('Muur (vast + regelb 4032)'!AJ$17="verticaal",IF(OR('Muur (vast + regelb 4032)'!K$8<G19,'Muur (vast + regelb 4032)'!K$8>H19),0,1),"")) -> 0 | J19: =IF('regelbare raamroosters 1'!N$30-'regelbare raamroosters 1'!AJ$32*2=H19,1,0) -> 0 | K19: 0.032416 | L19: =VLOOKUP(1,'4032 # kolommen ponsingen'!A$3:E$400,3,FALSE) -> 6 | M19: 0.194496 | N19: ='Muur (vast + regelb 4032)'!$K$8*'Muur (vast + regelb 4032)'!$K$10*0.000001 -> 0.09 | O19: ='Muur (vast + regelb 4032)'!$AR$31 -> 0.329 | P19: 0.6 | Q19: =(SQRT(((N19*O19)^2*1.66666*'Muur (vast + regelb 4032)'!$AU$184*IF(P19=0.6,M19,N19)^2*P19^2)/(IF(P19=0.6,M19,N19)^2*P19^2+N19^2*O19^2)))*3600 -> 133.3877667 | R19: =(SQRT(((N19*O19)^2*1.66666*'Muur (vast + regelb 4032)'!$AU$185*IF(P19=0.6,M19,N19)^2*P19^2)/(IF(P19=0.6,M19,N19)^2*P19^2+N19^2*O19^2)))*3600 -> 188.6387888 | S19: =(SQRT(((N19*O19)^2*1.66666*'Muur (vast + regelb 4032)'!$AU$186*IF(P19=0.6,M19,N19)^2*P19^2)/(IF(P19=0.6,M19,N19)^2*P19^2+N19^2*O19^2)))*3600 -> 421.8091549 | T19: =(SQRT(((N19*O19)^2*1.66666*'Muur (vast + regelb 4032)'!$AU$187*IF(P19=0.6,M19,N19)^2*P19^2)/(IF(P19=0.6,M19,N19)^2*P19^2+N19^2*O19^2)))*3600 -> 352.9108587 | U19: =(C19*100+D19*130+E19*150+(C19+D19+E19-1)*1.4)-IF('Muur (vast + regelb 4032)'!AJ$17="horizontaal",'Muur (vast + regelb 4032)'!$K$10,IF('Muur (vast + regelb 4032)'!AJ$17="verticaal",'Muur (vast + regelb 4032)'!$K$8,0)) -> 2121 | V19: =VLOOKUP(1,'4032 # kolommen ponsingen'!B$3:E$102,2,FALSE) ->  | X19: ='regelbare raamroosters 1'!$N$30*'regelbare raamroosters 1'!$N$32*0.000001 -> 0.833714 | Y19: ='regelbare raamroosters 1'!$AX$8 -> 0 | Z19: 0.6 | AA19: =(SQRT(((X19*Y19)^2*1.66666*'regelbare raamroosters 1'!AU$44*IF(Z19=0.6,W19,X19)^2*Z19^2)/(IF(Z19=0.6,W19,X19)^2*Z19^2+X19^2*Y19^2)))*3600 ->  | AB19: =(SQRT(((X19*Y19)^2*1.66666*'regelbare raamroosters 1'!AU$45*IF(Z19=0.6,W19,X19)^2*Z19^2)/(IF(Z19=0.6,W19,X19)^2*Z19^2+X19^2*Y19^2)))*3600 ->  | AC19: =(SQRT(((X19*Y19)^2*1.66666*'regelbare raamroosters 1'!AU$46*IF(Z19=0.6,W19,X19)^2*Z19^2)/(IF(Z19=0.6,W19,X19)^2*Z19^2+X19^2*Y19^2)))*3600 ->  | AD19: =(SQRT(((X19*Y19)^2*1.66666*'regelbare raamroosters 1'!AU$47*IF(Z19=0.6,W19,X19)^2*Z19^2)/(IF(Z19=0.6,W19,X19)^2*Z19^2+X19^2*Y19^2)))*3600 ->  | AE19: 0 | AF19: 0 | AG19: 16
A20: =IF(J20=0,0,MAX(A$4:A19)+1) -> 0 | B20: =IF(I20=0,0,MAX(B$4:B19)+1) -> 0 | C20: 0 | D20: 0 | E20: 17 | F20: 17 x 150mm | G20: 2535.4 | H20: 2572.4 | I20: =IF('Muur (vast + regelb 4032)'!AJ$17="horizontaal",IF(OR('Muur (vast + regelb 4032)'!K$10<G20,'Muur (vast + regelb 4032)'!K$10>H20),0,1),IF('Muur (vast + regelb 4032)'!AJ$17="verticaal",IF(OR('Muur (vast + regelb 4032)'!K$8<G20,'Muur (vast + regelb 4032)'!K$8>H20),0,1),"")) -> 0 | J20: =IF('regelbare raamroosters 1'!N$30-'regelbare raamroosters 1'!AJ$32*2=H20,1,0) -> 0 | K20: 0.034442 | L20: =VLOOKUP(1,'4032 # kolommen ponsingen'!A$3:E$400,3,FALSE) -> 6 | M20: 0.206652 | N20: ='Muur (vast + regelb 4032)'!$K$8*'Muur (vast + regelb 4032)'!$K$10*0.000001 -> 0.09 | O20: ='Muur (vast + regelb 4032)'!$AR$31 -> 0.329 | P20: 0.6 | Q20: =(SQRT(((N20*O20)^2*1.66666*'Muur (vast + regelb 4032)'!$AU$184*IF(P20=0.6,M20,N20)^2*P20^2)/(IF(P20=0.6,M20,N20)^2*P20^2+N20^2*O20^2)))*3600 -> 133.8508031 | R20: =(SQRT(((N20*O20)^2*1.66666*'Muur (vast + regelb 4032)'!$AU$185*IF(P20=0.6,M20,N20)^2*P20^2)/(IF(P20=0.6,M20,N20)^2*P20^2+N20^2*O20^2)))*3600 -> 189.293621 | S20: =(SQRT(((N20*O20)^2*1.66666*'Muur (vast + regelb 4032)'!$AU$186*IF(P20=0.6,M20,N20)^2*P20^2)/(IF(P20=0.6,M20,N20)^2*P20^2+N20^2*O20^2)))*3600 -> 423.2734043 | T20: =(SQRT(((N20*O20)^2*1.66666*'Muur (vast + regelb 4032)'!$AU$187*IF(P20=0.6,M20,N20)^2*P20^2)/(IF(P20=0.6,M20,N20)^2*P20^2+N20^2*O20^2)))*3600 -> 354.1359377 | U20: =(C20*100+D20*130+E20*150+(C20+D20+E20-1)*1.4)-IF('Muur (vast + regelb 4032)'!AJ$17="horizontaal",'Muur (vast + regelb 4032)'!$K$10,IF('Muur (vast + regelb 4032)'!AJ$17="verticaal",'Muur (vast + regelb 4032)'!$K$8,0)) -> 2272.4 | V20: =VLOOKUP(1,'4032 # kolommen ponsingen'!B$3:E$102,2,FALSE) ->  | X20: ='regelbare raamroosters 1'!$N$30*'regelbare raamroosters 1'!$N$32*0.000001 -> 0.833714 | Y20: ='regelbare raamroosters 1'!$AX$8 -> 0 | Z20: 0.6 | AA20: =(SQRT(((X20*Y20)^2*1.66666*'regelbare raamroosters 1'!AU$44*IF(Z20=0.6,W20,X20)^2*Z20^2)/(IF(Z20=0.6,W20,X20)^2*Z20^2+X20^2*Y20^2)))*3600 ->  | AB20: =(SQRT(((X20*Y20)^2*1.66666*'regelbare raamroosters 1'!AU$45*IF(Z20=0.6,W20,X20)^2*Z20^2)/(IF(Z20=0.6,W20,X20)^2*Z20^2+X20^2*Y20^2)))*3600 ->  | AC20: =(SQRT(((X20*Y20)^2*1.66666*'regelbare raamroosters 1'!AU$46*IF(Z20=0.6,W20,X20)^2*Z20^2)/(IF(Z20=0.6,W20,X20)^2*Z20^2+X20^2*Y20^2)))*3600 ->  | AD20: =(SQRT(((X20*Y20)^2*1.66666*'regelbare raamroosters 1'!AU$47*IF(Z20=0.6,W20,X20)^2*Z20^2)/(IF(Z20=0.6,W20,X20)^2*Z20^2+X20^2*Y20^2)))*3600 ->  | AE20: 0 | AF20: 0 | AG20: 17
A21: =IF(J21=0,0,MAX(A$4:A20)+1) -> 0 | B21: =IF(I21=0,0,MAX(B$4:B20)+1) -> 0 | C21: 0 | D21: 0 | E21: 18 | F21: 18 x 150mm | G21: 2686.8 | H21: 2723.8 | I21: =IF('Muur (vast + regelb 4032)'!AJ$17="horizontaal",IF(OR('Muur (vast + regelb 4032)'!K$10<G21,'Muur (vast + regelb 4032)'!K$10>H21),0,1),IF('Muur (vast + regelb 4032)'!AJ$17="verticaal",IF(OR('Muur (vast + regelb 4032)'!K$8<G21,'Muur (vast + regelb 4032)'!K$8>H21),0,1),"")) -> 0 | J21: =IF('regelbare raamroosters 1'!N$30-'regelbare raamroosters 1'!AJ$32*2=H21,1,0) -> 0 | K21: 0.036468 | L21: =VLOOKUP(1,'4032 # kolommen ponsingen'!A$3:E$400,3,FALSE) -> 6 | M21: 0.218808 | N21: ='Muur (vast + regelb 4032)'!$K$8*'Muur (vast + regelb 4032)'!$K$10*0.000001 -> 0.09 | O21: ='Muur (vast + regelb 4032)'!$AR$31 -> 0.329 | P21: 0.6 | Q21: =(SQRT(((N21*O21)^2*1.66666*'Muur (vast + regelb 4032)'!$AU$184*IF(P21=0.6,M21,N21)^2*P21^2)/(IF(P21=0.6,M21,N21)^2*P21^2+N21^2*O21^2)))*3600 -> 134.2425681 | R21: =(SQRT(((N21*O21)^2*1.66666*'Muur (vast + regelb 4032)'!$AU$185*IF(P21=0.6,M21,N21)^2*P21^2)/(IF(P21=0.6,M21,N21)^2*P21^2+N21^2*O21^2)))*3600 -> 189.8476605 | S21: =(SQRT(((N21*O21)^2*1.66666*'Muur (vast + regelb 4032)'!$AU$186*IF(P21=0.6,M21,N21)^2*P21^2)/(IF(P21=0.6,M21,N21)^2*P21^2+N21^2*O21^2)))*3600 -> 424.5122741 | T21: =(SQRT(((N21*O21)^2*1.66666*'Muur (vast + regelb 4032)'!$AU$187*IF(P21=0.6,M21,N21)^2*P21^2)/(IF(P21=0.6,M21,N21)^2*P21^2+N21^2*O21^2)))*3600 -> 355.1724506 | U21: =(C21*100+D21*130+E21*150+(C21+D21+E21-1)*1.4)-IF('Muur (vast + regelb 4032)'!AJ$17="horizontaal",'Muur (vast + regelb 4032)'!$K$10,IF('Muur (vast + regelb 4032)'!AJ$17="verticaal",'Muur (vast + regelb 4032)'!$K$8,0)) -> 2423.8 | V21: =VLOOKUP(1,'4032 # kolommen ponsingen'!B$3:E$102,2,FALSE) ->  | X21: ='regelbare raamroosters 1'!$N$30*'regelbare raamroosters 1'!$N$32*0.000001 -> 0.833714 | Y21: ='regelbare raamroosters 1'!$AX$8 -> 0 | Z21: 0.6 | AA21: =(SQRT(((X21*Y21)^2*1.66666*'regelbare raamroosters 1'!AU$44*IF(Z21=0.6,W21,X21)^2*Z21^2)/(IF(Z21=0.6,W21,X21)^2*Z21^2+X21^2*Y21^2)))*3600 ->  | AB21: =(SQRT(((X21*Y21)^2*1.66666*'regelbare raamroosters 1'!AU$45*IF(Z21=0.6,W21,X21)^2*Z21^2)/(IF(Z21=0.6,W21,X21)^2*Z21^2+X21^2*Y21^2)))*3600 ->  | AC21: =(SQRT(((X21*Y21)^2*1.66666*'regelbare raamroosters 1'!AU$46*IF(Z21=0.6,W21,X21)^2*Z21^2)/(IF(Z21=0.6,W21,X21)^2*Z21^2+X21^2*Y21^2)))*3600 ->  | AD21: =(SQRT(((X21*Y21)^2*1.66666*'regelbare raamroosters 1'!AU$47*IF(Z21=0.6,W21,X21)^2*Z21^2)/(IF(Z21=0.6,W21,X21)^2*Z21^2+X21^2*Y21^2)))*3600 ->  | AE21: 0 | AF21: 0 | AG21: 18
A22: =IF(J22=0,0,MAX(A$4:A21)+1) -> 0 | B22: =IF(I22=0,0,MAX(B$4:B21)+1) -> 0 | C22: 0 | D22: 0 | E22: 19 | F22: 19 x 150mm | G22: 2838.2 | H22: 2875.2 | I22: =IF('Muur (vast + regelb 4032)'!AJ$17="horizontaal",IF(OR('Muur (vast + regelb 4032)'!K$10<G22,'Muur (vast + regelb 4032)'!K$10>H22),0,1),IF('Muur (vast + regelb 4032)'!AJ$17="verticaal",IF(OR('Muur (vast + regelb 4032)'!K$8<G22,'Muur (vast + regelb 4032)'!K$8>H22),0,1),"")) -> 0 | J22: =IF('regelbare raamroosters 1'!N$30-'regelbare raamroosters 1'!AJ$32*2=H22,1,0) -> 0 | K22: 0.038494 | L22: =VLOOKUP(1,'4032 # kolommen ponsingen'!A$3:E$400,3,FALSE) -> 6 | M22: 0.230964 | N22: ='Muur (vast + regelb 4032)'!$K$8*'Muur (vast + regelb 4032)'!$K$10*0.000001 -> 0.09 | O22: ='Muur (vast + regelb 4032)'!$AR$31 -> 0.329 | P22: 0.6 | Q22: =(SQRT(((N22*O22)^2*1.66666*'Muur (vast + regelb 4032)'!$AU$184*IF(P22=0.6,M22,N22)^2*P22^2)/(IF(P22=0.6,M22,N22)^2*P22^2+N22^2*O22^2)))*3600 -> 134.5768201 | R22: =(SQRT(((N22*O22)^2*1.66666*'Muur (vast + regelb 4032)'!$AU$185*IF(P22=0.6,M22,N22)^2*P22^2)/(IF(P22=0.6,M22,N22)^2*P22^2+N22^2*O22^2)))*3600 -> 190.3203642 | S22: =(SQRT(((N22*O22)^2*1.66666*'Muur (vast + regelb 4032)'!$AU$186*IF(P22=0.6,M22,N22)^2*P22^2)/(IF(P22=0.6,M22,N22)^2*P22^2+N22^2*O22^2)))*3600 -> 425.5692719 | T22: =(SQRT(((N22*O22)^2*1.66666*'Muur (vast + regelb 4032)'!$AU$187*IF(P22=0.6,M22,N22)^2*P22^2)/(IF(P22=0.6,M22,N22)^2*P22^2+N22^2*O22^2)))*3600 -> 356.0567983 | U22: =(C22*100+D22*130+E22*150+(C22+D22+E22-1)*1.4)-IF('Muur (vast + regelb 4032)'!AJ$17="horizontaal",'Muur (vast + regelb 4032)'!$K$10,IF('Muur (vast + regelb 4032)'!AJ$17="verticaal",'Muur (vast + regelb 4032)'!$K$8,0)) -> 2575.2 | V22: =VLOOKUP(1,'4032 # kolommen ponsingen'!B$3:E$102,2,FALSE) ->  | X22: ='regelbare raamroosters 1'!$N$30*'regelbare raamroosters 1'!$N$32*0.000001 -> 0.833714 | Y22: ='regelbare raamroosters 1'!$AX$8 -> 0 | Z22: 0.6 | AA22: =(SQRT(((X22*Y22)^2*1.66666*'regelbare raamroosters 1'!AU$44*IF(Z22=0.6,W22,X22)^2*Z22^2)/(IF(Z22=0.6,W22,X22)^2*Z22^2+X22^2*Y22^2)))*3600 ->  | AB22: =(SQRT(((X22*Y22)^2*1.66666*'regelbare raamroosters 1'!AU$45*IF(Z22=0.6,W22,X22)^2*Z22^2)/(IF(Z22=0.6,W22,X22)^2*Z22^2+X22^2*Y22^2)))*3600 ->  | AC22: =(SQRT(((X22*Y22)^2*1.66666*'regelbare raamroosters 1'!AU$46*IF(Z22=0.6,W22,X22)^2*Z22^2)/(IF(Z22=0.6,W22,X22)^2*Z22^2+X22^2*Y22^2)))*3600 ->  | AD22: =(SQRT(((X22*Y22)^2*1.66666*'regelbare raamroosters 1'!AU$47*IF(Z22=0.6,W22,X22)^2*Z22^2)/(IF(Z22=0.6,W22,X22)^2*Z22^2+X22^2*Y22^2)))*3600 ->  | AE22: 0 | AF22: 0 | AG22: 19
A23: =IF(J23=0,0,MAX(A$4:A22)+1) -> 0 | B23: =IF(I23=0,0,MAX(B$4:B22)+1) -> 0 | C23: 0 | D23: 0 | E23: 20 | F23: 20 x 150mm | G23: 2989.6 | H23: 3026.6 | I23: =IF('Muur (vast + regelb 4032)'!AJ$17="horizontaal",IF(OR('Muur (vast + regelb 4032)'!K$10<G23,'Muur (vast + regelb 4032)'!K$10>H23),0,1),IF('Muur (vast + regelb 4032)'!AJ$17="verticaal",IF(OR('Muur (vast + regelb 4032)'!K$8<G23,'Muur (vast + regelb 4032)'!K$8>H23),0,1),"")) -> 0 | J23: =IF('regelbare raamroosters 1'!N$30-'regelbare raamroosters 1'!AJ$32*2=H23,1,0) -> 0 | K23: 0.04052 | L23: =VLOOKUP(1,'4032 # kolommen ponsingen'!A$3:E$400,3,FALSE) -> 6 | M23: 0.24312 | N23: ='Muur (vast + regelb 4032)'!$K$8*'Muur (vast + regelb 4032)'!$K$10*0.000001 -> 0.09 | O23: ='Muur (vast + regelb 4032)'!$AR$31 -> 0.329 | P23: 0.6 | Q23: =(SQRT(((N23*O23)^2*1.66666*'Muur (vast + regelb 4032)'!$AU$184*IF(P23=0.6,M23,N23)^2*P23^2)/(IF(P23=0.6,M23,N23)^2*P23^2+N23^2*O23^2)))*3600 -> 134.8641836 | R23: =(SQRT(((N23*O23)^2*1.66666*'Muur (vast + regelb 4032)'!$AU$185*IF(P23=0.6,M23,N23)^2*P23^2)/(IF(P23=0.6,M23,N23)^2*P23^2+N23^2*O23^2)))*3600 -> 190.7267576 | S23: =(SQRT(((N23*O23)^2*1.66666*'Muur (vast + regelb 4032)'!$AU$186*IF(P23=0.6,M23,N23)^2*P23^2)/(IF(P23=0.6,M23,N23)^2*P23^2+N23^2*O23^2)))*3600 -> 426.4779951 | T23: =(SQRT(((N23*O23)^2*1.66666*'Muur (vast + regelb 4032)'!$AU$187*IF(P23=0.6,M23,N23)^2*P23^2)/(IF(P23=0.6,M23,N23)^2*P23^2+N23^2*O23^2)))*3600 -> 356.8170907 | U23: =(C23*100+D23*130+E23*150+(C23+D23+E23-1)*1.4)-IF('Muur (vast + regelb 4032)'!AJ$17="horizontaal",'Muur (vast + regelb 4032)'!$K$10,IF('Muur (vast + regelb 4032)'!AJ$17="verticaal",'Muur (vast + regelb 4032)'!$K$8,0)) -> 2726.6 | V23: =VLOOKUP(1,'4032 # kolommen ponsingen'!B$3:E$102,2,FALSE) ->  | X23: ='regelbare raamroosters 1'!$N$30*'regelbare raamroosters 1'!$N$32*0.000001 -> 0.833714 | Y23: ='regelbare raamroosters 1'!$AX$8 -> 0 | Z23: 0.6 | AA23: =(SQRT(((X23*Y23)^2*1.66666*'regelbare raamroosters 1'!AU$44*IF(Z23=0.6,W23,X23)^2*Z23^2)/(IF(Z23=0.6,W23,X23)^2*Z23^2+X23^2*Y23^2)))*3600 ->  | AB23: =(SQRT(((X23*Y23)^2*1.66666*'regelbare raamroosters 1'!AU$45*IF(Z23=0.6,W23,X23)^2*Z23^2)/(IF(Z23=0.6,W23,X23)^2*Z23^2+X23^2*Y23^2)))*3600 ->  | AC23: =(SQRT(((X23*Y23)^2*1.66666*'regelbare raamroosters 1'!AU$46*IF(Z23=0.6,W23,X23)^2*Z23^2)/(IF(Z23=0.6,W23,X23)^2*Z23^2+X23^2*Y23^2)))*3600 ->  | AD23: =(SQRT(((X23*Y23)^2*1.66666*'regelbare raamroosters 1'!AU$47*IF(Z23=0.6,W23,X23)^2*Z23^2)/(IF(Z23=0.6,W23,X23)^2*Z23^2+X23^2*Y23^2)))*3600 ->  | AE23: 0 | AF23: 0 | AG23: 20
A24: =IF(J24=0,0,MAX(A$4:A23)+1) -> 0 | B24: =IF(I24=0,0,MAX(B$4:B23)+1) -> 0 | C24: 0 | D24: 1 | E24: 0 | F24: 1 x 130mm | G24: 93 | H24: 130 | I24: =IF('Muur (vast + regelb 4032)'!AJ$17="horizontaal",IF(OR('Muur (vast + regelb 4032)'!K$10<G24,'Muur (vast + regelb 4032)'!K$10>H24),0,1),IF('Muur (vast + regelb 4032)'!AJ$17="verticaal",IF(OR('Muur (vast + regelb 4032)'!K$8<G24,'Muur (vast + regelb 4032)'!K$8>H24),0,1),"")) -> 0 | J24: =IF('regelbare raamroosters 1'!N$30-'regelbare raamroosters 1'!AJ$32*2=H24,1,0) -> 0 | K24: 0.001666 | L24: =VLOOKUP(1,'4032 # kolommen ponsingen'!A$3:E$400,3,FALSE) -> 6 | M24: 0.009996 | N24: ='Muur (vast + regelb 4032)'!$K$8*'Muur (vast + regelb 4032)'!$K$10*0.000001 -> 0.09 | O24: ='Muur (vast + regelb 4032)'!$AR$31 -> 0.329 | P24: 0.6 | Q24: =(SQRT(((N24*O24)^2*1.66666*'Muur (vast + regelb 4032)'!$AU$184*IF(P24=0.6,M24,N24)^2*P24^2)/(IF(P24=0.6,M24,N24)^2*P24^2+N24^2*O24^2)))*3600 -> 27.31947456 | R24: =(SQRT(((N24*O24)^2*1.66666*'Muur (vast + regelb 4032)'!$AU$185*IF(P24=0.6,M24,N24)^2*P24^2)/(IF(P24=0.6,M24,N24)^2*P24^2+N24^2*O24^2)))*3600 -> 38.63557143 | S24: =(SQRT(((N24*O24)^2*1.66666*'Muur (vast + regelb 4032)'!$AU$186*IF(P24=0.6,M24,N24)^2*P24^2)/(IF(P24=0.6,M24,N24)^2*P24^2+N24^2*O24^2)))*3600 -> 86.39176408 | T24: =(SQRT(((N24*O24)^2*1.66666*'Muur (vast + regelb 4032)'!$AU$187*IF(P24=0.6,M24,N24)^2*P24^2)/(IF(P24=0.6,M24,N24)^2*P24^2+N24^2*O24^2)))*3600 -> 72.28053562 | U24: =(C24*100+D24*130+E24*150+(C24+D24+E24-1)*1.4)-IF('Muur (vast + regelb 4032)'!AJ$17="horizontaal",'Muur (vast + regelb 4032)'!$K$10,IF('Muur (vast + regelb 4032)'!AJ$17="verticaal",'Muur (vast + regelb 4032)'!$K$8,0)) -> -170 | V24: =VLOOKUP(1,'4032 # kolommen ponsingen'!B$3:E$102,2,FALSE) ->  | X24: ='regelbare raamroosters 1'!$N$30*'regelbare raamroosters 1'!$N$32*0.000001 -> 0.833714 | Y24: ='regelbare raamroosters 1'!$AX$8 -> 0 | Z24: 0.6 | AA24: =(SQRT(((X24*Y24)^2*1.66666*'regelbare raamroosters 1'!AU$44*IF(Z24=0.6,W24,X24)^2*Z24^2)/(IF(Z24=0.6,W24,X24)^2*Z24^2+X24^2*Y24^2)))*3600 ->  | AB24: =(SQRT(((X24*Y24)^2*1.66666*'regelbare raamroosters 1'!AU$45*IF(Z24=0.6,W24,X24)^2*Z24^2)/(IF(Z24=0.6,W24,X24)^2*Z24^2+X24^2*Y24^2)))*3600 ->  | AC24: =(SQRT(((X24*Y24)^2*1.66666*'regelbare raamroosters 1'!AU$46*IF(Z24=0.6,W24,X24)^2*Z24^2)/(IF(Z24=0.6,W24,X24)^2*Z24^2+X24^2*Y24^2)))*3600 ->  | AD24: =(SQRT(((X24*Y24)^2*1.66666*'regelbare raamroosters 1'!AU$47*IF(Z24=0.6,W24,X24)^2*Z24^2)/(IF(Z24=0.6,W24,X24)^2*Z24^2+X24^2*Y24^2)))*3600 ->  | AE24: 0 | AF24: 1 | AG24: 0
A25: =IF(J25=0,0,MAX(A$4:A24)+1) -> 0 | B25: =IF(I25=0,0,MAX(B$4:B24)+1) -> 0 | C25: 0 | D25: 1 | E25: 1 | F25: 1 x 130mm + 1 x 150mm | G25: 244.4 | H25: 281.4 | I25: =IF('Muur (vast + regelb 4032)'!AJ$17="horizontaal",IF(OR('Muur (vast + regelb 4032)'!K$10<G25,'Muur (vast + regelb 4032)'!K$10>H25),0,1),IF('Muur (vast + regelb 4032)'!AJ$17="verticaal",IF(OR('Muur (vast + regelb 4032)'!K$8<G25,'Muur (vast + regelb 4032)'!K$8>H25),0,1),"")) -> 0 | J25: =IF('regelbare raamroosters 1'!N$30-'regelbare raamroosters 1'!AJ$32*2=H25,1,0) -> 0 | K25: 0.003692 | L25: =VLOOKUP(1,'4032 # kolommen ponsingen'!A$3:E$400,3,FALSE) -> 6 | M25: 0.022152 | N25: ='Muur (vast + regelb 4032)'!$K$8*'Muur (vast + regelb 4032)'!$K$10*0.000001 -> 0.09 | O25: ='Muur (vast + regelb 4032)'!$AR$31 -> 0.329 | P25: 0.6 | Q25: =(SQRT(((N25*O25)^2*1.66666*'Muur (vast + regelb 4032)'!$AU$184*IF(P25=0.6,M25,N25)^2*P25^2)/(IF(P25=0.6,M25,N25)^2*P25^2+N25^2*O25^2)))*3600 -> 56.35471805 | R25: =(SQRT(((N25*O25)^2*1.66666*'Muur (vast + regelb 4032)'!$AU$185*IF(P25=0.6,M25,N25)^2*P25^2)/(IF(P25=0.6,M25,N25)^2*P25^2+N25^2*O25^2)))*3600 -> 79.69760657 | S25: =(SQRT(((N25*O25)^2*1.66666*'Muur (vast + regelb 4032)'!$AU$186*IF(P25=0.6,M25,N25)^2*P25^2)/(IF(P25=0.6,M25,N25)^2*P25^2+N25^2*O25^2)))*3600 -> 178.2092659 | T25: =(SQRT(((N25*O25)^2*1.66666*'Muur (vast + regelb 4032)'!$AU$187*IF(P25=0.6,M25,N25)^2*P25^2)/(IF(P25=0.6,M25,N25)^2*P25^2+N25^2*O25^2)))*3600 -> 149.1005692 | U25: =(C25*100+D25*130+E25*150+(C25+D25+E25-1)*1.4)-IF('Muur (vast + regelb 4032)'!AJ$17="horizontaal",'Muur (vast + regelb 4032)'!$K$10,IF('Muur (vast + regelb 4032)'!AJ$17="verticaal",'Muur (vast + regelb 4032)'!$K$8,0)) -> -18.6 | V25: =VLOOKUP(1,'4032 # kolommen ponsingen'!B$3:E$102,2,FALSE) ->  | X25: ='regelbare raamroosters 1'!$N$30*'regelbare raamroosters 1'!$N$32*0.000001 -> 0.833714 | Y25: ='regelbare raamroosters 1'!$AX$8 -> 0 | Z25: 0.6 | AA25: =(SQRT(((X25*Y25)^2*1.66666*'regelbare raamroosters 1'!AU$44*IF(Z25=0.6,W25,X25)^2*Z25^2)/(IF(Z25=0.6,W25,X25)^2*Z25^2+X25^2*Y25^2)))*3600 ->  | AB25: =(SQRT(((X25*Y25)^2*1.66666*'regelbare raamroosters 1'!AU$45*IF(Z25=0.6,W25,X25)^2*Z25^2)/(IF(Z25=0.6,W25,X25)^2*Z25^2+X25^2*Y25^2)))*3600 ->  | AC25: =(SQRT(((X25*Y25)^2*1.66666*'regelbare raamroosters 1'!AU$46*IF(Z25=0.6,W25,X25)^2*Z25^2)/(IF(Z25=0.6,W25,X25)^2*Z25^2+X25^2*Y25^2)))*3600 ->  | AD25: =(SQRT(((X25*Y25)^2*1.66666*'regelbare raamroosters 1'!AU$47*IF(Z25=0.6,W25,X25)^2*Z25^2)/(IF(Z25=0.6,W25,X25)^2*Z25^2+X25^2*Y25^2)))*3600 ->  | AE25: 0 | AF25: 1 | AG25: 1
